Workbook

Sheet Yab.Dil Ön Değ
A1: T.C.
A2: BAYBURT ÜNİVERSİTESİ
A3: ÖĞRETİM ELEMANI ÖN DEĞERLENDİRME TUTANAĞI
A4: Üniversitemize bağlı birimlere, 2547 sayılı Kanunun ilgili maddeleri ve 09.11.2018 tarihli ve 30590 sayılı Resmi Gazetede yayımlanan "Öğretim Üyesi Dışındaki Öğretim Elemanı Kadrolarına Yapılacak Atamalarda Uygulanacak Merkezi Sınav İle Giriş Sınavlarına İlişkin Usul ve Esaslar Hakkında Yönetmelik” 10. Maddesi Uyarınca Lisans ve Ön Lisans Düzeyindeki Eğitim Veren Yerlere Alınacak Akademik Personele Ait Ön Değerlendirme Sonuç Tutanağı
A5: İlan No: | E5: Birimi: | I5: Rektörlük
A6: İlan Tarihi: | C6: …/.../.... | E6: Bölümü: | I6: ….. Bölümü / Ulusarası İlişkiler Ofisi
A7: Kadro Unvanı: | C7: Öğretim Görevlisi (Yabancı Dil Zorunlu Ortak Ders / Uluslararası İlişkiler Ofisi-Uyg. Birim) | E7: Alanı:
A8: Kadro Adedi: | E8: Öndeğerlendirme Tarihi: | I8: …/.../....
A9: İlan Özel Şartı:
A10: SINAVIN YAPILACAĞI YER, TARİH ve SAAT : | E10: ……... ../…/…. Günü Saat: …:….
A11: Sıra No | B11: Başvuranın | E11: Başvuru Şartı | H11: İlan Şartına Uygunluğu (Tecrübe / Nitelikler) | I11: Ön Sıralama Değerlendirme Sonuçları
B12: T.C. Kimlik No | C12: Adı | D12: Soyadı | E12: Alanındaki Ales Puanı | F12: Yabancı Dil Puanı (Min. 85) | G12: Tezli Yüksek Lisans Belgesi | I12: ALES (%40) | J12: Yabancı Dil Puanı (%60) | K12: Toplam Puan | L12: Ön Değerlendirme Sonucu
A13: 1 | B13: 11111111111 | C13: Örnek | D13: Örnek | E13: 81.50555 | F13: 95 | G13: Mevcut | H13: Uygun | I13: =E13*0.4 -> 32.60222 | J13: =F13*0.6 -> 57 | K13: =I13+J13 -> 89.60222 | L13: Sınava Girebilir
A14: 2 | B14: 11111111111 | C14: Örnek Örnek | D14: Örnek | E14: 80.60743 | F14: 94 | G14: Mevcut | H14: Uygun | I14: 32.242972 | J14: 56.4 | K14: 88.642972 | L14: Sınava Girebilir
A15: 3 | B15: 11111111111 | C15: Örnek | D15: Örnek Örnek | E15: 79.27563 | F15: 93 | G15: Mevcut | H15: Uygun | I15: 31.710252 | J15: 55.8 | K15: 87.510252 | L15: Sınava Girebilir
A16: 4 | B16: 11111111111 | C16: Örnek Örnek | D16: Örnek Örnek | E16: 78.11375 | F16: 90 | G16: Mevcut | H16: Uygun | I16: 31.2455 | J16: 54 | K16: 85.2455 | L16: Sınava Girebilir
A17: 5 | B17: 11111111111 | C17: Örnek | D17: Örnek | E17: 77.50555 | F17: 89 | G17: Mevcut | H17: Uygun | I17: 31.00222 | J17: 53.4 | K17: 84.40222 | L17: Sınava Girebilir
A18: 6 | B18: 11111111111 | C18: Örnek | D18: Örnek | E18: 76.60743 | F18: 88 | G18: Mevcut | H18: Uygun | I18: 30.642972 | J18: 52.8 | K18: 83.442972 | L18: Sınava Girebilir
A19: 7 | B19: 11111111111 | C19: Örnek | D19: Örnek | E19: 75.27563 | F19: 86 | G19: Mevcut | H19: Uygun | I19: 30.110252 | J19: 51.6 | K19: 81.710252 | L19: Sınava Girebilir
A20: 8 | B20: 11111111111 | C20: Örnek | D20: Örnek | E20: 74.11375 | F20: 85 | G20: Mevcut | H20: Uygun | I20: 29.6455 | J20: 51 | K20: 80.6455 | L20: Sınava Girebilir
A21: 9 | B21: 11111111111 | C21: Örnek | D21: Örnek | E21: 73.50555 | F21: 86 | G21: Mevcut | H21: Uygun | I21: 29.40222 | J21: 51.6 | K21: 81.00222 | L21: Sınava Girebilir
A22: 10 | B22: 11111111111 | C22: Örnek | D22: Örnek | E22: 72.60743 | F22: 87 | G22: Mevcut | H22: Uygun | I22: 29.042972 | J22: 52.2 | K22: 81.242972 | L22: Sınava Girebilir
A23: 11 | B23: 11111111111 | C23: Örnek | D23: Örnek | E23: 71.27563 | F23: 85 | G23: Mevcut | H23: Uygun | I23: 28.510252 | J23: 51 | K23: 79.510252 | L23: Yönetmelik Gereği Elendi *
A24: 12 | B24: 11111111111 | C24: Örnek | D24: Örnek | E24: 70.11375 | F24: 85 | G24: Mevcut | H24: Uygun | I24: 28.0455 | J24: 51 | K24: 79.0455 | L24: Yönetmelik Gereği Elendi *
A25: 13 | B25: 11111111111 | C25: Örnek | D25: Örnek | E25: 70.50555 | F25: 85 | G25: Mevcut | H25: Uygun | I25: 28.20222 | J25: 51 | K25: 79.20222 | L25: Yönetmelik Gereği Elendi *
A26: 14 | B26: 11111111111 | C26: Örnek | D26: Örnek | E26: 95 | F26: 80 | G26: Mevcut | H26: Uygun Değil | I26: 38 | J26: 48 | K26: 86 | L26: Başvuru Şartını Sağlamıyor (Yabancı Dil Puanı Yetersiz)
A27: 15 | B27: 11111111111 | C27: Örnek | D27: Örnek | E27: 80 | F27: 88 | G27: Mevcut | H27: Uygun Değil | I27: 32 | J27: 52.8 | K27: 84.8 | L27: Başvuru Şartını Sağlamıyor (Mezuniyet alanı ilanla uyumlu değil)
A28: 16 | B28: 11111111111 | C28: Örnek | D28: Örnek | E28: 75 | F28: 85 | G28: Mevcut Değil | H28: Uygun Değil | I28: 30 | J28: 51 | K28: 81 | L28: Başvuru Şartını Sağlamıyor (Yüksek Lisans Yapmış Olmak Şartını Sağlamıyor)
A29: 17 | B29: 11111111111 | C29: Örnek | D29: Örnek | E29: 78 | F29: 86 | G29: Mevcut | H29: Uygun Değil | I29: 31.2 | J29: 51.6 | K29: 82.8 | L29: Başvuru Şartını Sağlamıyor (Tecrübe süresi ilan şartını taşımıyor)
A30: 18 | B30: 11111111111 | C30: Örnek | D30: Örnek | E30: 68 | F30: 88 | G30: Mevcut | H30: Uygun Değil | I30: 27.2 | J30: 52.8 | K30: 80 | L30: Başvuru Şartını Sağlamıyor (Ales puanı yetersiz)

Sheet Ön Değ. Rapor
A1: T.C.
A2: BAYBURT ÜNİVERSİTESİ
A3: ÖĞRETİM ELEMANI ÖN DEĞERLENDİRME TUTANAĞI
A4: Üniversitemize bağlı birimlere, 2547 sayılı Kanunun ilgili maddeleri ve 09.11.2018 tarihli ve 30590 sayılı Resmi Gazetede yayımlanan "Öğretim Üyesi Dışındaki Öğretim Elemanı Kadrolarına Yapılacak Atamalarda Uygulanacak Merkezi Sınav İle Giriş Sınavlarına İlişkin Usul ve Esaslar Hakkında Yönetmelik” 10. Maddesi Uyarınca Lisans ve Ön Lisans Düzeyindeki Eğitim Veren Yerlere Alınacak Akademik Personele Ait Ön Değerlendirme Sonuç Tutanağı
A5: İlan No: | C5: =IF('Yab.Dil Ön Değ'!C5="","",'Yab.Dil Ön Değ'!C5) ->  | E5: Birimi: | I5: =IF('Yab.Dil Ön Değ'!I5="","",'Yab.Dil Ön Değ'!I5) -> Rektörlük
A6: İlan Tarihi: | C6: =IF('Yab.Dil Ön Değ'!C6="","",'Yab.Dil Ön Değ'!C6) -> …/.../.... | E6: Bölümü: | I6: =IF('Yab.Dil Ön Değ'!I6="","",'Yab.Dil Ön Değ'!I6) -> ….. Bölümü / Ulusarası İlişkiler Ofisi
A7: Kadro Unvanı: | C7: =IF('Yab.Dil Ön Değ'!C7="","",'Yab.Dil Ön Değ'!C7) -> Öğretim Görevlisi (Yabancı Dil Zorunlu Ortak Ders / Uluslararası İlişkiler Ofisi-Uyg. Birim) | E7: Alanı: | I7: =IF('Yab.Dil Ön Değ'!I7="","",'Yab.Dil Ön Değ'!I7) -> 
A8: Kadro Adedi: | C8: =IF('Yab.Dil Ön Değ'!C8="","",'Yab.Dil Ön Değ'!C8) ->  | E8: Öndeğerlendirme Tarihi: | I8: =IF('Yab.Dil Ön Değ'!I8="","",'Yab.Dil Ön Değ'!I8) -> …/.../....
A9: İlan Özel Şartı: | C9: =IF('Yab.Dil Ön Değ'!C9="","",'Yab.Dil Ön Değ'!C9) -> 
A10: SINAVIN YAPILACAĞI YER, TARİH ve SAAT : | E10: =IF('Yab.Dil Ön Değ'!E10="","",'Yab.Dil Ön Değ'!E10) -> ……... ../…/…. Günü Saat: …:….
A11: Sıra No | B11: Başvuranın | E11: Başvuru Şartı | H11: İlan Şartına Uygunluğu (Tecrübe / Nitelikler) | I11: Ön Sıralama Değerlendirme Sonuçları
B12: T.C. Kimlik No | C12: Adı | D12: Soyadı | E12: Alanındaki Ales Puanı | F12: Yabancı Dil Puanı (Min. 85) | G12: Tezli Yüksek Lisans Belgesi | I12: ALES (%40) | J12: Yabancı Dil Puanı (%60) | K12: Toplam Puan | L12: Ön Değerlendirme Sonucu
A13: =IF('Yab.Dil Ön Değ'!A13="","",'Yab.Dil Ön Değ'!A13) -> 1 | B13: =IF('Yab.Dil Ön Değ'!B13="","",LEFT('Yab.Dil Ön Değ'!B13,3)&REPT("*",4)&RIGHT('Yab.Dil Ön Değ'!B13,2)) -> 111****11 | C13: =IF('Yab.Dil Ön Değ'!C13="","",IF(ISERR(FIND(" ",'Yab.Dil Ön Değ'!C13))=TRUE,LEFT('Yab.Dil Ön Değ'!C13,2)&REPT("*",3),LEFT('Yab.Dil Ön Değ'!C13,2)&REPT("*",3)&" "&MID('Yab.Dil Ön Değ'!C13,FIND(" ",'Yab.Dil Ön Değ'!C13)+1,2)&REPT("*",3))) -> Ör*** | D13: =IF('Yab.Dil Ön Değ'!D13="","",IF(ISERR(FIND(" ",'Yab.Dil Ön Değ'!D13))=TRUE,LEFT('Yab.Dil Ön Değ'!D13,2)&REPT("*",3),LEFT('Yab.Dil Ön Değ'!D13,2)&REPT("*",3)&" "&MID('Yab.Dil Ön Değ'!D13,FIND(" ",'Yab.Dil Ön Değ'!D13)+1,2)&REPT("*",3))) -> Ör*** | E13: =IF('Yab.Dil Ön Değ'!E13="","",'Yab.Dil Ön Değ'!E13) -> 81.50555 | F13: =IF('Yab.Dil Ön Değ'!F13="","",'Yab.Dil Ön Değ'!F13) -> 95 | G13: =IF('Yab.Dil Ön Değ'!G13="","",'Yab.Dil Ön Değ'!G13) -> Mevcut | H13: =IF('Yab.Dil Ön Değ'!H13="","",'Yab.Dil Ön Değ'!H13) -> Uygun | I13: =IF('Yab.Dil Ön Değ'!I13="","",'Yab.Dil Ön Değ'!I13) -> 32.60222 | J13: =IF('Yab.Dil Ön Değ'!J13="","",'Yab.Dil Ön Değ'!J13) -> 57 | K13: =IF('Yab.Dil Ön Değ'!K13="","",'Yab.Dil Ön Değ'!K13) -> 89.60222 | L13: =IF('Yab.Dil Ön Değ'!L13="","",'Yab.Dil Ön Değ'!L13) -> Sınava Girebilir
A14: =IF('Yab.Dil Ön Değ'!A14="","",'Yab.Dil Ön Değ'!A14) -> 2 | B14: =IF('Yab.Dil Ön Değ'!B14="","",LEFT('Yab.Dil Ön Değ'!B14,3)&REPT("*",4)&RIGHT('Yab.Dil Ön Değ'!B14,2)) -> 111****11 | C14: =IF('Yab.Dil Ön Değ'!C14="","",IF(ISERR(FIND(" ",'Yab.Dil Ön Değ'!C14))=TRUE,LEFT('Yab.Dil Ön Değ'!C14,2)&REPT("*",3),LEFT('Yab.Dil Ön Değ'!C14,2)&REPT("*",3)&" "&MID('Yab.Dil Ön Değ'!C14,FIND(" ",'Yab.Dil Ön Değ'!C14)+1,2)&REPT("*",3))) -> Ör*** Ör*** | D14: =IF('Yab.Dil Ön Değ'!D14="","",IF(ISERR(FIND(" ",'Yab.Dil Ön Değ'!D14))=TRUE,LEFT('Yab.Dil Ön Değ'!D14,2)&REPT("*",3),LEFT('Yab.Dil Ön Değ'!D14,2)&REPT("*",3)&" "&MID('Yab.Dil Ön Değ'!D14,FIND(" ",'Yab.Dil Ön Değ'!D14)+1,2)&REPT("*",3))) -> Ör*** | E14: =IF('Yab.Dil Ön Değ'!E14="","",'Yab.Dil Ön Değ'!E14) -> 80.60743 | F14: =IF('Yab.Dil Ön Değ'!F14="","",'Yab.Dil Ön Değ'!F14) -> 94 | G14: =IF('Yab.Dil Ön Değ'!G14="","",'Yab.Dil Ön Değ'!G14) -> Mevcut | H14: =IF('Yab.Dil Ön Değ'!H14="","",'Yab.Dil Ön Değ'!H14) -> Uygun | I14: =IF('Yab.Dil Ön Değ'!I14="","",'Yab.Dil Ön Değ'!I14) -> 32.242972 | J14: =IF('Yab.Dil Ön Değ'!J14="","",'Yab.Dil Ön Değ'!J14) -> 56.4 | K14: =IF('Yab.Dil Ön Değ'!K14="","",'Yab.Dil Ön Değ'!K14) -> 88.642972 | L14: =IF('Yab.Dil Ön Değ'!L14="","",'Yab.Dil Ön Değ'!L14) -> Sınava Girebilir
A15: =IF('Yab.Dil Ön Değ'!A15="","",'Yab.Dil Ön Değ'!A15) -> 3 | B15: =IF('Yab.Dil Ön Değ'!B15="","",LEFT('Yab.Dil Ön Değ'!B15,3)&REPT("*",4)&RIGHT('Yab.Dil Ön Değ'!B15,2)) -> 111****11 | C15: =IF('Yab.Dil Ön Değ'!C15="","",IF(ISERR(FIND(" ",'Yab.Dil Ön Değ'!C15))=TRUE,LEFT('Yab.Dil Ön Değ'!C15,2)&REPT("*",3),LEFT('Yab.Dil Ön Değ'!C15,2)&REPT("*",3)&" "&MID('Yab.Dil Ön Değ'!C15,FIND(" ",'Yab.Dil Ön Değ'!C15)+1,2)&REPT("*",3))) -> Ör*** | D15: =IF('Yab.Dil Ön Değ'!D15="","",IF(ISERR(FIND(" ",'Yab.Dil Ön Değ'!D15))=TRUE,LEFT('Yab.Dil Ön Değ'!D15,2)&REPT("*",3),LEFT('Yab.Dil Ön Değ'!D15,2)&REPT("*",3)&" "&MID('Yab.Dil Ön Değ'!D15,FIND(" ",'Yab.Dil Ön Değ'!D15)+1,2)&REPT("*",3))) -> Ör*** Ör*** | E15: =IF('Yab.Dil Ön Değ'!E15="","",'Yab.Dil Ön Değ'!E15) -> 79.27563 | F15: =IF('Yab.Dil Ön Değ'!F15="","",'Yab.Dil Ön Değ'!F15) -> 93 | G15: =IF('Yab.Dil Ön Değ'!G15="","",'Yab.Dil Ön Değ'!G15) -> Mevcut | H15: =IF('Yab.Dil Ön Değ'!H15="","",'Yab.Dil Ön Değ'!H15) -> Uygun | I15: =IF('Yab.Dil Ön Değ'!I15="","",'Yab.Dil Ön Değ'!I15) -> 31.710252 | J15: =IF('Yab.Dil Ön Değ'!J15="","",'Yab.Dil Ön Değ'!J15) -> 55.8 | K15: =IF('Yab.Dil Ön Değ'!K15="","",'Yab.Dil Ön Değ'!K15) -> 87.510252 | L15: =IF('Yab.Dil Ön Değ'!L15="","",'Yab.Dil Ön Değ'!L15) -> Sınava Girebilir
A16: =IF('Yab.Dil Ön Değ'!A16="","",'Yab.Dil Ön Değ'!A16) -> 4 | B16: =IF('Yab.Dil Ön Değ'!B16="","",LEFT('Yab.Dil Ön Değ'!B16,3)&REPT("*",4)&RIGHT('Yab.Dil Ön Değ'!B16,2)) -> 111****11 | C16: =IF('Yab.Dil Ön Değ'!C16="","",IF(ISERR(FIND(" ",'Yab.Dil Ön Değ'!C16))=TRUE,LEFT('Yab.Dil Ön Değ'!C16,2)&REPT("*",3),LEFT('Yab.Dil Ön Değ'!C16,2)&REPT("*",3)&" "&MID('Yab.Dil Ön Değ'!C16,FIND(" ",'Yab.Dil Ön Değ'!C16)+1,2)&REPT("*",3))) -> Ör*** Ör*** | D16: =IF('Yab.Dil Ön Değ'!D16="","",IF(ISERR(FIND(" ",'Yab.Dil Ön Değ'!D16))=TRUE,LEFT('Yab.Dil Ön Değ'!D16,2)&REPT("*",3),LEFT('Yab.Dil Ön Değ'!D16,2)&REPT("*",3)&" "&MID('Yab.Dil Ön Değ'!D16,FIND(" ",'Yab.Dil Ön Değ'!D16)+1,2)&REPT("*",3))) -> Ör*** Ör*** | E16: =IF('Yab.Dil Ön Değ'!E16="","",'Yab.Dil Ön Değ'!E16) -> 78.11375 | F16: =IF('Yab.Dil Ön Değ'!F16="","",'Yab.Dil Ön Değ'!F16) -> 90 | G16: =IF('Yab.Dil Ön Değ'!G16="","",'Yab.Dil Ön Değ'!G16) -> Mevcut | H16: =IF('Yab.Dil Ön Değ'!H16="","",'Yab.Dil Ön Değ'!H16) -> Uygun | I16: =IF('Yab.Dil Ön Değ'!I16="","",'Yab.Dil Ön Değ'!I16) -> 31.2455 | J16: =IF('Yab.Dil Ön Değ'!J16="","",'Yab.Dil Ön Değ'!J16) -> 54 | K16: =IF('Yab.Dil Ön Değ'!K16="","",'Yab.Dil Ön Değ'!K16) -> 85.2455 | L16: =IF('Yab.Dil Ön Değ'!L16="","",'Yab.Dil Ön Değ'!L16) -> Sınava Girebilir
A17: =IF('Yab.Dil Ön Değ'!A17="","",'Yab.Dil Ön Değ'!A17) -> 5 | B17: =IF('Yab.Dil Ön Değ'!B17="","",LEFT('Yab.Dil Ön Değ'!B17,3)&REPT("*",4)&RIGHT('Yab.Dil Ön Değ'!B17,2)) -> 111****11 | C17: =IF('Yab.Dil Ön Değ'!C17="","",IF(ISERR(FIND(" ",'Yab.Dil Ön Değ'!C17))=TRUE,LEFT('Yab.Dil Ön Değ'!C17,2)&REPT("*",3),LEFT('Yab.Dil Ön Değ'!C17,2)&REPT("*",3)&" "&MID('Yab.Dil Ön Değ'!C17,FIND(" ",'Yab.Dil Ön Değ'!C17)+1,2)&REPT("*",3))) -> Ör*** | D17: =IF('Yab.Dil Ön Değ'!D17="","",IF(ISERR(FIND(" ",'Yab.Dil Ön Değ'!D17))=TRUE,LEFT('Yab.Dil Ön Değ'!D17,2)&REPT("*",3),LEFT('Yab.Dil Ön Değ'!D17,2)&REPT("*",3)&" "&MID('Yab.Dil Ön Değ'!D17,FIND(" ",'Yab.Dil Ön Değ'!D17)+1,2)&REPT("*",3))) -> Ör*** | E17: =IF('Yab.Dil Ön Değ'!E17="","",'Yab.Dil Ön Değ'!E17) -> 77.50555 | F17: =IF('Yab.Dil Ön Değ'!F17="","",'Yab.Dil Ön Değ'!F17) -> 89 | G17: =IF('Yab.Dil Ön Değ'!G17="","",'Yab.Dil Ön Değ'!G17) -> Mevcut | H17: =IF('Yab.Dil Ön Değ'!H17="","",'Yab.Dil Ön Değ'!H17) -> Uygun | I17: =IF('Yab.Dil Ön Değ'!I17="","",'Yab.Dil Ön Değ'!I17) -> 31.00222 | J17: =IF('Yab.Dil Ön Değ'!J17="","",'Yab.Dil Ön Değ'!J17) -> 53.4 | K17: =IF('Yab.Dil Ön Değ'!K17="","",'Yab.Dil Ön Değ'!K17) -> 84.40222 | L17: =IF('Yab.Dil Ön Değ'!L17="","",'Yab.Dil Ön Değ'!L17) -> Sınava Girebilir
A18: =IF('Yab.Dil Ön Değ'!A18="","",'Yab.Dil Ön Değ'!A18) -> 6 | B18: =IF('Yab.Dil Ön Değ'!B18="","",LEFT('Yab.Dil Ön Değ'!B18,3)&REPT("*",4)&RIGHT('Yab.Dil Ön Değ'!B18,2)) -> 111****11 | C18: =IF('Yab.Dil Ön Değ'!C18="","",IF(ISERR(FIND(" ",'Yab.Dil Ön Değ'!C18))=TRUE,LEFT('Yab.Dil Ön Değ'!C18,2)&REPT("*",3),LEFT('Yab.Dil Ön Değ'!C18,2)&REPT("*",3)&" "&MID('Yab.Dil Ön Değ'!C18,FIND(" ",'Yab.Dil Ön Değ'!C18)+1,2)&REPT("*",3))) -> Ör*** | D18: =IF('Yab.Dil Ön Değ'!D18="","",IF(ISERR(FIND(" ",'Yab.Dil Ön Değ'!D18))=TRUE,LEFT('Yab.Dil Ön Değ'!D18,2)&REPT("*",3),LEFT('Yab.Dil Ön Değ'!D18,2)&REPT("*",3)&" "&MID('Yab.Dil Ön Değ'!D18,FIND(" ",'Yab.Dil Ön Değ'!D18)+1,2)&REPT("*",3))) -> Ör*** | E18: =IF('Yab.Dil Ön Değ'!E18="","",'Yab.Dil Ön Değ'!E18) -> 76.60743 | F18: =IF('Yab.Dil Ön Değ'!F18="","",'Yab.Dil Ön Değ'!F18) -> 88 | G18: =IF('Yab.Dil Ön Değ'!G18="","",'Yab.Dil Ön Değ'!G18) -> Mevcut | H18: =IF('Yab.Dil Ön Değ'!H18="","",'Yab.Dil Ön Değ'!H18) -> Uygun | I18: =IF('Yab.Dil Ön Değ'!I18="","",'Yab.Dil Ön Değ'!I18) -> 30.642972 | J18: =IF('Yab.Dil Ön Değ'!J18="","",'Yab.Dil Ön Değ'!J18) -> 52.8 | K18: =IF('Yab.Dil Ön Değ'!K18="","",'Yab.Dil Ön Değ'!K18) -> 83.442972 | L18: =IF('Yab.Dil Ön Değ'!L18="","",'Yab.Dil Ön Değ'!L18) -> Sınava Girebilir
A19: =IF('Yab.Dil Ön Değ'!A19="","",'Yab.Dil Ön Değ'!A19) -> 7 | B19: =IF('Yab.Dil Ön Değ'!B19="","",LEFT('Yab.Dil Ön Değ'!B19,3)&REPT("*",4)&RIGHT('Yab.Dil Ön Değ'!B19,2)) -> 111****11 | C19: =IF('Yab.Dil Ön Değ'!C19="","",IF(ISERR(FIND(" ",'Yab.Dil Ön Değ'!C19))=TRUE,LEFT('Yab.Dil Ön Değ'!C19,2)&REPT("*",3),LEFT('Yab.Dil Ön Değ'!C19,2)&REPT("*",3)&" "&MID('Yab.Dil Ön Değ'!C19,FIND(" ",'Yab.Dil Ön Değ'!C19)+1,2)&REPT("*",3))) -> Ör*** | D19: =IF('Yab.Dil Ön Değ'!D19="","",IF(ISERR(FIND(" ",'Yab.Dil Ön Değ'!D19))=TRUE,LEFT('Yab.Dil Ön Değ'!D19,2)&REPT("*",3),LEFT('Yab.Dil Ön Değ'!D19,2)&REPT("*",3)&" "&MID('Yab.Dil Ön Değ'!D19,FIND(" ",'Yab.Dil Ön Değ'!D19)+1,2)&REPT("*",3))) -> Ör*** | E19: =IF('Yab.Dil Ön Değ'!E19="","",'Yab.Dil Ön Değ'!E19) -> 75.27563 | F19: =IF('Yab.Dil Ön Değ'!F19="","",'Yab.Dil Ön Değ'!F19) -> 86 | G19: =IF('Yab.Dil Ön Değ'!G19="","",'Yab.Dil Ön Değ'!G19) -> Mevcut | H19: =IF('Yab.Dil Ön Değ'!H19="","",'Yab.Dil Ön Değ'!H19) -> Uygun | I19: =IF('Yab.Dil Ön Değ'!I19="","",'Yab.Dil Ön Değ'!I19) -> 30.110252 | J19: =IF('Yab.Dil Ön Değ'!J19="","",'Yab.Dil Ön Değ'!J19) -> 51.6 | K19: =IF('Yab.Dil Ön Değ'!K19="","",'Yab.Dil Ön Değ'!K19) -> 81.710252 | L19: =IF('Yab.Dil Ön Değ'!L19="","",'Yab.Dil Ön Değ'!L19) -> Sınava Girebilir
A20: =IF('Yab.Dil Ön Değ'!A20="","",'Yab.Dil Ön Değ'!A20) -> 8 | B20: =IF('Yab.Dil Ön Değ'!B20="","",LEFT('Yab.Dil Ön Değ'!B20,3)&REPT("*",4)&RIGHT('Yab.Dil Ön Değ'!B20,2)) -> 111****11 | C20: =IF('Yab.Dil Ön Değ'!C20="","",IF(ISERR(FIND(" ",'Yab.Dil Ön Değ'!C20))=TRUE,LEFT('Yab.Dil Ön Değ'!C20,2)&REPT("*",3),LEFT('Yab.Dil Ön Değ'!C20,2)&REPT("*",3)&" "&MID('Yab.Dil Ön Değ'!C20,FIND(" ",'Yab.Dil Ön Değ'!C20)+1,2)&REPT("*",3))) -> Ör*** | D20: =IF('Yab.Dil Ön Değ'!D20="","",IF(ISERR(FIND(" ",'Yab.Dil Ön Değ'!D20))=TRUE,LEFT('Yab.Dil Ön Değ'!D20,2)&REPT("*",3),LEFT('Yab.Dil Ön Değ'!D20,2)&REPT("*",3)&" "&MID('Yab.Dil Ön Değ'!D20,FIND(" ",'Yab.Dil Ön Değ'!D20)+1,2)&REPT("*",3))) -> Ör*** | E20: =IF('Yab.Dil Ön Değ'!E20="","",'Yab.Dil Ön Değ'!E20) -> 74.11375 | F20: =IF('Yab.Dil Ön Değ'!F20="","",'Yab.Dil Ön Değ'!F20) -> 85 | G20: =IF('Yab.Dil Ön Değ'!G20="","",'Yab.Dil Ön Değ'!G20) -> Mevcut | H20: =IF('Yab.Dil Ön Değ'!H20="","",'Yab.Dil Ön Değ'!H20) -> Uygun | I20: =IF('Yab.Dil Ön Değ'!I20="","",'Yab.Dil Ön Değ'!I20) -> 29.6455 | J20: =IF('Yab.Dil Ön Değ'!J20="","",'Yab.Dil Ön Değ'!J20) -> 51 | K20: =IF('Yab.Dil Ön Değ'!K20="","",'Yab.Dil Ön Değ'!K20) -> 80.6455 | L20: =IF('Yab.Dil Ön Değ'!L20="","",'Yab.Dil Ön Değ'!L20) -> Sınava Girebilir
A21: =IF('Yab.Dil Ön Değ'!A21="","",'Yab.Dil Ön Değ'!A21) -> 9 | B21: =IF('Yab.Dil Ön Değ'!B21="","",LEFT('Yab.Dil Ön Değ'!B21,3)&REPT("*",4)&RIGHT('Yab.Dil Ön Değ'!B21,2)) -> 111****11 | C21: =IF('Yab.Dil Ön Değ'!C21="","",IF(ISERR(FIND(" ",'Yab.Dil Ön Değ'!C21))=TRUE,LEFT('Yab.Dil Ön Değ'!C21,2)&REPT("*",3),LEFT('Yab.Dil Ön Değ'!C21,2)&REPT("*",3)&" "&MID('Yab.Dil Ön Değ'!C21,FIND(" ",'Yab.Dil Ön Değ'!C21)+1,2)&REPT("*",3))) -> Ör*** | D21: =IF('Yab.Dil Ön Değ'!D21="","",IF(ISERR(FIND(" ",'Yab.Dil Ön Değ'!D21))=TRUE,LEFT('Yab.Dil Ön Değ'!D21,2)&REPT("*",3),LEFT('Yab.Dil Ön Değ'!D21,2)&REPT("*",3)&" "&MID('Yab.Dil Ön Değ'!D21,FIND(" ",'Yab.Dil Ön Değ'!D21)+1,2)&REPT("*",3))) -> Ör*** | E21: =IF('Yab.Dil Ön Değ'!E21="","",'Yab.Dil Ön Değ'!E21) -> 73.50555 | F21: =IF('Yab.Dil Ön Değ'!F21="","",'Yab.Dil Ön Değ'!F21) -> 86 | G21: =IF('Yab.Dil Ön Değ'!G21="","",'Yab.Dil Ön Değ'!G21) -> Mevcut | H21: =IF('Yab.Dil Ön Değ'!H21="","",'Yab.Dil Ön Değ'!H21) -> Uygun | I21: =IF('Yab.Dil Ön Değ'!I21="","",'Yab.Dil Ön Değ'!I21) -> 29.40222 | J21: =IF('Yab.Dil Ön Değ'!J21="","",'Yab.Dil Ön Değ'!J21) -> 51.6 | K21: =IF('Yab.Dil Ön Değ'!K21="","",'Yab.Dil Ön Değ'!K21) -> 81.00222 | L21: =IF('Yab.Dil Ön Değ'!L21="","",'Yab.Dil Ön Değ'!L21) -> Sınava Girebilir
A22: =IF('Yab.Dil Ön Değ'!A22="","",'Yab.Dil Ön Değ'!A22) -> 10 | B22: =IF('Yab.Dil Ön Değ'!B22="","",LEFT('Yab.Dil Ön Değ'!B22,3)&REPT("*",4)&RIGHT('Yab.Dil Ön Değ'!B22,2)) -> 111****11 | C22: =IF('Yab.Dil Ön Değ'!C22="","",IF(ISERR(FIND(" ",'Yab.Dil Ön Değ'!C22))=TRUE,LEFT('Yab.Dil Ön Değ'!C22,2)&REPT("*",3),LEFT('Yab.Dil Ön Değ'!C22,2)&REPT("*",3)&" "&MID('Yab.Dil Ön Değ'!C22,FIND(" ",'Yab.Dil Ön Değ'!C22)+1,2)&REPT("*",3))) -> Ör*** | D22: =IF('Yab.Dil Ön Değ'!D22="","",IF(ISERR(FIND(" ",'Yab.Dil Ön Değ'!D22))=TRUE,LEFT('Yab.Dil Ön Değ'!D22,2)&REPT("*",3),LEFT('Yab.Dil Ön Değ'!D22,2)&REPT("*",3)&" "&MID('Yab.Dil Ön Değ'!D22,FIND(" ",'Yab.Dil Ön Değ'!D22)+1,2)&REPT("*",3))) -> Ör*** | E22: =IF('Yab.Dil Ön Değ'!E22="","",'Yab.Dil Ön Değ'!E22) -> 72.60743 | F22: =IF('Yab.Dil Ön Değ'!F22="","",'Yab.Dil Ön Değ'!F22) -> 87 | G22: =IF('Yab.Dil Ön Değ'!G22="","",'Yab.Dil Ön Değ'!G22) -> Mevcut | H22: =IF('Yab.Dil Ön Değ'!H22="","",'Yab.Dil Ön Değ'!H22) -> Uygun | I22: =IF('Yab.Dil Ön Değ'!I22="","",'Yab.Dil Ön Değ'!I22) -> 29.042972 | J22: =IF('Yab.Dil Ön Değ'!J22="","",'Yab.Dil Ön Değ'!J22) -> 52.2 | K22: =IF('Yab.Dil Ön Değ'!K22="","",'Yab.Dil Ön Değ'!K22) -> 81.242972 | L22: =IF('Yab.Dil Ön Değ'!L22="","",'Yab.Dil Ön Değ'!L22) -> Sınava Girebilir
A23: =IF('Yab.Dil Ön Değ'!A23="","",'Yab.Dil Ön Değ'!A23) -> 11 | B23: =IF('Yab.Dil Ön Değ'!B23="","",LEFT('Yab.Dil Ön Değ'!B23,3)&REPT("*",4)&RIGHT('Yab.Dil Ön Değ'!B23,2)) -> 111****11 | C23: =IF('Yab.Dil Ön Değ'!C23="","",IF(ISERR(FIND(" ",'Yab.Dil Ön Değ'!C23))=TRUE,LEFT('Yab.Dil Ön Değ'!C23,2)&REPT("*",3),LEFT('Yab.Dil Ön Değ'!C23,2)&REPT("*",3)&" "&MID('Yab.Dil Ön Değ'!C23,FIND(" ",'Yab.Dil Ön Değ'!C23)+1,2)&REPT("*",3))) -> Ör*** | D23: =IF('Yab.Dil Ön Değ'!D23="","",IF(ISERR(FIND(" ",'Yab.Dil Ön Değ'!D23))=TRUE,LEFT('Yab.Dil Ön Değ'!D23,2)&REPT("*",3),LEFT('Yab.Dil Ön Değ'!D23,2)&REPT("*",3)&" "&MID('Yab.Dil Ön Değ'!D23,FIND(" ",'Yab.Dil Ön Değ'!D23)+1,2)&REPT("*",3))) -> Ör*** | E23: =IF('Yab.Dil Ön Değ'!E23="","",'Yab.Dil Ön Değ'!E23) -> 71.27563 | F23: =IF('Yab.Dil Ön Değ'!F23="","",'Yab.Dil Ön Değ'!F23) -> 85 | G23: =IF('Yab.Dil Ön Değ'!G23="","",'Yab.Dil Ön Değ'!G23) -> Mevcut | H23: =IF('Yab.Dil Ön Değ'!H23="","",'Yab.Dil Ön Değ'!H23) -> Uygun | I23: =IF('Yab.Dil Ön Değ'!I23="","",'Yab.Dil Ön Değ'!I23) -> 28.510252 | J23: =IF('Yab.Dil Ön Değ'!J23="","",'Yab.Dil Ön Değ'!J23) -> 51 | K23: =IF('Yab.Dil Ön Değ'!K23="","",'Yab.Dil Ön Değ'!K23) -> 79.510252 | L23: =IF('Yab.Dil Ön Değ'!L23="","",'Yab.Dil Ön Değ'!L23) -> Yönetmelik Gereği Elendi *
A24: =IF('Yab.Dil Ön Değ'!A24="","",'Yab.Dil Ön Değ'!A24) -> 12 | B24: =IF('Yab.Dil Ön Değ'!B24="","",LEFT('Yab.Dil Ön Değ'!B24,3)&REPT("*",4)&RIGHT('Yab.Dil Ön Değ'!B24,2)) -> 111****11 | C24: =IF('Yab.Dil Ön Değ'!C24="","",IF(ISERR(FIND(" ",'Yab.Dil Ön Değ'!C24))=TRUE,LEFT('Yab.Dil Ön Değ'!C24,2)&REPT("*",3),LEFT('Yab.Dil Ön Değ'!C24,2)&REPT("*",3)&" "&MID('Yab.Dil Ön Değ'!C24,FIND(" ",'Yab.Dil Ön Değ'!C24)+1,2)&REPT("*",3))) -> Ör*** | D24: =IF('Yab.Dil Ön Değ'!D24="","",IF(ISERR(FIND(" ",'Yab.Dil Ön Değ'!D24))=TRUE,LEFT('Yab.Dil Ön Değ'!D24,2)&REPT("*",3),LEFT('Yab.Dil Ön Değ'!D24,2)&REPT("*",3)&" "&MID('Yab.Dil Ön Değ'!D24,FIND(" ",'Yab.Dil Ön Değ'!D24)+1,2)&REPT("*",3))) -> Ör*** | E24: =IF('Yab.Dil Ön Değ'!E24="","",'Yab.Dil Ön Değ'!E24) -> 70.11375 | F24: =IF('Yab.Dil Ön Değ'!F24="","",'Yab.Dil Ön Değ'!F24) -> 85 | G24: =IF('Yab.Dil Ön Değ'!G24="","",'Yab.Dil Ön Değ'!G24) -> Mevcut | H24: =IF('Yab.Dil Ön Değ'!H24="","",'Yab.Dil Ön Değ'!H24) -> Uygun | I24: =IF('Yab.Dil Ön Değ'!I24="","",'Yab.Dil Ön Değ'!I24) -> 28.0455 | J24: =IF('Yab.Dil Ön Değ'!J24="","",'Yab.Dil Ön Değ'!J24) -> 51 | K24: =IF('Yab.Dil Ön Değ'!K24="","",'Yab.Dil Ön Değ'!K24) -> 79.0455 | L24: =IF('Yab.Dil Ön Değ'!L24="","",'Yab.Dil Ön Değ'!L24) -> Yönetmelik Gereği Elendi *
A25: =IF('Yab.Dil Ön Değ'!A25="","",'Yab.Dil Ön Değ'!A25) -> 13 | B25: =IF('Yab.Dil Ön Değ'!B25="","",LEFT('Yab.Dil Ön Değ'!B25,3)&REPT("*",4)&RIGHT('Yab.Dil Ön Değ'!B25,2)) -> 111****11 | C25: =IF('Yab.Dil Ön Değ'!C25="","",IF(ISERR(FIND(" ",'Yab.Dil Ön Değ'!C25))=TRUE,LEFT('Yab.Dil Ön Değ'!C25,2)&REPT("*",3),LEFT('Yab.Dil Ön Değ'!C25,2)&REPT("*",3)&" "&MID('Yab.Dil Ön Değ'!C25,FIND(" ",'Yab.Dil Ön Değ'!C25)+1,2)&REPT("*",3))) -> Ör*** | D25: =IF('Yab.Dil Ön Değ'!D25="","",IF(ISERR(FIND(" ",'Yab.Dil Ön Değ'!D25))=TRUE,LEFT('Yab.Dil Ön Değ'!D25,2)&REPT("*",3),LEFT('Yab.Dil Ön Değ'!D25,2)&REPT("*",3)&" "&MID('Yab.Dil Ön Değ'!D25,FIND(" ",'Yab.Dil Ön Değ'!D25)+1,2)&REPT("*",3))) -> Ör*** | E25: =IF('Yab.Dil Ön Değ'!E25="","",'Yab.Dil Ön Değ'!E25) -> 70.50555 | F25: =IF('Yab.Dil Ön Değ'!F25="","",'Yab.Dil Ön Değ'!F25) -> 85 | G25: =IF('Yab.Dil Ön Değ'!G25="","",'Yab.Dil Ön Değ'!G25) -> Mevcut | H25: =IF('Yab.Dil Ön Değ'!H25="","",'Yab.Dil Ön Değ'!H25) -> Uygun | I25: =IF('Yab.Dil Ön Değ'!I25="","",'Yab.Dil Ön Değ'!I25) -> 28.20222 | J25: =IF('Yab.Dil Ön Değ'!J25="","",'Yab.Dil Ön Değ'!J25) -> 51 | K25: =IF('Yab.Dil Ön Değ'!K25="","",'Yab.Dil Ön Değ'!K25) -> 79.20222 | L25: =IF('Yab.Dil Ön Değ'!L25="","",'Yab.Dil Ön Değ'!L25) -> Yönetmelik Gereği Elendi *
A26: =IF('Yab.Dil Ön Değ'!A26="","",'Yab.Dil Ön Değ'!A26) -> 14 | B26: =IF('Yab.Dil Ön Değ'!B26="","",LEFT('Yab.Dil Ön Değ'!B26,3)&REPT("*",4)&RIGHT('Yab.Dil Ön Değ'!B26,2)) -> 111****11 | C26: =IF('Yab.Dil Ön Değ'!C26="","",IF(ISERR(FIND(" ",'Yab.Dil Ön Değ'!C26))=TRUE,LEFT('Yab.Dil Ön Değ'!C26,2)&REPT("*",3),LEFT('Yab.Dil Ön Değ'!C26,2)&REPT("*",3)&" "&MID('Yab.Dil Ön Değ'!C26,FIND(" ",'Yab.Dil Ön Değ'!C26)+1,2)&REPT("*",3))) -> Ör*** | D26: =IF('Yab.Dil Ön Değ'!D26="","",IF(ISERR(FIND(" ",'Yab.Dil Ön Değ'!D26))=TRUE,LEFT('Yab.Dil Ön Değ'!D26,2)&REPT("*",3),LEFT('Yab.Dil Ön Değ'!D26,2)&REPT("*",3)&" "&MID('Yab.Dil Ön Değ'!D26,FIND(" ",'Yab.Dil Ön Değ'!D26)+1,2)&REPT("*",3))) -> Ör*** | E26: =IF('Yab.Dil Ön Değ'!E26="","",'Yab.Dil Ön Değ'!E26) -> 95 | F26: =IF('Yab.Dil Ön Değ'!F26="","",'Yab.Dil Ön Değ'!F26) -> 80 | G26: =IF('Yab.Dil Ön Değ'!G26="","",'Yab.Dil Ön Değ'!G26) -> Mevcut | H26: =IF('Yab.Dil Ön Değ'!H26="","",'Yab.Dil Ön Değ'!H26) -> Uygun Değil | I26: =IF('Yab.Dil Ön Değ'!I26="","",'Yab.Dil Ön Değ'!I26) -> 38 | J26: =IF('Yab.Dil Ön Değ'!J26="","",'Yab.Dil Ön Değ'!J26) -> 48 | K26: =IF('Yab.Dil Ön Değ'!K26="","",'Yab.Dil Ön Değ'!K26) -> 86 | L26: =IF('Yab.Dil Ön Değ'!L26="","",'Yab.Dil Ön Değ'!L26) -> Başvuru Şartını Sağlamıyor (Yabancı Dil Puanı Yetersiz)
A27: =IF('Yab.Dil Ön Değ'!A27="","",'Yab.Dil Ön Değ'!A27) -> 15 | B27: =IF('Yab.Dil Ön Değ'!B27="","",LEFT('Yab.Dil Ön Değ'!B27,3)&REPT("*",4)&RIGHT('Yab.Dil Ön Değ'!B27,2)) -> 111****11 | C27: =IF('Yab.Dil Ön Değ'!C27="","",IF(ISERR(FIND(" ",'Yab.Dil Ön Değ'!C27))=TRUE,LEFT('Yab.Dil Ön Değ'!C27,2)&REPT("*",3),LEFT('Yab.Dil Ön Değ'!C27,2)&REPT("*",3)&" "&MID('Yab.Dil Ön Değ'!C27,FIND(" ",'Yab.Dil Ön Değ'!C27)+1,2)&REPT("*",3))) -> Ör*** | D27: =IF('Yab.Dil Ön Değ'!D27="","",IF(ISERR(FIND(" ",'Yab.Dil Ön Değ'!D27))=TRUE,LEFT('Yab.Dil Ön Değ'!D27,2)&REPT("*",3),LEFT('Yab.Dil Ön Değ'!D27,2)&REPT("*",3)&" "&MID('Yab.Dil Ön Değ'!D27,FIND(" ",'Yab.Dil Ön Değ'!D27)+1,2)&REPT("*",3))) -> Ör*** | E27: =IF('Yab.Dil Ön Değ'!E27="","",'Yab.Dil Ön Değ'!E27) -> 80 | F27: =IF('Yab.Dil Ön Değ'!F27="","",'Yab.Dil Ön Değ'!F27) -> 88 | G27: =IF('Yab.Dil Ön Değ'!G27="","",'Yab.Dil Ön Değ'!G27) -> Mevcut | H27: =IF('Yab.Dil Ön Değ'!H27="","",'Yab.Dil Ön Değ'!H27) -> Uygun Değil | I27: =IF('Yab.Dil Ön Değ'!I27="","",'Yab.Dil Ön Değ'!I27) -> 32 | J27: =IF('Yab.Dil Ön Değ'!J27="","",'Yab.Dil Ön Değ'!J27) -> 52.8 | K27: =IF('Yab.Dil Ön Değ'!K27="","",'Yab.Dil Ön Değ'!K27) -> 84.8 | L27: =IF('Yab.Dil Ön Değ'!L27="","",'Yab.Dil Ön Değ'!L27) -> Başvuru Şartını Sağlamıyor (Mezuniyet alanı ilanla uyumlu değil)
A28: =IF('Yab.Dil Ön Değ'!A28="","",'Yab.Dil Ön Değ'!A28) -> 16 | B28: =IF('Yab.Dil Ön Değ'!B28="","",LEFT('Yab.Dil Ön Değ'!B28,3)&REPT("*",4)&RIGHT('Yab.Dil Ön Değ'!B28,2)) -> 111****11 | C28: =IF('Yab.Dil Ön Değ'!C28="","",IF(ISERR(FIND(" ",'Yab.Dil Ön Değ'!C28))=TRUE,LEFT('Yab.Dil Ön Değ'!C28,2)&REPT("*",3),LEFT('Yab.Dil Ön Değ'!C28,2)&REPT("*",3)&" "&MID('Yab.Dil Ön Değ'!C28,FIND(" ",'Yab.Dil Ön Değ'!C28)+1,2)&REPT("*",3))) -> Ör*** | D28: =IF('Yab.Dil Ön Değ'!D28="","",IF(ISERR(FIND(" ",'Yab.Dil Ön Değ'!D28))=TRUE,LEFT('Yab.Dil Ön Değ'!D28,2)&REPT("*",3),LEFT('Yab.Dil Ön Değ'!D28,2)&REPT("*",3)&" "&MID('Yab.Dil Ön Değ'!D28,FIND(" ",'Yab.Dil Ön Değ'!D28)+1,2)&REPT("*",3))) -> Ör*** | E28: =IF('Yab.Dil Ön Değ'!E28="","",'Yab.Dil Ön Değ'!E28) -> 75 | F28: =IF('Yab.Dil Ön Değ'!F28="","",'Yab.Dil Ön Değ'!F28) -> 85 | G28: =IF('Yab.Dil Ön Değ'!G28="","",'Yab.Dil Ön Değ'!G28) -> Mevcut Değil | H28: =IF('Yab.Dil Ön Değ'!H28="","",'Yab.Dil Ön Değ'!H28) -> Uygun Değil | I28: =IF('Yab.Dil Ön Değ'!I28="","",'Yab.Dil Ön Değ'!I28) -> 30 | J28: =IF('Yab.Dil Ön Değ'!J28="","",'Yab.Dil Ön Değ'!J28) -> 51 | K28: =IF('Yab.Dil Ön Değ'!K28="","",'Yab.Dil Ön Değ'!K28) -> 81 | L28: =IF('Yab.Dil Ön Değ'!L28="","",'Yab.Dil Ön Değ'!L28) -> Başvuru Şartını Sağlamıyor (Yüksek Lisans Yapmış Olmak Şartını Sağlamıyor)
A29: =IF('Yab.Dil Ön Değ'!A29="","",'Yab.Dil Ön Değ'!A29) -> 17 | B29: =IF('Yab.Dil Ön Değ'!B29="","",LEFT('Yab.Dil Ön Değ'!B29,3)&REPT("*",4)&RIGHT('Yab.Dil Ön Değ'!B29,2)) -> 111****11 | C29: =IF('Yab.Dil Ön Değ'!C29="","",IF(ISERR(FIND(" ",'Yab.Dil Ön Değ'!C29))=TRUE,LEFT('Yab.Dil Ön Değ'!C29,2)&REPT("*",3),LEFT('Yab.Dil Ön Değ'!C29,2)&REPT("*",3)&" "&MID('Yab.Dil Ön Değ'!C29,FIND(" ",'Yab.Dil Ön Değ'!C29)+1,2)&REPT("*",3))) -> Ör*** | D29: =IF('Yab.Dil Ön Değ'!D29="","",IF(ISERR(FIND(" ",'Yab.Dil Ön Değ'!D29))=TRUE,LEFT('Yab.Dil Ön Değ'!D29,2)&REPT("*",3),LEFT('Yab.Dil Ön Değ'!D29,2)&REPT("*",3)&" "&MID('Yab.Dil Ön Değ'!D29,FIND(" ",'Yab.Dil Ön Değ'!D29)+1,2)&REPT("*",3))) -> Ör*** | E29: =IF('Yab.Dil Ön Değ'!E29="","",'Yab.Dil Ön Değ'!E29) -> 78 | F29: =IF('Yab.Dil Ön Değ'!F29="","",'Yab.Dil Ön Değ'!F29) -> 86 | G29: =IF('Yab.Dil Ön Değ'!G29="","",'Yab.Dil Ön Değ'!G29) -> Mevcut | H29: =IF('Yab.Dil Ön Değ'!H29="","",'Yab.Dil Ön Değ'!H29) -> Uygun Değil | I29: =IF('Yab.Dil Ön Değ'!I29="","",'Yab.Dil Ön Değ'!I29) -> 31.2 | J29: =IF('Yab.Dil Ön Değ'!J29="","",'Yab.Dil Ön Değ'!J29) -> 51.6 | K29: =IF('Yab.Dil Ön Değ'!K29="","",'Yab.Dil Ön Değ'!K29) -> 82.8 | L29: =IF('Yab.Dil Ön Değ'!L29="","",'Yab.Dil Ön Değ'!L29) -> Başvuru Şartını Sağlamıyor (Tecrübe süresi ilan şartını taşımıyor)
A30: =IF('Yab.Dil Ön Değ'!A30="","",'Yab.Dil Ön Değ'!A30) -> 18 | B30: =IF('Yab.Dil Ön Değ'!B30="","",LEFT('Yab.Dil Ön Değ'!B30,3)&REPT("*",4)&RIGHT('Yab.Dil Ön Değ'!B30,2)) -> 111****11 | C30: =IF('Yab.Dil Ön Değ'!C30="","",IF(ISERR(FIND(" ",'Yab.Dil Ön Değ'!C30))=TRUE,LEFT('Yab.Dil Ön Değ'!C30,2)&REPT("*",3),LEFT('Yab.Dil Ön Değ'!C30,2)&REPT("*",3)&" "&MID('Yab.Dil Ön Değ'!C30,FIND(" ",'Yab.Dil Ön Değ'!C30)+1,2)&REPT("*",3))) -> Ör*** | D30: =IF('Yab.Dil Ön Değ'!D30="","",IF(ISERR(FIND(" ",'Yab.Dil Ön Değ'!D30))=TRUE,LEFT('Yab.Dil Ön Değ'!D30,2)&REPT("*",3),LEFT('Yab.Dil Ön Değ'!D30,2)&REPT("*",3)&" "&MID('Yab.Dil Ön Değ'!D30,FIND(" ",'Yab.Dil Ön Değ'!D30)+1,2)&REPT("*",3))) -> Ör*** | E30: =IF('Yab.Dil Ön Değ'!E30="","",'Yab.Dil Ön Değ'!E30) -> 68 | F30: =IF('Yab.Dil Ön Değ'!F30="","",'Yab.Dil Ön Değ'!F30) -> 88 | G30: =IF('Yab.Dil Ön Değ'!G30="","",'Yab.Dil Ön Değ'!G30) -> Mevcut | H30: =IF('Yab.Dil Ön Değ'!H30="","",'Yab.Dil Ön Değ'!H30) -> Uygun Değil | I30: =IF('Yab.Dil Ön Değ'!I30="","",'Yab.Dil Ön Değ'!I30) -> 27.2 | J30: =IF('Yab.Dil Ön Değ'!J30="","",'Yab.Dil Ön Değ'!J30) -> 52.8 | K30: =IF('Yab.Dil Ön Değ'!K30="","",'Yab.Dil Ön Değ'!K30) -> 80 | L30: =IF('Yab.Dil Ön Değ'!L30="","",'Yab.Dil Ön Değ'!L30) -> Başvuru Şartını Sağlamıyor (Ales puanı yetersiz)
A31: =IF('Yab.Dil Ön Değ'!A31="","",'Yab.Dil Ön Değ'!A31) ->  | B31: =IF('Yab.Dil Ön Değ'!B31="","",LEFT('Yab.Dil Ön Değ'!B31,3)&REPT("*",4)&RIGHT('Yab.Dil Ön Değ'!B31,2)) ->  | C31: =IF('Yab.Dil Ön Değ'!C31="","",IF(ISERR(FIND(" ",'Yab.Dil Ön Değ'!C31))=TRUE,LEFT('Yab.Dil Ön Değ'!C31,2)&REPT("*",3),LEFT('Yab.Dil Ön Değ'!C31,2)&REPT("*",3)&" "&MID('Yab.Dil Ön Değ'!C31,FIND(" ",'Yab.Dil Ön Değ'!C31)+1,2)&REPT("*",3))) ->  | D31: =IF('Yab.Dil Ön Değ'!D31="","",IF(ISERR(FIND(" ",'Yab.Dil Ön Değ'!D31))=TRUE,LEFT('Yab.Dil Ön Değ'!D31,2)&REPT("*",3),LEFT('Yab.Dil Ön Değ'!D31,2)&REPT("*",3)&" "&MID('Yab.Dil Ön Değ'!D31,FIND(" ",'Yab.Dil Ön Değ'!D31)+1,2)&REPT("*",3))) ->  | E31: =IF('Yab.Dil Ön Değ'!E31="","",'Yab.Dil Ön Değ'!E31) ->  | F31: =IF('Yab.Dil Ön Değ'!F31="","",'Yab.Dil Ön Değ'!F31) ->  | G31: =IF('Yab.Dil Ön Değ'!G31="","",'Yab.Dil Ön Değ'!G31) ->  | H31: =IF('Yab.Dil Ön Değ'!H31="","",'Yab.Dil Ön Değ'!H31) ->  | I31: =IF('Yab.Dil Ön Değ'!I31="","",'Yab.Dil Ön Değ'!I31) ->  | J31: =IF('Yab.Dil Ön Değ'!J31="","",'Yab.Dil Ön Değ'!J31) ->  | K31: =IF('Yab.Dil Ön Değ'!K31="","",'Yab.Dil Ön Değ'!K31) ->  | L31: =IF('Yab.Dil Ön Değ'!L31="","",'Yab.Dil Ön Değ'!L31) -> 
A32: =IF('Yab.Dil Ön Değ'!A32="","",'Yab.Dil Ön Değ'!A32) ->  | B32: =IF('Yab.Dil Ön Değ'!B32="","",LEFT('Yab.Dil Ön Değ'!B32,3)&REPT("*",4)&RIGHT('Yab.Dil Ön Değ'!B32,2)) ->  | C32: =IF('Yab.Dil Ön Değ'!C32="","",IF(ISERR(FIND(" ",'Yab.Dil Ön Değ'!C32))=TRUE,LEFT('Yab.Dil Ön Değ'!C32,2)&REPT("*",3),LEFT('Yab.Dil Ön Değ'!C32,2)&REPT("*",3)&" "&MID('Yab.Dil Ön Değ'!C32,FIND(" ",'Yab.Dil Ön Değ'!C32)+1,2)&REPT("*",3))) ->  | D32: =IF('Yab.Dil Ön Değ'!D32="","",IF(ISERR(FIND(" ",'Yab.Dil Ön Değ'!D32))=TRUE,LEFT('Yab.Dil Ön Değ'!D32,2)&REPT("*",3),LEFT('Yab.Dil Ön Değ'!D32,2)&REPT("*",3)&" "&MID('Yab.Dil Ön Değ'!D32,FIND(" ",'Yab.Dil Ön Değ'!D32)+1,2)&REPT("*",3))) ->  | E32: =IF('Yab.Dil Ön Değ'!E32="","",'Yab.Dil Ön Değ'!E32) ->  | F32: =IF('Yab.Dil Ön Değ'!F32="","",'Yab.Dil Ön Değ'!F32) ->  | G32: =IF('Yab.Dil Ön Değ'!G32="","",'Yab.Dil Ön Değ'!G32) ->  | H32: =IF('Yab.Dil Ön Değ'!H32="","",'Yab.Dil Ön Değ'!H32) ->  | I32: =IF('Yab.Dil Ön Değ'!I32="","",'Yab.Dil Ön Değ'!I32) ->  | J32: =IF('Yab.Dil Ön Değ'!J32="","",'Yab.Dil Ön Değ'!J32) ->  | K32: =IF('Yab.Dil Ön Değ'!K32="","",'Yab.Dil Ön Değ'!K32) ->  | L32: =IF('Yab.Dil Ön Değ'!L32="","",'Yab.Dil Ön Değ'!L32) -> 
A33: =IF('Yab.Dil Ön Değ'!A33="","",'Yab.Dil Ön Değ'!A33) ->  | B33: =IF('Yab.Dil Ön Değ'!B33="","",LEFT('Yab.Dil Ön Değ'!B33,3)&REPT("*",4)&RIGHT('Yab.Dil Ön Değ'!B33,2)) ->  | C33: =IF('Yab.Dil Ön Değ'!C33="","",IF(ISERR(FIND(" ",'Yab.Dil Ön Değ'!C33))=TRUE,LEFT('Yab.Dil Ön Değ'!C33,2)&REPT("*",3),LEFT('Yab.Dil Ön Değ'!C33,2)&REPT("*",3)&" "&MID('Yab.Dil Ön Değ'!C33,FIND(" ",'Yab.Dil Ön Değ'!C33)+1,2)&REPT("*",3))) ->  | D33: =IF('Yab.Dil Ön Değ'!D33="","",IF(ISERR(FIND(" ",'Yab.Dil Ön Değ'!D33))=TRUE,LEFT('Yab.Dil Ön Değ'!D33,2)&REPT("*",3),LEFT('Yab.Dil Ön Değ'!D33,2)&REPT("*",3)&" "&MID('Yab.Dil Ön Değ'!D33,FIND(" ",'Yab.Dil Ön Değ'!D33)+1,2)&REPT("*",3))) ->  | E33: =IF('Yab.Dil Ön Değ'!E33="","",'Yab.Dil Ön Değ'!E33) ->  | F33: =IF('Yab.Dil Ön Değ'!F33="","",'Yab.Dil Ön Değ'!F33) ->  | G33: =IF('Yab.Dil Ön Değ'!G33="","",'Yab.Dil Ön Değ'!G33) ->  | H33: =IF('Yab.Dil Ön Değ'!H33="","",'Yab.Dil Ön Değ'!H33) ->  | I33: =IF('Yab.Dil Ön Değ'!I33="","",'Yab.Dil Ön Değ'!I33) ->  | J33: =IF('Yab.Dil Ön Değ'!J33="","",'Yab.Dil Ön Değ'!J33) ->  | K33: =IF('Yab.Dil Ön Değ'!K33="","",'Yab.Dil Ön Değ'!K33) ->  | L33: =IF('Yab.Dil Ön Değ'!L33="","",'Yab.Dil Ön Değ'!L33) -> 
A34: =IF('Yab.Dil Ön Değ'!A34="","",'Yab.Dil Ön Değ'!A34) ->  | B34: =IF('Yab.Dil Ön Değ'!B34="","",LEFT('Yab.Dil Ön Değ'!B34,3)&REPT("*",4)&RIGHT('Yab.Dil Ön Değ'!B34,2)) ->  | C34: =IF('Yab.Dil Ön Değ'!C34="","",IF(ISERR(FIND(" ",'Yab.Dil Ön Değ'!C34))=TRUE,LEFT('Yab.Dil Ön Değ'!C34,2)&REPT("*",3),LEFT('Yab.Dil Ön Değ'!C34,2)&REPT("*",3)&" "&MID('Yab.Dil Ön Değ'!C34,FIND(" ",'Yab.Dil Ön Değ'!C34)+1,2)&REPT("*",3))) ->  | D34: =IF('Yab.Dil Ön Değ'!D34="","",IF(ISERR(FIND(" ",'Yab.Dil Ön Değ'!D34))=TRUE,LEFT('Yab.Dil Ön Değ'!D34,2)&REPT("*",3),LEFT('Yab.Dil Ön Değ'!D34,2)&REPT("*",3)&" "&MID('Yab.Dil Ön Değ'!D34,FIND(" ",'Yab.Dil Ön Değ'!D34)+1,2)&REPT("*",3))) ->  | E34: =IF('Yab.Dil Ön Değ'!E34="","",'Yab.Dil Ön Değ'!E34) ->  | F34: =IF('Yab.Dil Ön Değ'!F34="","",'Yab.Dil Ön Değ'!F34) ->  | G34: =IF('Yab.Dil Ön Değ'!G34="","",'Yab.Dil Ön Değ'!G34) ->  | H34: =IF('Yab.Dil Ön Değ'!H34="","",'Yab.Dil Ön Değ'!H34) ->  | I34: =IF('Yab.Dil Ön Değ'!I34="","",'Yab.Dil Ön Değ'!I34) ->  | J34: =IF('Yab.Dil Ön Değ'!J34="","",'Yab.Dil Ön Değ'!J34) ->  | K34: =IF('Yab.Dil Ön Değ'!K34="","",'Yab.Dil Ön Değ'!K34) ->  | L34: =IF('Yab.Dil Ön Değ'!L34="","",'Yab.Dil Ön Değ'!L34) -> 
A35: =IF('Yab.Dil Ön Değ'!A35="","",'Yab.Dil Ön Değ'!A35) ->  | B35: =IF('Yab.Dil Ön Değ'!B35="","",LEFT('Yab.Dil Ön Değ'!B35,3)&REPT("*",4)&RIGHT('Yab.Dil Ön Değ'!B35,2)) ->  | C35: =IF('Yab.Dil Ön Değ'!C35="","",IF(ISERR(FIND(" ",'Yab.Dil Ön Değ'!C35))=TRUE,LEFT('Yab.Dil Ön Değ'!C35,2)&REPT("*",3),LEFT('Yab.Dil Ön Değ'!C35,2)&REPT("*",3)&" "&MID('Yab.Dil Ön Değ'!C35,FIND(" ",'Yab.Dil Ön Değ'!C35)+1,2)&REPT("*",3))) ->  | D35: =IF('Yab.Dil Ön Değ'!D35="","",IF(ISERR(FIND(" ",'Yab.Dil Ön Değ'!D35))=TRUE,LEFT('Yab.Dil Ön Değ'!D35,2)&REPT("*",3),LEFT('Yab.Dil Ön Değ'!D35,2)&REPT("*",3)&" "&MID('Yab.Dil Ön Değ'!D35,FIND(" ",'Yab.Dil Ön Değ'!D35)+1,2)&REPT("*",3))) ->  | E35: =IF('Yab.Dil Ön Değ'!E35="","",'Yab.Dil Ön Değ'!E35) ->  | F35: =IF('Yab.Dil Ön Değ'!F35="","",'Yab.Dil Ön Değ'!F35) ->  | G35: =IF('Yab.Dil Ön Değ'!G35="","",'Yab.Dil Ön Değ'!G35) ->  | H35: =IF('Yab.Dil Ön Değ'!H35="","",'Yab.Dil Ön Değ'!H35) ->  | I35: =IF('Yab.Dil Ön Değ'!I35="","",'Yab.Dil Ön Değ'!I35) ->  | J35: =IF('Yab.Dil Ön Değ'!J35="","",'Yab.Dil Ön Değ'!J35) ->  | K35: =IF('Yab.Dil Ön Değ'!K35="","",'Yab.Dil Ön Değ'!K35) ->  | L35: =IF('Yab.Dil Ön Değ'!L35="","",'Yab.Dil Ön Değ'!L35) -> 
A36: =IF('Yab.Dil Ön Değ'!A36="","",'Yab.Dil Ön Değ'!A36) ->  | B36: =IF('Yab.Dil Ön Değ'!B36="","",LEFT('Yab.Dil Ön Değ'!B36,3)&REPT("*",4)&RIGHT('Yab.Dil Ön Değ'!B36,2)) ->  | C36: =IF('Yab.Dil Ön Değ'!C36="","",IF(ISERR(FIND(" ",'Yab.Dil Ön Değ'!C36))=TRUE,LEFT('Yab.Dil Ön Değ'!C36,2)&REPT("*",3),LEFT('Yab.Dil Ön Değ'!C36,2)&REPT("*",3)&" "&MID('Yab.Dil Ön Değ'!C36,FIND(" ",'Yab.Dil Ön Değ'!C36)+1,2)&REPT("*",3))) ->  | D36: =IF('Yab.Dil Ön Değ'!D36="","",IF(ISERR(FIND(" ",'Yab.Dil Ön Değ'!D36))=TRUE,LEFT('Yab.Dil Ön Değ'!D36,2)&REPT("*",3),LEFT('Yab.Dil Ön Değ'!D36,2)&REPT("*",3)&" "&MID('Yab.Dil Ön Değ'!D36,FIND(" ",'Yab.Dil Ön Değ'!D36)+1,2)&REPT("*",3))) ->  | E36: =IF('Yab.Dil Ön Değ'!E36="","",'Yab.Dil Ön Değ'!E36) ->  | F36: =IF('Yab.Dil Ön Değ'!F36="","",'Yab.Dil Ön Değ'!F36) ->  | G36: =IF('Yab.Dil Ön Değ'!G36="","",'Yab.Dil Ön Değ'!G36) ->  | H36: =IF('Yab.Dil Ön Değ'!H36="","",'Yab.Dil Ön Değ'!H36) ->  | I36: =IF('Yab.Dil Ön Değ'!I36="","",'Yab.Dil Ön Değ'!I36) ->  | J36: =IF('Yab.Dil Ön Değ'!J36="","",'Yab.Dil Ön Değ'!J36) ->  | K36: =IF('Yab.Dil Ön Değ'!K36="","",'Yab.Dil Ön Değ'!K36) ->  | L36: =IF('Yab.Dil Ön Değ'!L36="","",'Yab.Dil Ön Değ'!L36) -> 
A37: =IF('Yab.Dil Ön Değ'!A37="","",'Yab.Dil Ön Değ'!A37) ->  | B37: =IF('Yab.Dil Ön Değ'!B37="","",LEFT('Yab.Dil Ön Değ'!B37,3)&REPT("*",4)&RIGHT('Yab.Dil Ön Değ'!B37,2)) ->  | C37: =IF('Yab.Dil Ön Değ'!C37="","",IF(ISERR(FIND(" ",'Yab.Dil Ön Değ'!C37))=TRUE,LEFT('Yab.Dil Ön Değ'!C37,2)&REPT("*",3),LEFT('Yab.Dil Ön Değ'!C37,2)&REPT("*",3)&" "&MID('Yab.Dil Ön Değ'!C37,FIND(" ",'Yab.Dil Ön Değ'!C37)+1,2)&REPT("*",3))) ->  | D37: =IF('Yab.Dil Ön Değ'!D37="","",IF(ISERR(FIND(" ",'Yab.Dil Ön Değ'!D37))=TRUE,LEFT('Yab.Dil Ön Değ'!D37,2)&REPT("*",3),LEFT('Yab.Dil Ön Değ'!D37,2)&REPT("*",3)&" "&MID('Yab.Dil Ön Değ'!D37,FIND(" ",'Yab.Dil Ön Değ'!D37)+1,2)&REPT("*",3))) ->  | E37: =IF('Yab.Dil Ön Değ'!E37="","",'Yab.Dil Ön Değ'!E37) ->  | F37: =IF('Yab.Dil Ön Değ'!F37="","",'Yab.Dil Ön Değ'!F37) ->  | G37: =IF('Yab.Dil Ön Değ'!G37="","",'Yab.Dil Ön Değ'!G37) ->  | H37: =IF('Yab.Dil Ön Değ'!H37="","",'Yab.Dil Ön Değ'!H37) ->  | I37: =IF('Yab.Dil Ön Değ'!I37="","",'Yab.Dil Ön Değ'!I37) ->  | J37: =IF('Yab.Dil Ön Değ'!J37="","",'Yab.Dil Ön Değ'!J37) ->  | K37: =IF('Yab.Dil Ön Değ'!K37="","",'Yab.Dil Ön Değ'!K37) ->  | L37: =IF('Yab.Dil Ön Değ'!L37="","",'Yab.Dil Ön Değ'!L37) -> 
A38: =IF('Yab.Dil Ön Değ'!A38="","",'Yab.Dil Ön Değ'!A38) ->  | B38: =IF('Yab.Dil Ön Değ'!B38="","",LEFT('Yab.Dil Ön Değ'!B38,3)&REPT("*",4)&RIGHT('Yab.Dil Ön Değ'!B38,2)) ->  | C38: =IF('Yab.Dil Ön Değ'!C38="","",IF(ISERR(FIND(" ",'Yab.Dil Ön Değ'!C38))=TRUE,LEFT('Yab.Dil Ön Değ'!C38,2)&REPT("*",3),LEFT('Yab.Dil Ön Değ'!C38,2)&REPT("*",3)&" "&MID('Yab.Dil Ön Değ'!C38,FIND(" ",'Yab.Dil Ön Değ'!C38)+1,2)&REPT("*",3))) ->  | D38: =IF('Yab.Dil Ön Değ'!D38="","",IF(ISERR(FIND(" ",'Yab.Dil Ön Değ'!D38))=TRUE,LEFT('Yab.Dil Ön Değ'!D38,2)&REPT("*",3),LEFT('Yab.Dil Ön Değ'!D38,2)&REPT("*",3)&" "&MID('Yab.Dil Ön Değ'!D38,FIND(" ",'Yab.Dil Ön Değ'!D38)+1,2)&REPT("*",3))) ->  | E38: =IF('Yab.Dil Ön Değ'!E38="","",'Yab.Dil Ön Değ'!E38) ->  | F38: =IF('Yab.Dil Ön Değ'!F38="","",'Yab.Dil Ön Değ'!F38) ->  | G38: =IF('Yab.Dil Ön Değ'!G38="","",'Yab.Dil Ön Değ'!G38) ->  | H38: =IF('Yab.Dil Ön Değ'!H38="","",'Yab.Dil Ön Değ'!H38) ->  | I38: =IF('Yab.Dil Ön Değ'!I38="","",'Yab.Dil Ön Değ'!I38) ->  | J38: =IF('Yab.Dil Ön Değ'!J38="","",'Yab.Dil Ön Değ'!J38) ->  | K38: =IF('Yab.Dil Ön Değ'!K38="","",'Yab.Dil Ön Değ'!K38) ->  | L38: =IF('Yab.Dil Ön Değ'!L38="","",'Yab.Dil Ön Değ'!L38) -> 
A39: =IF('Yab.Dil Ön Değ'!A39="","",'Yab.Dil Ön Değ'!A39) ->  | B39: =IF('Yab.Dil Ön Değ'!B39="","",LEFT('Yab.Dil Ön Değ'!B39,3)&REPT("*",4)&RIGHT('Yab.Dil Ön Değ'!B39,2)) ->  | C39: =IF('Yab.Dil Ön Değ'!C39="","",IF(ISERR(FIND(" ",'Yab.Dil Ön Değ'!C39))=TRUE,LEFT('Yab.Dil Ön Değ'!C39,2)&REPT("*",3),LEFT('Yab.Dil Ön Değ'!C39,2)&REPT("*",3)&" "&MID('Yab.Dil Ön Değ'!C39,FIND(" ",'Yab.Dil Ön Değ'!C39)+1,2)&REPT("*",3))) ->  | D39: =IF('Yab.Dil Ön Değ'!D39="","",IF(ISERR(FIND(" ",'Yab.Dil Ön Değ'!D39))=TRUE,LEFT('Yab.Dil Ön Değ'!D39,2)&REPT("*",3),LEFT('Yab.Dil Ön Değ'!D39,2)&REPT("*",3)&" "&MID('Yab.Dil Ön Değ'!D39,FIND(" ",'Yab.Dil Ön Değ'!D39)+1,2)&REPT("*",3))) ->  | E39: =IF('Yab.Dil Ön Değ'!E39="","",'Yab.Dil Ön Değ'!E39) ->  | F39: =IF('Yab.Dil Ön Değ'!F39="","",'Yab.Dil Ön Değ'!F39) ->  | G39: =IF('Yab.Dil Ön Değ'!G39="","",'Yab.Dil Ön Değ'!G39) ->  | H39: =IF('Yab.Dil Ön Değ'!H39="","",'Yab.Dil Ön Değ'!H39) ->  | I39: =IF('Yab.Dil Ön Değ'!I39="","",'Yab.Dil Ön Değ'!I39) ->  | J39: =IF('Yab.Dil Ön Değ'!J39="","",'Yab.Dil Ön Değ'!J39) ->  | K39: =IF('Yab.Dil Ön Değ'!K39="","",'Yab.Dil Ön Değ'!K39) ->  | L39: =IF('Yab.Dil Ön Değ'!L39="","",'Yab.Dil Ön Değ'!L39) -> 
A40: =IF('Yab.Dil Ön Değ'!A40="","",'Yab.Dil Ön Değ'!A40) ->  | B40: =IF('Yab.Dil Ön Değ'!B40="","",LEFT('Yab.Dil Ön Değ'!B40,3)&REPT("*",4)&RIGHT('Yab.Dil Ön Değ'!B40,2)) ->  | C40: =IF('Yab.Dil Ön Değ'!C40="","",IF(ISERR(FIND(" ",'Yab.Dil Ön Değ'!C40))=TRUE,LEFT('Yab.Dil Ön Değ'!C40,2)&REPT("*",3),LEFT('Yab.Dil Ön Değ'!C40,2)&REPT("*",3)&" "&MID('Yab.Dil Ön Değ'!C40,FIND(" ",'Yab.Dil Ön Değ'!C40)+1,2)&REPT("*",3))) ->  | D40: =IF('Yab.Dil Ön Değ'!D40="","",IF(ISERR(FIND(" ",'Yab.Dil Ön Değ'!D40))=TRUE,LEFT('Yab.Dil Ön Değ'!D40,2)&REPT("*",3),LEFT('Yab.Dil Ön Değ'!D40,2)&REPT("*",3)&" "&MID('Yab.Dil Ön Değ'!D40,FIND(" ",'Yab.Dil Ön Değ'!D40)+1,2)&REPT("*",3))) ->  | E40: =IF('Yab.Dil Ön Değ'!E40="","",'Yab.Dil Ön Değ'!E40) ->  | F40: =IF('Yab.Dil Ön Değ'!F40="","",'Yab.Dil Ön Değ'!F40) ->  | G40: =IF('Yab.Dil Ön Değ'!G40="","",'Yab.Dil Ön Değ'!G40) ->  | H40: =IF('Yab.Dil Ön Değ'!H40="","",'Yab.Dil Ön Değ'!H40) ->  | I40: =IF('Yab.Dil Ön Değ'!I40="","",'Yab.Dil Ön Değ'!I40) ->  | J40: =IF('Yab.Dil Ön Değ'!J40="","",'Yab.Dil Ön Değ'!J40) ->  | K40: =IF('Yab.Dil Ön Değ'!K40="","",'Yab.Dil Ön Değ'!K40) ->  | L40: =IF('Yab.Dil Ön Değ'!L40="","",'Yab.Dil Ön Değ'!L40) -> 
A41: =IF('Yab.Dil Ön Değ'!A41="","",'Yab.Dil Ön Değ'!A41) ->  | B41: =IF('Yab.Dil Ön Değ'!B41="","",LEFT('Yab.Dil Ön Değ'!B41,3)&REPT("*",4)&RIGHT('Yab.Dil Ön Değ'!B41,2)) ->  | C41: =IF('Yab.Dil Ön Değ'!C41="","",IF(ISERR(FIND(" ",'Yab.Dil Ön Değ'!C41))=TRUE,LEFT('Yab.Dil Ön Değ'!C41,2)&REPT("*",3),LEFT('Yab.Dil Ön Değ'!C41,2)&REPT("*",3)&" "&MID('Yab.Dil Ön Değ'!C41,FIND(" ",'Yab.Dil Ön Değ'!C41)+1,2)&REPT("*",3))) ->  | D41: =IF('Yab.Dil Ön Değ'!D41="","",IF(ISERR(FIND(" ",'Yab.Dil Ön Değ'!D41))=TRUE,LEFT('Yab.Dil Ön Değ'!D41,2)&REPT("*",3),LEFT('Yab.Dil Ön Değ'!D41,2)&REPT("*",3)&" "&MID('Yab.Dil Ön Değ'!D41,FIND(" ",'Yab.Dil Ön Değ'!D41)+1,2)&REPT("*",3))) ->  | E41: =IF('Yab.Dil Ön Değ'!E41="","",'Yab.Dil Ön Değ'!E41) ->  | F41: =IF('Yab.Dil Ön Değ'!F41="","",'Yab.Dil Ön Değ'!F41) ->  | G41: =IF('Yab.Dil Ön Değ'!G41="","",'Yab.Dil Ön Değ'!G41) ->  | H41: =IF('Yab.Dil Ön Değ'!H41="","",'Yab.Dil Ön Değ'!H41) ->  | I41: =IF('Yab.Dil Ön Değ'!I41="","",'Yab.Dil Ön Değ'!I41) ->  | J41: =IF('Yab.Dil Ön Değ'!J41="","",'Yab.Dil Ön Değ'!J41) ->  | K41: =IF('Yab.Dil Ön Değ'!K41="","",'Yab.Dil Ön Değ'!K41) ->  | L41: =IF('Yab.Dil Ön Değ'!L41="","",'Yab.Dil Ön Değ'!L41) -> 
A42: =IF('Yab.Dil Ön Değ'!A42="","",'Yab.Dil Ön Değ'!A42) ->  | B42: =IF('Yab.Dil Ön Değ'!B42="","",LEFT('Yab.Dil Ön Değ'!B42,3)&REPT("*",4)&RIGHT('Yab.Dil Ön Değ'!B42,2)) ->  | C42: =IF('Yab.Dil Ön Değ'!C42="","",IF(ISERR(FIND(" ",'Yab.Dil Ön Değ'!C42))=TRUE,LEFT('Yab.Dil Ön Değ'!C42,2)&REPT("*",3),LEFT('Yab.Dil Ön Değ'!C42,2)&REPT("*",3)&" "&MID('Yab.Dil Ön Değ'!C42,FIND(" ",'Yab.Dil Ön Değ'!C42)+1,2)&REPT("*",3))) ->  | D42: =IF('Yab.Dil Ön Değ'!D42="","",IF(ISERR(FIND(" ",'Yab.Dil Ön Değ'!D42))=TRUE,LEFT('Yab.Dil Ön Değ'!D42,2)&REPT("*",3),LEFT('Yab.Dil Ön Değ'!D42,2)&REPT("*",3)&" "&MID('Yab.Dil Ön Değ'!D42,FIND(" ",'Yab.Dil Ön Değ'!D42)+1,2)&REPT("*",3))) ->  | E42: =IF('Yab.Dil Ön Değ'!E42="","",'Yab.Dil Ön Değ'!E42) ->  | F42: =IF('Yab.Dil Ön Değ'!F42="","",'Yab.Dil Ön Değ'!F42) ->  | G42: =IF('Yab.Dil Ön Değ'!G42="","",'Yab.Dil Ön Değ'!G42) ->  | H42: =IF('Yab.Dil Ön Değ'!H42="","",'Yab.Dil Ön Değ'!H42) ->  | I42: =IF('Yab.Dil Ön Değ'!I42="","",'Yab.Dil Ön Değ'!I42) ->  | J42: =IF('Yab.Dil Ön Değ'!J42="","",'Yab.Dil Ön Değ'!J42) ->  | K42: =IF('Yab.Dil Ön Değ'!K42="","",'Yab.Dil Ön Değ'!K42) ->  | L42: =IF('Yab.Dil Ön Değ'!L42="","",'Yab.Dil Ön Değ'!L42) -> 
A43: =IF('Yab.Dil Ön Değ'!A43="","",'Yab.Dil Ön Değ'!A43) ->  | B43: =IF('Yab.Dil Ön Değ'!B43="","",LEFT('Yab.Dil Ön Değ'!B43,3)&REPT("*",4)&RIGHT('Yab.Dil Ön Değ'!B43,2)) ->  | C43: =IF('Yab.Dil Ön Değ'!C43="","",IF(ISERR(FIND(" ",'Yab.Dil Ön Değ'!C43))=TRUE,LEFT('Yab.Dil Ön Değ'!C43,2)&REPT("*",3),LEFT('Yab.Dil Ön Değ'!C43,2)&REPT("*",3)&" "&MID('Yab.Dil Ön Değ'!C43,FIND(" ",'Yab.Dil Ön Değ'!C43)+1,2)&REPT("*",3))) ->  | D43: =IF('Yab.Dil Ön Değ'!D43="","",IF(ISERR(FIND(" ",'Yab.Dil Ön Değ'!D43))=TRUE,LEFT('Yab.Dil Ön Değ'!D43,2)&REPT("*",3),LEFT('Yab.Dil Ön Değ'!D43,2)&REPT("*",3)&" "&MID('Yab.Dil Ön Değ'!D43,FIND(" ",'Yab.Dil Ön Değ'!D43)+1,2)&REPT("*",3))) ->  | E43: =IF('Yab.Dil Ön Değ'!E43="","",'Yab.Dil Ön Değ'!E43) ->  | F43: =IF('Yab.Dil Ön Değ'!F43="","",'Yab.Dil Ön Değ'!F43) ->  | G43: =IF('Yab.Dil Ön Değ'!G43="","",'Yab.Dil Ön Değ'!G43) ->  | H43: =IF('Yab.Dil Ön Değ'!H43="","",'Yab.Dil Ön Değ'!H43) ->  | I43: =IF('Yab.Dil Ön Değ'!I43="","",'Yab.Dil Ön Değ'!I43) ->  | J43: =IF('Yab.Dil Ön Değ'!J43="","",'Yab.Dil Ön Değ'!J43) ->  | K43: =IF('Yab.Dil Ön Değ'!K43="","",'Yab.Dil Ön Değ'!K43) ->  | L43: =IF('Yab.Dil Ön Değ'!L43="","",'Yab.Dil Ön Değ'!L43) -> 
A44: =IF('Yab.Dil Ön Değ'!A44="","",'Yab.Dil Ön Değ'!A44) ->  | B44: =IF('Yab.Dil Ön Değ'!B44="","",LEFT('Yab.Dil Ön Değ'!B44,3)&REPT("*",4)&RIGHT('Yab.Dil Ön Değ'!B44,2)) ->  | C44: =IF('Yab.Dil Ön Değ'!C44="","",IF(ISERR(FIND(" ",'Yab.Dil Ön Değ'!C44))=TRUE,LEFT('Yab.Dil Ön Değ'!C44,2)&REPT("*",3),LEFT('Yab.Dil Ön Değ'!C44,2)&REPT("*",3)&" "&MID('Yab.Dil Ön Değ'!C44,FIND(" ",'Yab.Dil Ön Değ'!C44)+1,2)&REPT("*",3))) ->  | D44: =IF('Yab.Dil Ön Değ'!D44="","",IF(ISERR(FIND(" ",'Yab.Dil Ön Değ'!D44))=TRUE,LEFT('Yab.Dil Ön Değ'!D44,2)&REPT("*",3),LEFT('Yab.Dil Ön Değ'!D44,2)&REPT("*",3)&" "&MID('Yab.Dil Ön Değ'!D44,FIND(" ",'Yab.Dil Ön Değ'!D44)+1,2)&REPT("*",3))) ->  | E44: =IF('Yab.Dil Ön Değ'!E44="","",'Yab.Dil Ön Değ'!E44) ->  | F44: =IF('Yab.Dil Ön Değ'!F44="","",'Yab.Dil Ön Değ'!F44) ->  | G44: =IF('Yab.Dil Ön Değ'!G44="","",'Yab.Dil Ön Değ'!G44) ->  | H44: =IF('Yab.Dil Ön Değ'!H44="","",'Yab.Dil Ön Değ'!H44) ->  | I44: =IF('Yab.Dil Ön Değ'!I44="","",'Yab.Dil Ön Değ'!I44) ->  | J44: =IF('Yab.Dil Ön Değ'!J44="","",'Yab.Dil Ön Değ'!J44) ->  | K44: =IF('Yab.Dil Ön Değ'!K44="","",'Yab.Dil Ön Değ'!K44) ->  | L44: =IF('Yab.Dil Ön Değ'!L44="","",'Yab.Dil Ön Değ'!L44) -> 
A45: =IF('Yab.Dil Ön Değ'!A45="","",'Yab.Dil Ön Değ'!A45) ->  | B45: =IF('Yab.Dil Ön Değ'!B45="","",LEFT('Yab.Dil Ön Değ'!B45,3)&REPT("*",4)&RIGHT('Yab.Dil Ön Değ'!B45,2)) ->  | C45: =IF('Yab.Dil Ön Değ'!C45="","",IF(ISERR(FIND(" ",'Yab.Dil Ön Değ'!C45))=TRUE,LEFT('Yab.Dil Ön Değ'!C45,2)&REPT("*",3),LEFT('Yab.Dil Ön Değ'!C45,2)&REPT("*",3)&" "&MID('Yab.Dil Ön Değ'!C45,FIND(" ",'Yab.Dil Ön Değ'!C45)+1,2)&REPT("*",3))) ->  | D45: =IF('Yab.Dil Ön Değ'!D45="","",IF(ISERR(FIND(" ",'Yab.Dil Ön Değ'!D45))=TRUE,LEFT('Yab.Dil Ön Değ'!D45,2)&REPT("*",3),LEFT('Yab.Dil Ön Değ'!D45,2)&REPT("*",3)&" "&MID('Yab.Dil Ön Değ'!D45,FIND(" ",'Yab.Dil Ön Değ'!D45)+1,2)&REPT("*",3))) ->  | E45: =IF('Yab.Dil Ön Değ'!E45="","",'Yab.Dil Ön Değ'!E45) ->  | F45: =IF('Yab.Dil Ön Değ'!F45="","",'Yab.Dil Ön Değ'!F45) ->  | G45: =IF('Yab.Dil Ön Değ'!G45="","",'Yab.Dil Ön Değ'!G45) ->  | H45: =IF('Yab.Dil Ön Değ'!H45="","",'Yab.Dil Ön Değ'!H45) ->  | I45: =IF('Yab.Dil Ön Değ'!I45="","",'Yab.Dil Ön Değ'!I45) ->  | J45: =IF('Yab.Dil Ön Değ'!J45="","",'Yab.Dil Ön Değ'!J45) ->  | K45: =IF('Yab.Dil Ön Değ'!K45="","",'Yab.Dil Ön Değ'!K45) ->  | L45: =IF('Yab.Dil Ön Değ'!L45="","",'Yab.Dil Ön Değ'!L45) -> 
A46: =IF('Yab.Dil Ön Değ'!A46="","",'Yab.Dil Ön Değ'!A46) ->  | B46: =IF('Yab.Dil Ön Değ'!B46="","",LEFT('Yab.Dil Ön Değ'!B46,3)&REPT("*",4)&RIGHT('Yab.Dil Ön Değ'!B46,2)) ->  | C46: =IF('Yab.Dil Ön Değ'!C46="","",IF(ISERR(FIND(" ",'Yab.Dil Ön Değ'!C46))=TRUE,LEFT('Yab.Dil Ön Değ'!C46,2)&REPT("*",3),LEFT('Yab.Dil Ön Değ'!C46,2)&REPT("*",3)&" "&MID('Yab.Dil Ön Değ'!C46,FIND(" ",'Yab.Dil Ön Değ'!C46)+1,2)&REPT("*",3))) ->  | D46: =IF('Yab.Dil Ön Değ'!D46="","",IF(ISERR(FIND(" ",'Yab.Dil Ön Değ'!D46))=TRUE,LEFT('Yab.Dil Ön Değ'!D46,2)&REPT("*",3),LEFT('Yab.Dil Ön Değ'!D46,2)&REPT("*",3)&" "&MID('Yab.Dil Ön Değ'!D46,FIND(" ",'Yab.Dil Ön Değ'!D46)+1,2)&REPT("*",3))) ->  | E46: =IF('Yab.Dil Ön Değ'!E46="","",'Yab.Dil Ön Değ'!E46) ->  | F46: =IF('Yab.Dil Ön Değ'!F46="","",'Yab.Dil Ön Değ'!F46) ->  | G46: =IF('Yab.Dil Ön Değ'!G46="","",'Yab.Dil Ön Değ'!G46) ->  | H46: =IF('Yab.Dil Ön Değ'!H46="","",'Yab.Dil Ön Değ'!H46) ->  | I46: =IF('Yab.Dil Ön Değ'!I46="","",'Yab.Dil Ön Değ'!I46) ->  | J46: =IF('Yab.Dil Ön Değ'!J46="","",'Yab.Dil Ön Değ'!J46) ->  | K46: =IF('Yab.Dil Ön Değ'!K46="","",'Yab.Dil Ön Değ'!K46) ->  | L46: =IF('Yab.Dil Ön Değ'!L46="","",'Yab.Dil Ön Değ'!L46) -> 
A47: =IF('Yab.Dil Ön Değ'!A47="","",'Yab.Dil Ön Değ'!A47) ->  | B47: =IF('Yab.Dil Ön Değ'!B47="","",LEFT('Yab.Dil Ön Değ'!B47,3)&REPT("*",4)&RIGHT('Yab.Dil Ön Değ'!B47,2)) ->  | C47: =IF('Yab.Dil Ön Değ'!C47="","",IF(ISERR(FIND(" ",'Yab.Dil Ön Değ'!C47))=TRUE,LEFT('Yab.Dil Ön Değ'!C47,2)&REPT("*",3),LEFT('Yab.Dil Ön Değ'!C47,2)&REPT("*",3)&" "&MID('Yab.Dil Ön Değ'!C47,FIND(" ",'Yab.Dil Ön Değ'!C47)+1,2)&REPT("*",3))) ->  | D47: =IF('Yab.Dil Ön Değ'!D47="","",IF(ISERR(FIND(" ",'Yab.Dil Ön Değ'!D47))=TRUE,LEFT('Yab.Dil Ön Değ'!D47,2)&REPT("*",3),LEFT('Yab.Dil Ön Değ'!D47,2)&REPT("*",3)&" "&MID('Yab.Dil Ön Değ'!D47,FIND(" ",'Yab.Dil Ön Değ'!D47)+1,2)&REPT("*",3))) ->  | E47: =IF('Yab.Dil Ön Değ'!E47="","",'Yab.Dil Ön Değ'!E47) ->  | F47: =IF('Yab.Dil Ön Değ'!F47="","",'Yab.Dil Ön Değ'!F47) ->  | G47: =IF('Yab.Dil Ön Değ'!G47="","",'Yab.Dil Ön Değ'!G47) ->  | H47: =IF('Yab.Dil Ön Değ'!H47="","",'Yab.Dil Ön Değ'!H47) ->  | I47: =IF('Yab.Dil Ön Değ'!I47="","",'Yab.Dil Ön Değ'!I47) ->  | J47: =IF('Yab.Dil Ön Değ'!J47="","",'Yab.Dil Ön Değ'!J47) ->  | K47: =IF('Yab.Dil Ön Değ'!K47="","",'Yab.Dil Ön Değ'!K47) ->  | L47: =IF('Yab.Dil Ön Değ'!L47="","",'Yab.Dil Ön Değ'!L47) -> 
A48: =IF('Yab.Dil Ön Değ'!A48="","",'Yab.Dil Ön Değ'!A48) ->  | B48: =IF('Yab.Dil Ön Değ'!B48="","",LEFT('Yab.Dil Ön Değ'!B48,3)&REPT("*",4)&RIGHT('Yab.Dil Ön Değ'!B48,2)) ->  | C48: =IF('Yab.Dil Ön Değ'!C48="","",IF(ISERR(FIND(" ",'Yab.Dil Ön Değ'!C48))=TRUE,LEFT('Yab.Dil Ön Değ'!C48,2)&REPT("*",3),LEFT('Yab.Dil Ön Değ'!C48,2)&REPT("*",3)&" "&MID('Yab.Dil Ön Değ'!C48,FIND(" ",'Yab.Dil Ön Değ'!C48)+1,2)&REPT("*",3))) ->  | D48: =IF('Yab.Dil Ön Değ'!D48="","",IF(ISERR(FIND(" ",'Yab.Dil Ön Değ'!D48))=TRUE,LEFT('Yab.Dil Ön Değ'!D48,2)&REPT("*",3),LEFT('Yab.Dil Ön Değ'!D48,2)&REPT("*",3)&" "&MID('Yab.Dil Ön Değ'!D48,FIND(" ",'Yab.Dil Ön Değ'!D48)+1,2)&REPT("*",3))) ->  | E48: =IF('Yab.Dil Ön Değ'!E48="","",'Yab.Dil Ön Değ'!E48) ->  | F48: =IF('Yab.Dil Ön Değ'!F48="","",'Yab.Dil Ön Değ'!F48) ->  | G48: =IF('Yab.Dil Ön Değ'!G48="","",'Yab.Dil Ön Değ'!G48) ->  | H48: =IF('Yab.Dil Ön Değ'!H48="","",'Yab.Dil Ön Değ'!H48) ->  | I48: =IF('Yab.Dil Ön Değ'!I48="","",'Yab.Dil Ön Değ'!I48) ->  | J48: =IF('Yab.Dil Ön Değ'!J48="","",'Yab.Dil Ön Değ'!J48) ->  | K48: =IF('Yab.Dil Ön Değ'!K48="","",'Yab.Dil Ön Değ'!K48) ->  | L48: =IF('Yab.Dil Ön Değ'!L48="","",'Yab.Dil Ön Değ'!L48) -> 
A49: =IF('Yab.Dil Ön Değ'!A49="","",'Yab.Dil Ön Değ'!A49) ->  | B49: =IF('Yab.Dil Ön Değ'!B49="","",LEFT('Yab.Dil Ön Değ'!B49,3)&REPT("*",4)&RIGHT('Yab.Dil Ön Değ'!B49,2)) ->  | C49: =IF('Yab.Dil Ön Değ'!C49="","",IF(ISERR(FIND(" ",'Yab.Dil Ön Değ'!C49))=TRUE,LEFT('Yab.Dil Ön Değ'!C49,2)&REPT("*",3),LEFT('Yab.Dil Ön Değ'!C49,2)&REPT("*",3)&" "&MID('Yab.Dil Ön Değ'!C49,FIND(" ",'Yab.Dil Ön Değ'!C49)+1,2)&REPT("*",3))) ->  | D49: =IF('Yab.Dil Ön Değ'!D49="","",IF(ISERR(FIND(" ",'Yab.Dil Ön Değ'!D49))=TRUE,LEFT('Yab.Dil Ön Değ'!D49,2)&REPT("*",3),LEFT('Yab.Dil Ön Değ'!D49,2)&REPT("*",3)&" "&MID('Yab.Dil Ön Değ'!D49,FIND(" ",'Yab.Dil Ön Değ'!D49)+1,2)&REPT("*",3))) ->  | E49: =IF('Yab.Dil Ön Değ'!E49="","",'Yab.Dil Ön Değ'!E49) ->  | F49: =IF('Yab.Dil Ön Değ'!F49="","",'Yab.Dil Ön Değ'!F49) ->  | G49: =IF('Yab.Dil Ön Değ'!G49="","",'Yab.Dil Ön Değ'!G49) ->  | H49: =IF('Yab.Dil Ön Değ'!H49="","",'Yab.Dil Ön Değ'!H49) ->  | I49: =IF('Yab.Dil Ön Değ'!I49="","",'Yab.Dil Ön Değ'!I49) ->  | J49: =IF('Yab.Dil Ön Değ'!J49="","",'Yab.Dil Ön Değ'!J49) ->  | K49: =IF('Yab.Dil Ön Değ'!K49="","",'Yab.Dil Ön Değ'!K49) ->  | L49: =IF('Yab.Dil Ön Değ'!L49="","",'Yab.Dil Ön Değ'!L49) -> 
A50: =IF('Yab.Dil Ön Değ'!A50="","",'Yab.Dil Ön Değ'!A50) ->  | B50: =IF('Yab.Dil Ön Değ'!B50="","",LEFT('Yab.Dil Ön Değ'!B50,3)&REPT("*",4)&RIGHT('Yab.Dil Ön Değ'!B50,2)) ->  | C50: =IF('Yab.Dil Ön Değ'!C50="","",IF(ISERR(FIND(" ",'Yab.Dil Ön Değ'!C50))=TRUE,LEFT('Yab.Dil Ön Değ'!C50,2)&REPT("*",3),LEFT('Yab.Dil Ön Değ'!C50,2)&REPT("*",3)&" "&MID('Yab.Dil Ön Değ'!C50,FIND(" ",'Yab.Dil Ön Değ'!C50)+1,2)&REPT("*",3))) ->  | D50: =IF('Yab.Dil Ön Değ'!D50="","",IF(ISERR(FIND(" ",'Yab.Dil Ön Değ'!D50))=TRUE,LEFT('Yab.Dil Ön Değ'!D50,2)&REPT("*",3),LEFT('Yab.Dil Ön Değ'!D50,2)&REPT("*",3)&" "&MID('Yab.Dil Ön Değ'!D50,FIND(" ",'Yab.Dil Ön Değ'!D50)+1,2)&REPT("*",3))) ->  | E50: =IF('Yab.Dil Ön Değ'!E50="","",'Yab.Dil Ön Değ'!E50) ->  | F50: =IF('Yab.Dil Ön Değ'!F50="","",'Yab.Dil Ön Değ'!F50) ->  | G50: =IF('Yab.Dil Ön Değ'!G50="","",'Yab.Dil Ön Değ'!G50) ->  | H50: =IF('Yab.Dil Ön Değ'!H50="","",'Yab.Dil Ön Değ'!H50) ->  | I50: =IF('Yab.Dil Ön Değ'!I50="","",'Yab.Dil Ön Değ'!I50) ->  | J50: =IF('Yab.Dil Ön Değ'!J50="","",'Yab.Dil Ön Değ'!J50) ->  | K50: =IF('Yab.Dil Ön Değ'!K50="","",'Yab.Dil Ön Değ'!K50) ->  | L50: =IF('Yab.Dil Ön Değ'!L50="","",'Yab.Dil Ön Değ'!L50) -> 
A51: =IF('Yab.Dil Ön Değ'!A51="","",'Yab.Dil Ön Değ'!A51) ->  | B51: =IF('Yab.Dil Ön Değ'!B51="","",LEFT('Yab.Dil Ön Değ'!B51,3)&REPT("*",4)&RIGHT('Yab.Dil Ön Değ'!B51,2)) ->  | C51: =IF('Yab.Dil Ön Değ'!C51="","",IF(ISERR(FIND(" ",'Yab.Dil Ön Değ'!C51))=TRUE,LEFT('Yab.Dil Ön Değ'!C51,2)&REPT("*",3),LEFT('Yab.Dil Ön Değ'!C51,2)&REPT("*",3)&" "&MID('Yab.Dil Ön Değ'!C51,FIND(" ",'Yab.Dil Ön Değ'!C51)+1,2)&REPT("*",3))) ->  | D51: =IF('Yab.Dil Ön Değ'!D51="","",IF(ISERR(FIND(" ",'Yab.Dil Ön Değ'!D51))=TRUE,LEFT('Yab.Dil Ön Değ'!D51,2)&REPT("*",3),LEFT('Yab.Dil Ön Değ'!D51,2)&REPT("*",3)&" "&MID('Yab.Dil Ön Değ'!D51,FIND(" ",'Yab.Dil Ön Değ'!D51)+1,2)&REPT("*",3))) ->  | E51: =IF('Yab.Dil Ön Değ'!E51="","",'Yab.Dil Ön Değ'!E51) ->  | F51: =IF('Yab.Dil Ön Değ'!F51="","",'Yab.Dil Ön Değ'!F51) ->  | G51: =IF('Yab.Dil Ön Değ'!G51="","",'Yab.Dil Ön Değ'!G51) ->  | H51: =IF('Yab.Dil Ön Değ'!H51="","",'Yab.Dil Ön Değ'!H51) ->  | I51: =IF('Yab.Dil Ön Değ'!I51="","",'Yab.Dil Ön Değ'!I51) ->  | J51: =IF('Yab.Dil Ön Değ'!J51="","",'Yab.Dil Ön Değ'!J51) ->  | K51: =IF('Yab.Dil Ön Değ'!K51="","",'Yab.Dil Ön Değ'!K51) ->  | L51: =IF('Yab.Dil Ön Değ'!L51="","",'Yab.Dil Ön Değ'!L51) -> 
A52: =IF('Yab.Dil Ön Değ'!A52="","",'Yab.Dil Ön Değ'!A52) ->  | B52: =IF('Yab.Dil Ön Değ'!B52="","",LEFT('Yab.Dil Ön Değ'!B52,3)&REPT("*",4)&RIGHT('Yab.Dil Ön Değ'!B52,2)) ->  | C52: =IF('Yab.Dil Ön Değ'!C52="","",IF(ISERR(FIND(" ",'Yab.Dil Ön Değ'!C52))=TRUE,LEFT('Yab.Dil Ön Değ'!C52,2)&REPT("*",3),LEFT('Yab.Dil Ön Değ'!C52,2)&REPT("*",3)&" "&MID('Yab.Dil Ön Değ'!C52,FIND(" ",'Yab.Dil Ön Değ'!C52)+1,2)&REPT("*",3))) ->  | D52: =IF('Yab.Dil Ön Değ'!D52="","",IF(ISERR(FIND(" ",'Yab.Dil Ön Değ'!D52))=TRUE,LEFT('Yab.Dil Ön Değ'!D52,2)&REPT("*",3),LEFT('Yab.Dil Ön Değ'!D52,2)&REPT("*",3)&" "&MID('Yab.Dil Ön Değ'!D52,FIND(" ",'Yab.Dil Ön Değ'!D52)+1,2)&REPT("*",3))) ->  | E52: =IF('Yab.Dil Ön Değ'!E52="","",'Yab.Dil Ön Değ'!E52) ->  | F52: =IF('Yab.Dil Ön Değ'!F52="","",'Yab.Dil Ön Değ'!F52) ->  | G52: =IF('Yab.Dil Ön Değ'!G52="","",'Yab.Dil Ön Değ'!G52) ->  | H52: =IF('Yab.Dil Ön Değ'!H52="","",'Yab.Dil Ön Değ'!H52) ->  | I52: =IF('Yab.Dil Ön Değ'!I52="","",'Yab.Dil Ön Değ'!I52) ->  | J52: =IF('Yab.Dil Ön Değ'!J52="","",'Yab.Dil Ön Değ'!J52) ->  | K52: =IF('Yab.Dil Ön Değ'!K52="","",'Yab.Dil Ön Değ'!K52) ->  | L52: =IF('Yab.Dil Ön Değ'!L52="","",'Yab.Dil Ön Değ'!L52) -> 
A53: =IF('Yab.Dil Ön Değ'!A53="","",'Yab.Dil Ön Değ'!A53) ->  | B53: =IF('Yab.Dil Ön Değ'!B53="","",LEFT('Yab.Dil Ön Değ'!B53,3)&REPT("*",4)&RIGHT('Yab.Dil Ön Değ'!B53,2)) ->  | C53: =IF('Yab.Dil Ön Değ'!C53="","",IF(ISERR(FIND(" ",'Yab.Dil Ön Değ'!C53))=TRUE,LEFT('Yab.Dil Ön Değ'!C53,2)&REPT("*",3),LEFT('Yab.Dil Ön Değ'!C53,2)&REPT("*",3)&" "&MID('Yab.Dil Ön Değ'!C53,FIND(" ",'Yab.Dil Ön Değ'!C53)+1,2)&REPT("*",3))) ->  | D53: =IF('Yab.Dil Ön Değ'!D53="","",IF(ISERR(FIND(" ",'Yab.Dil Ön Değ'!D53))=TRUE,LEFT('Yab.Dil Ön Değ'!D53,2)&REPT("*",3),LEFT('Yab.Dil Ön Değ'!D53,2)&REPT("*",3)&" "&MID('Yab.Dil Ön Değ'!D53,FIND(" ",'Yab.Dil Ön Değ'!D53)+1,2)&REPT("*",3))) ->  | E53: =IF('Yab.Dil Ön Değ'!E53="","",'Yab.Dil Ön Değ'!E53) ->  | F53: =IF('Yab.Dil Ön Değ'!F53="","",'Yab.Dil Ön Değ'!F53) ->  | G53: =IF('Yab.Dil Ön Değ'!G53="","",'Yab.Dil Ön Değ'!G53) ->  | H53: =IF('Yab.Dil Ön Değ'!H53="","",'Yab.Dil Ön Değ'!H53) ->  | I53: =IF('Yab.Dil Ön Değ'!I53="","",'Yab.Dil Ön Değ'!I53) ->  | J53: =IF('Yab.Dil Ön Değ'!J53="","",'Yab.Dil Ön Değ'!J53) ->  | K53: =IF('Yab.Dil Ön Değ'!K53="","",'Yab.Dil Ön Değ'!K53) ->  | L53: =IF('Yab.Dil Ön Değ'!L53="","",'Yab.Dil Ön Değ'!L53) -> 
A54: =IF('Yab.Dil Ön Değ'!A54="","",'Yab.Dil Ön Değ'!A54) ->  | B54: =IF('Yab.Dil Ön Değ'!B54="","",LEFT('Yab.Dil Ön Değ'!B54,3)&REPT("*",4)&RIGHT('Yab.Dil Ön Değ'!B54,2)) ->  | C54: =IF('Yab.Dil Ön Değ'!C54="","",IF(ISERR(FIND(" ",'Yab.Dil Ön Değ'!C54))=TRUE,LEFT('Yab.Dil Ön Değ'!C54,2)&REPT("*",3),LEFT('Yab.Dil Ön Değ'!C54,2)&REPT("*",3)&" "&MID('Yab.Dil Ön Değ'!C54,FIND(" ",'Yab.Dil Ön Değ'!C54)+1,2)&REPT("*",3))) ->  | D54: =IF('Yab.Dil Ön Değ'!D54="","",IF(ISERR(FIND(" ",'Yab.Dil Ön Değ'!D54))=TRUE,LEFT('Yab.Dil Ön Değ'!D54,2)&REPT("*",3),LEFT('Yab.Dil Ön Değ'!D54,2)&REPT("*",3)&" "&MID('Yab.Dil Ön Değ'!D54,FIND(" ",'Yab.Dil Ön Değ'!D54)+1,2)&REPT("*",3))) ->  | E54: =IF('Yab.Dil Ön Değ'!E54="","",'Yab.Dil Ön Değ'!E54) ->  | F54: =IF('Yab.Dil Ön Değ'!F54="","",'Yab.Dil Ön Değ'!F54) ->  | G54: =IF('Yab.Dil Ön Değ'!G54="","",'Yab.Dil Ön Değ'!G54) ->  | H54: =IF('Yab.Dil Ön Değ'!H54="","",'Yab.Dil Ön Değ'!H54) ->  | I54: =IF('Yab.Dil Ön Değ'!I54="","",'Yab.Dil Ön Değ'!I54) ->  | J54: =IF('Yab.Dil Ön Değ'!J54="","",'Yab.Dil Ön Değ'!J54) ->  | K54: =IF('Yab.Dil Ön Değ'!K54="","",'Yab.Dil Ön Değ'!K54) ->  | L54: =IF('Yab.Dil Ön Değ'!L54="","",'Yab.Dil Ön Değ'!L54) -> 
A55: =IF('Yab.Dil Ön Değ'!A55="","",'Yab.Dil Ön Değ'!A55) ->  | B55: =IF('Yab.Dil Ön Değ'!B55="","",LEFT('Yab.Dil Ön Değ'!B55,3)&REPT("*",4)&RIGHT('Yab.Dil Ön Değ'!B55,2)) ->  | C55: =IF('Yab.Dil Ön Değ'!C55="","",IF(ISERR(FIND(" ",'Yab.Dil Ön Değ'!C55))=TRUE,LEFT('Yab.Dil Ön Değ'!C55,2)&REPT("*",3),LEFT('Yab.Dil Ön Değ'!C55,2)&REPT("*",3)&" "&MID('Yab.Dil Ön Değ'!C55,FIND(" ",'Yab.Dil Ön Değ'!C55)+1,2)&REPT("*",3))) ->  | D55: =IF('Yab.Dil Ön Değ'!D55="","",IF(ISERR(FIND(" ",'Yab.Dil Ön Değ'!D55))=TRUE,LEFT('Yab.Dil Ön Değ'!D55,2)&REPT("*",3),LEFT('Yab.Dil Ön Değ'!D55,2)&REPT("*",3)&" "&MID('Yab.Dil Ön Değ'!D55,FIND(" ",'Yab.Dil Ön Değ'!D55)+1,2)&REPT("*",3))) ->  | E55: =IF('Yab.Dil Ön Değ'!E55="","",'Yab.Dil Ön Değ'!E55) ->  | F55: =IF('Yab.Dil Ön Değ'!F55="","",'Yab.Dil Ön Değ'!F55) ->  | G55: =IF('Yab.Dil Ön Değ'!G55="","",'Yab.Dil Ön Değ'!G55) ->  | H55: =IF('Yab.Dil Ön Değ'!H55="","",'Yab.Dil Ön Değ'!H55) ->  | I55: =IF('Yab.Dil Ön Değ'!I55="","",'Yab.Dil Ön Değ'!I55) ->  | J55: =IF('Yab.Dil Ön Değ'!J55="","",'Yab.Dil Ön Değ'!J55) ->  | K55: =IF('Yab.Dil Ön Değ'!K55="","",'Yab.Dil Ön Değ'!K55) ->  | L55: =IF('Yab.Dil Ön Değ'!L55="","",'Yab.Dil Ön Değ'!L55) -> 
A56: =IF('Yab.Dil Ön Değ'!A56="","",'Yab.Dil Ön Değ'!A56) ->  | B56: =IF('Yab.Dil Ön Değ'!B56="","",LEFT('Yab.Dil Ön Değ'!B56,3)&REPT("*",4)&RIGHT('Yab.Dil Ön Değ'!B56,2)) ->  | C56: =IF('Yab.Dil Ön Değ'!C56="","",IF(ISERR(FIND(" ",'Yab.Dil Ön Değ'!C56))=TRUE,LEFT('Yab.Dil Ön Değ'!C56,2)&REPT("*",3),LEFT('Yab.Dil Ön Değ'!C56,2)&REPT("*",3)&" "&MID('Yab.Dil Ön Değ'!C56,FIND(" ",'Yab.Dil Ön Değ'!C56)+1,2)&REPT("*",3))) ->  | D56: =IF('Yab.Dil Ön Değ'!D56="","",IF(ISERR(FIND(" ",'Yab.Dil Ön Değ'!D56))=TRUE,LEFT('Yab.Dil Ön Değ'!D56,2)&REPT("*",3),LEFT('Yab.Dil Ön Değ'!D56,2)&REPT("*",3)&" "&MID('Yab.Dil Ön Değ'!D56,FIND(" ",'Yab.Dil Ön Değ'!D56)+1,2)&REPT("*",3))) ->  | E56: =IF('Yab.Dil Ön Değ'!E56="","",'Yab.Dil Ön Değ'!E56) ->  | F56: =IF('Yab.Dil Ön Değ'!F56="","",'Yab.Dil Ön Değ'!F56) ->  | G56: =IF('Yab.Dil Ön Değ'!G56="","",'Yab.Dil Ön Değ'!G56) ->  | H56: =IF('Yab.Dil Ön Değ'!H56="","",'Yab.Dil Ön Değ'!H56) ->  | I56: =IF('Yab.Dil Ön Değ'!I56="","",'Yab.Dil Ön Değ'!I56) ->  | J56: =IF('Yab.Dil Ön Değ'!J56="","",'Yab.Dil Ön Değ'!J56) ->  | K56: =IF('Yab.Dil Ön Değ'!K56="","",'Yab.Dil Ön Değ'!K56) ->  | L56: =IF('Yab.Dil Ön Değ'!L56="","",'Yab.Dil Ön Değ'!L56) -> 
A57: =IF('Yab.Dil Ön Değ'!A57="","",'Yab.Dil Ön Değ'!A57) ->  | B57: =IF('Yab.Dil Ön Değ'!B57="","",LEFT('Yab.Dil Ön Değ'!B57,3)&REPT("*",4)&RIGHT('Yab.Dil Ön Değ'!B57,2)) ->  | C57: =IF('Yab.Dil Ön Değ'!C57="","",IF(ISERR(FIND(" ",'Yab.Dil Ön Değ'!C57))=TRUE,LEFT('Yab.Dil Ön Değ'!C57,2)&REPT("*",3),LEFT('Yab.Dil Ön Değ'!C57,2)&REPT("*",3)&" "&MID('Yab.Dil Ön Değ'!C57,FIND(" ",'Yab.Dil Ön Değ'!C57)+1,2)&REPT("*",3))) ->  | D57: =IF('Yab.Dil Ön Değ'!D57="","",IF(ISERR(FIND(" ",'Yab.Dil Ön Değ'!D57))=TRUE,LEFT('Yab.Dil Ön Değ'!D57,2)&REPT("*",3),LEFT('Yab.Dil Ön Değ'!D57,2)&REPT("*",3)&" "&MID('Yab.Dil Ön Değ'!D57,FIND(" ",'Yab.Dil Ön Değ'!D57)+1,2)&REPT("*",3))) ->  | E57: =IF('Yab.Dil Ön Değ'!E57="","",'Yab.Dil Ön Değ'!E57) ->  | F57: =IF('Yab.Dil Ön Değ'!F57="","",'Yab.Dil Ön Değ'!F57) ->  | G57: =IF('Yab.Dil Ön Değ'!G57="","",'Yab.Dil Ön Değ'!G57) ->  | H57: =IF('Yab.Dil Ön Değ'!H57="","",'Yab.Dil Ön Değ'!H57) ->  | I57: =IF('Yab.Dil Ön Değ'!I57="","",'Yab.Dil Ön Değ'!I57) ->  | J57: =IF('Yab.Dil Ön Değ'!J57="","",'Yab.Dil Ön Değ'!J57) ->  | K57: =IF('Yab.Dil Ön Değ'!K57="","",'Yab.Dil Ön Değ'!K57) ->  | L57: =IF('Yab.Dil Ön Değ'!L57="","",'Yab.Dil Ön Değ'!L57) -> 
A58: =IF('Yab.Dil Ön Değ'!A58="","",'Yab.Dil Ön Değ'!A58) ->  | B58: =IF('Yab.Dil Ön Değ'!B58="","",LEFT('Yab.Dil Ön Değ'!B58,3)&REPT("*",4)&RIGHT('Yab.Dil Ön Değ'!B58,2)) ->  | C58: =IF('Yab.Dil Ön Değ'!C58="","",IF(ISERR(FIND(" ",'Yab.Dil Ön Değ'!C58))=TRUE,LEFT('Yab.Dil Ön Değ'!C58,2)&REPT("*",3),LEFT('Yab.Dil Ön Değ'!C58,2)&REPT("*",3)&" "&MID('Yab.Dil Ön Değ'!C58,FIND(" ",'Yab.Dil Ön Değ'!C58)+1,2)&REPT("*",3))) ->  | D58: =IF('Yab.Dil Ön Değ'!D58="","",IF(ISERR(FIND(" ",'Yab.Dil Ön Değ'!D58))=TRUE,LEFT('Yab.Dil Ön Değ'!D58,2)&REPT("*",3),LEFT('Yab.Dil Ön Değ'!D58,2)&REPT("*",3)&" "&MID('Yab.Dil Ön Değ'!D58,FIND(" ",'Yab.Dil Ön Değ'!D58)+1,2)&REPT("*",3))) ->  | E58: =IF('Yab.Dil Ön Değ'!E58="","",'Yab.Dil Ön Değ'!E58) ->  | F58: =IF('Yab.Dil Ön Değ'!F58="","",'Yab.Dil Ön Değ'!F58) ->  | G58: =IF('Yab.Dil Ön Değ'!G58="","",'Yab.Dil Ön Değ'!G58) ->  | H58: =IF('Yab.Dil Ön Değ'!H58="","",'Yab.Dil Ön Değ'!H58) ->  | I58: =IF('Yab.Dil Ön Değ'!I58="","",'Yab.Dil Ön Değ'!I58) ->  | J58: =IF('Yab.Dil Ön Değ'!J58="","",'Yab.Dil Ön Değ'!J58) ->  | K58: =IF('Yab.Dil Ön Değ'!K58="","",'Yab.Dil Ön Değ'!K58) ->  | L58: =IF('Yab.Dil Ön Değ'!L58="","",'Yab.Dil Ön Değ'!L58) -> 
A59: =IF('Yab.Dil Ön Değ'!A59="","",'Yab.Dil Ön Değ'!A59) ->  | B59: =IF('Yab.Dil Ön Değ'!B59="","",LEFT('Yab.Dil Ön Değ'!B59,3)&REPT("*",4)&RIGHT('Yab.Dil Ön Değ'!B59,2)) ->  | C59: =IF('Yab.Dil Ön Değ'!C59="","",IF(ISERR(FIND(" ",'Yab.Dil Ön Değ'!C59))=TRUE,LEFT('Yab.Dil Ön Değ'!C59,2)&REPT("*",3),LEFT('Yab.Dil Ön Değ'!C59,2)&REPT("*",3)&" "&MID('Yab.Dil Ön Değ'!C59,FIND(" ",'Yab.Dil Ön Değ'!C59)+1,2)&REPT("*",3))) ->  | D59: =IF('Yab.Dil Ön Değ'!D59="","",IF(ISERR(FIND(" ",'Yab.Dil Ön Değ'!D59))=TRUE,LEFT('Yab.Dil Ön Değ'!D59,2)&REPT("*",3),LEFT('Yab.Dil Ön Değ'!D59,2)&REPT("*",3)&" "&MID('Yab.Dil Ön Değ'!D59,FIND(" ",'Yab.Dil Ön Değ'!D59)+1,2)&REPT("*",3))) ->  | E59: =IF('Yab.Dil Ön Değ'!E59="","",'Yab.Dil Ön Değ'!E59) ->  | F59: =IF('Yab.Dil Ön Değ'!F59="","",'Yab.Dil Ön Değ'!F59) ->  | G59: =IF('Yab.Dil Ön Değ'!G59="","",'Yab.Dil Ön Değ'!G59) ->  | H59: =IF('Yab.Dil Ön Değ'!H59="","",'Yab.Dil Ön Değ'!H59) ->  | I59: =IF('Yab.Dil Ön Değ'!I59="","",'Yab.Dil Ön Değ'!I59) ->  | J59: =IF('Yab.Dil Ön Değ'!J59="","",'Yab.Dil Ön Değ'!J59) ->  | K59: =IF('Yab.Dil Ön Değ'!K59="","",'Yab.Dil Ön Değ'!K59) ->  | L59: =IF('Yab.Dil Ön Değ'!L59="","",'Yab.Dil Ön Değ'!L59) -> 
A60: =IF('Yab.Dil Ön Değ'!A60="","",'Yab.Dil Ön Değ'!A60) ->  | B60: =IF('Yab.Dil Ön Değ'!B60="","",LEFT('Yab.Dil Ön Değ'!B60,3)&REPT("*",4)&RIGHT('Yab.Dil Ön Değ'!B60,2)) ->  | C60: =IF('Yab.Dil Ön Değ'!C60="","",IF(ISERR(FIND(" ",'Yab.Dil Ön Değ'!C60))=TRUE,LEFT('Yab.Dil Ön Değ'!C60,2)&REPT("*",3),LEFT('Yab.Dil Ön Değ'!C60,2)&REPT("*",3)&" "&MID('Yab.Dil Ön Değ'!C60,FIND(" ",'Yab.Dil Ön Değ'!C60)+1,2)&REPT("*",3))) ->  | D60: =IF('Yab.Dil Ön Değ'!D60="","",IF(ISERR(FIND(" ",'Yab.Dil Ön Değ'!D60))=TRUE,LEFT('Yab.Dil Ön Değ'!D60,2)&REPT("*",3),LEFT('Yab.Dil Ön Değ'!D60,2)&REPT("*",3)&" "&MID('Yab.Dil Ön Değ'!D60,FIND(" ",'Yab.Dil Ön Değ'!D60)+1,2)&REPT("*",3))) ->  | E60: =IF('Yab.Dil Ön Değ'!E60="","",'Yab.Dil Ön Değ'!E60) ->  | F60: =IF('Yab.Dil Ön Değ'!F60="","",'Yab.Dil Ön Değ'!F60) ->  | G60: =IF('Yab.Dil Ön Değ'!G60="","",'Yab.Dil Ön Değ'!G60) ->  | H60: =IF('Yab.Dil Ön Değ'!H60="","",'Yab.Dil Ön Değ'!H60) ->  | I60: =IF('Yab.Dil Ön Değ'!I60="","",'Yab.Dil Ön Değ'!I60) ->  | J60: =IF('Yab.Dil Ön Değ'!J60="","",'Yab.Dil Ön Değ'!J60) ->  | K60: =IF('Yab.Dil Ön Değ'!K60="","",'Yab.Dil Ön Değ'!K60) ->  | L60: =IF('Yab.Dil Ön Değ'!L60="","",'Yab.Dil Ön Değ'!L60) -> 
A61: =IF('Yab.Dil Ön Değ'!A61="","",'Yab.Dil Ön Değ'!A61) ->  | B61: =IF('Yab.Dil Ön Değ'!B61="","",LEFT('Yab.Dil Ön Değ'!B61,3)&REPT("*",4)&RIGHT('Yab.Dil Ön Değ'!B61,2)) ->  | C61: =IF('Yab.Dil Ön Değ'!C61="","",IF(ISERR(FIND(" ",'Yab.Dil Ön Değ'!C61))=TRUE,LEFT('Yab.Dil Ön Değ'!C61,2)&REPT("*",3),LEFT('Yab.Dil Ön Değ'!C61,2)&REPT("*",3)&" "&MID('Yab.Dil Ön Değ'!C61,FIND(" ",'Yab.Dil Ön Değ'!C61)+1,2)&REPT("*",3))) ->  | D61: =IF('Yab.Dil Ön Değ'!D61="","",IF(ISERR(FIND(" ",'Yab.Dil Ön Değ'!D61))=TRUE,LEFT('Yab.Dil Ön Değ'!D61,2)&REPT("*",3),LEFT('Yab.Dil Ön Değ'!D61,2)&REPT("*",3)&" "&MID('Yab.Dil Ön Değ'!D61,FIND(" ",'Yab.Dil Ön Değ'!D61)+1,2)&REPT("*",3))) ->  | E61: =IF('Yab.Dil Ön Değ'!E61="","",'Yab.Dil Ön Değ'!E61) ->  | F61: =IF('Yab.Dil Ön Değ'!F61="","",'Yab.Dil Ön Değ'!F61) ->  | G61: =IF('Yab.Dil Ön Değ'!G61="","",'Yab.Dil Ön Değ'!G61) ->  | H61: =IF('Yab.Dil Ön Değ'!H61="","",'Yab.Dil Ön Değ'!H61) ->  | I61: =IF('Yab.Dil Ön Değ'!I61="","",'Yab.Dil Ön Değ'!I61) ->  | J61: =IF('Yab.Dil Ön Değ'!J61="","",'Yab.Dil Ön Değ'!J61) ->  | K61: =IF('Yab.Dil Ön Değ'!K61="","",'Yab.Dil Ön Değ'!K61) ->  | L61: =IF('Yab.Dil Ön Değ'!L61="","",'Yab.Dil Ön Değ'!L61) -> 
A62: =IF('Yab.Dil Ön Değ'!A62="","",'Yab.Dil Ön Değ'!A62) ->  | B62: =IF('Yab.Dil Ön Değ'!B62="","",LEFT('Yab.Dil Ön Değ'!B62,3)&REPT("*",4)&RIGHT('Yab.Dil Ön Değ'!B62,2)) ->  | C62: =IF('Yab.Dil Ön Değ'!C62="","",IF(ISERR(FIND(" ",'Yab.Dil Ön Değ'!C62))=TRUE,LEFT('Yab.Dil Ön Değ'!C62,2)&REPT("*",3),LEFT('Yab.Dil Ön Değ'!C62,2)&REPT("*",3)&" "&MID('Yab.Dil Ön Değ'!C62,FIND(" ",'Yab.Dil Ön Değ'!C62)+1,2)&REPT("*",3))) ->  | D62: =IF('Yab.Dil Ön Değ'!D62="","",IF(ISERR(FIND(" ",'Yab.Dil Ön Değ'!D62))=TRUE,LEFT('Yab.Dil Ön Değ'!D62,2)&REPT("*",3),LEFT('Yab.Dil Ön Değ'!D62,2)&REPT("*",3)&" "&MID('Yab.Dil Ön Değ'!D62,FIND(" ",'Yab.Dil Ön Değ'!D62)+1,2)&REPT("*",3))) ->  | E62: =IF('Yab.Dil Ön Değ'!E62="","",'Yab.Dil Ön Değ'!E62) ->  | F62: =IF('Yab.Dil Ön Değ'!F62="","",'Yab.Dil Ön Değ'!F62) ->  | G62: =IF('Yab.Dil Ön Değ'!G62="","",'Yab.Dil Ön Değ'!G62) ->  | H62: =IF('Yab.Dil Ön Değ'!H62="","",'Yab.Dil Ön Değ'!H62) ->  | I62: =IF('Yab.Dil Ön Değ'!I62="","",'Yab.Dil Ön Değ'!I62) ->  | J62: =IF('Yab.Dil Ön Değ'!J62="","",'Yab.Dil Ön Değ'!J62) ->  | K62: =IF('Yab.Dil Ön Değ'!K62="","",'Yab.Dil Ön Değ'!K62) ->  | L62: =IF('Yab.Dil Ön Değ'!L62="","",'Yab.Dil Ön Değ'!L62) -> 
A63: =IF('Yab.Dil Ön Değ'!A63="","",'Yab.Dil Ön Değ'!A63) ->  | B63: =IF('Yab.Dil Ön Değ'!B63="","",LEFT('Yab.Dil Ön Değ'!B63,3)&REPT("*",4)&RIGHT('Yab.Dil Ön Değ'!B63,2)) ->  | C63: =IF('Yab.Dil Ön Değ'!C63="","",IF(ISERR(FIND(" ",'Yab.Dil Ön Değ'!C63))=TRUE,LEFT('Yab.Dil Ön Değ'!C63,2)&REPT("*",3),LEFT('Yab.Dil Ön Değ'!C63,2)&REPT("*",3)&" "&MID('Yab.Dil Ön Değ'!C63,FIND(" ",'Yab.Dil Ön Değ'!C63)+1,2)&REPT("*",3))) ->  | D63: =IF('Yab.Dil Ön Değ'!D63="","",IF(ISERR(FIND(" ",'Yab.Dil Ön Değ'!D63))=TRUE,LEFT('Yab.Dil Ön Değ'!D63,2)&REPT("*",3),LEFT('Yab.Dil Ön Değ'!D63,2)&REPT("*",3)&" "&MID('Yab.Dil Ön Değ'!D63,FIND(" ",'Yab.Dil Ön Değ'!D63)+1,2)&REPT("*",3))) ->  | E63: =IF('Yab.Dil Ön Değ'!E63="","",'Yab.Dil Ön Değ'!E63) ->  | F63: =IF('Yab.Dil Ön Değ'!F63="","",'Yab.Dil Ön Değ'!F63) ->  | G63: =IF('Yab.Dil Ön Değ'!G63="","",'Yab.Dil Ön Değ'!G63) ->  | H63: =IF('Yab.Dil Ön Değ'!H63="","",'Yab.Dil Ön Değ'!H63) ->  | I63: =IF('Yab.Dil Ön Değ'!I63="","",'Yab.Dil Ön Değ'!I63) ->  | J63: =IF('Yab.Dil Ön Değ'!J63="","",'Yab.Dil Ön Değ'!J63) ->  | K63: =IF('Yab.Dil Ön Değ'!K63="","",'Yab.Dil Ön Değ'!K63) ->  | L63: =IF('Yab.Dil Ön Değ'!L63="","",'Yab.Dil Ön Değ'!L63) -> 
A64: =IF('Yab.Dil Ön Değ'!A64="","",'Yab.Dil Ön Değ'!A64) ->  | B64: =IF('Yab.Dil Ön Değ'!B64="","",LEFT('Yab.Dil Ön Değ'!B64,3)&REPT("*",4)&RIGHT('Yab.Dil Ön Değ'!B64,2)) ->  | C64: =IF('Yab.Dil Ön Değ'!C64="","",IF(ISERR(FIND(" ",'Yab.Dil Ön Değ'!C64))=TRUE,LEFT('Yab.Dil Ön Değ'!C64,2)&REPT("*",3),LEFT('Yab.Dil Ön Değ'!C64,2)&REPT("*",3)&" "&MID('Yab.Dil Ön Değ'!C64,FIND(" ",'Yab.Dil Ön Değ'!C64)+1,2)&REPT("*",3))) ->  | D64: =IF('Yab.Dil Ön Değ'!D64="","",IF(ISERR(FIND(" ",'Yab.Dil Ön Değ'!D64))=TRUE,LEFT('Yab.Dil Ön Değ'!D64,2)&REPT("*",3),LEFT('Yab.Dil Ön Değ'!D64,2)&REPT("*",3)&" "&MID('Yab.Dil Ön Değ'!D64,FIND(" ",'Yab.Dil Ön Değ'!D64)+1,2)&REPT("*",3))) ->  | E64: =IF('Yab.Dil Ön Değ'!E64="","",'Yab.Dil Ön Değ'!E64) ->  | F64: =IF('Yab.Dil Ön Değ'!F64="","",'Yab.Dil Ön Değ'!F64) ->  | G64: =IF('Yab.Dil Ön Değ'!G64="","",'Yab.Dil Ön Değ'!G64) ->  | H64: =IF('Yab.Dil Ön Değ'!H64="","",'Yab.Dil Ön Değ'!H64) ->  | I64: =IF('Yab.Dil Ön Değ'!I64="","",'Yab.Dil Ön Değ'!I64) ->  | J64: =IF('Yab.Dil Ön Değ'!J64="","",'Yab.Dil Ön Değ'!J64) ->  | K64: =IF('Yab.Dil Ön Değ'!K64="","",'Yab.Dil Ön Değ'!K64) ->  | L64: =IF('Yab.Dil Ön Değ'!L64="","",'Yab.Dil Ön Değ'!L64) -> 
A65: =IF('Yab.Dil Ön Değ'!A65="","",'Yab.Dil Ön Değ'!A65) ->  | B65: =IF('Yab.Dil Ön Değ'!B65="","",LEFT('Yab.Dil Ön Değ'!B65,3)&REPT("*",4)&RIGHT('Yab.Dil Ön Değ'!B65,2)) ->  | C65: =IF('Yab.Dil Ön Değ'!C65="","",IF(ISERR(FIND(" ",'Yab.Dil Ön Değ'!C65))=TRUE,LEFT('Yab.Dil Ön Değ'!C65,2)&REPT("*",3),LEFT('Yab.Dil Ön Değ'!C65,2)&REPT("*",3)&" "&MID('Yab.Dil Ön Değ'!C65,FIND(" ",'Yab.Dil Ön Değ'!C65)+1,2)&REPT("*",3))) ->  | D65: =IF('Yab.Dil Ön Değ'!D65="","",IF(ISERR(FIND(" ",'Yab.Dil Ön Değ'!D65))=TRUE,LEFT('Yab.Dil Ön Değ'!D65,2)&REPT("*",3),LEFT('Yab.Dil Ön Değ'!D65,2)&REPT("*",3)&" "&MID('Yab.Dil Ön Değ'!D65,FIND(" ",'Yab.Dil Ön Değ'!D65)+1,2)&REPT("*",3))) ->  | E65: =IF('Yab.Dil Ön Değ'!E65="","",'Yab.Dil Ön Değ'!E65) ->  | F65: =IF('Yab.Dil Ön Değ'!F65="","",'Yab.Dil Ön Değ'!F65) ->  | G65: =IF('Yab.Dil Ön Değ'!G65="","",'Yab.Dil Ön Değ'!G65) ->  | H65: =IF('Yab.Dil Ön Değ'!H65="","",'Yab.Dil Ön Değ'!H65) ->  | I65: =IF('Yab.Dil Ön Değ'!I65="","",'Yab.Dil Ön Değ'!I65) ->  | J65: =IF('Yab.Dil Ön Değ'!J65="","",'Yab.Dil Ön Değ'!J65) ->  | K65: =IF('Yab.Dil Ön Değ'!K65="","",'Yab.Dil Ön Değ'!K65) ->  | L65: =IF('Yab.Dil Ön Değ'!L65="","",'Yab.Dil Ön Değ'!L65) -> 
A66: =IF('Yab.Dil Ön Değ'!A66="","",'Yab.Dil Ön Değ'!A66) ->  | B66: =IF('Yab.Dil Ön Değ'!B66="","",LEFT('Yab.Dil Ön Değ'!B66,3)&REPT("*",4)&RIGHT('Yab.Dil Ön Değ'!B66,2)) ->  | C66: =IF('Yab.Dil Ön Değ'!C66="","",IF(ISERR(FIND(" ",'Yab.Dil Ön Değ'!C66))=TRUE,LEFT('Yab.Dil Ön Değ'!C66,2)&REPT("*",3),LEFT('Yab.Dil Ön Değ'!C66,2)&REPT("*",3)&" "&MID('Yab.Dil Ön Değ'!C66,FIND(" ",'Yab.Dil Ön Değ'!C66)+1,2)&REPT("*",3))) ->  | D66: =IF('Yab.Dil Ön Değ'!D66="","",IF(ISERR(FIND(" ",'Yab.Dil Ön Değ'!D66))=TRUE,LEFT('Yab.Dil Ön Değ'!D66,2)&REPT("*",3),LEFT('Yab.Dil Ön Değ'!D66,2)&REPT("*",3)&" "&MID('Yab.Dil Ön Değ'!D66,FIND(" ",'Yab.Dil Ön Değ'!D66)+1,2)&REPT("*",3))) ->  | E66: =IF('Yab.Dil Ön Değ'!E66="","",'Yab.Dil Ön Değ'!E66) ->  | F66: =IF('Yab.Dil Ön Değ'!F66="","",'Yab.Dil Ön Değ'!F66) ->  | G66: =IF('Yab.Dil Ön Değ'!G66="","",'Yab.Dil Ön Değ'!G66) ->  | H66: =IF('Yab.Dil Ön Değ'!H66="","",'Yab.Dil Ön Değ'!H66) ->  | I66: =IF('Yab.Dil Ön Değ'!I66="","",'Yab.Dil Ön Değ'!I66) ->  | J66: =IF('Yab.Dil Ön Değ'!J66="","",'Yab.Dil Ön Değ'!J66) ->  | K66: =IF('Yab.Dil Ön Değ'!K66="","",'Yab.Dil Ön Değ'!K66) ->  | L66: =IF('Yab.Dil Ön Değ'!L66="","",'Yab.Dil Ön Değ'!L66) -> 
A67: =IF('Yab.Dil Ön Değ'!A67="","",'Yab.Dil Ön Değ'!A67) ->  | B67: =IF('Yab.Dil Ön Değ'!B67="","",LEFT('Yab.Dil Ön Değ'!B67,3)&REPT("*",4)&RIGHT('Yab.Dil Ön Değ'!B67,2)) ->  | C67: =IF('Yab.Dil Ön Değ'!C67="","",IF(ISERR(FIND(" ",'Yab.Dil Ön Değ'!C67))=TRUE,LEFT('Yab.Dil Ön Değ'!C67,2)&REPT("*",3),LEFT('Yab.Dil Ön Değ'!C67,2)&REPT("*",3)&" "&MID('Yab.Dil Ön Değ'!C67,FIND(" ",'Yab.Dil Ön Değ'!C67)+1,2)&REPT("*",3))) ->  | D67: =IF('Yab.Dil Ön Değ'!D67="","",IF(ISERR(FIND(" ",'Yab.Dil Ön Değ'!D67))=TRUE,LEFT('Yab.Dil Ön Değ'!D67,2)&REPT("*",3),LEFT('Yab.Dil Ön Değ'!D67,2)&REPT("*",3)&" "&MID('Yab.Dil Ön Değ'!D67,FIND(" ",'Yab.Dil Ön Değ'!D67)+1,2)&REPT("*",3))) ->  | E67: =IF('Yab.Dil Ön Değ'!E67="","",'Yab.Dil Ön Değ'!E67) ->  | F67: =IF('Yab.Dil Ön Değ'!F67="","",'Yab.Dil Ön Değ'!F67) ->  | G67: =IF('Yab.Dil Ön Değ'!G67="","",'Yab.Dil Ön Değ'!G67) ->  | H67: =IF('Yab.Dil Ön Değ'!H67="","",'Yab.Dil Ön Değ'!H67) ->  | I67: =IF('Yab.Dil Ön Değ'!I67="","",'Yab.Dil Ön Değ'!I67) ->  | J67: =IF('Yab.Dil Ön Değ'!J67="","",'Yab.Dil Ön Değ'!J67) ->  | K67: =IF('Yab.Dil Ön Değ'!K67="","",'Yab.Dil Ön Değ'!K67) ->  | L67: =IF('Yab.Dil Ön Değ'!L67="","",'Yab.Dil Ön Değ'!L67) -> 
A68: =IF('Yab.Dil Ön Değ'!A68="","",'Yab.Dil Ön Değ'!A68) ->  | B68: =IF('Yab.Dil Ön Değ'!B68="","",LEFT('Yab.Dil Ön Değ'!B68,3)&REPT("*",4)&RIGHT('Yab.Dil Ön Değ'!B68,2)) ->  | C68: =IF('Yab.Dil Ön Değ'!C68="","",IF(ISERR(FIND(" ",'Yab.Dil Ön Değ'!C68))=TRUE,LEFT('Yab.Dil Ön Değ'!C68,2)&REPT("*",3),LEFT('Yab.Dil Ön Değ'!C68,2)&REPT("*",3)&" "&MID('Yab.Dil Ön Değ'!C68,FIND(" ",'Yab.Dil Ön Değ'!C68)+1,2)&REPT("*",3))) ->  | D68: =IF('Yab.Dil Ön Değ'!D68="","",IF(ISERR(FIND(" ",'Yab.Dil Ön Değ'!D68))=TRUE,LEFT('Yab.Dil Ön Değ'!D68,2)&REPT("*",3),LEFT('Yab.Dil Ön Değ'!D68,2)&REPT("*",3)&" "&MID('Yab.Dil Ön Değ'!D68,FIND(" ",'Yab.Dil Ön Değ'!D68)+1,2)&REPT("*",3))) ->  | E68: =IF('Yab.Dil Ön Değ'!E68="","",'Yab.Dil Ön Değ'!E68) ->  | F68: =IF('Yab.Dil Ön Değ'!F68="","",'Yab.Dil Ön Değ'!F68) ->  | G68: =IF('Yab.Dil Ön Değ'!G68="","",'Yab.Dil Ön Değ'!G68) ->  | H68: =IF('Yab.Dil Ön Değ'!H68="","",'Yab.Dil Ön Değ'!H68) ->  | I68: =IF('Yab.Dil Ön Değ'!I68="","",'Yab.Dil Ön Değ'!I68) ->  | J68: =IF('Yab.Dil Ön Değ'!J68="","",'Yab.Dil Ön Değ'!J68) ->  | K68: =IF('Yab.Dil Ön Değ'!K68="","",'Yab.Dil Ön Değ'!K68) ->  | L68: =IF('Yab.Dil Ön Değ'!L68="","",'Yab.Dil Ön Değ'!L68) -> 
A69: =IF('Yab.Dil Ön Değ'!A69="","",'Yab.Dil Ön Değ'!A69) ->  | B69: =IF('Yab.Dil Ön Değ'!B69="","",LEFT('Yab.Dil Ön Değ'!B69,3)&REPT("*",4)&RIGHT('Yab.Dil Ön Değ'!B69,2)) ->  | C69: =IF('Yab.Dil Ön Değ'!C69="","",IF(ISERR(FIND(" ",'Yab.Dil Ön Değ'!C69))=TRUE,LEFT('Yab.Dil Ön Değ'!C69,2)&REPT("*",3),LEFT('Yab.Dil Ön Değ'!C69,2)&REPT("*",3)&" "&MID('Yab.Dil Ön Değ'!C69,FIND(" ",'Yab.Dil Ön Değ'!C69)+1,2)&REPT("*",3))) ->  | D69: =IF('Yab.Dil Ön Değ'!D69="","",IF(ISERR(FIND(" ",'Yab.Dil Ön Değ'!D69))=TRUE,LEFT('Yab.Dil Ön Değ'!D69,2)&REPT("*",3),LEFT('Yab.Dil Ön Değ'!D69,2)&REPT("*",3)&" "&MID('Yab.Dil Ön Değ'!D69,FIND(" ",'Yab.Dil Ön Değ'!D69)+1,2)&REPT("*",3))) ->  | E69: =IF('Yab.Dil Ön Değ'!E69="","",'Yab.Dil Ön Değ'!E69) ->  | F69: =IF('Yab.Dil Ön Değ'!F69="","",'Yab.Dil Ön Değ'!F69) ->  | G69: =IF('Yab.Dil Ön Değ'!G69="","",'Yab.Dil Ön Değ'!G69) ->  | H69: =IF('Yab.Dil Ön Değ'!H69="","",'Yab.Dil Ön Değ'!H69) ->  | I69: =IF('Yab.Dil Ön Değ'!I69="","",'Yab.Dil Ön Değ'!I69) ->  | J69: =IF('Yab.Dil Ön Değ'!J69="","",'Yab.Dil Ön Değ'!J69) ->  | K69: =IF('Yab.Dil Ön Değ'!K69="","",'Yab.Dil Ön Değ'!K69) ->  | L69: =IF('Yab.Dil Ön Değ'!L69="","",'Yab.Dil Ön Değ'!L69) -> 
A70: =IF('Yab.Dil Ön Değ'!A70="","",'Yab.Dil Ön Değ'!A70) ->  | B70: =IF('Yab.Dil Ön Değ'!B70="","",LEFT('Yab.Dil Ön Değ'!B70,3)&REPT("*",4)&RIGHT('Yab.Dil Ön Değ'!B70,2)) ->  | C70: =IF('Yab.Dil Ön Değ'!C70="","",IF(ISERR(FIND(" ",'Yab.Dil Ön Değ'!C70))=TRUE,LEFT('Yab.Dil Ön Değ'!C70,2)&REPT("*",3),LEFT('Yab.Dil Ön Değ'!C70,2)&REPT("*",3)&" "&MID('Yab.Dil Ön Değ'!C70,FIND(" ",'Yab.Dil Ön Değ'!C70)+1,2)&REPT("*",3))) ->  | D70: =IF('Yab.Dil Ön Değ'!D70="","",IF(ISERR(FIND(" ",'Yab.Dil Ön Değ'!D70))=TRUE,LEFT('Yab.Dil Ön Değ'!D70,2)&REPT("*",3),LEFT('Yab.Dil Ön Değ'!D70,2)&REPT("*",3)&" "&MID('Yab.Dil Ön Değ'!D70,FIND(" ",'Yab.Dil Ön Değ'!D70)+1,2)&REPT("*",3))) ->  | E70: =IF('Yab.Dil Ön Değ'!E70="","",'Yab.Dil Ön Değ'!E70) ->  | F70: =IF('Yab.Dil Ön Değ'!F70="","",'Yab.Dil Ön Değ'!F70) ->  | G70: =IF('Yab.Dil Ön Değ'!G70="","",'Yab.Dil Ön Değ'!G70) ->  | H70: =IF('Yab.Dil Ön Değ'!H70="","",'Yab.Dil Ön Değ'!H70) ->  | I70: =IF('Yab.Dil Ön Değ'!I70="","",'Yab.Dil Ön Değ'!I70) ->  | J70: =IF('Yab.Dil Ön Değ'!J70="","",'Yab.Dil Ön Değ'!J70) ->  | K70: =IF('Yab.Dil Ön Değ'!K70="","",'Yab.Dil Ön Değ'!K70) ->  | L70: =IF('Yab.Dil Ön Değ'!L70="","",'Yab.Dil Ön Değ'!L70) -> 
A71: =IF('Yab.Dil Ön Değ'!A71="","",'Yab.Dil Ön Değ'!A71) ->  | B71: =IF('Yab.Dil Ön Değ'!B71="","",LEFT('Yab.Dil Ön Değ'!B71,3)&REPT("*",4)&RIGHT('Yab.Dil Ön Değ'!B71,2)) ->  | C71: =IF('Yab.Dil Ön Değ'!C71="","",IF(ISERR(FIND(" ",'Yab.Dil Ön Değ'!C71))=TRUE,LEFT('Yab.Dil Ön Değ'!C71,2)&REPT("*",3),LEFT('Yab.Dil Ön Değ'!C71,2)&REPT("*",3)&" "&MID('Yab.Dil Ön Değ'!C71,FIND(" ",'Yab.Dil Ön Değ'!C71)+1,2)&REPT("*",3))) ->  | D71: =IF('Yab.Dil Ön Değ'!D71="","",IF(ISERR(FIND(" ",'Yab.Dil Ön Değ'!D71))=TRUE,LEFT('Yab.Dil Ön Değ'!D71,2)&REPT("*",3),LEFT('Yab.Dil Ön Değ'!D71,2)&REPT("*",3)&" "&MID('Yab.Dil Ön Değ'!D71,FIND(" ",'Yab.Dil Ön Değ'!D71)+1,2)&REPT("*",3))) ->  | E71: =IF('Yab.Dil Ön Değ'!E71="","",'Yab.Dil Ön Değ'!E71) ->  | F71: =IF('Yab.Dil Ön Değ'!F71="","",'Yab.Dil Ön Değ'!F71) ->  | G71: =IF('Yab.Dil Ön Değ'!G71="","",'Yab.Dil Ön Değ'!G71) ->  | H71: =IF('Yab.Dil Ön Değ'!H71="","",'Yab.Dil Ön Değ'!H71) ->  | I71: =IF('Yab.Dil Ön Değ'!I71="","",'Yab.Dil Ön Değ'!I71) ->  | J71: =IF('Yab.Dil Ön Değ'!J71="","",'Yab.Dil Ön Değ'!J71) ->  | K71: =IF('Yab.Dil Ön Değ'!K71="","",'Yab.Dil Ön Değ'!K71) ->  | L71: =IF('Yab.Dil Ön Değ'!L71="","",'Yab.Dil Ön Değ'!L71) -> 
A72: =IF('Yab.Dil Ön Değ'!A72="","",'Yab.Dil Ön Değ'!A72) ->  | B72: =IF('Yab.Dil Ön Değ'!B72="","",LEFT('Yab.Dil Ön Değ'!B72,3)&REPT("*",4)&RIGHT('Yab.Dil Ön Değ'!B72,2)) ->  | C72: =IF('Yab.Dil Ön Değ'!C72="","",IF(ISERR(FIND(" ",'Yab.Dil Ön Değ'!C72))=TRUE,LEFT('Yab.Dil Ön Değ'!C72,2)&REPT("*",3),LEFT('Yab.Dil Ön Değ'!C72,2)&REPT("*",3)&" "&MID('Yab.Dil Ön Değ'!C72,FIND(" ",'Yab.Dil Ön Değ'!C72)+1,2)&REPT("*",3))) ->  | D72: =IF('Yab.Dil Ön Değ'!D72="","",IF(ISERR(FIND(" ",'Yab.Dil Ön Değ'!D72))=TRUE,LEFT('Yab.Dil Ön Değ'!D72,2)&REPT("*",3),LEFT('Yab.Dil Ön Değ'!D72,2)&REPT("*",3)&" "&MID('Yab.Dil Ön Değ'!D72,FIND(" ",'Yab.Dil Ön Değ'!D72)+1,2)&REPT("*",3))) ->  | E72: =IF('Yab.Dil Ön Değ'!E72="","",'Yab.Dil Ön Değ'!E72) ->  | F72: =IF('Yab.Dil Ön Değ'!F72="","",'Yab.Dil Ön Değ'!F72) ->  | G72: =IF('Yab.Dil Ön Değ'!G72="","",'Yab.Dil Ön Değ'!G72) ->  | H72: =IF('Yab.Dil Ön Değ'!H72="","",'Yab.Dil Ön Değ'!H72) ->  | I72: =IF('Yab.Dil Ön Değ'!I72="","",'Yab.Dil Ön Değ'!I72) ->  | J72: =IF('Yab.Dil Ön Değ'!J72="","",'Yab.Dil Ön Değ'!J72) ->  | K72: =IF('Yab.Dil Ön Değ'!K72="","",'Yab.Dil Ön Değ'!K72) ->  | L72: =IF('Yab.Dil Ön Değ'!L72="","",'Yab.Dil Ön Değ'!L72) -> 
A73: =IF('Yab.Dil Ön Değ'!A73="","",'Yab.Dil Ön Değ'!A73) ->  | B73: =IF('Yab.Dil Ön Değ'!B73="","",LEFT('Yab.Dil Ön Değ'!B73,3)&REPT("*",4)&RIGHT('Yab.Dil Ön Değ'!B73,2)) ->  | C73: =IF('Yab.Dil Ön Değ'!C73="","",IF(ISERR(FIND(" ",'Yab.Dil Ön Değ'!C73))=TRUE,LEFT('Yab.Dil Ön Değ'!C73,2)&REPT("*",3),LEFT('Yab.Dil Ön Değ'!C73,2)&REPT("*",3)&" "&MID('Yab.Dil Ön Değ'!C73,FIND(" ",'Yab.Dil Ön Değ'!C73)+1,2)&REPT("*",3))) ->  | D73: =IF('Yab.Dil Ön Değ'!D73="","",IF(ISERR(FIND(" ",'Yab.Dil Ön Değ'!D73))=TRUE,LEFT('Yab.Dil Ön Değ'!D73,2)&REPT("*",3),LEFT('Yab.Dil Ön Değ'!D73,2)&REPT("*",3)&" "&MID('Yab.Dil Ön Değ'!D73,FIND(" ",'Yab.Dil Ön Değ'!D73)+1,2)&REPT("*",3))) ->  | E73: =IF('Yab.Dil Ön Değ'!E73="","",'Yab.Dil Ön Değ'!E73) ->  | F73: =IF('Yab.Dil Ön Değ'!F73="","",'Yab.Dil Ön Değ'!F73) ->  | G73: =IF('Yab.Dil Ön Değ'!G73="","",'Yab.Dil Ön Değ'!G73) ->  | H73: =IF('Yab.Dil Ön Değ'!H73="","",'Yab.Dil Ön Değ'!H73) ->  | I73: =IF('Yab.Dil Ön Değ'!I73="","",'Yab.Dil Ön Değ'!I73) ->  | J73: =IF('Yab.Dil Ön Değ'!J73="","",'Yab.Dil Ön Değ'!J73) ->  | K73: =IF('Yab.Dil Ön Değ'!K73="","",'Yab.Dil Ön Değ'!K73) ->  | L73: =IF('Yab.Dil Ön Değ'!L73="","",'Yab.Dil Ön Değ'!L73) -> 
A74: =IF('Yab.Dil Ön Değ'!A74="","",'Yab.Dil Ön Değ'!A74) ->  | B74: =IF('Yab.Dil Ön Değ'!B74="","",LEFT('Yab.Dil Ön Değ'!B74,3)&REPT("*",4)&RIGHT('Yab.Dil Ön Değ'!B74,2)) ->  | C74: =IF('Yab.Dil Ön Değ'!C74="","",IF(ISERR(FIND(" ",'Yab.Dil Ön Değ'!C74))=TRUE,LEFT('Yab.Dil Ön Değ'!C74,2)&REPT("*",3),LEFT('Yab.Dil Ön Değ'!C74,2)&REPT("*",3)&" "&MID('Yab.Dil Ön Değ'!C74,FIND(" ",'Yab.Dil Ön Değ'!C74)+1,2)&REPT("*",3))) ->  | D74: =IF('Yab.Dil Ön Değ'!D74="","",IF(ISERR(FIND(" ",'Yab.Dil Ön Değ'!D74))=TRUE,LEFT('Yab.Dil Ön Değ'!D74,2)&REPT("*",3),LEFT('Yab.Dil Ön Değ'!D74,2)&REPT("*",3)&" "&MID('Yab.Dil Ön Değ'!D74,FIND(" ",'Yab.Dil Ön Değ'!D74)+1,2)&REPT("*",3))) ->  | E74: =IF('Yab.Dil Ön Değ'!E74="","",'Yab.Dil Ön Değ'!E74) ->  | F74: =IF('Yab.Dil Ön Değ'!F74="","",'Yab.Dil Ön Değ'!F74) ->  | G74: =IF('Yab.Dil Ön Değ'!G74="","",'Yab.Dil Ön Değ'!G74) ->  | H74: =IF('Yab.Dil Ön Değ'!H74="","",'Yab.Dil Ön Değ'!H74) ->  | I74: =IF('Yab.Dil Ön Değ'!I74="","",'Yab.Dil Ön Değ'!I74) ->  | J74: =IF('Yab.Dil Ön Değ'!J74="","",'Yab.Dil Ön Değ'!J74) ->  | K74: =IF('Yab.Dil Ön Değ'!K74="","",'Yab.Dil Ön Değ'!K74) ->  | L74: =IF('Yab.Dil Ön Değ'!L74="","",'Yab.Dil Ön Değ'!L74) -> 
A75: =IF('Yab.Dil Ön Değ'!A75="","",'Yab.Dil Ön Değ'!A75) ->  | B75: =IF('Yab.Dil Ön Değ'!B75="","",LEFT('Yab.Dil Ön Değ'!B75,3)&REPT("*",4)&RIGHT('Yab.Dil Ön Değ'!B75,2)) ->  | C75: =IF('Yab.Dil Ön Değ'!C75="","",IF(ISERR(FIND(" ",'Yab.Dil Ön Değ'!C75))=TRUE,LEFT('Yab.Dil Ön Değ'!C75,2)&REPT("*",3),LEFT('Yab.Dil Ön Değ'!C75,2)&REPT("*",3)&" "&MID('Yab.Dil Ön Değ'!C75,FIND(" ",'Yab.Dil Ön Değ'!C75)+1,2)&REPT("*",3))) ->  | D75: =IF('Yab.Dil Ön Değ'!D75="","",IF(ISERR(FIND(" ",'Yab.Dil Ön Değ'!D75))=TRUE,LEFT('Yab.Dil Ön Değ'!D75,2)&REPT("*",3),LEFT('Yab.Dil Ön Değ'!D75,2)&REPT("*",3)&" "&MID('Yab.Dil Ön Değ'!D75,FIND(" ",'Yab.Dil Ön Değ'!D75)+1,2)&REPT("*",3))) ->  | E75: =IF('Yab.Dil Ön Değ'!E75="","",'Yab.Dil Ön Değ'!E75) ->  | F75: =IF('Yab.Dil Ön Değ'!F75="","",'Yab.Dil Ön Değ'!F75) ->  | G75: =IF('Yab.Dil Ön Değ'!G75="","",'Yab.Dil Ön Değ'!G75) ->  | H75: =IF('Yab.Dil Ön Değ'!H75="","",'Yab.Dil Ön Değ'!H75) ->  | I75: =IF('Yab.Dil Ön Değ'!I75="","",'Yab.Dil Ön Değ'!I75) ->  | J75: =IF('Yab.Dil Ön Değ'!J75="","",'Yab.Dil Ön Değ'!J75) ->  | K75: =IF('Yab.Dil Ön Değ'!K75="","",'Yab.Dil Ön Değ'!K75) ->  | L75: =IF('Yab.Dil Ön Değ'!L75="","",'Yab.Dil Ön Değ'!L75) -> 

Sheet Yab. Dil. Öğr. Gör. Sonuç
A1: T.C.
A2: BAYBURT ÜNİVERSİTESİ
A3: GİRİŞ SINAVI SONUÇ TUTANAĞI
A4: Üniversitemize bağlı birimlere, 2547 sayılı Kanunun ilgili maddeleri ve 09.11.2018 tarih ve 30590 sayılı Resmi Gazetede yayımlanan "Öğretim Üyesi Dışındaki Öğretim Elemanı Kadrolarına Naklen veya Açıktan Yapılacak Atamalarda Uygulanacak Merkezi Sınav ile Giriş Sınavlarına İlişkin Usul ve Esaslar Hakkında Yönetmelik” 11. ve 12. maddeleri hükümleri uyarınca yapılan Giriş Sınavında başarılı olan adayların isimleri aşağıda belirtilmiştir.
A5: İlan No: | G5: Birimi: | J5: Rektörlük
A6: İlan Tarihi: | C6: …/.../.... | G6: Bölümü: | J6: Yabancı Diller
A7: Kadro Unvanı: | C7: Öğretim Görevlisi (Yabancı Dil Zorunlu Ortak Ders) / (Eğitim-Öğretimi Yabancı Dil Olan Birim) | G7: Alanı: | J7: İngilizce / Almanca / Arapça vb.
A8: Kadro Adedi: | C8: 1 | G8: Sınav Tarihi: | J8: …/.../.... | L8: Sonuç Tarihi: | N8: …/.../....
A9: İlan Özel Şartı:
A10: Sıra No | B10: Başvuranın | E10: ALES Puanı | G10: Yabancı Dil Puanı | K10: Giriş (Sözlü) Sınavı | M10: (A+B+C+D) Değerlendirme Notu | N10: Sonuç
B11: T.C. Kimlik No | C11: Adı | D11: Soyadı | E11: Puanı | F11: (A) Puanın %30' u | G11: Puanı | H11: (B) Puanın %30' u | I11: 100' lük Sistem | J11: (C) Notun %10' u | K11: Sözlü Sınav Notu | L11: (D) Notunun %30' u
A12: 1 | B12: 11111111111 | C12: Örnek | D12: Örnek | E12: 82.51392 | F12: =E12*0.3 -> 24.754176 | G12: 90 | H12: =G12*0.3 -> 27 | I12: 76.66 | J12: =I12*0.1 -> 7.666 | K12: 95 | L12: =K12*0.3 -> 28.5 | M12: =F12+H12+J12+L12 -> 87.920176 | N12: BAŞARILI (ASIL)
A13: 2 | B13: 11111111111 | C13: Örnek Örnek | D13: Örnek | E13: 85.03048 | F13: =E13*0.3 -> 25.509144 | G13: 88 | H13: =G13*0.3 -> 26.4 | I13: 76.66 | J13: =I13*0.1 -> 7.666 | K13: 63 | L13: =K13*0.3 -> 18.9 | M13: =F13+H13+J13+L13 -> 78.475144 | N13: BAŞARILI (YEDEK)
A14: 3 | B14: 11111111111 | C14: Örnek | D14: Örnek Örnek | E14: 84.43135 | F14: =E14*0.3 -> 25.329405 | G14: 85 | H14: =G14*0.3 -> 25.5 | I14: 83.66 | J14: =I14*0.1 -> 8.366 | K14: 45 | L14: =K14*0.3 -> 13.5 | M14: =F14+H14+J14+L14 -> 72.695405 | N14: YÖNETMELİK GEREĞİ ELENDİ*
A15: 4 | B15: 11111111111 | C15: Örnek Örnek | D15: Örnek Örnek | E15: 72 | F15: =E15*0.3 -> 21.6 | G15: 85 | H15: =G15*0.3 -> 25.5 | I15: 76.66 | J15: =I15*0.1 -> 7.666 | K15: 30 | L15: =K15*0.3 -> 9 | M15: =F15+H15+J15+L15 -> 63.766 | N15: BAŞARISIZ**
A16: 5 | B16: 11111111111 | C16: Örnek | D16: Örnek | E16: 84.43135 | F16: =E16*0.3 -> 25.329405 | G16: 88 | H16: =G16*0.3 -> 26.4 | I16: 83.66 | J16: =I16*0.1 -> 8.366 | K16: Sınava Girmedi | L16: - | M16: - | N16: SINAVA GİRMEDİ

Sheet Sonuç Rapor
A1: T.C.
A2: BAYBURT ÜNİVERSİTESİ
A3: GİRİŞ SINAVI SONUÇ TUTANAĞI
A4: Üniversitemize bağlı birimlere, 2547 sayılı Kanunun ilgili maddeleri ve 09.11.2018 tarih ve 30590 sayılı Resmi Gazetede yayımlanan "Öğretim Üyesi Dışındaki Öğretim Elemanı Kadrolarına Naklen veya Açıktan Yapılacak Atamalarda Uygulanacak Merkezi Sınav ile Giriş Sınavlarına İlişkin Usul ve Esaslar Hakkında Yönetmelik” 11. ve 12. maddeleri hükümleri uyarınca yapılan Giriş Sınavında başarılı olan adayların isimleri aşağıda belirtilmiştir.
A5: İlan No: | C5: =IF('Yab. Dil. Öğr. Gör. Sonuç'!C5="","",'Yab. Dil. Öğr. Gör. Sonuç'!C5) ->  | G5: Birimi: | J5: =IF('Yab. Dil. Öğr. Gör. Sonuç'!J5="","",'Yab. Dil. Öğr. Gör. Sonuç'!J5) -> Rektörlük
A6: İlan Tarihi: | C6: =IF('Yab. Dil. Öğr. Gör. Sonuç'!C6="","",'Yab. Dil. Öğr. Gör. Sonuç'!C6) -> …/.../.... | G6: Bölümü: | J6: =IF('Yab. Dil. Öğr. Gör. Sonuç'!J6="","",'Yab. Dil. Öğr. Gör. Sonuç'!J6) -> Yabancı Diller
A7: Kadro Unvanı: | C7: =IF('Yab. Dil. Öğr. Gör. Sonuç'!C7="","",'Yab. Dil. Öğr. Gör. Sonuç'!C7) -> Öğretim Görevlisi (Yabancı Dil Zorunlu Ortak Ders) / (Eğitim-Öğretimi Yabancı Dil Olan Birim) | G7: Alanı: | J7: =IF('Yab. Dil. Öğr. Gör. Sonuç'!J7="","",'Yab. Dil. Öğr. Gör. Sonuç'!J7) -> İngilizce / Almanca / Arapça vb.
A8: Kadro Adedi: | C8: =IF('Yab. Dil. Öğr. Gör. Sonuç'!C8="","",'Yab. Dil. Öğr. Gör. Sonuç'!C8) -> 1 | G8: Sınav Tarihi: | J8: =IF('Yab. Dil. Öğr. Gör. Sonuç'!J8="","",'Yab. Dil. Öğr. Gör. Sonuç'!J8) -> …/.../.... | L8: Sonuç Tarihi: | N8: =IF('Yab. Dil. Öğr. Gör. Sonuç'!N8="","",'Yab. Dil. Öğr. Gör. Sonuç'!N8) -> …/.../....
A9: İlan Özel Şartı: | C9: =IF('Yab. Dil. Öğr. Gör. Sonuç'!C9="","",'Yab. Dil. Öğr. Gör. Sonuç'!C9) -> 
A10: Sıra No | B10: Başvuranın | E10: ALES Puanı | G10: Yabancı Dil Puanı | K10: Giriş (Sözlü) Sınavı | M10: (A+B+C+D) Değerlendirme Notu | N10: Sonuç
B11: T.C. Kimlik No | C11: Adı | D11: Soyadı | E11: Puanı | F11: (A) Puanın %30' u | G11: Puanı | H11: (B) Puanın %30' u | I11: 100' lük Sistem | J11: (C) Notun %10' u | K11: Sözlü Sınav Notu | L11: (D) Notunun %30' u
A12: =IF('Yab. Dil. Öğr. Gör. Sonuç'!A12="","",'Yab. Dil. Öğr. Gör. Sonuç'!A12) -> 1 | B12: =IF('Yab. Dil. Öğr. Gör. Sonuç'!B12="","",LEFT('Yab. Dil. Öğr. Gör. Sonuç'!B12,3)&REPT("*",4)&RIGHT('Yab. Dil. Öğr. Gör. Sonuç'!B12,2)) -> 111****11 | C12: =IF('Yab. Dil. Öğr. Gör. Sonuç'!C12="","",IF(ISERR(FIND(" ",'Yab. Dil. Öğr. Gör. Sonuç'!C12))=TRUE,LEFT('Yab. Dil. Öğr. Gör. Sonuç'!C12,2)&REPT("*",3),LEFT('Yab. Dil. Öğr. Gör. Sonuç'!C12,2)&REPT("*",3)&" "&MID('Yab. Dil. Öğr. Gör. Sonuç'!C12,FIND(" ",'Yab. Dil. Öğr. Gör. Sonuç'!C12)+1,2)&REPT("*",3))) -> Ör*** | D12: =IF('Yab. Dil. Öğr. Gör. Sonuç'!D12="","",IF(ISERR(FIND(" ",'Yab. Dil. Öğr. Gör. Sonuç'!D12))=TRUE,LEFT('Yab. Dil. Öğr. Gör. Sonuç'!D12,2)&REPT("*",3),LEFT('Yab. Dil. Öğr. Gör. Sonuç'!D12,2)&REPT("*",3)&" "&MID('Yab. Dil. Öğr. Gör. Sonuç'!D12,FIND(" ",'Yab. Dil. Öğr. Gör. Sonuç'!D12)+1,2)&REPT("*",3))) -> Ör*** | E12: =IF('Yab. Dil. Öğr. Gör. Sonuç'!E12="","",'Yab. Dil. Öğr. Gör. Sonuç'!E12) -> 82.51392 | F12: =IF('Yab. Dil. Öğr. Gör. Sonuç'!F12="","",'Yab. Dil. Öğr. Gör. Sonuç'!F12) -> 24.754176 | G12: =IF('Yab. Dil. Öğr. Gör. Sonuç'!G12="","",'Yab. Dil. Öğr. Gör. Sonuç'!G12) -> 90 | H12: =IF('Yab. Dil. Öğr. Gör. Sonuç'!H12="","",'Yab. Dil. Öğr. Gör. Sonuç'!H12) -> 27 | I12: =IF('Yab. Dil. Öğr. Gör. Sonuç'!I12="","",'Yab. Dil. Öğr. Gör. Sonuç'!I12) -> 76.66 | J12: =IF('Yab. Dil. Öğr. Gör. Sonuç'!J12="","",'Yab. Dil. Öğr. Gör. Sonuç'!J12) -> 7.666 | K12: =IF('Yab. Dil. Öğr. Gör. Sonuç'!K12="","",'Yab. Dil. Öğr. Gör. Sonuç'!K12) -> 95 | L12: =IF('Yab. Dil. Öğr. Gör. Sonuç'!L12="","",'Yab. Dil. Öğr. Gör. Sonuç'!L12) -> 28.5 | M12: =IF('Yab. Dil. Öğr. Gör. Sonuç'!M12="","",'Yab. Dil. Öğr. Gör. Sonuç'!M12) -> 87.920176 | N12: =IF('Yab. Dil. Öğr. Gör. Sonuç'!N12="","",'Yab. Dil. Öğr. Gör. Sonuç'!N12) -> BAŞARILI (ASIL)
A13: =IF('Yab. Dil. Öğr. Gör. Sonuç'!A13="","",'Yab. Dil. Öğr. Gör. Sonuç'!A13) -> 2 | B13: =IF('Yab. Dil. Öğr. Gör. Sonuç'!B13="","",LEFT('Yab. Dil. Öğr. Gör. Sonuç'!B13,3)&REPT("*",4)&RIGHT('Yab. Dil. Öğr. Gör. Sonuç'!B13,2)) -> 111****11 | C13: =IF('Yab. Dil. Öğr. Gör. Sonuç'!C13="","",IF(ISERR(FIND(" ",'Yab. Dil. Öğr. Gör. Sonuç'!C13))=TRUE,LEFT('Yab. Dil. Öğr. Gör. Sonuç'!C13,2)&REPT("*",3),LEFT('Yab. Dil. Öğr. Gör. Sonuç'!C13,2)&REPT("*",3)&" "&MID('Yab. Dil. Öğr. Gör. Sonuç'!C13,FIND(" ",'Yab. Dil. Öğr. Gör. Sonuç'!C13)+1,2)&REPT("*",3))) -> Ör*** Ör*** | D13: =IF('Yab. Dil. Öğr. Gör. Sonuç'!D13="","",IF(ISERR(FIND(" ",'Yab. Dil. Öğr. Gör. Sonuç'!D13))=TRUE,LEFT('Yab. Dil. Öğr. Gör. Sonuç'!D13,2)&REPT("*",3),LEFT('Yab. Dil. Öğr. Gör. Sonuç'!D13,2)&REPT("*",3)&" "&MID('Yab. Dil. Öğr. Gör. Sonuç'!D13,FIND(" ",'Yab. Dil. Öğr. Gör. Sonuç'!D13)+1,2)&REPT("*",3))) -> Ör*** | E13: =IF('Yab. Dil. Öğr. Gör. Sonuç'!E13="","",'Yab. Dil. Öğr. Gör. Sonuç'!E13) -> 85.03048 | F13: =IF('Yab. Dil. Öğr. Gör. Sonuç'!F13="","",'Yab. Dil. Öğr. Gör. Sonuç'!F13) -> 25.509144 | G13: =IF('Yab. Dil. Öğr. Gör. Sonuç'!G13="","",'Yab. Dil. Öğr. Gör. Sonuç'!G13) -> 88 | H13: =IF('Yab. Dil. Öğr. Gör. Sonuç'!H13="","",'Yab. Dil. Öğr. Gör. Sonuç'!H13) -> 26.4 | I13: =IF('Yab. Dil. Öğr. Gör. Sonuç'!I13="","",'Yab. Dil. Öğr. Gör. Sonuç'!I13) -> 76.66 | J13: =IF('Yab. Dil. Öğr. Gör. Sonuç'!J13="","",'Yab. Dil. Öğr. Gör. Sonuç'!J13) -> 7.666 | K13: =IF('Yab. Dil. Öğr. Gör. Sonuç'!K13="","",'Yab. Dil. Öğr. Gör. Sonuç'!K13) -> 63 | L13: =IF('Yab. Dil. Öğr. Gör. Sonuç'!L13="","",'Yab. Dil. Öğr. Gör. Sonuç'!L13) -> 18.9 | M13: =IF('Yab. Dil. Öğr. Gör. Sonuç'!M13="","",'Yab. Dil. Öğr. Gör. Sonuç'!M13) -> 78.475144 | N13: =IF('Yab. Dil. Öğr. Gör. Sonuç'!N13="","",'Yab. Dil. Öğr. Gör. Sonuç'!N13) -> BAŞARILI (YEDEK)
A14: =IF('Yab. Dil. Öğr. Gör. Sonuç'!A14="","",'Yab. Dil. Öğr. Gör. Sonuç'!A14) -> 3 | B14: =IF('Yab. Dil. Öğr. Gör. Sonuç'!B14="","",LEFT('Yab. Dil. Öğr. Gör. Sonuç'!B14,3)&REPT("*",4)&RIGHT('Yab. Dil. Öğr. Gör. Sonuç'!B14,2)) -> 111****11 | C14: =IF('Yab. Dil. Öğr. Gör. Sonuç'!C14="","",IF(ISERR(FIND(" ",'Yab. Dil. Öğr. Gör. Sonuç'!C14))=TRUE,LEFT('Yab. Dil. Öğr. Gör. Sonuç'!C14,2)&REPT("*",3),LEFT('Yab. Dil. Öğr. Gör. Sonuç'!C14,2)&REPT("*",3)&" "&MID('Yab. Dil. Öğr. Gör. Sonuç'!C14,FIND(" ",'Yab. Dil. Öğr. Gör. Sonuç'!C14)+1,2)&REPT("*",3))) -> Ör*** | D14: =IF('Yab. Dil. Öğr. Gör. Sonuç'!D14="","",IF(ISERR(FIND(" ",'Yab. Dil. Öğr. Gör. Sonuç'!D14))=TRUE,LEFT('Yab. Dil. Öğr. Gör. Sonuç'!D14,2)&REPT("*",3),LEFT('Yab. Dil. Öğr. Gör. Sonuç'!D14,2)&REPT("*",3)&" "&MID('Yab. Dil. Öğr. Gör. Sonuç'!D14,FIND(" ",'Yab. Dil. Öğr. Gör. Sonuç'!D14)+1,2)&REPT("*",3))) -> Ör*** Ör*** | E14: =IF('Yab. Dil. Öğr. Gör. Sonuç'!E14="","",'Yab. Dil. Öğr. Gör. Sonuç'!E14) -> 84.43135 | F14: =IF('Yab. Dil. Öğr. Gör. Sonuç'!F14="","",'Yab. Dil. Öğr. Gör. Sonuç'!F14) -> 25.329405 | G14: =IF('Yab. Dil. Öğr. Gör. Sonuç'!G14="","",'Yab. Dil. Öğr. Gör. Sonuç'!G14) -> 85 | H14: =IF('Yab. Dil. Öğr. Gör. Sonuç'!H14="","",'Yab. Dil. Öğr. Gör. Sonuç'!H14) -> 25.5 | I14: =IF('Yab. Dil. Öğr. Gör. Sonuç'!I14="","",'Yab. Dil. Öğr. Gör. Sonuç'!I14) -> 83.66 | J14: =IF('Yab. Dil. Öğr. Gör. Sonuç'!J14="","",'Yab. Dil. Öğr. Gör. Sonuç'!J14) -> 8.366 | K14: =IF('Yab. Dil. Öğr. Gör. Sonuç'!K14="","",'Yab. Dil. Öğr. Gör. Sonuç'!K14) -> 45 | L14: =IF('Yab. Dil. Öğr. Gör. Sonuç'!L14="","",'Yab. Dil. Öğr. Gör. Sonuç'!L14) -> 13.5 | M14: =IF('Yab. Dil. Öğr. Gör. Sonuç'!M14="","",'Yab. Dil. Öğr. Gör. Sonuç'!M14) -> 72.695405 | N14: =IF('Yab. Dil. Öğr. Gör. Sonuç'!N14="","",'Yab. Dil. Öğr. Gör. Sonuç'!N14) -> YÖNETMELİK GEREĞİ ELENDİ*
A15: =IF('Yab. Dil. Öğr. Gör. Sonuç'!A15="","",'Yab. Dil. Öğr. Gör. Sonuç'!A15) -> 4 | B15: =IF('Yab. Dil. Öğr. Gör. Sonuç'!B15="","",LEFT('Yab. Dil. Öğr. Gör. Sonuç'!B15,3)&REPT("*",4)&RIGHT('Yab. Dil. Öğr. Gör. Sonuç'!B15,2)) -> 111****11 | C15: =IF('Yab. Dil. Öğr. Gör. Sonuç'!C15="","",IF(ISERR(FIND(" ",'Yab. Dil. Öğr. Gör. Sonuç'!C15))=TRUE,LEFT('Yab. Dil. Öğr. Gör. Sonuç'!C15,2)&REPT("*",3),LEFT('Yab. Dil. Öğr. Gör. Sonuç'!C15,2)&REPT("*",3)&" "&MID('Yab. Dil. Öğr. Gör. Sonuç'!C15,FIND(" ",'Yab. Dil. Öğr. Gör. Sonuç'!C15)+1,2)&REPT("*",3))) -> Ör*** Ör*** | D15: =IF('Yab. Dil. Öğr. Gör. Sonuç'!D15="","",IF(ISERR(FIND(" ",'Yab. Dil. Öğr. Gör. Sonuç'!D15))=TRUE,LEFT('Yab. Dil. Öğr. Gör. Sonuç'!D15,2)&REPT("*",3),LEFT('Yab. Dil. Öğr. Gör. Sonuç'!D15,2)&REPT("*",3)&" "&MID('Yab. Dil. Öğr. Gör. Sonuç'!D15,FIND(" ",'Yab. Dil. Öğr. Gör. Sonuç'!D15)+1,2)&REPT("*",3))) -> Ör*** Ör*** | E15: =IF('Yab. Dil. Öğr. Gör. Sonuç'!E15="","",'Yab. Dil. Öğr. Gör. Sonuç'!E15) -> 72 | F15: =IF('Yab. Dil. Öğr. Gör. Sonuç'!F15="","",'Yab. Dil. Öğr. Gör. Sonuç'!F15) -> 21.6 | G15: =IF('Yab. Dil. Öğr. Gör. Sonuç'!G15="","",'Yab. Dil. Öğr. Gör. Sonuç'!G15) -> 85 | H15: =IF('Yab. Dil. Öğr. Gör. Sonuç'!H15="","",'Yab. Dil. Öğr. Gör. Sonuç'!H15) -> 25.5 | I15: =IF('Yab. Dil. Öğr. Gör. Sonuç'!I15="","",'Yab. Dil. Öğr. Gör. Sonuç'!I15) -> 76.66 | J15: =IF('Yab. Dil. Öğr. Gör. Sonuç'!J15="","",'Yab. Dil. Öğr. Gör. Sonuç'!J15) -> 7.666 | K15: =IF('Yab. Dil. Öğr. Gör. Sonuç'!K15="","",'Yab. Dil. Öğr. Gör. Sonuç'!K15) -> 30 | L15: =IF('Yab. Dil. Öğr. Gör. Sonuç'!L15="","",'Yab. Dil. Öğr. Gör. Sonuç'!L15) -> 9 | M15: =IF('Yab. Dil. Öğr. Gör. Sonuç'!M15="","",'Yab. Dil. Öğr. Gör. Sonuç'!M15) -> 63.766 | N15: =IF('Yab. Dil. Öğr. Gör. Sonuç'!N15="","",'Yab. Dil. Öğr. Gör. Sonuç'!N15) -> BAŞARISIZ**
A16: =IF('Yab. Dil. Öğr. Gör. Sonuç'!A16="","",'Yab. Dil. Öğr. Gör. Sonuç'!A16) -> 5 | B16: =IF('Yab. Dil. Öğr. Gör. Sonuç'!B16="","",LEFT('Yab. Dil. Öğr. Gör. Sonuç'!B16,3)&REPT("*",4)&RIGHT('Yab. Dil. Öğr. Gör. Sonuç'!B16,2)) -> 111****11 | C16: =IF('Yab. Dil. Öğr. Gör. Sonuç'!C16="","",IF(ISERR(FIND(" ",'Yab. Dil. Öğr. Gör. Sonuç'!C16))=TRUE,LEFT('Yab. Dil. Öğr. Gör. Sonuç'!C16,2)&REPT("*",3),LEFT('Yab. Dil. Öğr. Gör. Sonuç'!C16,2)&REPT("*",3)&" "&MID('Yab. Dil. Öğr. Gör. Sonuç'!C16,FIND(" ",'Yab. Dil. Öğr. Gör. Sonuç'!C16)+1,2)&REPT("*",3))) -> Ör*** | D16: =IF('Yab. Dil. Öğr. Gör. Sonuç'!D16="","",IF(ISERR(FIND(" ",'Yab. Dil. Öğr. Gör. Sonuç'!D16))=TRUE,LEFT('Yab. Dil. Öğr. Gör. Sonuç'!D16,2)&REPT("*",3),LEFT('Yab. Dil. Öğr. Gör. Sonuç'!D16,2)&REPT("*",3)&" "&MID('Yab. Dil. Öğr. Gör. Sonuç'!D16,FIND(" ",'Yab. Dil. Öğr. Gör. Sonuç'!D16)+1,2)&REPT("*",3))) -> Ör*** | E16: =IF('Yab. Dil. Öğr. Gör. Sonuç'!E16="","",'Yab. Dil. Öğr. Gör. Sonuç'!E16) -> 84.43135 | F16: =IF('Yab. Dil. Öğr. Gör. Sonuç'!F16="","",'Yab. Dil. Öğr. Gör. Sonuç'!F16) -> 25.329405 | G16: =IF('Yab. Dil. Öğr. Gör. Sonuç'!G16="","",'Yab. Dil. Öğr. Gör. Sonuç'!G16) -> 88 | H16: =IF('Yab. Dil. Öğr. Gör. Sonuç'!H16="","",'Yab. Dil. Öğr. Gör. Sonuç'!H16) -> 26.4 | I16: =IF('Yab. Dil. Öğr. Gör. Sonuç'!I16="","",'Yab. Dil. Öğr. Gör. Sonuç'!I16) -> 83.66 | J16: =IF('Yab. Dil. Öğr. Gör. Sonuç'!J16="","",'Yab. Dil. Öğr. Gör. Sonuç'!J16) -> 8.366 | K16: =IF('Yab. Dil. Öğr. Gör. Sonuç'!K16="","",'Yab. Dil. Öğr. Gör. Sonuç'!K16) -> Sınava Girmedi | L16: =IF('Yab. Dil. Öğr. Gör. Sonuç'!L16="","",'Yab. Dil. Öğr. Gör. Sonuç'!L16) -> - | M16: =IF('Yab. Dil. Öğr. Gör. Sonuç'!M16="","",'Yab. Dil. Öğr. Gör. Sonuç'!M16) -> - | N16: =IF('Yab. Dil. Öğr. Gör. Sonuç'!N16="","",'Yab. Dil. Öğr. Gör. Sonuç'!N16) -> SINAVA GİRMEDİ
A17: =IF('Yab. Dil. Öğr. Gör. Sonuç'!A17="","",'Yab. Dil. Öğr. Gör. Sonuç'!A17) ->  | B17: =IF('Yab. Dil. Öğr. Gör. Sonuç'!B17="","",LEFT('Yab. Dil. Öğr. Gör. Sonuç'!B17,3)&REPT("*",4)&RIGHT('Yab. Dil. Öğr. Gör. Sonuç'!B17,2)) ->  | C17: =IF('Yab. Dil. Öğr. Gör. Sonuç'!C17="","",IF(ISERR(FIND(" ",'Yab. Dil. Öğr. Gör. Sonuç'!C17))=TRUE,LEFT('Yab. Dil. Öğr. Gör. Sonuç'!C17,2)&REPT("*",3),LEFT('Yab. Dil. Öğr. Gör. Sonuç'!C17,2)&REPT("*",3)&" "&MID('Yab. Dil. Öğr. Gör. Sonuç'!C17,FIND(" ",'Yab. Dil. Öğr. Gör. Sonuç'!C17)+1,2)&REPT("*",3))) ->  | D17: =IF('Yab. Dil. Öğr. Gör. Sonuç'!D17="","",IF(ISERR(FIND(" ",'Yab. Dil. Öğr. Gör. Sonuç'!D17))=TRUE,LEFT('Yab. Dil. Öğr. Gör. Sonuç'!D17,2)&REPT("*",3),LEFT('Yab. Dil. Öğr. Gör. Sonuç'!D17,2)&REPT("*",3)&" "&MID('Yab. Dil. Öğr. Gör. Sonuç'!D17,FIND(" ",'Yab. Dil. Öğr. Gör. Sonuç'!D17)+1,2)&REPT("*",3))) ->  | E17: =IF('Yab. Dil. Öğr. Gör. Sonuç'!E17="","",'Yab. Dil. Öğr. Gör. Sonuç'!E17) ->  | F17: =IF('Yab. Dil. Öğr. Gör. Sonuç'!F17="","",'Yab. Dil. Öğr. Gör. Sonuç'!F17) ->  | G17: =IF('Yab. Dil. Öğr. Gör. Sonuç'!G17="","",'Yab. Dil. Öğr. Gör. Sonuç'!G17) ->  | H17: =IF('Yab. Dil. Öğr. Gör. Sonuç'!H17="","",'Yab. Dil. Öğr. Gör. Sonuç'!H17) ->  | I17: =IF('Yab. Dil. Öğr. Gör. Sonuç'!I17="","",'Yab. Dil. Öğr. Gör. Sonuç'!I17) ->  | J17: =IF('Yab. Dil. Öğr. Gör. Sonuç'!J17="","",'Yab. Dil. Öğr. Gör. Sonuç'!J17) ->  | K17: =IF('Yab. Dil. Öğr. Gör. Sonuç'!K17="","",'Yab. Dil. Öğr. Gör. Sonuç'!K17) ->  | L17: =IF('Yab. Dil. Öğr. Gör. Sonuç'!L17="","",'Yab. Dil. Öğr. Gör. Sonuç'!L17) ->  | M17: =IF('Yab. Dil. Öğr. Gör. Sonuç'!M17="","",'Yab. Dil. Öğr. Gör. Sonuç'!M17) ->  | N17: =IF('Yab. Dil. Öğr. Gör. Sonuç'!N17="","",'Yab. Dil. Öğr. Gör. Sonuç'!N17) -> 
A18: =IF('Yab. Dil. Öğr. Gör. Sonuç'!A18="","",'Yab. Dil. Öğr. Gör. Sonuç'!A18) ->  | B18: =IF('Yab. Dil. Öğr. Gör. Sonuç'!B18="","",LEFT('Yab. Dil. Öğr. Gör. Sonuç'!B18,3)&REPT("*",4)&RIGHT('Yab. Dil. Öğr. Gör. Sonuç'!B18,2)) ->  | C18: =IF('Yab. Dil. Öğr. Gör. Sonuç'!C18="","",IF(ISERR(FIND(" ",'Yab. Dil. Öğr. Gör. Sonuç'!C18))=TRUE,LEFT('Yab. Dil. Öğr. Gör. Sonuç'!C18,2)&REPT("*",3),LEFT('Yab. Dil. Öğr. Gör. Sonuç'!C18,2)&REPT("*",3)&" "&MID('Yab. Dil. Öğr. Gör. Sonuç'!C18,FIND(" ",'Yab. Dil. Öğr. Gör. Sonuç'!C18)+1,2)&REPT("*",3))) ->  | D18: =IF('Yab. Dil. Öğr. Gör. Sonuç'!D18="","",IF(ISERR(FIND(" ",'Yab. Dil. Öğr. Gör. Sonuç'!D18))=TRUE,LEFT('Yab. Dil. Öğr. Gör. Sonuç'!D18,2)&REPT("*",3),LEFT('Yab. Dil. Öğr. Gör. Sonuç'!D18,2)&REPT("*",3)&" "&MID('Yab. Dil. Öğr. Gör. Sonuç'!D18,FIND(" ",'Yab. Dil. Öğr. Gör. Sonuç'!D18)+1,2)&REPT("*",3))) ->  | E18: =IF('Yab. Dil. Öğr. Gör. Sonuç'!E18="","",'Yab. Dil. Öğr. Gör. Sonuç'!E18) ->  | F18: =IF('Yab. Dil. Öğr. Gör. Sonuç'!F18="","",'Yab. Dil. Öğr. Gör. Sonuç'!F18) ->  | G18: =IF('Yab. Dil. Öğr. Gör. Sonuç'!G18="","",'Yab. Dil. Öğr. Gör. Sonuç'!G18) ->  | H18: =IF('Yab. Dil. Öğr. Gör. Sonuç'!H18="","",'Yab. Dil. Öğr. Gör. Sonuç'!H18) ->  | I18: =IF('Yab. Dil. Öğr. Gör. Sonuç'!I18="","",'Yab. Dil. Öğr. Gör. Sonuç'!I18) ->  | J18: =IF('Yab. Dil. Öğr. Gör. Sonuç'!J18="","",'Yab. Dil. Öğr. Gör. Sonuç'!J18) ->  | K18: =IF('Yab. Dil. Öğr. Gör. Sonuç'!K18="","",'Yab. Dil. Öğr. Gör. Sonuç'!K18) ->  | L18: =IF('Yab. Dil. Öğr. Gör. Sonuç'!L18="","",'Yab. Dil. Öğr. Gör. Sonuç'!L18) ->  | M18: =IF('Yab. Dil. Öğr. Gör. Sonuç'!M18="","",'Yab. Dil. Öğr. Gör. Sonuç'!M18) ->  | N18: =IF('Yab. Dil. Öğr. Gör. Sonuç'!N18="","",'Yab. Dil. Öğr. Gör. Sonuç'!N18) -> 
A19: =IF('Yab. Dil. Öğr. Gör. Sonuç'!A19="","",'Yab. Dil. Öğr. Gör. Sonuç'!A19) ->  | B19: =IF('Yab. Dil. Öğr. Gör. Sonuç'!B19="","",LEFT('Yab. Dil. Öğr. Gör. Sonuç'!B19,3)&REPT("*",4)&RIGHT('Yab. Dil. Öğr. Gör. Sonuç'!B19,2)) ->  | C19: =IF('Yab. Dil. Öğr. Gör. Sonuç'!C19="","",IF(ISERR(FIND(" ",'Yab. Dil. Öğr. Gör. Sonuç'!C19))=TRUE,LEFT('Yab. Dil. Öğr. Gör. Sonuç'!C19,2)&REPT("*",3),LEFT('Yab. Dil. Öğr. Gör. Sonuç'!C19,2)&REPT("*",3)&" "&MID('Yab. Dil. Öğr. Gör. Sonuç'!C19,FIND(" ",'Yab. Dil. Öğr. Gör. Sonuç'!C19)+1,2)&REPT("*",3))) ->  | D19: =IF('Yab. Dil. Öğr. Gör. Sonuç'!D19="","",IF(ISERR(FIND(" ",'Yab. Dil. Öğr. Gör. Sonuç'!D19))=TRUE,LEFT('Yab. Dil. Öğr. Gör. Sonuç'!D19,2)&REPT("*",3),LEFT('Yab. Dil. Öğr. Gör. Sonuç'!D19,2)&REPT("*",3)&" "&MID('Yab. Dil. Öğr. Gör. Sonuç'!D19,FIND(" ",'Yab. Dil. Öğr. Gör. Sonuç'!D19)+1,2)&REPT("*",3))) ->  | E19: =IF('Yab. Dil. Öğr. Gör. Sonuç'!E19="","",'Yab. Dil. Öğr. Gör. Sonuç'!E19) ->  | F19: =IF('Yab. Dil. Öğr. Gör. Sonuç'!F19="","",'Yab. Dil. Öğr. Gör. Sonuç'!F19) ->  | G19: =IF('Yab. Dil. Öğr. Gör. Sonuç'!G19="","",'Yab. Dil. Öğr. Gör. Sonuç'!G19) ->  | H19: =IF('Yab. Dil. Öğr. Gör. Sonuç'!H19="","",'Yab. Dil. Öğr. Gör. Sonuç'!H19) ->  | I19: =IF('Yab. Dil. Öğr. Gör. Sonuç'!I19="","",'Yab. Dil. Öğr. Gör. Sonuç'!I19) ->  | J19: =IF('Yab. Dil. Öğr. Gör. Sonuç'!J19="","",'Yab. Dil. Öğr. Gör. Sonuç'!J19) ->  | K19: =IF('Yab. Dil. Öğr. Gör. Sonuç'!K19="","",'Yab. Dil. Öğr. Gör. Sonuç'!K19) ->  | L19: =IF('Yab. Dil. Öğr. Gör. Sonuç'!L19="","",'Yab. Dil. Öğr. Gör. Sonuç'!L19) ->  | M19: =IF('Yab. Dil. Öğr. Gör. Sonuç'!M19="","",'Yab. Dil. Öğr. Gör. Sonuç'!M19) ->  | N19: =IF('Yab. Dil. Öğr. Gör. Sonuç'!N19="","",'Yab. Dil. Öğr. Gör. Sonuç'!N19) -> 
A20: =IF('Yab. Dil. Öğr. Gör. Sonuç'!A20="","",'Yab. Dil. Öğr. Gör. Sonuç'!A20) ->  | B20: =IF('Yab. Dil. Öğr. Gör. Sonuç'!B20="","",LEFT('Yab. Dil. Öğr. Gör. Sonuç'!B20,3)&REPT("*",4)&RIGHT('Yab. Dil. Öğr. Gör. Sonuç'!B20,2)) ->  | C20: =IF('Yab. Dil. Öğr. Gör. Sonuç'!C20="","",IF(ISERR(FIND(" ",'Yab. Dil. Öğr. Gör. Sonuç'!C20))=TRUE,LEFT('Yab. Dil. Öğr. Gör. Sonuç'!C20,2)&REPT("*",3),LEFT('Yab. Dil. Öğr. Gör. Sonuç'!C20,2)&REPT("*",3)&" "&MID('Yab. Dil. Öğr. Gör. Sonuç'!C20,FIND(" ",'Yab. Dil. Öğr. Gör. Sonuç'!C20)+1,2)&REPT("*",3))) ->  | D20: =IF('Yab. Dil. Öğr. Gör. Sonuç'!D20="","",IF(ISERR(FIND(" ",'Yab. Dil. Öğr. Gör. Sonuç'!D20))=TRUE,LEFT('Yab. Dil. Öğr. Gör. Sonuç'!D20,2)&REPT("*",3),LEFT('Yab. Dil. Öğr. Gör. Sonuç'!D20,2)&REPT("*",3)&" "&MID('Yab. Dil. Öğr. Gör. Sonuç'!D20,FIND(" ",'Yab. Dil. Öğr. Gör. Sonuç'!D20)+1,2)&REPT("*",3))) ->  | E20: =IF('Yab. Dil. Öğr. Gör. Sonuç'!E20="","",'Yab. Dil. Öğr. Gör. Sonuç'!E20) ->  | F20: =IF('Yab. Dil. Öğr. Gör. Sonuç'!F20="","",'Yab. Dil. Öğr. Gör. Sonuç'!F20) ->  | G20: =IF('Yab. Dil. Öğr. Gör. Sonuç'!G20="","",'Yab. Dil. Öğr. Gör. Sonuç'!G20) ->  | H20: =IF('Yab. Dil. Öğr. Gör. Sonuç'!H20="","",'Yab. Dil. Öğr. Gör. Sonuç'!H20) ->  | I20: =IF('Yab. Dil. Öğr. Gör. Sonuç'!I20="","",'Yab. Dil. Öğr. Gör. Sonuç'!I20) ->  | J20: =IF('Yab. Dil. Öğr. Gör. Sonuç'!J20="","",'Yab. Dil. Öğr. Gör. Sonuç'!J20) ->  | K20: =IF('Yab. Dil. Öğr. Gör. Sonuç'!K20="","",'Yab. Dil. Öğr. Gör. Sonuç'!K20) ->  | L20: =IF('Yab. Dil. Öğr. Gör. Sonuç'!L20="","",'Yab. Dil. Öğr. Gör. Sonuç'!L20) ->  | M20: =IF('Yab. Dil. Öğr. Gör. Sonuç'!M20="","",'Yab. Dil. Öğr. Gör. Sonuç'!M20) ->  | N20: =IF('Yab. Dil. Öğr. Gör. Sonuç'!N20="","",'Yab. Dil. Öğr. Gör. Sonuç'!N20) -> 
A21: =IF('Yab. Dil. Öğr. Gör. Sonuç'!A21="","",'Yab. Dil. Öğr. Gör. Sonuç'!A21) ->  | B21: =IF('Yab. Dil. Öğr. Gör. Sonuç'!B21="","",LEFT('Yab. Dil. Öğr. Gör. Sonuç'!B21,3)&REPT("*",4)&RIGHT('Yab. Dil. Öğr. Gör. Sonuç'!B21,2)) ->  | C21: =IF('Yab. Dil. Öğr. Gör. Sonuç'!C21="","",IF(ISERR(FIND(" ",'Yab. Dil. Öğr. Gör. Sonuç'!C21))=TRUE,LEFT('Yab. Dil. Öğr. Gör. Sonuç'!C21,2)&REPT("*",3),LEFT('Yab. Dil. Öğr. Gör. Sonuç'!C21,2)&REPT("*",3)&" "&MID('Yab. Dil. Öğr. Gör. Sonuç'!C21,FIND(" ",'Yab. Dil. Öğr. Gör. Sonuç'!C21)+1,2)&REPT("*",3))) ->  | D21: =IF('Yab. Dil. Öğr. Gör. Sonuç'!D21="","",IF(ISERR(FIND(" ",'Yab. Dil. Öğr. Gör. Sonuç'!D21))=TRUE,LEFT('Yab. Dil. Öğr. Gör. Sonuç'!D21,2)&REPT("*",3),LEFT('Yab. Dil. Öğr. Gör. Sonuç'!D21,2)&REPT("*",3)&" "&MID('Yab. Dil. Öğr. Gör. Sonuç'!D21,FIND(" ",'Yab. Dil. Öğr. Gör. Sonuç'!D21)+1,2)&REPT("*",3))) ->  | E21: =IF('Yab. Dil. Öğr. Gör. Sonuç'!E21="","",'Yab. Dil. Öğr. Gör. Sonuç'!E21) ->  | F21: =IF('Yab. Dil. Öğr. Gör. Sonuç'!F21="","",'Yab. Dil. Öğr. Gör. Sonuç'!F21) ->  | G21: =IF('Yab. Dil. Öğr. Gör. Sonuç'!G21="","",'Yab. Dil. Öğr. Gör. Sonuç'!G21) ->  | H21: =IF('Yab. Dil. Öğr. Gör. Sonuç'!H21="","",'Yab. Dil. Öğr. Gör. Sonuç'!H21) ->  | I21: =IF('Yab. Dil. Öğr. Gör. Sonuç'!I21="","",'Yab. Dil. Öğr. Gör. Sonuç'!I21) ->  | J21: =IF('Yab. Dil. Öğr. Gör. Sonuç'!J21="","",'Yab. Dil. Öğr. Gör. Sonuç'!J21) ->  | K21: =IF('Yab. Dil. Öğr. Gör. Sonuç'!K21="","",'Yab. Dil. Öğr. Gör. Sonuç'!K21) ->  | L21: =IF('Yab. Dil. Öğr. Gör. Sonuç'!L21="","",'Yab. Dil. Öğr. Gör. Sonuç'!L21) ->  | M21: =IF('Yab. Dil. Öğr. Gör. Sonuç'!M21="","",'Yab. Dil. Öğr. Gör. Sonuç'!M21) ->  | N21: =IF('Yab. Dil. Öğr. Gör. Sonuç'!N21="","",'Yab. Dil. Öğr. Gör. Sonuç'!N21) -> 
A22: =IF('Yab. Dil. Öğr. Gör. Sonuç'!A22="","",'Yab. Dil. Öğr. Gör. Sonuç'!A22) ->  | B22: =IF('Yab. Dil. Öğr. Gör. Sonuç'!B22="","",LEFT('Yab. Dil. Öğr. Gör. Sonuç'!B22,3)&REPT("*",4)&RIGHT('Yab. Dil. Öğr. Gör. Sonuç'!B22,2)) ->  | C22: =IF('Yab. Dil. Öğr. Gör. Sonuç'!C22="","",IF(ISERR(FIND(" ",'Yab. Dil. Öğr. Gör. Sonuç'!C22))=TRUE,LEFT('Yab. Dil. Öğr. Gör. Sonuç'!C22,2)&REPT("*",3),LEFT('Yab. Dil. Öğr. Gör. Sonuç'!C22,2)&REPT("*",3)&" "&MID('Yab. Dil. Öğr. Gör. Sonuç'!C22,FIND(" ",'Yab. Dil. Öğr. Gör. Sonuç'!C22)+1,2)&REPT("*",3))) ->  | D22: =IF('Yab. Dil. Öğr. Gör. Sonuç'!D22="","",IF(ISERR(FIND(" ",'Yab. Dil. Öğr. Gör. Sonuç'!D22))=TRUE,LEFT('Yab. Dil. Öğr. Gör. Sonuç'!D22,2)&REPT("*",3),LEFT('Yab. Dil. Öğr. Gör. Sonuç'!D22,2)&REPT("*",3)&" "&MID('Yab. Dil. Öğr. Gör. Sonuç'!D22,FIND(" ",'Yab. Dil. Öğr. Gör. Sonuç'!D22)+1,2)&REPT("*",3))) ->  | E22: =IF('Yab. Dil. Öğr. Gör. Sonuç'!E22="","",'Yab. Dil. Öğr. Gör. Sonuç'!E22) ->  | F22: =IF('Yab. Dil. Öğr. Gör. Sonuç'!F22="","",'Yab. Dil. Öğr. Gör. Sonuç'!F22) ->  | G22: =IF('Yab. Dil. Öğr. Gör. Sonuç'!G22="","",'Yab. Dil. Öğr. Gör. Sonuç'!G22) ->  | H22: =IF('Yab. Dil. Öğr. Gör. Sonuç'!H22="","",'Yab. Dil. Öğr. Gör. Sonuç'!H22) ->  | I22: =IF('Yab. Dil. Öğr. Gör. Sonuç'!I22="","",'Yab. Dil. Öğr. Gör. Sonuç'!I22) ->  | J22: =IF('Yab. Dil. Öğr. Gör. Sonuç'!J22="","",'Yab. Dil. Öğr. Gör. Sonuç'!J22) ->  | K22: =IF('Yab. Dil. Öğr. Gör. Sonuç'!K22="","",'Yab. Dil. Öğr. Gör. Sonuç'!K22) ->  | L22: =IF('Yab. Dil. Öğr. Gör. Sonuç'!L22="","",'Yab. Dil. Öğr. Gör. Sonuç'!L22) ->  | M22: =IF('Yab. Dil. Öğr. Gör. Sonuç'!M22="","",'Yab. Dil. Öğr. Gör. Sonuç'!M22) ->  | N22: =IF('Yab. Dil. Öğr. Gör. Sonuç'!N22="","",'Yab. Dil. Öğr. Gör. Sonuç'!N22) -> 
A23: =IF('Yab. Dil. Öğr. Gör. Sonuç'!A23="","",'Yab. Dil. Öğr. Gör. Sonuç'!A23) ->  | B23: =IF('Yab. Dil. Öğr. Gör. Sonuç'!B23="","",LEFT('Yab. Dil. Öğr. Gör. Sonuç'!B23,3)&REPT("*",4)&RIGHT('Yab. Dil. Öğr. Gör. Sonuç'!B23,2)) ->  | C23: =IF('Yab. Dil. Öğr. Gör. Sonuç'!C23="","",IF(ISERR(FIND(" ",'Yab. Dil. Öğr. Gör. Sonuç'!C23))=TRUE,LEFT('Yab. Dil. Öğr. Gör. Sonuç'!C23,2)&REPT("*",3),LEFT('Yab. Dil. Öğr. Gör. Sonuç'!C23,2)&REPT("*",3)&" "&MID('Yab. Dil. Öğr. Gör. Sonuç'!C23,FIND(" ",'Yab. Dil. Öğr. Gör. Sonuç'!C23)+1,2)&REPT("*",3))) ->  | D23: =IF('Yab. Dil. Öğr. Gör. Sonuç'!D23="","",IF(ISERR(FIND(" ",'Yab. Dil. Öğr. Gör. Sonuç'!D23))=TRUE,LEFT('Yab. Dil. Öğr. Gör. Sonuç'!D23,2)&REPT("*",3),LEFT('Yab. Dil. Öğr. Gör. Sonuç'!D23,2)&REPT("*",3)&" "&MID('Yab. Dil. Öğr. Gör. Sonuç'!D23,FIND(" ",'Yab. Dil. Öğr. Gör. Sonuç'!D23)+1,2)&REPT("*",3))) ->  | E23: =IF('Yab. Dil. Öğr. Gör. Sonuç'!E23="","",'Yab. Dil. Öğr. Gör. Sonuç'!E23) ->  | F23: =IF('Yab. Dil. Öğr. Gör. Sonuç'!F23="","",'Yab. Dil. Öğr. Gör. Sonuç'!F23) ->  | G23: =IF('Yab. Dil. Öğr. Gör. Sonuç'!G23="","",'Yab. Dil. Öğr. Gör. Sonuç'!G23) ->  | H23: =IF('Yab. Dil. Öğr. Gör. Sonuç'!H23="","",'Yab. Dil. Öğr. Gör. Sonuç'!H23) ->  | I23: =IF('Yab. Dil. Öğr. Gör. Sonuç'!I23="","",'Yab. Dil. Öğr. Gör. Sonuç'!I23) ->  | J23: =IF('Yab. Dil. Öğr. Gör. Sonuç'!J23="","",'Yab. Dil. Öğr. Gör. Sonuç'!J23) ->  | K23: =IF('Yab. Dil. Öğr. Gör. Sonuç'!K23="","",'Yab. Dil. Öğr. Gör. Sonuç'!K23) ->  | L23: =IF('Yab. Dil. Öğr. Gör. Sonuç'!L23="","",'Yab. Dil. Öğr. Gör. Sonuç'!L23) ->  | M23: =IF('Yab. Dil. Öğr. Gör. Sonuç'!M23="","",'Yab. Dil. Öğr. Gör. Sonuç'!M23) ->  | N23: =IF('Yab. Dil. Öğr. Gör. Sonuç'!N23="","",'Yab. Dil. Öğr. Gör. Sonuç'!N23) -> 
A24: =IF('Yab. Dil. Öğr. Gör. Sonuç'!A24="","",'Yab. Dil. Öğr. Gör. Sonuç'!A24) ->  | B24: =IF('Yab. Dil. Öğr. Gör. Sonuç'!B24="","",LEFT('Yab. Dil. Öğr. Gör. Sonuç'!B24,3)&REPT("*",4)&RIGHT('Yab. Dil. Öğr. Gör. Sonuç'!B24,2)) ->  | C24: =IF('Yab. Dil. Öğr. Gör. Sonuç'!C24="","",IF(ISERR(FIND(" ",'Yab. Dil. Öğr. Gör. Sonuç'!C24))=TRUE,LEFT('Yab. Dil. Öğr. Gör. Sonuç'!C24,2)&REPT("*",3),LEFT('Yab. Dil. Öğr. Gör. Sonuç'!C24,2)&REPT("*",3)&" "&MID('Yab. Dil. Öğr. Gör. Sonuç'!C24,FIND(" ",'Yab. Dil. Öğr. Gör. Sonuç'!C24)+1,2)&REPT("*",3))) ->  | D24: =IF('Yab. Dil. Öğr. Gör. Sonuç'!D24="","",IF(ISERR(FIND(" ",'Yab. Dil. Öğr. Gör. Sonuç'!D24))=TRUE,LEFT('Yab. Dil. Öğr. Gör. Sonuç'!D24,2)&REPT("*",3),LEFT('Yab. Dil. Öğr. Gör. Sonuç'!D24,2)&REPT("*",3)&" "&MID('Yab. Dil. Öğr. Gör. Sonuç'!D24,FIND(" ",'Yab. Dil. Öğr. Gör. Sonuç'!D24)+1,2)&REPT("*",3))) ->  | E24: =IF('Yab. Dil. Öğr. Gör. Sonuç'!E24="","",'Yab. Dil. Öğr. Gör. Sonuç'!E24) ->  | F24: =IF('Yab. Dil. Öğr. Gör. Sonuç'!F24="","",'Yab. Dil. Öğr. Gör. Sonuç'!F24) ->  | G24: =IF('Yab. Dil. Öğr. Gör. Sonuç'!G24="","",'Yab. Dil. Öğr. Gör. Sonuç'!G24) ->  | H24: =IF('Yab. Dil. Öğr. Gör. Sonuç'!H24="","",'Yab. Dil. Öğr. Gör. Sonuç'!H24) ->  | I24: =IF('Yab. Dil. Öğr. Gör. Sonuç'!I24="","",'Yab. Dil. Öğr. Gör. Sonuç'!I24) ->  | J24: =IF('Yab. Dil. Öğr. Gör. Sonuç'!J24="","",'Yab. Dil. Öğr. Gör. Sonuç'!J24) ->  | K24: =IF('Yab. Dil. Öğr. Gör. Sonuç'!K24="","",'Yab. Dil. Öğr. Gör. Sonuç'!K24) ->  | L24: =IF('Yab. Dil. Öğr. Gör. Sonuç'!L24="","",'Yab. Dil. Öğr. Gör. Sonuç'!L24) ->  | M24: =IF('Yab. Dil. Öğr. Gör. Sonuç'!M24="","",'Yab. Dil. Öğr. Gör. Sonuç'!M24) ->  | N24: =IF('Yab. Dil. Öğr. Gör. Sonuç'!N24="","",'Yab. Dil. Öğr. Gör. Sonuç'!N24) -> 
A25: =IF('Yab. Dil. Öğr. Gör. Sonuç'!A25="","",'Yab. Dil. Öğr. Gör. Sonuç'!A25) ->  | B25: =IF('Yab. Dil. Öğr. Gör. Sonuç'!B25="","",LEFT('Yab. Dil. Öğr. Gör. Sonuç'!B25,3)&REPT("*",4)&RIGHT('Yab. Dil. Öğr. Gör. Sonuç'!B25,2)) ->  | C25: =IF('Yab. Dil. Öğr. Gör. Sonuç'!C25="","",IF(ISERR(FIND(" ",'Yab. Dil. Öğr. Gör. Sonuç'!C25))=TRUE,LEFT('Yab. Dil. Öğr. Gör. Sonuç'!C25,2)&REPT("*",3),LEFT('Yab. Dil. Öğr. Gör. Sonuç'!C25,2)&REPT("*",3)&" "&MID('Yab. Dil. Öğr. Gör. Sonuç'!C25,FIND(" ",'Yab. Dil. Öğr. Gör. Sonuç'!C25)+1,2)&REPT("*",3))) ->  | D25: =IF('Yab. Dil. Öğr. Gör. Sonuç'!D25="","",IF(ISERR(FIND(" ",'Yab. Dil. Öğr. Gör. Sonuç'!D25))=TRUE,LEFT('Yab. Dil. Öğr. Gör. Sonuç'!D25,2)&REPT("*",3),LEFT('Yab. Dil. Öğr. Gör. Sonuç'!D25,2)&REPT("*",3)&" "&MID('Yab. Dil. Öğr. Gör. Sonuç'!D25,FIND(" ",'Yab. Dil. Öğr. Gör. Sonuç'!D25)+1,2)&REPT("*",3))) ->  | E25: =IF('Yab. Dil. Öğr. Gör. Sonuç'!E25="","",'Yab. Dil. Öğr. Gör. Sonuç'!E25) ->  | F25: =IF('Yab. Dil. Öğr. Gör. Sonuç'!F25="","",'Yab. Dil. Öğr. Gör. Sonuç'!F25) ->  | G25: =IF('Yab. Dil. Öğr. Gör. Sonuç'!G25="","",'Yab. Dil. Öğr. Gör. Sonuç'!G25) ->  | H25: =IF('Yab. Dil. Öğr. Gör. Sonuç'!H25="","",'Yab. Dil. Öğr. Gör. Sonuç'!H25) ->  | I25: =IF('Yab. Dil. Öğr. Gör. Sonuç'!I25="","",'Yab. Dil. Öğr. Gör. Sonuç'!I25) ->  | J25: =IF('Yab. Dil. Öğr. Gör. Sonuç'!J25="","",'Yab. Dil. Öğr. Gör. Sonuç'!J25) ->  | K25: =IF('Yab. Dil. Öğr. Gör. Sonuç'!K25="","",'Yab. Dil. Öğr. Gör. Sonuç'!K25) ->  | L25: =IF('Yab. Dil. Öğr. Gör. Sonuç'!L25="","",'Yab. Dil. Öğr. Gör. Sonuç'!L25) ->  | M25: =IF('Yab. Dil. Öğr. Gör. Sonuç'!M25="","",'Yab. Dil. Öğr. Gör. Sonuç'!M25) ->  | N25: =IF('Yab. Dil. Öğr. Gör. Sonuç'!N25="","",'Yab. Dil. Öğr. Gör. Sonuç'!N25) -> 
A26: =IF('Yab. Dil. Öğr. Gör. Sonuç'!A26="","",'Yab. Dil. Öğr. Gör. Sonuç'!A26) ->  | B26: =IF('Yab. Dil. Öğr. Gör. Sonuç'!B26="","",LEFT('Yab. Dil. Öğr. Gör. Sonuç'!B26,3)&REPT("*",4)&RIGHT('Yab. Dil. Öğr. Gör. Sonuç'!B26,2)) ->  | C26: =IF('Yab. Dil. Öğr. Gör. Sonuç'!C26="","",IF(ISERR(FIND(" ",'Yab. Dil. Öğr. Gör. Sonuç'!C26))=TRUE,LEFT('Yab. Dil. Öğr. Gör. Sonuç'!C26,2)&REPT("*",3),LEFT('Yab. Dil. Öğr. Gör. Sonuç'!C26,2)&REPT("*",3)&" "&MID('Yab. Dil. Öğr. Gör. Sonuç'!C26,FIND(" ",'Yab. Dil. Öğr. Gör. Sonuç'!C26)+1,2)&REPT("*",3))) ->  | D26: =IF('Yab. Dil. Öğr. Gör. Sonuç'!D26="","",IF(ISERR(FIND(" ",'Yab. Dil. Öğr. Gör. Sonuç'!D26))=TRUE,LEFT('Yab. Dil. Öğr. Gör. Sonuç'!D26,2)&REPT("*",3),LEFT('Yab. Dil. Öğr. Gör. Sonuç'!D26,2)&REPT("*",3)&" "&MID('Yab. Dil. Öğr. Gör. Sonuç'!D26,FIND(" ",'Yab. Dil. Öğr. Gör. Sonuç'!D26)+1,2)&REPT("*",3))) ->  | E26: =IF('Yab. Dil. Öğr. Gör. Sonuç'!E26="","",'Yab. Dil. Öğr. Gör. Sonuç'!E26) ->  | F26: =IF('Yab. Dil. Öğr. Gör. Sonuç'!F26="","",'Yab. Dil. Öğr. Gör. Sonuç'!F26) ->  | G26: =IF('Yab. Dil. Öğr. Gör. Sonuç'!G26="","",'Yab. Dil. Öğr. Gör. Sonuç'!G26) ->  | H26: =IF('Yab. Dil. Öğr. Gör. Sonuç'!H26="","",'Yab. Dil. Öğr. Gör. Sonuç'!H26) ->  | I26: =IF('Yab. Dil. Öğr. Gör. Sonuç'!I26="","",'Yab. Dil. Öğr. Gör. Sonuç'!I26) ->  | J26: =IF('Yab. Dil. Öğr. Gör. Sonuç'!J26="","",'Yab. Dil. Öğr. Gör. Sonuç'!J26) ->  | K26: =IF('Yab. Dil. Öğr. Gör. Sonuç'!K26="","",'Yab. Dil. Öğr. Gör. Sonuç'!K26) ->  | L26: =IF('Yab. Dil. Öğr. Gör. Sonuç'!L26="","",'Yab. Dil. Öğr. Gör. Sonuç'!L26) ->  | M26: =IF('Yab. Dil. Öğr. Gör. Sonuç'!M26="","",'Yab. Dil. Öğr. Gör. Sonuç'!M26) ->  | N26: =IF('Yab. Dil. Öğr. Gör. Sonuç'!N26="","",'Yab. Dil. Öğr. Gör. Sonuç'!N26) -> 
A27: =IF('Yab. Dil. Öğr. Gör. Sonuç'!A27="","",'Yab. Dil. Öğr. Gör. Sonuç'!A27) ->  | B27: =IF('Yab. Dil. Öğr. Gör. Sonuç'!B27="","",LEFT('Yab. Dil. Öğr. Gör. Sonuç'!B27,3)&REPT("*",4)&RIGHT('Yab. Dil. Öğr. Gör. Sonuç'!B27,2)) ->  | C27: =IF('Yab. Dil. Öğr. Gör. Sonuç'!C27="","",IF(ISERR(FIND(" ",'Yab. Dil. Öğr. Gör. Sonuç'!C27))=TRUE,LEFT('Yab. Dil. Öğr. Gör. Sonuç'!C27,2)&REPT("*",3),LEFT('Yab. Dil. Öğr. Gör. Sonuç'!C27,2)&REPT("*",3)&" "&MID('Yab. Dil. Öğr. Gör. Sonuç'!C27,FIND(" ",'Yab. Dil. Öğr. Gör. Sonuç'!C27)+1,2)&REPT("*",3))) ->  | D27: =IF('Yab. Dil. Öğr. Gör. Sonuç'!D27="","",IF(ISERR(FIND(" ",'Yab. Dil. Öğr. Gör. Sonuç'!D27))=TRUE,LEFT('Yab. Dil. Öğr. Gör. Sonuç'!D27,2)&REPT("*",3),LEFT('Yab. Dil. Öğr. Gör. Sonuç'!D27,2)&REPT("*",3)&" "&MID('Yab. Dil. Öğr. Gör. Sonuç'!D27,FIND(" ",'Yab. Dil. Öğr. Gör. Sonuç'!D27)+1,2)&REPT("*",3))) ->  | E27: =IF('Yab. Dil. Öğr. Gör. Sonuç'!E27="","",'Yab. Dil. Öğr. Gör. Sonuç'!E27) ->  | F27: =IF('Yab. Dil. Öğr. Gör. Sonuç'!F27="","",'Yab. Dil. Öğr. Gör. Sonuç'!F27) ->  | G27: =IF('Yab. Dil. Öğr. Gör. Sonuç'!G27="","",'Yab. Dil. Öğr. Gör. Sonuç'!G27) ->  | H27: =IF('Yab. Dil. Öğr. Gör. Sonuç'!H27="","",'Yab. Dil. Öğr. Gör. Sonuç'!H27) ->  | I27: =IF('Yab. Dil. Öğr. Gör. Sonuç'!I27="","",'Yab. Dil. Öğr. Gör. Sonuç'!I27) ->  | J27: =IF('Yab. Dil. Öğr. Gör. Sonuç'!J27="","",'Yab. Dil. Öğr. Gör. Sonuç'!J27) ->  | K27: =IF('Yab. Dil. Öğr. Gör. Sonuç'!K27="","",'Yab. Dil. Öğr. Gör. Sonuç'!K27) ->  | L27: =IF('Yab. Dil. Öğr. Gör. Sonuç'!L27="","",'Yab. Dil. Öğr. Gör. Sonuç'!L27) ->  | M27: =IF('Yab. Dil. Öğr. Gör. Sonuç'!M27="","",'Yab. Dil. Öğr. Gör. Sonuç'!M27) ->  | N27: =IF('Yab. Dil. Öğr. Gör. Sonuç'!N27="","",'Yab. Dil. Öğr. Gör. Sonuç'!N27) -> 
A28: =IF('Yab. Dil. Öğr. Gör. Sonuç'!A28="","",'Yab. Dil. Öğr. Gör. Sonuç'!A28) ->  | B28: =IF('Yab. Dil. Öğr. Gör. Sonuç'!B28="","",LEFT('Yab. Dil. Öğr. Gör. Sonuç'!B28,3)&REPT("*",4)&RIGHT('Yab. Dil. Öğr. Gör. Sonuç'!B28,2)) ->  | C28: =IF('Yab. Dil. Öğr. Gör. Sonuç'!C28="","",IF(ISERR(FIND(" ",'Yab. Dil. Öğr. Gör. Sonuç'!C28))=TRUE,LEFT('Yab. Dil. Öğr. Gör. Sonuç'!C28,2)&REPT("*",3),LEFT('Yab. Dil. Öğr. Gör. Sonuç'!C28,2)&REPT("*",3)&" "&MID('Yab. Dil. Öğr. Gör. Sonuç'!C28,FIND(" ",'Yab. Dil. Öğr. Gör. Sonuç'!C28)+1,2)&REPT("*",3))) ->  | D28: =IF('Yab. Dil. Öğr. Gör. Sonuç'!D28="","",IF(ISERR(FIND(" ",'Yab. Dil. Öğr. Gör. Sonuç'!D28))=TRUE,LEFT('Yab. Dil. Öğr. Gör. Sonuç'!D28,2)&REPT("*",3),LEFT('Yab. Dil. Öğr. Gör. Sonuç'!D28,2)&REPT("*",3)&" "&MID('Yab. Dil. Öğr. Gör. Sonuç'!D28,FIND(" ",'Yab. Dil. Öğr. Gör. Sonuç'!D28)+1,2)&REPT("*",3))) ->  | E28: =IF('Yab. Dil. Öğr. Gör. Sonuç'!E28="","",'Yab. Dil. Öğr. Gör. Sonuç'!E28) ->  | F28: =IF('Yab. Dil. Öğr. Gör. Sonuç'!F28="","",'Yab. Dil. Öğr. Gör. Sonuç'!F28) ->  | G28: =IF('Yab. Dil. Öğr. Gör. Sonuç'!G28="","",'Yab. Dil. Öğr. Gör. Sonuç'!G28) ->  | H28: =IF('Yab. Dil. Öğr. Gör. Sonuç'!H28="","",'Yab. Dil. Öğr. Gör. Sonuç'!H28) ->  | I28: =IF('Yab. Dil. Öğr. Gör. Sonuç'!I28="","",'Yab. Dil. Öğr. Gör. Sonuç'!I28) ->  | J28: =IF('Yab. Dil. Öğr. Gör. Sonuç'!J28="","",'Yab. Dil. Öğr. Gör. Sonuç'!J28) ->  | K28: =IF('Yab. Dil. Öğr. Gör. Sonuç'!K28="","",'Yab. Dil. Öğr. Gör. Sonuç'!K28) ->  | L28: =IF('Yab. Dil. Öğr. Gör. Sonuç'!L28="","",'Yab. Dil. Öğr. Gör. Sonuç'!L28) ->  | M28: =IF('Yab. Dil. Öğr. Gör. Sonuç'!M28="","",'Yab. Dil. Öğr. Gör. Sonuç'!M28) ->  | N28: =IF('Yab. Dil. Öğr. Gör. Sonuç'!N28="","",'Yab. Dil. Öğr. Gör. Sonuç'!N28) -> 
A29: =IF('Yab. Dil. Öğr. Gör. Sonuç'!A29="","",'Yab. Dil. Öğr. Gör. Sonuç'!A29) ->  | B29: =IF('Yab. Dil. Öğr. Gör. Sonuç'!B29="","",LEFT('Yab. Dil. Öğr. Gör. Sonuç'!B29,3)&REPT("*",4)&RIGHT('Yab. Dil. Öğr. Gör. Sonuç'!B29,2)) ->  | C29: =IF('Yab. Dil. Öğr. Gör. Sonuç'!C29="","",IF(ISERR(FIND(" ",'Yab. Dil. Öğr. Gör. Sonuç'!C29))=TRUE,LEFT('Yab. Dil. Öğr. Gör. Sonuç'!C29,2)&REPT("*",3),LEFT('Yab. Dil. Öğr. Gör. Sonuç'!C29,2)&REPT("*",3)&" "&MID('Yab. Dil. Öğr. Gör. Sonuç'!C29,FIND(" ",'Yab. Dil. Öğr. Gör. Sonuç'!C29)+1,2)&REPT("*",3))) ->  | D29: =IF('Yab. Dil. Öğr. Gör. Sonuç'!D29="","",IF(ISERR(FIND(" ",'Yab. Dil. Öğr. Gör. Sonuç'!D29))=TRUE,LEFT('Yab. Dil. Öğr. Gör. Sonuç'!D29,2)&REPT("*",3),LEFT('Yab. Dil. Öğr. Gör. Sonuç'!D29,2)&REPT("*",3)&" "&MID('Yab. Dil. Öğr. Gör. Sonuç'!D29,FIND(" ",'Yab. Dil. Öğr. Gör. Sonuç'!D29)+1,2)&REPT("*",3))) ->  | E29: =IF('Yab. Dil. Öğr. Gör. Sonuç'!E29="","",'Yab. Dil. Öğr. Gör. Sonuç'!E29) ->  | F29: =IF('Yab. Dil. Öğr. Gör. Sonuç'!F29="","",'Yab. Dil. Öğr. Gör. Sonuç'!F29) ->  | G29: =IF('Yab. Dil. Öğr. Gör. Sonuç'!G29="","",'Yab. Dil. Öğr. Gör. Sonuç'!G29) ->  | H29: =IF('Yab. Dil. Öğr. Gör. Sonuç'!H29="","",'Yab. Dil. Öğr. Gör. Sonuç'!H29) ->  | I29: =IF('Yab. Dil. Öğr. Gör. Sonuç'!I29="","",'Yab. Dil. Öğr. Gör. Sonuç'!I29) ->  | J29: =IF('Yab. Dil. Öğr. Gör. Sonuç'!J29="","",'Yab. Dil. Öğr. Gör. Sonuç'!J29) ->  | K29: =IF('Yab. Dil. Öğr. Gör. Sonuç'!K29="","",'Yab. Dil. Öğr. Gör. Sonuç'!K29) ->  | L29: =IF('Yab. Dil. Öğr. Gör. Sonuç'!L29="","",'Yab. Dil. Öğr. Gör. Sonuç'!L29) ->  | M29: =IF('Yab. Dil. Öğr. Gör. Sonuç'!M29="","",'Yab. Dil. Öğr. Gör. Sonuç'!M29) ->  | N29: =IF('Yab. Dil. Öğr. Gör. Sonuç'!N29="","",'Yab. Dil. Öğr. Gör. Sonuç'!N29) -> 
A30: =IF('Yab. Dil. Öğr. Gör. Sonuç'!A30="","",'Yab. Dil. Öğr. Gör. Sonuç'!A30) ->  | B30: =IF('Yab. Dil. Öğr. Gör. Sonuç'!B30="","",LEFT('Yab. Dil. Öğr. Gör. Sonuç'!B30,3)&REPT("*",4)&RIGHT('Yab. Dil. Öğr. Gör. Sonuç'!B30,2)) ->  | C30: =IF('Yab. Dil. Öğr. Gör. Sonuç'!C30="","",IF(ISERR(FIND(" ",'Yab. Dil. Öğr. Gör. Sonuç'!C30))=TRUE,LEFT('Yab. Dil. Öğr. Gör. Sonuç'!C30,2)&REPT("*",3),LEFT('Yab. Dil. Öğr. Gör. Sonuç'!C30,2)&REPT("*",3)&" "&MID('Yab. Dil. Öğr. Gör. Sonuç'!C30,FIND(" ",'Yab. Dil. Öğr. Gör. Sonuç'!C30)+1,2)&REPT("*",3))) ->  | D30: =IF('Yab. Dil. Öğr. Gör. Sonuç'!D30="","",IF(ISERR(FIND(" ",'Yab. Dil. Öğr. Gör. Sonuç'!D30))=TRUE,LEFT('Yab. Dil. Öğr. Gör. Sonuç'!D30,2)&REPT("*",3),LEFT('Yab. Dil. Öğr. Gör. Sonuç'!D30,2)&REPT("*",3)&" "&MID('Yab. Dil. Öğr. Gör. Sonuç'!D30,FIND(" ",'Yab. Dil. Öğr. Gör. Sonuç'!D30)+1,2)&REPT("*",3))) ->  | E30: =IF('Yab. Dil. Öğr. Gör. Sonuç'!E30="","",'Yab. Dil. Öğr. Gör. Sonuç'!E30) ->  | F30: =IF('Yab. Dil. Öğr. Gör. Sonuç'!F30="","",'Yab. Dil. Öğr. Gör. Sonuç'!F30) ->  | G30: =IF('Yab. Dil. Öğr. Gör. Sonuç'!G30="","",'Yab. Dil. Öğr. Gör. Sonuç'!G30) ->  | H30: =IF('Yab. Dil. Öğr. Gör. Sonuç'!H30="","",'Yab. Dil. Öğr. Gör. Sonuç'!H30) ->  | I30: =IF('Yab. Dil. Öğr. Gör. Sonuç'!I30="","",'Yab. Dil. Öğr. Gör. Sonuç'!I30) ->  | J30: =IF('Yab. Dil. Öğr. Gör. Sonuç'!J30="","",'Yab. Dil. Öğr. Gör. Sonuç'!J30) ->  | K30: =IF('Yab. Dil. Öğr. Gör. Sonuç'!K30="","",'Yab. Dil. Öğr. Gör. Sonuç'!K30) ->  | L30: =IF('Yab. Dil. Öğr. Gör. Sonuç'!L30="","",'Yab. Dil. Öğr. Gör. Sonuç'!L30) ->  | M30: =IF('Yab. Dil. Öğr. Gör. Sonuç'!M30="","",'Yab. Dil. Öğr. Gör. Sonuç'!M30) ->  | N30: =IF('Yab. Dil. Öğr. Gör. Sonuç'!N30="","",'Yab. Dil. Öğr. Gör. Sonuç'!N30) -> 
A31: =IF('Yab. Dil. Öğr. Gör. Sonuç'!A31="","",'Yab. Dil. Öğr. Gör. Sonuç'!A31) ->  | B31: =IF('Yab. Dil. Öğr. Gör. Sonuç'!B31="","",LEFT('Yab. Dil. Öğr. Gör. Sonuç'!B31,3)&REPT("*",4)&RIGHT('Yab. Dil. Öğr. Gör. Sonuç'!B31,2)) ->  | C31: =IF('Yab. Dil. Öğr. Gör. Sonuç'!C31="","",IF(ISERR(FIND(" ",'Yab. Dil. Öğr. Gör. Sonuç'!C31))=TRUE,LEFT('Yab. Dil. Öğr. Gör. Sonuç'!C31,2)&REPT("*",3),LEFT('Yab. Dil. Öğr. Gör. Sonuç'!C31,2)&REPT("*",3)&" "&MID('Yab. Dil. Öğr. Gör. Sonuç'!C31,FIND(" ",'Yab. Dil. Öğr. Gör. Sonuç'!C31)+1,2)&REPT("*",3))) ->  | D31: =IF('Yab. Dil. Öğr. Gör. Sonuç'!D31="","",IF(ISERR(FIND(" ",'Yab. Dil. Öğr. Gör. Sonuç'!D31))=TRUE,LEFT('Yab. Dil. Öğr. Gör. Sonuç'!D31,2)&REPT("*",3),LEFT('Yab. Dil. Öğr. Gör. Sonuç'!D31,2)&REPT("*",3)&" "&MID('Yab. Dil. Öğr. Gör. Sonuç'!D31,FIND(" ",'Yab. Dil. Öğr. Gör. Sonuç'!D31)+1,2)&REPT("*",3))) ->  | E31: =IF('Yab. Dil. Öğr. Gör. Sonuç'!E31="","",'Yab. Dil. Öğr. Gör. Sonuç'!E31) ->  | F31: =IF('Yab. Dil. Öğr. Gör. Sonuç'!F31="","",'Yab. Dil. Öğr. Gör. Sonuç'!F31) ->  | G31: =IF('Yab. Dil. Öğr. Gör. Sonuç'!G31="","",'Yab. Dil. Öğr. Gör. Sonuç'!G31) ->  | H31: =IF('Yab. Dil. Öğr. Gör. Sonuç'!H31="","",'Yab. Dil. Öğr. Gör. Sonuç'!H31) ->  | I31: =IF('Yab. Dil. Öğr. Gör. Sonuç'!I31="","",'Yab. Dil. Öğr. Gör. Sonuç'!I31) ->  | J31: =IF('Yab. Dil. Öğr. Gör. Sonuç'!J31="","",'Yab. Dil. Öğr. Gör. Sonuç'!J31) ->  | K31: =IF('Yab. Dil. Öğr. Gör. Sonuç'!K31="","",'Yab. Dil. Öğr. Gör. Sonuç'!K31) ->  | L31: =IF('Yab. Dil. Öğr. Gör. Sonuç'!L31="","",'Yab. Dil. Öğr. Gör. Sonuç'!L31) ->  | M31: =IF('Yab. Dil. Öğr. Gör. Sonuç'!M31="","",'Yab. Dil. Öğr. Gör. Sonuç'!M31) ->  | N31: =IF('Yab. Dil. Öğr. Gör. Sonuç'!N31="","",'Yab. Dil. Öğr. Gör. Sonuç'!N31) -> 
A32: =IF('Yab. Dil. Öğr. Gör. Sonuç'!A32="","",'Yab. Dil. Öğr. Gör. Sonuç'!A32) ->  | B32: =IF('Yab. Dil. Öğr. Gör. Sonuç'!B32="","",LEFT('Yab. Dil. Öğr. Gör. Sonuç'!B32,3)&REPT("*",4)&RIGHT('Yab. Dil. Öğr. Gör. Sonuç'!B32,2)) ->  | C32: =IF('Yab. Dil. Öğr. Gör. Sonuç'!C32="","",IF(ISERR(FIND(" ",'Yab. Dil. Öğr. Gör. Sonuç'!C32))=TRUE,LEFT('Yab. Dil. Öğr. Gör. Sonuç'!C32,2)&REPT("*",3),LEFT('Yab. Dil. Öğr. Gör. Sonuç'!C32,2)&REPT("*",3)&" "&MID('Yab. Dil. Öğr. Gör. Sonuç'!C32,FIND(" ",'Yab. Dil. Öğr. Gör. Sonuç'!C32)+1,2)&REPT("*",3))) ->  | D32: =IF('Yab. Dil. Öğr. Gör. Sonuç'!D32="","",IF(ISERR(FIND(" ",'Yab. Dil. Öğr. Gör. Sonuç'!D32))=TRUE,LEFT('Yab. Dil. Öğr. Gör. Sonuç'!D32,2)&REPT("*",3),LEFT('Yab. Dil. Öğr. Gör. Sonuç'!D32,2)&REPT("*",3)&" "&MID('Yab. Dil. Öğr. Gör. Sonuç'!D32,FIND(" ",'Yab. Dil. Öğr. Gör. Sonuç'!D32)+1,2)&REPT("*",3))) ->  | E32: =IF('Yab. Dil. Öğr. Gör. Sonuç'!E32="","",'Yab. Dil. Öğr. Gör. Sonuç'!E32) ->  | F32: =IF('Yab. Dil. Öğr. Gör. Sonuç'!F32="","",'Yab. Dil. Öğr. Gör. Sonuç'!F32) ->  | G32: =IF('Yab. Dil. Öğr. Gör. Sonuç'!G32="","",'Yab. Dil. Öğr. Gör. Sonuç'!G32) ->  | H32: =IF('Yab. Dil. Öğr. Gör. Sonuç'!H32="","",'Yab. Dil. Öğr. Gör. Sonuç'!H32) ->  | I32: =IF('Yab. Dil. Öğr. Gör. Sonuç'!I32="","",'Yab. Dil. Öğr. Gör. Sonuç'!I32) ->  | J32: =IF('Yab. Dil. Öğr. Gör. Sonuç'!J32="","",'Yab. Dil. Öğr. Gör. Sonuç'!J32) ->  | K32: =IF('Yab. Dil. Öğr. Gör. Sonuç'!K32="","",'Yab. Dil. Öğr. Gör. Sonuç'!K32) ->  | L32: =IF('Yab. Dil. Öğr. Gör. Sonuç'!L32="","",'Yab. Dil. Öğr. Gör. Sonuç'!L32) ->  | M32: =IF('Yab. Dil. Öğr. Gör. Sonuç'!M32="","",'Yab. Dil. Öğr. Gör. Sonuç'!M32) ->  | N32: =IF('Yab. Dil. Öğr. Gör. Sonuç'!N32="","",'Yab. Dil. Öğr. Gör. Sonuç'!N32) -> 
A33: =IF('Yab. Dil. Öğr. Gör. Sonuç'!A33="","",'Yab. Dil. Öğr. Gör. Sonuç'!A33) ->  | B33: =IF('Yab. Dil. Öğr. Gör. Sonuç'!B33="","",LEFT('Yab. Dil. Öğr. Gör. Sonuç'!B33,3)&REPT("*",4)&RIGHT('Yab. Dil. Öğr. Gör. Sonuç'!B33,2)) ->  | C33: =IF('Yab. Dil. Öğr. Gör. Sonuç'!C33="","",IF(ISERR(FIND(" ",'Yab. Dil. Öğr. Gör. Sonuç'!C33))=TRUE,LEFT('Yab. Dil. Öğr. Gör. Sonuç'!C33,2)&REPT("*",3),LEFT('Yab. Dil. Öğr. Gör. Sonuç'!C33,2)&REPT("*",3)&" "&MID('Yab. Dil. Öğr. Gör. Sonuç'!C33,FIND(" ",'Yab. Dil. Öğr. Gör. Sonuç'!C33)+1,2)&REPT("*",3))) ->  | D33: =IF('Yab. Dil. Öğr. Gör. Sonuç'!D33="","",IF(ISERR(FIND(" ",'Yab. Dil. Öğr. Gör. Sonuç'!D33))=TRUE,LEFT('Yab. Dil. Öğr. Gör. Sonuç'!D33,2)&REPT("*",3),LEFT('Yab. Dil. Öğr. Gör. Sonuç'!D33,2)&REPT("*",3)&" "&MID('Yab. Dil. Öğr. Gör. Sonuç'!D33,FIND(" ",'Yab. Dil. Öğr. Gör. Sonuç'!D33)+1,2)&REPT("*",3))) ->  | E33: =IF('Yab. Dil. Öğr. Gör. Sonuç'!E33="","",'Yab. Dil. Öğr. Gör. Sonuç'!E33) ->  | F33: =IF('Yab. Dil. Öğr. Gör. Sonuç'!F33="","",'Yab. Dil. Öğr. Gör. Sonuç'!F33) ->  | G33: =IF('Yab. Dil. Öğr. Gör. Sonuç'!G33="","",'Yab. Dil. Öğr. Gör. Sonuç'!G33) ->  | H33: =IF('Yab. Dil. Öğr. Gör. Sonuç'!H33="","",'Yab. Dil. Öğr. Gör. Sonuç'!H33) ->  | I33: =IF('Yab. Dil. Öğr. Gör. Sonuç'!I33="","",'Yab. Dil. Öğr. Gör. Sonuç'!I33) ->  | J33: =IF('Yab. Dil. Öğr. Gör. Sonuç'!J33="","",'Yab. Dil. Öğr. Gör. Sonuç'!J33) ->  | K33: =IF('Yab. Dil. Öğr. Gör. Sonuç'!K33="","",'Yab. Dil. Öğr. Gör. Sonuç'!K33) ->  | L33: =IF('Yab. Dil. Öğr. Gör. Sonuç'!L33="","",'Yab. Dil. Öğr. Gör. Sonuç'!L33) ->  | M33: =IF('Yab. Dil. Öğr. Gör. Sonuç'!M33="","",'Yab. Dil. Öğr. Gör. Sonuç'!M33) ->  | N33: =IF('Yab. Dil. Öğr. Gör. Sonuç'!N33="","",'Yab. Dil. Öğr. Gör. Sonuç'!N33) -> 
A34: =IF('Yab. Dil. Öğr. Gör. Sonuç'!A34="","",'Yab. Dil. Öğr. Gör. Sonuç'!A34) ->  | B34: =IF('Yab. Dil. Öğr. Gör. Sonuç'!B34="","",LEFT('Yab. Dil. Öğr. Gör. Sonuç'!B34,3)&REPT("*",4)&RIGHT('Yab. Dil. Öğr. Gör. Sonuç'!B34,2)) ->  | C34: =IF('Yab. Dil. Öğr. Gör. Sonuç'!C34="","",IF(ISERR(FIND(" ",'Yab. Dil. Öğr. Gör. Sonuç'!C34))=TRUE,LEFT('Yab. Dil. Öğr. Gör. Sonuç'!C34,2)&REPT("*",3),LEFT('Yab. Dil. Öğr. Gör. Sonuç'!C34,2)&REPT("*",3)&" "&MID('Yab. Dil. Öğr. Gör. Sonuç'!C34,FIND(" ",'Yab. Dil. Öğr. Gör. Sonuç'!C34)+1,2)&REPT("*",3))) ->  | D34: =IF('Yab. Dil. Öğr. Gör. Sonuç'!D34="","",IF(ISERR(FIND(" ",'Yab. Dil. Öğr. Gör. Sonuç'!D34))=TRUE,LEFT('Yab. Dil. Öğr. Gör. Sonuç'!D34,2)&REPT("*",3),LEFT('Yab. Dil. Öğr. Gör. Sonuç'!D34,2)&REPT("*",3)&" "&MID('Yab. Dil. Öğr. Gör. Sonuç'!D34,FIND(" ",'Yab. Dil. Öğr. Gör. Sonuç'!D34)+1,2)&REPT("*",3))) ->  | E34: =IF('Yab. Dil. Öğr. Gör. Sonuç'!E34="","",'Yab. Dil. Öğr. Gör. Sonuç'!E34) ->  | F34: =IF('Yab. Dil. Öğr. Gör. Sonuç'!F34="","",'Yab. Dil. Öğr. Gör. Sonuç'!F34) ->  | G34: =IF('Yab. Dil. Öğr. Gör. Sonuç'!G34="","",'Yab. Dil. Öğr. Gör. Sonuç'!G34) ->  | H34: =IF('Yab. Dil. Öğr. Gör. Sonuç'!H34="","",'Yab. Dil. Öğr. Gör. Sonuç'!H34) ->  | I34: =IF('Yab. Dil. Öğr. Gör. Sonuç'!I34="","",'Yab. Dil. Öğr. Gör. Sonuç'!I34) ->  | J34: =IF('Yab. Dil. Öğr. Gör. Sonuç'!J34="","",'Yab. Dil. Öğr. Gör. Sonuç'!J34) ->  | K34: =IF('Yab. Dil. Öğr. Gör. Sonuç'!K34="","",'Yab. Dil. Öğr. Gör. Sonuç'!K34) ->  | L34: =IF('Yab. Dil. Öğr. Gör. Sonuç'!L34="","",'Yab. Dil. Öğr. Gör. Sonuç'!L34) ->  | M34: =IF('Yab. Dil. Öğr. Gör. Sonuç'!M34="","",'Yab. Dil. Öğr. Gör. Sonuç'!M34) ->  | N34: =IF('Yab. Dil. Öğr. Gör. Sonuç'!N34="","",'Yab. Dil. Öğr. Gör. Sonuç'!N34) -> 
A35: =IF('Yab. Dil. Öğr. Gör. Sonuç'!A35="","",'Yab. Dil. Öğr. Gör. Sonuç'!A35) ->  | B35: =IF('Yab. Dil. Öğr. Gör. Sonuç'!B35="","",LEFT('Yab. Dil. Öğr. Gör. Sonuç'!B35,3)&REPT("*",4)&RIGHT('Yab. Dil. Öğr. Gör. Sonuç'!B35,2)) ->  | C35: =IF('Yab. Dil. Öğr. Gör. Sonuç'!C35="","",IF(ISERR(FIND(" ",'Yab. Dil. Öğr. Gör. Sonuç'!C35))=TRUE,LEFT('Yab. Dil. Öğr. Gör. Sonuç'!C35,2)&REPT("*",3),LEFT('Yab. Dil. Öğr. Gör. Sonuç'!C35,2)&REPT("*",3)&" "&MID('Yab. Dil. Öğr. Gör. Sonuç'!C35,FIND(" ",'Yab. Dil. Öğr. Gör. Sonuç'!C35)+1,2)&REPT("*",3))) ->  | D35: =IF('Yab. Dil. Öğr. Gör. Sonuç'!D35="","",IF(ISERR(FIND(" ",'Yab. Dil. Öğr. Gör. Sonuç'!D35))=TRUE,LEFT('Yab. Dil. Öğr. Gör. Sonuç'!D35,2)&REPT("*",3),LEFT('Yab. Dil. Öğr. Gör. Sonuç'!D35,2)&REPT("*",3)&" "&MID('Yab. Dil. Öğr. Gör. Sonuç'!D35,FIND(" ",'Yab. Dil. Öğr. Gör. Sonuç'!D35)+1,2)&REPT("*",3))) ->  | E35: =IF('Yab. Dil. Öğr. Gör. Sonuç'!E35="","",'Yab. Dil. Öğr. Gör. Sonuç'!E35) ->  | F35: =IF('Yab. Dil. Öğr. Gör. Sonuç'!F35="","",'Yab. Dil. Öğr. Gör. Sonuç'!F35) ->  | G35: =IF('Yab. Dil. Öğr. Gör. Sonuç'!G35="","",'Yab. Dil. Öğr. Gör. Sonuç'!G35) ->  | H35: =IF('Yab. Dil. Öğr. Gör. Sonuç'!H35="","",'Yab. Dil. Öğr. Gör. Sonuç'!H35) ->  | I35: =IF('Yab. Dil. Öğr. Gör. Sonuç'!I35="","",'Yab. Dil. Öğr. Gör. Sonuç'!I35) ->  | J35: =IF('Yab. Dil. Öğr. Gör. Sonuç'!J35="","",'Yab. Dil. Öğr. Gör. Sonuç'!J35) ->  | K35: =IF('Yab. Dil. Öğr. Gör. Sonuç'!K35="","",'Yab. Dil. Öğr. Gör. Sonuç'!K35) ->  | L35: =IF('Yab. Dil. Öğr. Gör. Sonuç'!L35="","",'Yab. Dil. Öğr. Gör. Sonuç'!L35) ->  | M35: =IF('Yab. Dil. Öğr. Gör. Sonuç'!M35="","",'Yab. Dil. Öğr. Gör. Sonuç'!M35) ->  | N35: =IF('Yab. Dil. Öğr. Gör. Sonuç'!N35="","",'Yab. Dil. Öğr. Gör. Sonuç'!N35) -> 
A36: =IF('Yab. Dil. Öğr. Gör. Sonuç'!A36="","",'Yab. Dil. Öğr. Gör. Sonuç'!A36) ->  | B36: =IF('Yab. Dil. Öğr. Gör. Sonuç'!B36="","",LEFT('Yab. Dil. Öğr. Gör. Sonuç'!B36,3)&REPT("*",4)&RIGHT('Yab. Dil. Öğr. Gör. Sonuç'!B36,2)) ->  | C36: =IF('Yab. Dil. Öğr. Gör. Sonuç'!C36="","",IF(ISERR(FIND(" ",'Yab. Dil. Öğr. Gör. Sonuç'!C36))=TRUE,LEFT('Yab. Dil. Öğr. Gör. Sonuç'!C36,2)&REPT("*",3),LEFT('Yab. Dil. Öğr. Gör. Sonuç'!C36,2)&REPT("*",3)&" "&MID('Yab. Dil. Öğr. Gör. Sonuç'!C36,FIND(" ",'Yab. Dil. Öğr. Gör. Sonuç'!C36)+1,2)&REPT("*",3))) ->  | D36: =IF('Yab. Dil. Öğr. Gör. Sonuç'!D36="","",IF(ISERR(FIND(" ",'Yab. Dil. Öğr. Gör. Sonuç'!D36))=TRUE,LEFT('Yab. Dil. Öğr. Gör. Sonuç'!D36,2)&REPT("*",3),LEFT('Yab. Dil. Öğr. Gör. Sonuç'!D36,2)&REPT("*",3)&" "&MID('Yab. Dil. Öğr. Gör. Sonuç'!D36,FIND(" ",'Yab. Dil. Öğr. Gör. Sonuç'!D36)+1,2)&REPT("*",3))) ->  | E36: =IF('Yab. Dil. Öğr. Gör. Sonuç'!E36="","",'Yab. Dil. Öğr. Gör. Sonuç'!E36) ->  | F36: =IF('Yab. Dil. Öğr. Gör. Sonuç'!F36="","",'Yab. Dil. Öğr. Gör. Sonuç'!F36) ->  | G36: =IF('Yab. Dil. Öğr. Gör. Sonuç'!G36="","",'Yab. Dil. Öğr. Gör. Sonuç'!G36) ->  | H36: =IF('Yab. Dil. Öğr. Gör. Sonuç'!H36="","",'Yab. Dil. Öğr. Gör. Sonuç'!H36) ->  | I36: =IF('Yab. Dil. Öğr. Gör. Sonuç'!I36="","",'Yab. Dil. Öğr. Gör. Sonuç'!I36) ->  | J36: =IF('Yab. Dil. Öğr. Gör. Sonuç'!J36="","",'Yab. Dil. Öğr. Gör. Sonuç'!J36) ->  | K36: =IF('Yab. Dil. Öğr. Gör. Sonuç'!K36="","",'Yab. Dil. Öğr. Gör. Sonuç'!K36) ->  | L36: =IF('Yab. Dil. Öğr. Gör. Sonuç'!L36="","",'Yab. Dil. Öğr. Gör. Sonuç'!L36) ->  | M36: =IF('Yab. Dil. Öğr. Gör. Sonuç'!M36="","",'Yab. Dil. Öğr. Gör. Sonuç'!M36) ->  | N36: =IF('Yab. Dil. Öğr. Gör. Sonuç'!N36="","",'Yab. Dil. Öğr. Gör. Sonuç'!N36) -> 
A37: =IF('Yab. Dil. Öğr. Gör. Sonuç'!A37="","",'Yab. Dil. Öğr. Gör. Sonuç'!A37) ->  | B37: =IF('Yab. Dil. Öğr. Gör. Sonuç'!B37="","",LEFT('Yab. Dil. Öğr. Gör. Sonuç'!B37,3)&REPT("*",4)&RIGHT('Yab. Dil. Öğr. Gör. Sonuç'!B37,2)) ->  | C37: =IF('Yab. Dil. Öğr. Gör. Sonuç'!C37="","",IF(ISERR(FIND(" ",'Yab. Dil. Öğr. Gör. Sonuç'!C37))=TRUE,LEFT('Yab. Dil. Öğr. Gör. Sonuç'!C37,2)&REPT("*",3),LEFT('Yab. Dil. Öğr. Gör. Sonuç'!C37,2)&REPT("*",3)&" "&MID('Yab. Dil. Öğr. Gör. Sonuç'!C37,FIND(" ",'Yab. Dil. Öğr. Gör. Sonuç'!C37)+1,2)&REPT("*",3))) ->  | D37: =IF('Yab. Dil. Öğr. Gör. Sonuç'!D37="","",IF(ISERR(FIND(" ",'Yab. Dil. Öğr. Gör. Sonuç'!D37))=TRUE,LEFT('Yab. Dil. Öğr. Gör. Sonuç'!D37,2)&REPT("*",3),LEFT('Yab. Dil. Öğr. Gör. Sonuç'!D37,2)&REPT("*",3)&" "&MID('Yab. Dil. Öğr. Gör. Sonuç'!D37,FIND(" ",'Yab. Dil. Öğr. Gör. Sonuç'!D37)+1,2)&REPT("*",3))) ->  | E37: =IF('Yab. Dil. Öğr. Gör. Sonuç'!E37="","",'Yab. Dil. Öğr. Gör. Sonuç'!E37) ->  | F37: =IF('Yab. Dil. Öğr. Gör. Sonuç'!F37="","",'Yab. Dil. Öğr. Gör. Sonuç'!F37) ->  | G37: =IF('Yab. Dil. Öğr. Gör. Sonuç'!G37="","",'Yab. Dil. Öğr. Gör. Sonuç'!G37) ->  | H37: =IF('Yab. Dil. Öğr. Gör. Sonuç'!H37="","",'Yab. Dil. Öğr. Gör. Sonuç'!H37) ->  | I37: =IF('Yab. Dil. Öğr. Gör. Sonuç'!I37="","",'Yab. Dil. Öğr. Gör. Sonuç'!I37) ->  | J37: =IF('Yab. Dil. Öğr. Gör. Sonuç'!J37="","",'Yab. Dil. Öğr. Gör. Sonuç'!J37) ->  | K37: =IF('Yab. Dil. Öğr. Gör. Sonuç'!K37="","",'Yab. Dil. Öğr. Gör. Sonuç'!K37) ->  | L37: =IF('Yab. Dil. Öğr. Gör. Sonuç'!L37="","",'Yab. Dil. Öğr. Gör. Sonuç'!L37) ->  | M37: =IF('Yab. Dil. Öğr. Gör. Sonuç'!M37="","",'Yab. Dil. Öğr. Gör. Sonuç'!M37) ->  | N37: =IF('Yab. Dil. Öğr. Gör. Sonuç'!N37="","",'Yab. Dil. Öğr. Gör. Sonuç'!N37) -> 
A38: =IF('Yab. Dil. Öğr. Gör. Sonuç'!A38="","",'Yab. Dil. Öğr. Gör. Sonuç'!A38) ->  | B38: =IF('Yab. Dil. Öğr. Gör. Sonuç'!B38="","",LEFT('Yab. Dil. Öğr. Gör. Sonuç'!B38,3)&REPT("*",4)&RIGHT('Yab. Dil. Öğr. Gör. Sonuç'!B38,2)) ->  | C38: =IF('Yab. Dil. Öğr. Gör. Sonuç'!C38="","",IF(ISERR(FIND(" ",'Yab. Dil. Öğr. Gör. Sonuç'!C38))=TRUE,LEFT('Yab. Dil. Öğr. Gör. Sonuç'!C38,2)&REPT("*",3),LEFT('Yab. Dil. Öğr. Gör. Sonuç'!C38,2)&REPT("*",3)&" "&MID('Yab. Dil. Öğr. Gör. Sonuç'!C38,FIND(" ",'Yab. Dil. Öğr. Gör. Sonuç'!C38)+1,2)&REPT("*",3))) ->  | D38: =IF('Yab. Dil. Öğr. Gör. Sonuç'!D38="","",IF(ISERR(FIND(" ",'Yab. Dil. Öğr. Gör. Sonuç'!D38))=TRUE,LEFT('Yab. Dil. Öğr. Gör. Sonuç'!D38,2)&REPT("*",3),LEFT('Yab. Dil. Öğr. Gör. Sonuç'!D38,2)&REPT("*",3)&" "&MID('Yab. Dil. Öğr. Gör. Sonuç'!D38,FIND(" ",'Yab. Dil. Öğr. Gör. Sonuç'!D38)+1,2)&REPT("*",3))) ->  | E38: =IF('Yab. Dil. Öğr. Gör. Sonuç'!E38="","",'Yab. Dil. Öğr. Gör. Sonuç'!E38) ->  | F38: =IF('Yab. Dil. Öğr. Gör. Sonuç'!F38="","",'Yab. Dil. Öğr. Gör. Sonuç'!F38) ->  | G38: =IF('Yab. Dil. Öğr. Gör. Sonuç'!G38="","",'Yab. Dil. Öğr. Gör. Sonuç'!G38) ->  | H38: =IF('Yab. Dil. Öğr. Gör. Sonuç'!H38="","",'Yab. Dil. Öğr. Gör. Sonuç'!H38) ->  | I38: =IF('Yab. Dil. Öğr. Gör. Sonuç'!I38="","",'Yab. Dil. Öğr. Gör. Sonuç'!I38) ->  | J38: =IF('Yab. Dil. Öğr. Gör. Sonuç'!J38="","",'Yab. Dil. Öğr. Gör. Sonuç'!J38) ->  | K38: =IF('Yab. Dil. Öğr. Gör. Sonuç'!K38="","",'Yab. Dil. Öğr. Gör. Sonuç'!K38) ->  | L38: =IF('Yab. Dil. Öğr. Gör. Sonuç'!L38="","",'Yab. Dil. Öğr. Gör. Sonuç'!L38) ->  | M38: =IF('Yab. Dil. Öğr. Gör. Sonuç'!M38="","",'Yab. Dil. Öğr. Gör. Sonuç'!M38) ->  | N38: =IF('Yab. Dil. Öğr. Gör. Sonuç'!N38="","",'Yab. Dil. Öğr. Gör. Sonuç'!N38) -> 
A39: =IF('Yab. Dil. Öğr. Gör. Sonuç'!A39="","",'Yab. Dil. Öğr. Gör. Sonuç'!A39) ->  | B39: =IF('Yab. Dil. Öğr. Gör. Sonuç'!B39="","",LEFT('Yab. Dil. Öğr. Gör. Sonuç'!B39,3)&REPT("*",4)&RIGHT('Yab. Dil. Öğr. Gör. Sonuç'!B39,2)) ->  | C39: =IF('Yab. Dil. Öğr. Gör. Sonuç'!C39="","",IF(ISERR(FIND(" ",'Yab. Dil. Öğr. Gör. Sonuç'!C39))=TRUE,LEFT('Yab. Dil. Öğr. Gör. Sonuç'!C39,2)&REPT("*",3),LEFT('Yab. Dil. Öğr. Gör. Sonuç'!C39,2)&REPT("*",3)&" "&MID('Yab. Dil. Öğr. Gör. Sonuç'!C39,FIND(" ",'Yab. Dil. Öğr. Gör. Sonuç'!C39)+1,2)&REPT("*",3))) ->  | D39: =IF('Yab. Dil. Öğr. Gör. Sonuç'!D39="","",IF(ISERR(FIND(" ",'Yab. Dil. Öğr. Gör. Sonuç'!D39))=TRUE,LEFT('Yab. Dil. Öğr. Gör. Sonuç'!D39,2)&REPT("*",3),LEFT('Yab. Dil. Öğr. Gör. Sonuç'!D39,2)&REPT("*",3)&" "&MID('Yab. Dil. Öğr. Gör. Sonuç'!D39,FIND(" ",'Yab. Dil. Öğr. Gör. Sonuç'!D39)+1,2)&REPT("*",3))) ->  | E39: =IF('Yab. Dil. Öğr. Gör. Sonuç'!E39="","",'Yab. Dil. Öğr. Gör. Sonuç'!E39) ->  | F39: =IF('Yab. Dil. Öğr. Gör. Sonuç'!F39="","",'Yab. Dil. Öğr. Gör. Sonuç'!F39) ->  | G39: =IF('Yab. Dil. Öğr. Gör. Sonuç'!G39="","",'Yab. Dil. Öğr. Gör. Sonuç'!G39) ->  | H39: =IF('Yab. Dil. Öğr. Gör. Sonuç'!H39="","",'Yab. Dil. Öğr. Gör. Sonuç'!H39) ->  | I39: =IF('Yab. Dil. Öğr. Gör. Sonuç'!I39="","",'Yab. Dil. Öğr. Gör. Sonuç'!I39) ->  | J39: =IF('Yab. Dil. Öğr. Gör. Sonuç'!J39="","",'Yab. Dil. Öğr. Gör. Sonuç'!J39) ->  | K39: =IF('Yab. Dil. Öğr. Gör. Sonuç'!K39="","",'Yab. Dil. Öğr. Gör. Sonuç'!K39) ->  | L39: =IF('Yab. Dil. Öğr. Gör. Sonuç'!L39="","",'Yab. Dil. Öğr. Gör. Sonuç'!L39) ->  | M39: =IF('Yab. Dil. Öğr. Gör. Sonuç'!M39="","",'Yab. Dil. Öğr. Gör. Sonuç'!M39) ->  | N39: =IF('Yab. Dil. Öğr. Gör. Sonuç'!N39="","",'Yab. Dil. Öğr. Gör. Sonuç'!N39) -> 
A40: =IF('Yab. Dil. Öğr. Gör. Sonuç'!A40="","",'Yab. Dil. Öğr. Gör. Sonuç'!A40) ->  | B40: =IF('Yab. Dil. Öğr. Gör. Sonuç'!B40="","",LEFT('Yab. Dil. Öğr. Gör. Sonuç'!B40,3)&REPT("*",4)&RIGHT('Yab. Dil. Öğr. Gör. Sonuç'!B40,2)) ->  | C40: =IF('Yab. Dil. Öğr. Gör. Sonuç'!C40="","",IF(ISERR(FIND(" ",'Yab. Dil. Öğr. Gör. Sonuç'!C40))=TRUE,LEFT('Yab. Dil. Öğr. Gör. Sonuç'!C40,2)&REPT("*",3),LEFT('Yab. Dil. Öğr. Gör. Sonuç'!C40,2)&REPT("*",3)&" "&MID('Yab. Dil. Öğr. Gör. Sonuç'!C40,FIND(" ",'Yab. Dil. Öğr. Gör. Sonuç'!C40)+1,2)&REPT("*",3))) ->  | D40: =IF('Yab. Dil. Öğr. Gör. Sonuç'!D40="","",IF(ISERR(FIND(" ",'Yab. Dil. Öğr. Gör. Sonuç'!D40))=TRUE,LEFT('Yab. Dil. Öğr. Gör. Sonuç'!D40,2)&REPT("*",3),LEFT('Yab. Dil. Öğr. Gör. Sonuç'!D40,2)&REPT("*",3)&" "&MID('Yab. Dil. Öğr. Gör. Sonuç'!D40,FIND(" ",'Yab. Dil. Öğr. Gör. Sonuç'!D40)+1,2)&REPT("*",3))) ->  | E40: =IF('Yab. Dil. Öğr. Gör. Sonuç'!E40="","",'Yab. Dil. Öğr. Gör. Sonuç'!E40) ->  | F40: =IF('Yab. Dil. Öğr. Gör. Sonuç'!F40="","",'Yab. Dil. Öğr. Gör. Sonuç'!F40) ->  | G40: =IF('Yab. Dil. Öğr. Gör. Sonuç'!G40="","",'Yab. Dil. Öğr. Gör. Sonuç'!G40) ->  | H40: =IF('Yab. Dil. Öğr. Gör. Sonuç'!H40="","",'Yab. Dil. Öğr. Gör. Sonuç'!H40) ->  | I40: =IF('Yab. Dil. Öğr. Gör. Sonuç'!I40="","",'Yab. Dil. Öğr. Gör. Sonuç'!I40) ->  | J40: =IF('Yab. Dil. Öğr. Gör. Sonuç'!J40="","",'Yab. Dil. Öğr. Gör. Sonuç'!J40) ->  | K40: =IF('Yab. Dil. Öğr. Gör. Sonuç'!K40="","",'Yab. Dil. Öğr. Gör. Sonuç'!K40) ->  | L40: =IF('Yab. Dil. Öğr. Gör. Sonuç'!L40="","",'Yab. Dil. Öğr. Gör. Sonuç'!L40) ->  | M40: =IF('Yab. Dil. Öğr. Gör. Sonuç'!M40="","",'Yab. Dil. Öğr. Gör. Sonuç'!M40) ->  | N40: =IF('Yab. Dil. Öğr. Gör. Sonuç'!N40="","",'Yab. Dil. Öğr. Gör. Sonuç'!N40) -> 
A41: =IF('Yab. Dil. Öğr. Gör. Sonuç'!A41="","",'Yab. Dil. Öğr. Gör. Sonuç'!A41) ->  | B41: =IF('Yab. Dil. Öğr. Gör. Sonuç'!B41="","",LEFT('Yab. Dil. Öğr. Gör. Sonuç'!B41,3)&REPT("*",4)&RIGHT('Yab. Dil. Öğr. Gör. Sonuç'!B41,2)) ->  | C41: =IF('Yab. Dil. Öğr. Gör. Sonuç'!C41="","",IF(ISERR(FIND(" ",'Yab. Dil. Öğr. Gör. Sonuç'!C41))=TRUE,LEFT('Yab. Dil. Öğr. Gör. Sonuç'!C41,2)&REPT("*",3),LEFT('Yab. Dil. Öğr. Gör. Sonuç'!C41,2)&REPT("*",3)&" "&MID('Yab. Dil. Öğr. Gör. Sonuç'!C41,FIND(" ",'Yab. Dil. Öğr. Gör. Sonuç'!C41)+1,2)&REPT("*",3))) ->  | D41: =IF('Yab. Dil. Öğr. Gör. Sonuç'!D41="","",IF(ISERR(FIND(" ",'Yab. Dil. Öğr. Gör. Sonuç'!D41))=TRUE,LEFT('Yab. Dil. Öğr. Gör. Sonuç'!D41,2)&REPT("*",3),LEFT('Yab. Dil. Öğr. Gör. Sonuç'!D41,2)&REPT("*",3)&" "&MID('Yab. Dil. Öğr. Gör. Sonuç'!D41,FIND(" ",'Yab. Dil. Öğr. Gör. Sonuç'!D41)+1,2)&REPT("*",3))) ->  | E41: =IF('Yab. Dil. Öğr. Gör. Sonuç'!E41="","",'Yab. Dil. Öğr. Gör. Sonuç'!E41) ->  | F41: =IF('Yab. Dil. Öğr. Gör. Sonuç'!F41="","",'Yab. Dil. Öğr. Gör. Sonuç'!F41) ->  | G41: =IF('Yab. Dil. Öğr. Gör. Sonuç'!G41="","",'Yab. Dil. Öğr. Gör. Sonuç'!G41) ->  | H41: =IF('Yab. Dil. Öğr. Gör. Sonuç'!H41="","",'Yab. Dil. Öğr. Gör. Sonuç'!H41) ->  | I41: =IF('Yab. Dil. Öğr. Gör. Sonuç'!I41="","",'Yab. Dil. Öğr. Gör. Sonuç'!I41) ->  | J41: =IF('Yab. Dil. Öğr. Gör. Sonuç'!J41="","",'Yab. Dil. Öğr. Gör. Sonuç'!J41) ->  | K41: =IF('Yab. Dil. Öğr. Gör. Sonuç'!K41="","",'Yab. Dil. Öğr. Gör. Sonuç'!K41) ->  | L41: =IF('Yab. Dil. Öğr. Gör. Sonuç'!L41="","",'Yab. Dil. Öğr. Gör. Sonuç'!L41) ->  | M41: =IF('Yab. Dil. Öğr. Gör. Sonuç'!M41="","",'Yab. Dil. Öğr. Gör. Sonuç'!M41) ->  | N41: =IF('Yab. Dil. Öğr. Gör. Sonuç'!N41="","",'Yab. Dil. Öğr. Gör. Sonuç'!N41) -> 
A42: =IF('Yab. Dil. Öğr. Gör. Sonuç'!A42="","",'Yab. Dil. Öğr. Gör. Sonuç'!A42) ->  | B42: =IF('Yab. Dil. Öğr. Gör. Sonuç'!B42="","",LEFT('Yab. Dil. Öğr. Gör. Sonuç'!B42,3)&REPT("*",4)&RIGHT('Yab. Dil. Öğr. Gör. Sonuç'!B42,2)) ->  | C42: =IF('Yab. Dil. Öğr. Gör. Sonuç'!C42="","",IF(ISERR(FIND(" ",'Yab. Dil. Öğr. Gör. Sonuç'!C42))=TRUE,LEFT('Yab. Dil. Öğr. Gör. Sonuç'!C42,2)&REPT("*",3),LEFT('Yab. Dil. Öğr. Gör. Sonuç'!C42,2)&REPT("*",3)&" "&MID('Yab. Dil. Öğr. Gör. Sonuç'!C42,FIND(" ",'Yab. Dil. Öğr. Gör. Sonuç'!C42)+1,2)&REPT("*",3))) ->  | D42: =IF('Yab. Dil. Öğr. Gör. Sonuç'!D42="","",IF(ISERR(FIND(" ",'Yab. Dil. Öğr. Gör. Sonuç'!D42))=TRUE,LEFT('Yab. Dil. Öğr. Gör. Sonuç'!D42,2)&REPT("*",3),LEFT('Yab. Dil. Öğr. Gör. Sonuç'!D42,2)&REPT("*",3)&" "&MID('Yab. Dil. Öğr. Gör. Sonuç'!D42,FIND(" ",'Yab. Dil. Öğr. Gör. Sonuç'!D42)+1,2)&REPT("*",3))) ->  | E42: =IF('Yab. Dil. Öğr. Gör. Sonuç'!E42="","",'Yab. Dil. Öğr. Gör. Sonuç'!E42) ->  | F42: =IF('Yab. Dil. Öğr. Gör. Sonuç'!F42="","",'Yab. Dil. Öğr. Gör. Sonuç'!F42) ->  | G42: =IF('Yab. Dil. Öğr. Gör. Sonuç'!G42="","",'Yab. Dil. Öğr. Gör. Sonuç'!G42) ->  | H42: =IF('Yab. Dil. Öğr. Gör. Sonuç'!H42="","",'Yab. Dil. Öğr. Gör. Sonuç'!H42) ->  | I42: =IF('Yab. Dil. Öğr. Gör. Sonuç'!I42="","",'Yab. Dil. Öğr. Gör. Sonuç'!I42) ->  | J42: =IF('Yab. Dil. Öğr. Gör. Sonuç'!J42="","",'Yab. Dil. Öğr. Gör. Sonuç'!J42) ->  | K42: =IF('Yab. Dil. Öğr. Gör. Sonuç'!K42="","",'Yab. Dil. Öğr. Gör. Sonuç'!K42) ->  | L42: =IF('Yab. Dil. Öğr. Gör. Sonuç'!L42="","",'Yab. Dil. Öğr. Gör. Sonuç'!L42) ->  | M42: =IF('Yab. Dil. Öğr. Gör. Sonuç'!M42="","",'Yab. Dil. Öğr. Gör. Sonuç'!M42) ->  | N42: =IF('Yab. Dil. Öğr. Gör. Sonuç'!N42="","",'Yab. Dil. Öğr. Gör. Sonuç'!N42) -> 
A43: =IF('Yab. Dil. Öğr. Gör. Sonuç'!A43="","",'Yab. Dil. Öğr. Gör. Sonuç'!A43) ->  | B43: =IF('Yab. Dil. Öğr. Gör. Sonuç'!B43="","",LEFT('Yab. Dil. Öğr. Gör. Sonuç'!B43,3)&REPT("*",4)&RIGHT('Yab. Dil. Öğr. Gör. Sonuç'!B43,2)) ->  | C43: =IF('Yab. Dil. Öğr. Gör. Sonuç'!C43="","",IF(ISERR(FIND(" ",'Yab. Dil. Öğr. Gör. Sonuç'!C43))=TRUE,LEFT('Yab. Dil. Öğr. Gör. Sonuç'!C43,2)&REPT("*",3),LEFT('Yab. Dil. Öğr. Gör. Sonuç'!C43,2)&REPT("*",3)&" "&MID('Yab. Dil. Öğr. Gör. Sonuç'!C43,FIND(" ",'Yab. Dil. Öğr. Gör. Sonuç'!C43)+1,2)&REPT("*",3))) ->  | D43: =IF('Yab. Dil. Öğr. Gör. Sonuç'!D43="","",IF(ISERR(FIND(" ",'Yab. Dil. Öğr. Gör. Sonuç'!D43))=TRUE,LEFT('Yab. Dil. Öğr. Gör. Sonuç'!D43,2)&REPT("*",3),LEFT('Yab. Dil. Öğr. Gör. Sonuç'!D43,2)&REPT("*",3)&" "&MID('Yab. Dil. Öğr. Gör. Sonuç'!D43,FIND(" ",'Yab. Dil. Öğr. Gör. Sonuç'!D43)+1,2)&REPT("*",3))) ->  | E43: =IF('Yab. Dil. Öğr. Gör. Sonuç'!E43="","",'Yab. Dil. Öğr. Gör. Sonuç'!E43) ->  | F43: =IF('Yab. Dil. Öğr. Gör. Sonuç'!F43="","",'Yab. Dil. Öğr. Gör. Sonuç'!F43) ->  | G43: =IF('Yab. Dil. Öğr. Gör. Sonuç'!G43="","",'Yab. Dil. Öğr. Gör. Sonuç'!G43) ->  | H43: =IF('Yab. Dil. Öğr. Gör. Sonuç'!H43="","",'Yab. Dil. Öğr. Gör. Sonuç'!H43) ->  | I43: =IF('Yab. Dil. Öğr. Gör. Sonuç'!I43="","",'Yab. Dil. Öğr. Gör. Sonuç'!I43) ->  | J43: =IF('Yab. Dil. Öğr. Gör. Sonuç'!J43="","",'Yab. Dil. Öğr. Gör. Sonuç'!J43) ->  | K43: =IF('Yab. Dil. Öğr. Gör. Sonuç'!K43="","",'Yab. Dil. Öğr. Gör. Sonuç'!K43) ->  | L43: =IF('Yab. Dil. Öğr. Gör. Sonuç'!L43="","",'Yab. Dil. Öğr. Gör. Sonuç'!L43) ->  | M43: =IF('Yab. Dil. Öğr. Gör. Sonuç'!M43="","",'Yab. Dil. Öğr. Gör. Sonuç'!M43) ->  | N43: =IF('Yab. Dil. Öğr. Gör. Sonuç'!N43="","",'Yab. Dil. Öğr. Gör. Sonuç'!N43) -> 
A44: =IF('Yab. Dil. Öğr. Gör. Sonuç'!A44="","",'Yab. Dil. Öğr. Gör. Sonuç'!A44) ->  | B44: =IF('Yab. Dil. Öğr. Gör. Sonuç'!B44="","",LEFT('Yab. Dil. Öğr. Gör. Sonuç'!B44,3)&REPT("*",4)&RIGHT('Yab. Dil. Öğr. Gör. Sonuç'!B44,2)) ->  | C44: =IF('Yab. Dil. Öğr. Gör. Sonuç'!C44="","",IF(ISERR(FIND(" ",'Yab. Dil. Öğr. Gör. Sonuç'!C44))=TRUE,LEFT('Yab. Dil. Öğr. Gör. Sonuç'!C44,2)&REPT("*",3),LEFT('Yab. Dil. Öğr. Gör. Sonuç'!C44,2)&REPT("*",3)&" "&MID('Yab. Dil. Öğr. Gör. Sonuç'!C44,FIND(" ",'Yab. Dil. Öğr. Gör. Sonuç'!C44)+1,2)&REPT("*",3))) ->  | D44: =IF('Yab. Dil. Öğr. Gör. Sonuç'!D44="","",IF(ISERR(FIND(" ",'Yab. Dil. Öğr. Gör. Sonuç'!D44))=TRUE,LEFT('Yab. Dil. Öğr. Gör. Sonuç'!D44,2)&REPT("*",3),LEFT('Yab. Dil. Öğr. Gör. Sonuç'!D44,2)&REPT("*",3)&" "&MID('Yab. Dil. Öğr. Gör. Sonuç'!D44,FIND(" ",'Yab. Dil. Öğr. Gör. Sonuç'!D44)+1,2)&REPT("*",3))) ->  | E44: =IF('Yab. Dil. Öğr. Gör. Sonuç'!E44="","",'Yab. Dil. Öğr. Gör. Sonuç'!E44) ->  | F44: =IF('Yab. Dil. Öğr. Gör. Sonuç'!F44="","",'Yab. Dil. Öğr. Gör. Sonuç'!F44) ->  | G44: =IF('Yab. Dil. Öğr. Gör. Sonuç'!G44="","",'Yab. Dil. Öğr. Gör. Sonuç'!G44) ->  | H44: =IF('Yab. Dil. Öğr. Gör. Sonuç'!H44="","",'Yab. Dil. Öğr. Gör. Sonuç'!H44) ->  | I44: =IF('Yab. Dil. Öğr. Gör. Sonuç'!I44="","",'Yab. Dil. Öğr. Gör. Sonuç'!I44) ->  | J44: =IF('Yab. Dil. Öğr. Gör. Sonuç'!J44="","",'Yab. Dil. Öğr. Gör. Sonuç'!J44) ->  | K44: =IF('Yab. Dil. Öğr. Gör. Sonuç'!K44="","",'Yab. Dil. Öğr. Gör. Sonuç'!K44) ->  | L44: =IF('Yab. Dil. Öğr. Gör. Sonuç'!L44="","",'Yab. Dil. Öğr. Gör. Sonuç'!L44) ->  | M44: =IF('Yab. Dil. Öğr. Gör. Sonuç'!M44="","",'Yab. Dil. Öğr. Gör. Sonuç'!M44) ->  | N44: =IF('Yab. Dil. Öğr. Gör. Sonuç'!N44="","",'Yab. Dil. Öğr. Gör. Sonuç'!N44) -> 
A45: =IF('Yab. Dil. Öğr. Gör. Sonuç'!A45="","",'Yab. Dil. Öğr. Gör. Sonuç'!A45) ->  | B45: =IF('Yab. Dil. Öğr. Gör. Sonuç'!B45="","",LEFT('Yab. Dil. Öğr. Gör. Sonuç'!B45,3)&REPT("*",4)&RIGHT('Yab. Dil. Öğr. Gör. Sonuç'!B45,2)) ->  | C45: =IF('Yab. Dil. Öğr. Gör. Sonuç'!C45="","",IF(ISERR(FIND(" ",'Yab. Dil. Öğr. Gör. Sonuç'!C45))=TRUE,LEFT('Yab. Dil. Öğr. Gör. Sonuç'!C45,2)&REPT("*",3),LEFT('Yab. Dil. Öğr. Gör. Sonuç'!C45,2)&REPT("*",3)&" "&MID('Yab. Dil. Öğr. Gör. Sonuç'!C45,FIND(" ",'Yab. Dil. Öğr. Gör. Sonuç'!C45)+1,2)&REPT("*",3))) ->  | D45: =IF('Yab. Dil. Öğr. Gör. Sonuç'!D45="","",IF(ISERR(FIND(" ",'Yab. Dil. Öğr. Gör. Sonuç'!D45))=TRUE,LEFT('Yab. Dil. Öğr. Gör. Sonuç'!D45,2)&REPT("*",3),LEFT('Yab. Dil. Öğr. Gör. Sonuç'!D45,2)&REPT("*",3)&" "&MID('Yab. Dil. Öğr. Gör. Sonuç'!D45,FIND(" ",'Yab. Dil. Öğr. Gör. Sonuç'!D45)+1,2)&REPT("*",3))) ->  | E45: =IF('Yab. Dil. Öğr. Gör. Sonuç'!E45="","",'Yab. Dil. Öğr. Gör. Sonuç'!E45) ->  | F45: =IF('Yab. Dil. Öğr. Gör. Sonuç'!F45="","",'Yab. Dil. Öğr. Gör. Sonuç'!F45) ->  | G45: =IF('Yab. Dil. Öğr. Gör. Sonuç'!G45="","",'Yab. Dil. Öğr. Gör. Sonuç'!G45) ->  | H45: =IF('Yab. Dil. Öğr. Gör. Sonuç'!H45="","",'Yab. Dil. Öğr. Gör. Sonuç'!H45) ->  | I45: =IF('Yab. Dil. Öğr. Gör. Sonuç'!I45="","",'Yab. Dil. Öğr. Gör. Sonuç'!I45) ->  | J45: =IF('Yab. Dil. Öğr. Gör. Sonuç'!J45="","",'Yab. Dil. Öğr. Gör. Sonuç'!J45) ->  | K45: =IF('Yab. Dil. Öğr. Gör. Sonuç'!K45="","",'Yab. Dil. Öğr. Gör. Sonuç'!K45) ->  | L45: =IF('Yab. Dil. Öğr. Gör. Sonuç'!L45="","",'Yab. Dil. Öğr. Gör. Sonuç'!L45) ->  | M45: =IF('Yab. Dil. Öğr. Gör. Sonuç'!M45="","",'Yab. Dil. Öğr. Gör. Sonuç'!M45) ->  | N45: =IF('Yab. Dil. Öğr. Gör. Sonuç'!N45="","",'Yab. Dil. Öğr. Gör. Sonuç'!N45) -> 
A46: =IF('Yab. Dil. Öğr. Gör. Sonuç'!A46="","",'Yab. Dil. Öğr. Gör. Sonuç'!A46) ->  | B46: =IF('Yab. Dil. Öğr. Gör. Sonuç'!B46="","",LEFT('Yab. Dil. Öğr. Gör. Sonuç'!B46,3)&REPT("*",4)&RIGHT('Yab. Dil. Öğr. Gör. Sonuç'!B46,2)) ->  | C46: =IF('Yab. Dil. Öğr. Gör. Sonuç'!C46="","",IF(ISERR(FIND(" ",'Yab. Dil. Öğr. Gör. Sonuç'!C46))=TRUE,LEFT('Yab. Dil. Öğr. Gör. Sonuç'!C46,2)&REPT("*",3),LEFT('Yab. Dil. Öğr. Gör. Sonuç'!C46,2)&REPT("*",3)&" "&MID('Yab. Dil. Öğr. Gör. Sonuç'!C46,FIND(" ",'Yab. Dil. Öğr. Gör. Sonuç'!C46)+1,2)&REPT("*",3))) ->  | D46: =IF('Yab. Dil. Öğr. Gör. Sonuç'!D46="","",IF(ISERR(FIND(" ",'Yab. Dil. Öğr. Gör. Sonuç'!D46))=TRUE,LEFT('Yab. Dil. Öğr. Gör. Sonuç'!D46,2)&REPT("*",3),LEFT('Yab. Dil. Öğr. Gör. Sonuç'!D46,2)&REPT("*",3)&" "&MID('Yab. Dil. Öğr. Gör. Sonuç'!D46,FIND(" ",'Yab. Dil. Öğr. Gör. Sonuç'!D46)+1,2)&REPT("*",3))) ->  | E46: =IF('Yab. Dil. Öğr. Gör. Sonuç'!E46="","",'Yab. Dil. Öğr. Gör. Sonuç'!E46) ->  | F46: =IF('Yab. Dil. Öğr. Gör. Sonuç'!F46="","",'Yab. Dil. Öğr. Gör. Sonuç'!F46) ->  | G46: =IF('Yab. Dil. Öğr. Gör. Sonuç'!G46="","",'Yab. Dil. Öğr. Gör. Sonuç'!G46) ->  | H46: =IF('Yab. Dil. Öğr. Gör. Sonuç'!H46="","",'Yab. Dil. Öğr. Gör. Sonuç'!H46) ->  | I46: =IF('Yab. Dil. Öğr. Gör. Sonuç'!I46="","",'Yab. Dil. Öğr. Gör. Sonuç'!I46) ->  | J46: =IF('Yab. Dil. Öğr. Gör. Sonuç'!J46="","",'Yab. Dil. Öğr. Gör. Sonuç'!J46) ->  | K46: =IF('Yab. Dil. Öğr. Gör. Sonuç'!K46="","",'Yab. Dil. Öğr. Gör. Sonuç'!K46) ->  | L46: =IF('Yab. Dil. Öğr. Gör. Sonuç'!L46="","",'Yab. Dil. Öğr. Gör. Sonuç'!L46) ->  | M46: =IF('Yab. Dil. Öğr. Gör. Sonuç'!M46="","",'Yab. Dil. Öğr. Gör. Sonuç'!M46) ->  | N46: =IF('Yab. Dil. Öğr. Gör. Sonuç'!N46="","",'Yab. Dil. Öğr. Gör. Sonuç'!N46) -> 
A47: =IF('Yab. Dil. Öğr. Gör. Sonuç'!A47="","",'Yab. Dil. Öğr. Gör. Sonuç'!A47) ->  | B47: =IF('Yab. Dil. Öğr. Gör. Sonuç'!B47="","",LEFT('Yab. Dil. Öğr. Gör. Sonuç'!B47,3)&REPT("*",4)&RIGHT('Yab. Dil. Öğr. Gör. Sonuç'!B47,2)) ->  | C47: =IF('Yab. Dil. Öğr. Gör. Sonuç'!C47="","",IF(ISERR(FIND(" ",'Yab. Dil. Öğr. Gör. Sonuç'!C47))=TRUE,LEFT('Yab. Dil. Öğr. Gör. Sonuç'!C47,2)&REPT("*",3),LEFT('Yab. Dil. Öğr. Gör. Sonuç'!C47,2)&REPT("*",3)&" "&MID('Yab. Dil. Öğr. Gör. Sonuç'!C47,FIND(" ",'Yab. Dil. Öğr. Gör. Sonuç'!C47)+1,2)&REPT("*",3))) ->  | D47: =IF('Yab. Dil. Öğr. Gör. Sonuç'!D47="","",IF(ISERR(FIND(" ",'Yab. Dil. Öğr. Gör. Sonuç'!D47))=TRUE,LEFT('Yab. Dil. Öğr. Gör. Sonuç'!D47,2)&REPT("*",3),LEFT('Yab. Dil. Öğr. Gör. Sonuç'!D47,2)&REPT("*",3)&" "&MID('Yab. Dil. Öğr. Gör. Sonuç'!D47,FIND(" ",'Yab. Dil. Öğr. Gör. Sonuç'!D47)+1,2)&REPT("*",3))) ->  | E47: =IF('Yab. Dil. Öğr. Gör. Sonuç'!E47="","",'Yab. Dil. Öğr. Gör. Sonuç'!E47) ->  | F47: =IF('Yab. Dil. Öğr. Gör. Sonuç'!F47="","",'Yab. Dil. Öğr. Gör. Sonuç'!F47) ->  | G47: =IF('Yab. Dil. Öğr. Gör. Sonuç'!G47="","",'Yab. Dil. Öğr. Gör. Sonuç'!G47) ->  | H47: =IF('Yab. Dil. Öğr. Gör. Sonuç'!H47="","",'Yab. Dil. Öğr. Gör. Sonuç'!H47) ->  | I47: =IF('Yab. Dil. Öğr. Gör. Sonuç'!I47="","",'Yab. Dil. Öğr. Gör. Sonuç'!I47) ->  | J47: =IF('Yab. Dil. Öğr. Gör. Sonuç'!J47="","",'Yab. Dil. Öğr. Gör. Sonuç'!J47) ->  | K47: =IF('Yab. Dil. Öğr. Gör. Sonuç'!K47="","",'Yab. Dil. Öğr. Gör. Sonuç'!K47) ->  | L47: =IF('Yab. Dil. Öğr. Gör. Sonuç'!L47="","",'Yab. Dil. Öğr. Gör. Sonuç'!L47) ->  | M47: =IF('Yab. Dil. Öğr. Gör. Sonuç'!M47="","",'Yab. Dil. Öğr. Gör. Sonuç'!M47) ->  | N47: =IF('Yab. Dil. Öğr. Gör. Sonuç'!N47="","",'Yab. Dil. Öğr. Gör. Sonuç'!N47) -> 
A48: =IF('Yab. Dil. Öğr. Gör. Sonuç'!A48="","",'Yab. Dil. Öğr. Gör. Sonuç'!A48) ->  | B48: =IF('Yab. Dil. Öğr. Gör. Sonuç'!B48="","",LEFT('Yab. Dil. Öğr. Gör. Sonuç'!B48,3)&REPT("*",4)&RIGHT('Yab. Dil. Öğr. Gör. Sonuç'!B48,2)) ->  | C48: =IF('Yab. Dil. Öğr. Gör. Sonuç'!C48="","",IF(ISERR(FIND(" ",'Yab. Dil. Öğr. Gör. Sonuç'!C48))=TRUE,LEFT('Yab. Dil. Öğr. Gör. Sonuç'!C48,2)&REPT("*",3),LEFT('Yab. Dil. Öğr. Gör. Sonuç'!C48,2)&REPT("*",3)&" "&MID('Yab. Dil. Öğr. Gör. Sonuç'!C48,FIND(" ",'Yab. Dil. Öğr. Gör. Sonuç'!C48)+1,2)&REPT("*",3))) ->  | D48: =IF('Yab. Dil. Öğr. Gör. Sonuç'!D48="","",IF(ISERR(FIND(" ",'Yab. Dil. Öğr. Gör. Sonuç'!D48))=TRUE,LEFT('Yab. Dil. Öğr. Gör. Sonuç'!D48,2)&REPT("*",3),LEFT('Yab. Dil. Öğr. Gör. Sonuç'!D48,2)&REPT("*",3)&" "&MID('Yab. Dil. Öğr. Gör. Sonuç'!D48,FIND(" ",'Yab. Dil. Öğr. Gör. Sonuç'!D48)+1,2)&REPT("*",3))) ->  | E48: =IF('Yab. Dil. Öğr. Gör. Sonuç'!E48="","",'Yab. Dil. Öğr. Gör. Sonuç'!E48) ->  | F48: =IF('Yab. Dil. Öğr. Gör. Sonuç'!F48="","",'Yab. Dil. Öğr. Gör. Sonuç'!F48) ->  | G48: =IF('Yab. Dil. Öğr. Gör. Sonuç'!G48="","",'Yab. Dil. Öğr. Gör. Sonuç'!G48) ->  | H48: =IF('Yab. Dil. Öğr. Gör. Sonuç'!H48="","",'Yab. Dil. Öğr. Gör. Sonuç'!H48) ->  | I48: =IF('Yab. Dil. Öğr. Gör. Sonuç'!I48="","",'Yab. Dil. Öğr. Gör. Sonuç'!I48) ->  | J48: =IF('Yab. Dil. Öğr. Gör. Sonuç'!J48="","",'Yab. Dil. Öğr. Gör. Sonuç'!J48) ->  | K48: =IF('Yab. Dil. Öğr. Gör. Sonuç'!K48="","",'Yab. Dil. Öğr. Gör. Sonuç'!K48) ->  | L48: =IF('Yab. Dil. Öğr. Gör. Sonuç'!L48="","",'Yab. Dil. Öğr. Gör. Sonuç'!L48) ->  | M48: =IF('Yab. Dil. Öğr. Gör. Sonuç'!M48="","",'Yab. Dil. Öğr. Gör. Sonuç'!M48) ->  | N48: =IF('Yab. Dil. Öğr. Gör. Sonuç'!N48="","",'Yab. Dil. Öğr. Gör. Sonuç'!N48) -> 
A49: =IF('Yab. Dil. Öğr. Gör. Sonuç'!A49="","",'Yab. Dil. Öğr. Gör. Sonuç'!A49) ->  | B49: =IF('Yab. Dil. Öğr. Gör. Sonuç'!B49="","",LEFT('Yab. Dil. Öğr. Gör. Sonuç'!B49,3)&REPT("*",4)&RIGHT('Yab. Dil. Öğr. Gör. Sonuç'!B49,2)) ->  | C49: =IF('Yab. Dil. Öğr. Gör. Sonuç'!C49="","",IF(ISERR(FIND(" ",'Yab. Dil. Öğr. Gör. Sonuç'!C49))=TRUE,LEFT('Yab. Dil. Öğr. Gör. Sonuç'!C49,2)&REPT("*",3),LEFT('Yab. Dil. Öğr. Gör. Sonuç'!C49,2)&REPT("*",3)&" "&MID('Yab. Dil. Öğr. Gör. Sonuç'!C49,FIND(" ",'Yab. Dil. Öğr. Gör. Sonuç'!C49)+1,2)&REPT("*",3))) ->  | D49: =IF('Yab. Dil. Öğr. Gör. Sonuç'!D49="","",IF(ISERR(FIND(" ",'Yab. Dil. Öğr. Gör. Sonuç'!D49))=TRUE,LEFT('Yab. Dil. Öğr. Gör. Sonuç'!D49,2)&REPT("*",3),LEFT('Yab. Dil. Öğr. Gör. Sonuç'!D49,2)&REPT("*",3)&" "&MID('Yab. Dil. Öğr. Gör. Sonuç'!D49,FIND(" ",'Yab. Dil. Öğr. Gör. Sonuç'!D49)+1,2)&REPT("*",3))) ->  | E49: =IF('Yab. Dil. Öğr. Gör. Sonuç'!E49="","",'Yab. Dil. Öğr. Gör. Sonuç'!E49) ->  | F49: =IF('Yab. Dil. Öğr. Gör. Sonuç'!F49="","",'Yab. Dil. Öğr. Gör. Sonuç'!F49) ->  | G49: =IF('Yab. Dil. Öğr. Gör. Sonuç'!G49="","",'Yab. Dil. Öğr. Gör. Sonuç'!G49) ->  | H49: =IF('Yab. Dil. Öğr. Gör. Sonuç'!H49="","",'Yab. Dil. Öğr. Gör. Sonuç'!H49) ->  | I49: =IF('Yab. Dil. Öğr. Gör. Sonuç'!I49="","",'Yab. Dil. Öğr. Gör. Sonuç'!I49) ->  | J49: =IF('Yab. Dil. Öğr. Gör. Sonuç'!J49="","",'Yab. Dil. Öğr. Gör. Sonuç'!J49) ->  | K49: =IF('Yab. Dil. Öğr. Gör. Sonuç'!K49="","",'Yab. Dil. Öğr. Gör. Sonuç'!K49) ->  | L49: =IF('Yab. Dil. Öğr. Gör. Sonuç'!L49="","",'Yab. Dil. Öğr. Gör. Sonuç'!L49) ->  | M49: =IF('Yab. Dil. Öğr. Gör. Sonuç'!M49="","",'Yab. Dil. Öğr. Gör. Sonuç'!M49) ->  | N49: =IF('Yab. Dil. Öğr. Gör. Sonuç'!N49="","",'Yab. Dil. Öğr. Gör. Sonuç'!N49) -> 
A50: =IF('Yab. Dil. Öğr. Gör. Sonuç'!A50="","",'Yab. Dil. Öğr. Gör. Sonuç'!A50) ->  | B50: =IF('Yab. Dil. Öğr. Gör. Sonuç'!B50="","",LEFT('Yab. Dil. Öğr. Gör. Sonuç'!B50,3)&REPT("*",4)&RIGHT('Yab. Dil. Öğr. Gör. Sonuç'!B50,2)) ->  | C50: =IF('Yab. Dil. Öğr. Gör. Sonuç'!C50="","",IF(ISERR(FIND(" ",'Yab. Dil. Öğr. Gör. Sonuç'!C50))=TRUE,LEFT('Yab. Dil. Öğr. Gör. Sonuç'!C50,2)&REPT("*",3),LEFT('Yab. Dil. Öğr. Gör. Sonuç'!C50,2)&REPT("*",3)&" "&MID('Yab. Dil. Öğr. Gör. Sonuç'!C50,FIND(" ",'Yab. Dil. Öğr. Gör. Sonuç'!C50)+1,2)&REPT("*",3))) ->  | D50: =IF('Yab. Dil. Öğr. Gör. Sonuç'!D50="","",IF(ISERR(FIND(" ",'Yab. Dil. Öğr. Gör. Sonuç'!D50))=TRUE,LEFT('Yab. Dil. Öğr. Gör. Sonuç'!D50,2)&REPT("*",3),LEFT('Yab. Dil. Öğr. Gör. Sonuç'!D50,2)&REPT("*",3)&" "&MID('Yab. Dil. Öğr. Gör. Sonuç'!D50,FIND(" ",'Yab. Dil. Öğr. Gör. Sonuç'!D50)+1,2)&REPT("*",3))) ->  | E50: =IF('Yab. Dil. Öğr. Gör. Sonuç'!E50="","",'Yab. Dil. Öğr. Gör. Sonuç'!E50) ->  | F50: =IF('Yab. Dil. Öğr. Gör. Sonuç'!F50="","",'Yab. Dil. Öğr. Gör. Sonuç'!F50) ->  | G50: =IF('Yab. Dil. Öğr. Gör. Sonuç'!G50="","",'Yab. Dil. Öğr. Gör. Sonuç'!G50) ->  | H50: =IF('Yab. Dil. Öğr. Gör. Sonuç'!H50="","",'Yab. Dil. Öğr. Gör. Sonuç'!H50) ->  | I50: =IF('Yab. Dil. Öğr. Gör. Sonuç'!I50="","",'Yab. Dil. Öğr. Gör. Sonuç'!I50) ->  | J50: =IF('Yab. Dil. Öğr. Gör. Sonuç'!J50="","",'Yab. Dil. Öğr. Gör. Sonuç'!J50) ->  | K50: =IF('Yab. Dil. Öğr. Gör. Sonuç'!K50="","",'Yab. Dil. Öğr. Gör. Sonuç'!K50) ->  | L50: =IF('Yab. Dil. Öğr. Gör. Sonuç'!L50="","",'Yab. Dil. Öğr. Gör. Sonuç'!L50) ->  | M50: =IF('Yab. Dil. Öğr. Gör. Sonuç'!M50="","",'Yab. Dil. Öğr. Gör. Sonuç'!M50) ->  | N50: =IF('Yab. Dil. Öğr. Gör. Sonuç'!N50="","",'Yab. Dil. Öğr. Gör. Sonuç'!N50) -> 
A51: =IF('Yab. Dil. Öğr. Gör. Sonuç'!A51="","",'Yab. Dil. Öğr. Gör. Sonuç'!A51) ->  | B51: =IF('Yab. Dil. Öğr. Gör. Sonuç'!B51="","",LEFT('Yab. Dil. Öğr. Gör. Sonuç'!B51,3)&REPT("*",4)&RIGHT('Yab. Dil. Öğr. Gör. Sonuç'!B51,2)) ->  | C51: =IF('Yab. Dil. Öğr. Gör. Sonuç'!C51="","",IF(ISERR(FIND(" ",'Yab. Dil. Öğr. Gör. Sonuç'!C51))=TRUE,LEFT('Yab. Dil. Öğr. Gör. Sonuç'!C51,2)&REPT("*",3),LEFT('Yab. Dil. Öğr. Gör. Sonuç'!C51,2)&REPT("*",3)&" "&MID('Yab. Dil. Öğr. Gör. Sonuç'!C51,FIND(" ",'Yab. Dil. Öğr. Gör. Sonuç'!C51)+1,2)&REPT("*",3))) ->  | D51: =IF('Yab. Dil. Öğr. Gör. Sonuç'!D51="","",IF(ISERR(FIND(" ",'Yab. Dil. Öğr. Gör. Sonuç'!D51))=TRUE,LEFT('Yab. Dil. Öğr. Gör. Sonuç'!D51,2)&REPT("*",3),LEFT('Yab. Dil. Öğr. Gör. Sonuç'!D51,2)&REPT("*",3)&" "&MID('Yab. Dil. Öğr. Gör. Sonuç'!D51,FIND(" ",'Yab. Dil. Öğr. Gör. Sonuç'!D51)+1,2)&REPT("*",3))) ->  | E51: =IF('Yab. Dil. Öğr. Gör. Sonuç'!E51="","",'Yab. Dil. Öğr. Gör. Sonuç'!E51) ->  | F51: =IF('Yab. Dil. Öğr. Gör. Sonuç'!F51="","",'Yab. Dil. Öğr. Gör. Sonuç'!F51) ->  | G51: =IF('Yab. Dil. Öğr. Gör. Sonuç'!G51="","",'Yab. Dil. Öğr. Gör. Sonuç'!G51) ->  | H51: =IF('Yab. Dil. Öğr. Gör. Sonuç'!H51="","",'Yab. Dil. Öğr. Gör. Sonuç'!H51) ->  | I51: =IF('Yab. Dil. Öğr. Gör. Sonuç'!I51="","",'Yab. Dil. Öğr. Gör. Sonuç'!I51) ->  | J51: =IF('Yab. Dil. Öğr. Gör. Sonuç'!J51="","",'Yab. Dil. Öğr. Gör. Sonuç'!J51) ->  | K51: =IF('Yab. Dil. Öğr. Gör. Sonuç'!K51="","",'Yab. Dil. Öğr. Gör. Sonuç'!K51) ->  | L51: =IF('Yab. Dil. Öğr. Gör. Sonuç'!L51="","",'Yab. Dil. Öğr. Gör. Sonuç'!L51) ->  | M51: =IF('Yab. Dil. Öğr. Gör. Sonuç'!M51="","",'Yab. Dil. Öğr. Gör. Sonuç'!M51) ->  | N51: =IF('Yab. Dil. Öğr. Gör. Sonuç'!N51="","",'Yab. Dil. Öğr. Gör. Sonuç'!N51) -> 
A52: =IF('Yab. Dil. Öğr. Gör. Sonuç'!A52="","",'Yab. Dil. Öğr. Gör. Sonuç'!A52) ->  | B52: =IF('Yab. Dil. Öğr. Gör. Sonuç'!B52="","",LEFT('Yab. Dil. Öğr. Gör. Sonuç'!B52,3)&REPT("*",4)&RIGHT('Yab. Dil. Öğr. Gör. Sonuç'!B52,2)) ->  | C52: =IF('Yab. Dil. Öğr. Gör. Sonuç'!C52="","",IF(ISERR(FIND(" ",'Yab. Dil. Öğr. Gör. Sonuç'!C52))=TRUE,LEFT('Yab. Dil. Öğr. Gör. Sonuç'!C52,2)&REPT("*",3),LEFT('Yab. Dil. Öğr. Gör. Sonuç'!C52,2)&REPT("*",3)&" "&MID('Yab. Dil. Öğr. Gör. Sonuç'!C52,FIND(" ",'Yab. Dil. Öğr. Gör. Sonuç'!C52)+1,2)&REPT("*",3))) ->  | D52: =IF('Yab. Dil. Öğr. Gör. Sonuç'!D52="","",IF(ISERR(FIND(" ",'Yab. Dil. Öğr. Gör. Sonuç'!D52))=TRUE,LEFT('Yab. Dil. Öğr. Gör. Sonuç'!D52,2)&REPT("*",3),LEFT('Yab. Dil. Öğr. Gör. Sonuç'!D52,2)&REPT("*",3)&" "&MID('Yab. Dil. Öğr. Gör. Sonuç'!D52,FIND(" ",'Yab. Dil. Öğr. Gör. Sonuç'!D52)+1,2)&REPT("*",3))) ->  | E52: =IF('Yab. Dil. Öğr. Gör. Sonuç'!E52="","",'Yab. Dil. Öğr. Gör. Sonuç'!E52) ->  | F52: =IF('Yab. Dil. Öğr. Gör. Sonuç'!F52="","",'Yab. Dil. Öğr. Gör. Sonuç'!F52) ->  | G52: =IF('Yab. Dil. Öğr. Gör. Sonuç'!G52="","",'Yab. Dil. Öğr. Gör. Sonuç'!G52) ->  | H52: =IF('Yab. Dil. Öğr. Gör. Sonuç'!H52="","",'Yab. Dil. Öğr. Gör. Sonuç'!H52) ->  | I52: =IF('Yab. Dil. Öğr. Gör. Sonuç'!I52="","",'Yab. Dil. Öğr. Gör. Sonuç'!I52) ->  | J52: =IF('Yab. Dil. Öğr. Gör. Sonuç'!J52="","",'Yab. Dil. Öğr. Gör. Sonuç'!J52) ->  | K52: =IF('Yab. Dil. Öğr. Gör. Sonuç'!K52="","",'Yab. Dil. Öğr. Gör. Sonuç'!K52) ->  | L52: =IF('Yab. Dil. Öğr. Gör. Sonuç'!L52="","",'Yab. Dil. Öğr. Gör. Sonuç'!L52) ->  | M52: =IF('Yab. Dil. Öğr. Gör. Sonuç'!M52="","",'Yab. Dil. Öğr. Gör. Sonuç'!M52) ->  | N52: =IF('Yab. Dil. Öğr. Gör. Sonuç'!N52="","",'Yab. Dil. Öğr. Gör. Sonuç'!N52) -> 
A53: =IF('Yab. Dil. Öğr. Gör. Sonuç'!A53="","",'Yab. Dil. Öğr. Gör. Sonuç'!A53) ->  | B53: =IF('Yab. Dil. Öğr. Gör. Sonuç'!B53="","",LEFT('Yab. Dil. Öğr. Gör. Sonuç'!B53,3)&REPT("*",4)&RIGHT('Yab. Dil. Öğr. Gör. Sonuç'!B53,2)) ->  | C53: =IF('Yab. Dil. Öğr. Gör. Sonuç'!C53="","",IF(ISERR(FIND(" ",'Yab. Dil. Öğr. Gör. Sonuç'!C53))=TRUE,LEFT('Yab. Dil. Öğr. Gör. Sonuç'!C53,2)&REPT("*",3),LEFT('Yab. Dil. Öğr. Gör. Sonuç'!C53,2)&REPT("*",3)&" "&MID('Yab. Dil. Öğr. Gör. Sonuç'!C53,FIND(" ",'Yab. Dil. Öğr. Gör. Sonuç'!C53)+1,2)&REPT("*",3))) ->  | D53: =IF('Yab. Dil. Öğr. Gör. Sonuç'!D53="","",IF(ISERR(FIND(" ",'Yab. Dil. Öğr. Gör. Sonuç'!D53))=TRUE,LEFT('Yab. Dil. Öğr. Gör. Sonuç'!D53,2)&REPT("*",3),LEFT('Yab. Dil. Öğr. Gör. Sonuç'!D53,2)&REPT("*",3)&" "&MID('Yab. Dil. Öğr. Gör. Sonuç'!D53,FIND(" ",'Yab. Dil. Öğr. Gör. Sonuç'!D53)+1,2)&REPT("*",3))) ->  | E53: =IF('Yab. Dil. Öğr. Gör. Sonuç'!E53="","",'Yab. Dil. Öğr. Gör. Sonuç'!E53) ->  | F53: =IF('Yab. Dil. Öğr. Gör. Sonuç'!F53="","",'Yab. Dil. Öğr. Gör. Sonuç'!F53) ->  | G53: =IF('Yab. Dil. Öğr. Gör. Sonuç'!G53="","",'Yab. Dil. Öğr. Gör. Sonuç'!G53) ->  | H53: =IF('Yab. Dil. Öğr. Gör. Sonuç'!H53="","",'Yab. Dil. Öğr. Gör. Sonuç'!H53) ->  | I53: =IF('Yab. Dil. Öğr. Gör. Sonuç'!I53="","",'Yab. Dil. Öğr. Gör. Sonuç'!I53) ->  | J53: =IF('Yab. Dil. Öğr. Gör. Sonuç'!J53="","",'Yab. Dil. Öğr. Gör. Sonuç'!J53) ->  | K53: =IF('Yab. Dil. Öğr. Gör. Sonuç'!K53="","",'Yab. Dil. Öğr. Gör. Sonuç'!K53) ->  | L53: =IF('Yab. Dil. Öğr. Gör. Sonuç'!L53="","",'Yab. Dil. Öğr. Gör. Sonuç'!L53) ->  | M53: =IF('Yab. Dil. Öğr. Gör. Sonuç'!M53="","",'Yab. Dil. Öğr. Gör. Sonuç'!M53) ->  | N53: =IF('Yab. Dil. Öğr. Gör. Sonuç'!N53="","",'Yab. Dil. Öğr. Gör. Sonuç'!N53) -> 
A54: =IF('Yab. Dil. Öğr. Gör. Sonuç'!A54="","",'Yab. Dil. Öğr. Gör. Sonuç'!A54) ->  | B54: =IF('Yab. Dil. Öğr. Gör. Sonuç'!B54="","",LEFT('Yab. Dil. Öğr. Gör. Sonuç'!B54,3)&REPT("*",4)&RIGHT('Yab. Dil. Öğr. Gör. Sonuç'!B54,2)) ->  | C54: =IF('Yab. Dil. Öğr. Gör. Sonuç'!C54="","",IF(ISERR(FIND(" ",'Yab. Dil. Öğr. Gör. Sonuç'!C54))=TRUE,LEFT('Yab. Dil. Öğr. Gör. Sonuç'!C54,2)&REPT("*",3),LEFT('Yab. Dil. Öğr. Gör. Sonuç'!C54,2)&REPT("*",3)&" "&MID('Yab. Dil. Öğr. Gör. Sonuç'!C54,FIND(" ",'Yab. Dil. Öğr. Gör. Sonuç'!C54)+1,2)&REPT("*",3))) ->  | D54: =IF('Yab. Dil. Öğr. Gör. Sonuç'!D54="","",IF(ISERR(FIND(" ",'Yab. Dil. Öğr. Gör. Sonuç'!D54))=TRUE,LEFT('Yab. Dil. Öğr. Gör. Sonuç'!D54,2)&REPT("*",3),LEFT('Yab. Dil. Öğr. Gör. Sonuç'!D54,2)&REPT("*",3)&" "&MID('Yab. Dil. Öğr. Gör. Sonuç'!D54,FIND(" ",'Yab. Dil. Öğr. Gör. Sonuç'!D54)+1,2)&REPT("*",3))) ->  | E54: =IF('Yab. Dil. Öğr. Gör. Sonuç'!E54="","",'Yab. Dil. Öğr. Gör. Sonuç'!E54) ->  | F54: =IF('Yab. Dil. Öğr. Gör. Sonuç'!F54="","",'Yab. Dil. Öğr. Gör. Sonuç'!F54) ->  | G54: =IF('Yab. Dil. Öğr. Gör. Sonuç'!G54="","",'Yab. Dil. Öğr. Gör. Sonuç'!G54) ->  | H54: =IF('Yab. Dil. Öğr. Gör. Sonuç'!H54="","",'Yab. Dil. Öğr. Gör. Sonuç'!H54) ->  | I54: =IF('Yab. Dil. Öğr. Gör. Sonuç'!I54="","",'Yab. Dil. Öğr. Gör. Sonuç'!I54) ->  | J54: =IF('Yab. Dil. Öğr. Gör. Sonuç'!J54="","",'Yab. Dil. Öğr. Gör. Sonuç'!J54) ->  | K54: =IF('Yab. Dil. Öğr. Gör. Sonuç'!K54="","",'Yab. Dil. Öğr. Gör. Sonuç'!K54) ->  | L54: =IF('Yab. Dil. Öğr. Gör. Sonuç'!L54="","",'Yab. Dil. Öğr. Gör. Sonuç'!L54) ->  | M54: =IF('Yab. Dil. Öğr. Gör. Sonuç'!M54="","",'Yab. Dil. Öğr. Gör. Sonuç'!M54) ->  | N54: =IF('Yab. Dil. Öğr. Gör. Sonuç'!N54="","",'Yab. Dil. Öğr. Gör. Sonuç'!N54) -> 
A55: =IF('Yab. Dil. Öğr. Gör. Sonuç'!A55="","",'Yab. Dil. Öğr. Gör. Sonuç'!A55) ->  | B55: =IF('Yab. Dil. Öğr. Gör. Sonuç'!B55="","",LEFT('Yab. Dil. Öğr. Gör. Sonuç'!B55,3)&REPT("*",4)&RIGHT('Yab. Dil. Öğr. Gör. Sonuç'!B55,2)) ->  | C55: =IF('Yab. Dil. Öğr. Gör. Sonuç'!C55="","",IF(ISERR(FIND(" ",'Yab. Dil. Öğr. Gör. Sonuç'!C55))=TRUE,LEFT('Yab. Dil. Öğr. Gör. Sonuç'!C55,2)&REPT("*",3),LEFT('Yab. Dil. Öğr. Gör. Sonuç'!C55,2)&REPT("*",3)&" "&MID('Yab. Dil. Öğr. Gör. Sonuç'!C55,FIND(" ",'Yab. Dil. Öğr. Gör. Sonuç'!C55)+1,2)&REPT("*",3))) ->  | D55: =IF('Yab. Dil. Öğr. Gör. Sonuç'!D55="","",IF(ISERR(FIND(" ",'Yab. Dil. Öğr. Gör. Sonuç'!D55))=TRUE,LEFT('Yab. Dil. Öğr. Gör. Sonuç'!D55,2)&REPT("*",3),LEFT('Yab. Dil. Öğr. Gör. Sonuç'!D55,2)&REPT("*",3)&" "&MID('Yab. Dil. Öğr. Gör. Sonuç'!D55,FIND(" ",'Yab. Dil. Öğr. Gör. Sonuç'!D55)+1,2)&REPT("*",3))) ->  | E55: =IF('Yab. Dil. Öğr. Gör. Sonuç'!E55="","",'Yab. Dil. Öğr. Gör. Sonuç'!E55) ->  | F55: =IF('Yab. Dil. Öğr. Gör. Sonuç'!F55="","",'Yab. Dil. Öğr. Gör. Sonuç'!F55) ->  | G55: =IF('Yab. Dil. Öğr. Gör. Sonuç'!G55="","",'Yab. Dil. Öğr. Gör. Sonuç'!G55) ->  | H55: =IF('Yab. Dil. Öğr. Gör. Sonuç'!H55="","",'Yab. Dil. Öğr. Gör. Sonuç'!H55) ->  | I55: =IF('Yab. Dil. Öğr. Gör. Sonuç'!I55="","",'Yab. Dil. Öğr. Gör. Sonuç'!I55) ->  | J55: =IF('Yab. Dil. Öğr. Gör. Sonuç'!J55="","",'Yab. Dil. Öğr. Gör. Sonuç'!J55) ->  | K55: =IF('Yab. Dil. Öğr. Gör. Sonuç'!K55="","",'Yab. Dil. Öğr. Gör. Sonuç'!K55) ->  | L55: =IF('Yab. Dil. Öğr. Gör. Sonuç'!L55="","",'Yab. Dil. Öğr. Gör. Sonuç'!L55) ->  | M55: =IF('Yab. Dil. Öğr. Gör. Sonuç'!M55="","",'Yab. Dil. Öğr. Gör. Sonuç'!M55) ->  | N55: =IF('Yab. Dil. Öğr. Gör. Sonuç'!N55="","",'Yab. Dil. Öğr. Gör. Sonuç'!N55) -> 
A56: =IF('Yab. Dil. Öğr. Gör. Sonuç'!A56="","",'Yab. Dil. Öğr. Gör. Sonuç'!A56) ->  | B56: =IF('Yab. Dil. Öğr. Gör. Sonuç'!B56="","",LEFT('Yab. Dil. Öğr. Gör. Sonuç'!B56,3)&REPT("*",4)&RIGHT('Yab. Dil. Öğr. Gör. Sonuç'!B56,2)) ->  | C56: =IF('Yab. Dil. Öğr. Gör. Sonuç'!C56="","",IF(ISERR(FIND(" ",'Yab. Dil. Öğr. Gör. Sonuç'!C56))=TRUE,LEFT('Yab. Dil. Öğr. Gör. Sonuç'!C56,2)&REPT("*",3),LEFT('Yab. Dil. Öğr. Gör. Sonuç'!C56,2)&REPT("*",3)&" "&MID('Yab. Dil. Öğr. Gör. Sonuç'!C56,FIND(" ",'Yab. Dil. Öğr. Gör. Sonuç'!C56)+1,2)&REPT("*",3))) ->  | D56: =IF('Yab. Dil. Öğr. Gör. Sonuç'!D56="","",IF(ISERR(FIND(" ",'Yab. Dil. Öğr. Gör. Sonuç'!D56))=TRUE,LEFT('Yab. Dil. Öğr. Gör. Sonuç'!D56,2)&REPT("*",3),LEFT('Yab. Dil. Öğr. Gör. Sonuç'!D56,2)&REPT("*",3)&" "&MID('Yab. Dil. Öğr. Gör. Sonuç'!D56,FIND(" ",'Yab. Dil. Öğr. Gör. Sonuç'!D56)+1,2)&REPT("*",3))) ->  | E56: =IF('Yab. Dil. Öğr. Gör. Sonuç'!E56="","",'Yab. Dil. Öğr. Gör. Sonuç'!E56) ->  | F56: =IF('Yab. Dil. Öğr. Gör. Sonuç'!F56="","",'Yab. Dil. Öğr. Gör. Sonuç'!F56) ->  | G56: =IF('Yab. Dil. Öğr. Gör. Sonuç'!G56="","",'Yab. Dil. Öğr. Gör. Sonuç'!G56) ->  | H56: =IF('Yab. Dil. Öğr. Gör. Sonuç'!H56="","",'Yab. Dil. Öğr. Gör. Sonuç'!H56) ->  | I56: =IF('Yab. Dil. Öğr. Gör. Sonuç'!I56="","",'Yab. Dil. Öğr. Gör. Sonuç'!I56) ->  | J56: =IF('Yab. Dil. Öğr. Gör. Sonuç'!J56="","",'Yab. Dil. Öğr. Gör. Sonuç'!J56) ->  | K56: =IF('Yab. Dil. Öğr. Gör. Sonuç'!K56="","",'Yab. Dil. Öğr. Gör. Sonuç'!K56) ->  | L56: =IF('Yab. Dil. Öğr. Gör. Sonuç'!L56="","",'Yab. Dil. Öğr. Gör. Sonuç'!L56) ->  | M56: =IF('Yab. Dil. Öğr. Gör. Sonuç'!M56="","",'Yab. Dil. Öğr. Gör. Sonuç'!M56) ->  | N56: =IF('Yab. Dil. Öğr. Gör. Sonuç'!N56="","",'Yab. Dil. Öğr. Gör. Sonuç'!N56) -> 
A57: =IF('Yab. Dil. Öğr. Gör. Sonuç'!A57="","",'Yab. Dil. Öğr. Gör. Sonuç'!A57) ->  | B57: =IF('Yab. Dil. Öğr. Gör. Sonuç'!B57="","",LEFT('Yab. Dil. Öğr. Gör. Sonuç'!B57,3)&REPT("*",4)&RIGHT('Yab. Dil. Öğr. Gör. Sonuç'!B57,2)) ->  | C57: =IF('Yab. Dil. Öğr. Gör. Sonuç'!C57="","",IF(ISERR(FIND(" ",'Yab. Dil. Öğr. Gör. Sonuç'!C57))=TRUE,LEFT('Yab. Dil. Öğr. Gör. Sonuç'!C57,2)&REPT("*",3),LEFT('Yab. Dil. Öğr. Gör. Sonuç'!C57,2)&REPT("*",3)&" "&MID('Yab. Dil. Öğr. Gör. Sonuç'!C57,FIND(" ",'Yab. Dil. Öğr. Gör. Sonuç'!C57)+1,2)&REPT("*",3))) ->  | D57: =IF('Yab. Dil. Öğr. Gör. Sonuç'!D57="","",IF(ISERR(FIND(" ",'Yab. Dil. Öğr. Gör. Sonuç'!D57))=TRUE,LEFT('Yab. Dil. Öğr. Gör. Sonuç'!D57,2)&REPT("*",3),LEFT('Yab. Dil. Öğr. Gör. Sonuç'!D57,2)&REPT("*",3)&" "&MID('Yab. Dil. Öğr. Gör. Sonuç'!D57,FIND(" ",'Yab. Dil. Öğr. Gör. Sonuç'!D57)+1,2)&REPT("*",3))) ->  | E57: =IF('Yab. Dil. Öğr. Gör. Sonuç'!E57="","",'Yab. Dil. Öğr. Gör. Sonuç'!E57) ->  | F57: =IF('Yab. Dil. Öğr. Gör. Sonuç'!F57="","",'Yab. Dil. Öğr. Gör. Sonuç'!F57) ->  | G57: =IF('Yab. Dil. Öğr. Gör. Sonuç'!G57="","",'Yab. Dil. Öğr. Gör. Sonuç'!G57) ->  | H57: =IF('Yab. Dil. Öğr. Gör. Sonuç'!H57="","",'Yab. Dil. Öğr. Gör. Sonuç'!H57) ->  | I57: =IF('Yab. Dil. Öğr. Gör. Sonuç'!I57="","",'Yab. Dil. Öğr. Gör. Sonuç'!I57) ->  | J57: =IF('Yab. Dil. Öğr. Gör. Sonuç'!J57="","",'Yab. Dil. Öğr. Gör. Sonuç'!J57) ->  | K57: =IF('Yab. Dil. Öğr. Gör. Sonuç'!K57="","",'Yab. Dil. Öğr. Gör. Sonuç'!K57) ->  | L57: =IF('Yab. Dil. Öğr. Gör. Sonuç'!L57="","",'Yab. Dil. Öğr. Gör. Sonuç'!L57) ->  | M57: =IF('Yab. Dil. Öğr. Gör. Sonuç'!M57="","",'Yab. Dil. Öğr. Gör. Sonuç'!M57) ->  | N57: =IF('Yab. Dil. Öğr. Gör. Sonuç'!N57="","",'Yab. Dil. Öğr. Gör. Sonuç'!N57) -> 
A58: =IF('Yab. Dil. Öğr. Gör. Sonuç'!A58="","",'Yab. Dil. Öğr. Gör. Sonuç'!A58) ->  | B58: =IF('Yab. Dil. Öğr. Gör. Sonuç'!B58="","",LEFT('Yab. Dil. Öğr. Gör. Sonuç'!B58,3)&REPT("*",4)&RIGHT('Yab. Dil. Öğr. Gör. Sonuç'!B58,2)) ->  | C58: =IF('Yab. Dil. Öğr. Gör. Sonuç'!C58="","",IF(ISERR(FIND(" ",'Yab. Dil. Öğr. Gör. Sonuç'!C58))=TRUE,LEFT('Yab. Dil. Öğr. Gör. Sonuç'!C58,2)&REPT("*",3),LEFT('Yab. Dil. Öğr. Gör. Sonuç'!C58,2)&REPT("*",3)&" "&MID('Yab. Dil. Öğr. Gör. Sonuç'!C58,FIND(" ",'Yab. Dil. Öğr. Gör. Sonuç'!C58)+1,2)&REPT("*",3))) ->  | D58: =IF('Yab. Dil. Öğr. Gör. Sonuç'!D58="","",IF(ISERR(FIND(" ",'Yab. Dil. Öğr. Gör. Sonuç'!D58))=TRUE,LEFT('Yab. Dil. Öğr. Gör. Sonuç'!D58,2)&REPT("*",3),LEFT('Yab. Dil. Öğr. Gör. Sonuç'!D58,2)&REPT("*",3)&" "&MID('Yab. Dil. Öğr. Gör. Sonuç'!D58,FIND(" ",'Yab. Dil. Öğr. Gör. Sonuç'!D58)+1,2)&REPT("*",3))) ->  | E58: =IF('Yab. Dil. Öğr. Gör. Sonuç'!E58="","",'Yab. Dil. Öğr. Gör. Sonuç'!E58) ->  | F58: =IF('Yab. Dil. Öğr. Gör. Sonuç'!F58="","",'Yab. Dil. Öğr. Gör. Sonuç'!F58) ->  | G58: =IF('Yab. Dil. Öğr. Gör. Sonuç'!G58="","",'Yab. Dil. Öğr. Gör. Sonuç'!G58) ->  | H58: =IF('Yab. Dil. Öğr. Gör. Sonuç'!H58="","",'Yab. Dil. Öğr. Gör. Sonuç'!H58) ->  | I58: =IF('Yab. Dil. Öğr. Gör. Sonuç'!I58="","",'Yab. Dil. Öğr. Gör. Sonuç'!I58) ->  | J58: =IF('Yab. Dil. Öğr. Gör. Sonuç'!J58="","",'Yab. Dil. Öğr. Gör. Sonuç'!J58) ->  | K58: =IF('Yab. Dil. Öğr. Gör. Sonuç'!K58="","",'Yab. Dil. Öğr. Gör. Sonuç'!K58) ->  | L58: =IF('Yab. Dil. Öğr. Gör. Sonuç'!L58="","",'Yab. Dil. Öğr. Gör. Sonuç'!L58) ->  | M58: =IF('Yab. Dil. Öğr. Gör. Sonuç'!M58="","",'Yab. Dil. Öğr. Gör. Sonuç'!M58) ->  | N58: =IF('Yab. Dil. Öğr. Gör. Sonuç'!N58="","",'Yab. Dil. Öğr. Gör. Sonuç'!N58) -> 
A59: =IF('Yab. Dil. Öğr. Gör. Sonuç'!A59="","",'Yab. Dil. Öğr. Gör. Sonuç'!A59) ->  | B59: =IF('Yab. Dil. Öğr. Gör. Sonuç'!B59="","",LEFT('Yab. Dil. Öğr. Gör. Sonuç'!B59,3)&REPT("*",4)&RIGHT('Yab. Dil. Öğr. Gör. Sonuç'!B59,2)) ->  | C59: =IF('Yab. Dil. Öğr. Gör. Sonuç'!C59="","",IF(ISERR(FIND(" ",'Yab. Dil. Öğr. Gör. Sonuç'!C59))=TRUE,LEFT('Yab. Dil. Öğr. Gör. Sonuç'!C59,2)&REPT("*",3),LEFT('Yab. Dil. Öğr. Gör. Sonuç'!C59,2)&REPT("*",3)&" "&MID('Yab. Dil. Öğr. Gör. Sonuç'!C59,FIND(" ",'Yab. Dil. Öğr. Gör. Sonuç'!C59)+1,2)&REPT("*",3))) ->  | D59: =IF('Yab. Dil. Öğr. Gör. Sonuç'!D59="","",IF(ISERR(FIND(" ",'Yab. Dil. Öğr. Gör. Sonuç'!D59))=TRUE,LEFT('Yab. Dil. Öğr. Gör. Sonuç'!D59,2)&REPT("*",3),LEFT('Yab. Dil. Öğr. Gör. Sonuç'!D59,2)&REPT("*",3)&" "&MID('Yab. Dil. Öğr. Gör. Sonuç'!D59,FIND(" ",'Yab. Dil. Öğr. Gör. Sonuç'!D59)+1,2)&REPT("*",3))) ->  | E59: =IF('Yab. Dil. Öğr. Gör. Sonuç'!E59="","",'Yab. Dil. Öğr. Gör. Sonuç'!E59) ->  | F59: =IF('Yab. Dil. Öğr. Gör. Sonuç'!F59="","",'Yab. Dil. Öğr. Gör. Sonuç'!F59) ->  | G59: =IF('Yab. Dil. Öğr. Gör. Sonuç'!G59="","",'Yab. Dil. Öğr. Gör. Sonuç'!G59) ->  | H59: =IF('Yab. Dil. Öğr. Gör. Sonuç'!H59="","",'Yab. Dil. Öğr. Gör. Sonuç'!H59) ->  | I59: =IF('Yab. Dil. Öğr. Gör. Sonuç'!I59="","",'Yab. Dil. Öğr. Gör. Sonuç'!I59) ->  | J59: =IF('Yab. Dil. Öğr. Gör. Sonuç'!J59="","",'Yab. Dil. Öğr. Gör. Sonuç'!J59) ->  | K59: =IF('Yab. Dil. Öğr. Gör. Sonuç'!K59="","",'Yab. Dil. Öğr. Gör. Sonuç'!K59) ->  | L59: =IF('Yab. Dil. Öğr. Gör. Sonuç'!L59="","",'Yab. Dil. Öğr. Gör. Sonuç'!L59) ->  | M59: =IF('Yab. Dil. Öğr. Gör. Sonuç'!M59="","",'Yab. Dil. Öğr. Gör. Sonuç'!M59) ->  | N59: =IF('Yab. Dil. Öğr. Gör. Sonuç'!N59="","",'Yab. Dil. Öğr. Gör. Sonuç'!N59) -> 
A60: =IF('Yab. Dil. Öğr. Gör. Sonuç'!A60="","",'Yab. Dil. Öğr. Gör. Sonuç'!A60) ->  | B60: =IF('Yab. Dil. Öğr. Gör. Sonuç'!B60="","",LEFT('Yab. Dil. Öğr. Gör. Sonuç'!B60,3)&REPT("*",4)&RIGHT('Yab. Dil. Öğr. Gör. Sonuç'!B60,2)) ->  | C60: =IF('Yab. Dil. Öğr. Gör. Sonuç'!C60="","",IF(ISERR(FIND(" ",'Yab. Dil. Öğr. Gör. Sonuç'!C60))=TRUE,LEFT('Yab. Dil. Öğr. Gör. Sonuç'!C60,2)&REPT("*",3),LEFT('Yab. Dil. Öğr. Gör. Sonuç'!C60,2)&REPT("*",3)&" "&MID('Yab. Dil. Öğr. Gör. Sonuç'!C60,FIND(" ",'Yab. Dil. Öğr. Gör. Sonuç'!C60)+1,2)&REPT("*",3))) ->  | D60: =IF('Yab. Dil. Öğr. Gör. Sonuç'!D60="","",IF(ISERR(FIND(" ",'Yab. Dil. Öğr. Gör. Sonuç'!D60))=TRUE,LEFT('Yab. Dil. Öğr. Gör. Sonuç'!D60,2)&REPT("*",3),LEFT('Yab. Dil. Öğr. Gör. Sonuç'!D60,2)&REPT("*",3)&" "&MID('Yab. Dil. Öğr. Gör. Sonuç'!D60,FIND(" ",'Yab. Dil. Öğr. Gör. Sonuç'!D60)+1,2)&REPT("*",3))) ->  | E60: =IF('Yab. Dil. Öğr. Gör. Sonuç'!E60="","",'Yab. Dil. Öğr. Gör. Sonuç'!E60) ->  | F60: =IF('Yab. Dil. Öğr. Gör. Sonuç'!F60="","",'Yab. Dil. Öğr. Gör. Sonuç'!F60) ->  | G60: =IF('Yab. Dil. Öğr. Gör. Sonuç'!G60="","",'Yab. Dil. Öğr. Gör. Sonuç'!G60) ->  | H60: =IF('Yab. Dil. Öğr. Gör. Sonuç'!H60="","",'Yab. Dil. Öğr. Gör. Sonuç'!H60) ->  | I60: =IF('Yab. Dil. Öğr. Gör. Sonuç'!I60="","",'Yab. Dil. Öğr. Gör. Sonuç'!I60) ->  | J60: =IF('Yab. Dil. Öğr. Gör. Sonuç'!J60="","",'Yab. Dil. Öğr. Gör. Sonuç'!J60) ->  | K60: =IF('Yab. Dil. Öğr. Gör. Sonuç'!K60="","",'Yab. Dil. Öğr. Gör. Sonuç'!K60) ->  | L60: =IF('Yab. Dil. Öğr. Gör. Sonuç'!L60="","",'Yab. Dil. Öğr. Gör. Sonuç'!L60) ->  | M60: =IF('Yab. Dil. Öğr. Gör. Sonuç'!M60="","",'Yab. Dil. Öğr. Gör. Sonuç'!M60) ->  | N60: =IF('Yab. Dil. Öğr. Gör. Sonuç'!N60="","",'Yab. Dil. Öğr. Gör. Sonuç'!N60) -> 
A61: =IF('Yab. Dil. Öğr. Gör. Sonuç'!A61="","",'Yab. Dil. Öğr. Gör. Sonuç'!A61) ->  | B61: =IF('Yab. Dil. Öğr. Gör. Sonuç'!B61="","",LEFT('Yab. Dil. Öğr. Gör. Sonuç'!B61,3)&REPT("*",4)&RIGHT('Yab. Dil. Öğr. Gör. Sonuç'!B61,2)) ->  | C61: =IF('Yab. Dil. Öğr. Gör. Sonuç'!C61="","",IF(ISERR(FIND(" ",'Yab. Dil. Öğr. Gör. Sonuç'!C61))=TRUE,LEFT('Yab. Dil. Öğr. Gör. Sonuç'!C61,2)&REPT("*",3),LEFT('Yab. Dil. Öğr. Gör. Sonuç'!C61,2)&REPT("*",3)&" "&MID('Yab. Dil. Öğr. Gör. Sonuç'!C61,FIND(" ",'Yab. Dil. Öğr. Gör. Sonuç'!C61)+1,2)&REPT("*",3))) ->  | D61: =IF('Yab. Dil. Öğr. Gör. Sonuç'!D61="","",IF(ISERR(FIND(" ",'Yab. Dil. Öğr. Gör. Sonuç'!D61))=TRUE,LEFT('Yab. Dil. Öğr. Gör. Sonuç'!D61,2)&REPT("*",3),LEFT('Yab. Dil. Öğr. Gör. Sonuç'!D61,2)&REPT("*",3)&" "&MID('Yab. Dil. Öğr. Gör. Sonuç'!D61,FIND(" ",'Yab. Dil. Öğr. Gör. Sonuç'!D61)+1,2)&REPT("*",3))) ->  | E61: =IF('Yab. Dil. Öğr. Gör. Sonuç'!E61="","",'Yab. Dil. Öğr. Gör. Sonuç'!E61) ->  | F61: =IF('Yab. Dil. Öğr. Gör. Sonuç'!F61="","",'Yab. Dil. Öğr. Gör. Sonuç'!F61) ->  | G61: =IF('Yab. Dil. Öğr. Gör. Sonuç'!G61="","",'Yab. Dil. Öğr. Gör. Sonuç'!G61) ->  | H61: =IF('Yab. Dil. Öğr. Gör. Sonuç'!H61="","",'Yab. Dil. Öğr. Gör. Sonuç'!H61) ->  | I61: =IF('Yab. Dil. Öğr. Gör. Sonuç'!I61="","",'Yab. Dil. Öğr. Gör. Sonuç'!I61) ->  | J61: =IF('Yab. Dil. Öğr. Gör. Sonuç'!J61="","",'Yab. Dil. Öğr. Gör. Sonuç'!J61) ->  | K61: =IF('Yab. Dil. Öğr. Gör. Sonuç'!K61="","",'Yab. Dil. Öğr. Gör. Sonuç'!K61) ->  | L61: =IF('Yab. Dil. Öğr. Gör. Sonuç'!L61="","",'Yab. Dil. Öğr. Gör. Sonuç'!L61) ->  | M61: =IF('Yab. Dil. Öğr. Gör. Sonuç'!M61="","",'Yab. Dil. Öğr. Gör. Sonuç'!M61) ->  | N61: =IF('Yab. Dil. Öğr. Gör. Sonuç'!N61="","",'Yab. Dil. Öğr. Gör. Sonuç'!N61) -> 
A62: =IF('Yab. Dil. Öğr. Gör. Sonuç'!A62="","",'Yab. Dil. Öğr. Gör. Sonuç'!A62) ->  | B62: =IF('Yab. Dil. Öğr. Gör. Sonuç'!B62="","",LEFT('Yab. Dil. Öğr. Gör. Sonuç'!B62,3)&REPT("*",4)&RIGHT('Yab. Dil. Öğr. Gör. Sonuç'!B62,2)) ->  | C62: =IF('Yab. Dil. Öğr. Gör. Sonuç'!C62="","",IF(ISERR(FIND(" ",'Yab. Dil. Öğr. Gör. Sonuç'!C62))=TRUE,LEFT('Yab. Dil. Öğr. Gör. Sonuç'!C62,2)&REPT("*",3),LEFT('Yab. Dil. Öğr. Gör. Sonuç'!C62,2)&REPT("*",3)&" "&MID('Yab. Dil. Öğr. Gör. Sonuç'!C62,FIND(" ",'Yab. Dil. Öğr. Gör. Sonuç'!C62)+1,2)&REPT("*",3))) ->  | D62: =IF('Yab. Dil. Öğr. Gör. Sonuç'!D62="","",IF(ISERR(FIND(" ",'Yab. Dil. Öğr. Gör. Sonuç'!D62))=TRUE,LEFT('Yab. Dil. Öğr. Gör. Sonuç'!D62,2)&REPT("*",3),LEFT('Yab. Dil. Öğr. Gör. Sonuç'!D62,2)&REPT("*",3)&" "&MID('Yab. Dil. Öğr. Gör. Sonuç'!D62,FIND(" ",'Yab. Dil. Öğr. Gör. Sonuç'!D62)+1,2)&REPT("*",3))) ->  | E62: =IF('Yab. Dil. Öğr. Gör. Sonuç'!E62="","",'Yab. Dil. Öğr. Gör. Sonuç'!E62) ->  | F62: =IF('Yab. Dil. Öğr. Gör. Sonuç'!F62="","",'Yab. Dil. Öğr. Gör. Sonuç'!F62) ->  | G62: =IF('Yab. Dil. Öğr. Gör. Sonuç'!G62="","",'Yab. Dil. Öğr. Gör. Sonuç'!G62) ->  | H62: =IF('Yab. Dil. Öğr. Gör. Sonuç'!H62="","",'Yab. Dil. Öğr. Gör. Sonuç'!H62) ->  | I62: =IF('Yab. Dil. Öğr. Gör. Sonuç'!I62="","",'Yab. Dil. Öğr. Gör. Sonuç'!I62) ->  | J62: =IF('Yab. Dil. Öğr. Gör. Sonuç'!J62="","",'Yab. Dil. Öğr. Gör. Sonuç'!J62) ->  | K62: =IF('Yab. Dil. Öğr. Gör. Sonuç'!K62="","",'Yab. Dil. Öğr. Gör. Sonuç'!K62) ->  | L62: =IF('Yab. Dil. Öğr. Gör. Sonuç'!L62="","",'Yab. Dil. Öğr. Gör. Sonuç'!L62) ->  | M62: =IF('Yab. Dil. Öğr. Gör. Sonuç'!M62="","",'Yab. Dil. Öğr. Gör. Sonuç'!M62) ->  | N62: =IF('Yab. Dil. Öğr. Gör. Sonuç'!N62="","",'Yab. Dil. Öğr. Gör. Sonuç'!N62) -> 
A63: =IF('Yab. Dil. Öğr. Gör. Sonuç'!A63="","",'Yab. Dil. Öğr. Gör. Sonuç'!A63) ->  | B63: =IF('Yab. Dil. Öğr. Gör. Sonuç'!B63="","",LEFT('Yab. Dil. Öğr. Gör. Sonuç'!B63,3)&REPT("*",4)&RIGHT('Yab. Dil. Öğr. Gör. Sonuç'!B63,2)) ->  | C63: =IF('Yab. Dil. Öğr. Gör. Sonuç'!C63="","",IF(ISERR(FIND(" ",'Yab. Dil. Öğr. Gör. Sonuç'!C63))=TRUE,LEFT('Yab. Dil. Öğr. Gör. Sonuç'!C63,2)&REPT("*",3),LEFT('Yab. Dil. Öğr. Gör. Sonuç'!C63,2)&REPT("*",3)&" "&MID('Yab. Dil. Öğr. Gör. Sonuç'!C63,FIND(" ",'Yab. Dil. Öğr. Gör. Sonuç'!C63)+1,2)&REPT("*",3))) ->  | D63: =IF('Yab. Dil. Öğr. Gör. Sonuç'!D63="","",IF(ISERR(FIND(" ",'Yab. Dil. Öğr. Gör. Sonuç'!D63))=TRUE,LEFT('Yab. Dil. Öğr. Gör. Sonuç'!D63,2)&REPT("*",3),LEFT('Yab. Dil. Öğr. Gör. Sonuç'!D63,2)&REPT("*",3)&" "&MID('Yab. Dil. Öğr. Gör. Sonuç'!D63,FIND(" ",'Yab. Dil. Öğr. Gör. Sonuç'!D63)+1,2)&REPT("*",3))) ->  | E63: =IF('Yab. Dil. Öğr. Gör. Sonuç'!E63="","",'Yab. Dil. Öğr. Gör. Sonuç'!E63) ->  | F63: =IF('Yab. Dil. Öğr. Gör. Sonuç'!F63="","",'Yab. Dil. Öğr. Gör. Sonuç'!F63) ->  | G63: =IF('Yab. Dil. Öğr. Gör. Sonuç'!G63="","",'Yab. Dil. Öğr. Gör. Sonuç'!G63) ->  | H63: =IF('Yab. Dil. Öğr. Gör. Sonuç'!H63="","",'Yab. Dil. Öğr. Gör. Sonuç'!H63) ->  | I63: =IF('Yab. Dil. Öğr. Gör. Sonuç'!I63="","",'Yab. Dil. Öğr. Gör. Sonuç'!I63) ->  | J63: =IF('Yab. Dil. Öğr. Gör. Sonuç'!J63="","",'Yab. Dil. Öğr. Gör. Sonuç'!J63) ->  | K63: =IF('Yab. Dil. Öğr. Gör. Sonuç'!K63="","",'Yab. Dil. Öğr. Gör. Sonuç'!K63) ->  | L63: =IF('Yab. Dil. Öğr. Gör. Sonuç'!L63="","",'Yab. Dil. Öğr. Gör. Sonuç'!L63) ->  | M63: =IF('Yab. Dil. Öğr. Gör. Sonuç'!M63="","",'Yab. Dil. Öğr. Gör. Sonuç'!M63) ->  | N63: =IF('Yab. Dil. Öğr. Gör. Sonuç'!N63="","",'Yab. Dil. Öğr. Gör. Sonuç'!N63) -> 
A64: =IF('Yab. Dil. Öğr. Gör. Sonuç'!A64="","",'Yab. Dil. Öğr. Gör. Sonuç'!A64) ->  | B64: =IF('Yab. Dil. Öğr. Gör. Sonuç'!B64="","",LEFT('Yab. Dil. Öğr. Gör. Sonuç'!B64,3)&REPT("*",4)&RIGHT('Yab. Dil. Öğr. Gör. Sonuç'!B64,2)) ->  | C64: =IF('Yab. Dil. Öğr. Gör. Sonuç'!C64="","",IF(ISERR(FIND(" ",'Yab. Dil. Öğr. Gör. Sonuç'!C64))=TRUE,LEFT('Yab. Dil. Öğr. Gör. Sonuç'!C64,2)&REPT("*",3),LEFT('Yab. Dil. Öğr. Gör. Sonuç'!C64,2)&REPT("*",3)&" "&MID('Yab. Dil. Öğr. Gör. Sonuç'!C64,FIND(" ",'Yab. Dil. Öğr. Gör. Sonuç'!C64)+1,2)&REPT("*",3))) ->  | D64: =IF('Yab. Dil. Öğr. Gör. Sonuç'!D64="","",IF(ISERR(FIND(" ",'Yab. Dil. Öğr. Gör. Sonuç'!D64))=TRUE,LEFT('Yab. Dil. Öğr. Gör. Sonuç'!D64,2)&REPT("*",3),LEFT('Yab. Dil. Öğr. Gör. Sonuç'!D64,2)&REPT("*",3)&" "&MID('Yab. Dil. Öğr. Gör. Sonuç'!D64,FIND(" ",'Yab. Dil. Öğr. Gör. Sonuç'!D64)+1,2)&REPT("*",3))) ->  | E64: =IF('Yab. Dil. Öğr. Gör. Sonuç'!E64="","",'Yab. Dil. Öğr. Gör. Sonuç'!E64) ->  | F64: =IF('Yab. Dil. Öğr. Gör. Sonuç'!F64="","",'Yab. Dil. Öğr. Gör. Sonuç'!F64) ->  | G64: =IF('Yab. Dil. Öğr. Gör. Sonuç'!G64="","",'Yab. Dil. Öğr. Gör. Sonuç'!G64) ->  | H64: =IF('Yab. Dil. Öğr. Gör. Sonuç'!H64="","",'Yab. Dil. Öğr. Gör. Sonuç'!H64) ->  | I64: =IF('Yab. Dil. Öğr. Gör. Sonuç'!I64="","",'Yab. Dil. Öğr. Gör. Sonuç'!I64) ->  | J64: =IF('Yab. Dil. Öğr. Gör. Sonuç'!J64="","",'Yab. Dil. Öğr. Gör. Sonuç'!J64) ->  | K64: =IF('Yab. Dil. Öğr. Gör. Sonuç'!K64="","",'Yab. Dil. Öğr. Gör. Sonuç'!K64) ->  | L64: =IF('Yab. Dil. Öğr. Gör. Sonuç'!L64="","",'Yab. Dil. Öğr. Gör. Sonuç'!L64) ->  | M64: =IF('Yab. Dil. Öğr. Gör. Sonuç'!M64="","",'Yab. Dil. Öğr. Gör. Sonuç'!M64) ->  | N64: =IF('Yab. Dil. Öğr. Gör. Sonuç'!N64="","",'Yab. Dil. Öğr. Gör. Sonuç'!N64) -> 
A65: =IF('Yab. Dil. Öğr. Gör. Sonuç'!A65="","",'Yab. Dil. Öğr. Gör. Sonuç'!A65) ->  | B65: =IF('Yab. Dil. Öğr. Gör. Sonuç'!B65="","",LEFT('Yab. Dil. Öğr. Gör. Sonuç'!B65,3)&REPT("*",4)&RIGHT('Yab. Dil. Öğr. Gör. Sonuç'!B65,2)) ->  | C65: =IF('Yab. Dil. Öğr. Gör. Sonuç'!C65="","",IF(ISERR(FIND(" ",'Yab. Dil. Öğr. Gör. Sonuç'!C65))=TRUE,LEFT('Yab. Dil. Öğr. Gör. Sonuç'!C65,2)&REPT("*",3),LEFT('Yab. Dil. Öğr. Gör. Sonuç'!C65,2)&REPT("*",3)&" "&MID('Yab. Dil. Öğr. Gör. Sonuç'!C65,FIND(" ",'Yab. Dil. Öğr. Gör. Sonuç'!C65)+1,2)&REPT("*",3))) ->  | D65: =IF('Yab. Dil. Öğr. Gör. Sonuç'!D65="","",IF(ISERR(FIND(" ",'Yab. Dil. Öğr. Gör. Sonuç'!D65))=TRUE,LEFT('Yab. Dil. Öğr. Gör. Sonuç'!D65,2)&REPT("*",3),LEFT('Yab. Dil. Öğr. Gör. Sonuç'!D65,2)&REPT("*",3)&" "&MID('Yab. Dil. Öğr. Gör. Sonuç'!D65,FIND(" ",'Yab. Dil. Öğr. Gör. Sonuç'!D65)+1,2)&REPT("*",3))) ->  | E65: =IF('Yab. Dil. Öğr. Gör. Sonuç'!E65="","",'Yab. Dil. Öğr. Gör. Sonuç'!E65) ->  | F65: =IF('Yab. Dil. Öğr. Gör. Sonuç'!F65="","",'Yab. Dil. Öğr. Gör. Sonuç'!F65) ->  | G65: =IF('Yab. Dil. Öğr. Gör. Sonuç'!G65="","",'Yab. Dil. Öğr. Gör. Sonuç'!G65) ->  | H65: =IF('Yab. Dil. Öğr. Gör. Sonuç'!H65="","",'Yab. Dil. Öğr. Gör. Sonuç'!H65) ->  | I65: =IF('Yab. Dil. Öğr. Gör. Sonuç'!I65="","",'Yab. Dil. Öğr. Gör. Sonuç'!I65) ->  | J65: =IF('Yab. Dil. Öğr. Gör. Sonuç'!J65="","",'Yab. Dil. Öğr. Gör. Sonuç'!J65) ->  | K65: =IF('Yab. Dil. Öğr. Gör. Sonuç'!K65="","",'Yab. Dil. Öğr. Gör. Sonuç'!K65) ->  | L65: =IF('Yab. Dil. Öğr. Gör. Sonuç'!L65="","",'Yab. Dil. Öğr. Gör. Sonuç'!L65) ->  | M65: =IF('Yab. Dil. Öğr. Gör. Sonuç'!M65="","",'Yab. Dil. Öğr. Gör. Sonuç'!M65) ->  | N65: =IF('Yab. Dil. Öğr. Gör. Sonuç'!N65="","",'Yab. Dil. Öğr. Gör. Sonuç'!N65) -> 
A66: =IF('Yab. Dil. Öğr. Gör. Sonuç'!A66="","",'Yab. Dil. Öğr. Gör. Sonuç'!A66) ->  | B66: =IF('Yab. Dil. Öğr. Gör. Sonuç'!B66="","",LEFT('Yab. Dil. Öğr. Gör. Sonuç'!B66,3)&REPT("*",4)&RIGHT('Yab. Dil. Öğr. Gör. Sonuç'!B66,2)) ->  | C66: =IF('Yab. Dil. Öğr. Gör. Sonuç'!C66="","",IF(ISERR(FIND(" ",'Yab. Dil. Öğr. Gör. Sonuç'!C66))=TRUE,LEFT('Yab. Dil. Öğr. Gör. Sonuç'!C66,2)&REPT("*",3),LEFT('Yab. Dil. Öğr. Gör. Sonuç'!C66,2)&REPT("*",3)&" "&MID('Yab. Dil. Öğr. Gör. Sonuç'!C66,FIND(" ",'Yab. Dil. Öğr. Gör. Sonuç'!C66)+1,2)&REPT("*",3))) ->  | D66: =IF('Yab. Dil. Öğr. Gör. Sonuç'!D66="","",IF(ISERR(FIND(" ",'Yab. Dil. Öğr. Gör. Sonuç'!D66))=TRUE,LEFT('Yab. Dil. Öğr. Gör. Sonuç'!D66,2)&REPT("*",3),LEFT('Yab. Dil. Öğr. Gör. Sonuç'!D66,2)&REPT("*",3)&" "&MID('Yab. Dil. Öğr. Gör. Sonuç'!D66,FIND(" ",'Yab. Dil. Öğr. Gör. Sonuç'!D66)+1,2)&REPT("*",3))) ->  | E66: =IF('Yab. Dil. Öğr. Gör. Sonuç'!E66="","",'Yab. Dil. Öğr. Gör. Sonuç'!E66) ->  | F66: =IF('Yab. Dil. Öğr. Gör. Sonuç'!F66="","",'Yab. Dil. Öğr. Gör. Sonuç'!F66) ->  | G66: =IF('Yab. Dil. Öğr. Gör. Sonuç'!G66="","",'Yab. Dil. Öğr. Gör. Sonuç'!G66) ->  | H66: =IF('Yab. Dil. Öğr. Gör. Sonuç'!H66="","",'Yab. Dil. Öğr. Gör. Sonuç'!H66) ->  | I66: =IF('Yab. Dil. Öğr. Gör. Sonuç'!I66="","",'Yab. Dil. Öğr. Gör. Sonuç'!I66) ->  | J66: =IF('Yab. Dil. Öğr. Gör. Sonuç'!J66="","",'Yab. Dil. Öğr. Gör. Sonuç'!J66) ->  | K66: =IF('Yab. Dil. Öğr. Gör. Sonuç'!K66="","",'Yab. Dil. Öğr. Gör. Sonuç'!K66) ->  | L66: =IF('Yab. Dil. Öğr. Gör. Sonuç'!L66="","",'Yab. Dil. Öğr. Gör. Sonuç'!L66) ->  | M66: =IF('Yab. Dil. Öğr. Gör. Sonuç'!M66="","",'Yab. Dil. Öğr. Gör. Sonuç'!M66) ->  | N66: =IF('Yab. Dil. Öğr. Gör. Sonuç'!N66="","",'Yab. Dil. Öğr. Gör. Sonuç'!N66) -> 
A67: =IF('Yab. Dil. Öğr. Gör. Sonuç'!A67="","",'Yab. Dil. Öğr. Gör. Sonuç'!A67) ->  | B67: =IF('Yab. Dil. Öğr. Gör. Sonuç'!B67="","",LEFT('Yab. Dil. Öğr. Gör. Sonuç'!B67,3)&REPT("*",4)&RIGHT('Yab. Dil. Öğr. Gör. Sonuç'!B67,2)) ->  | C67: =IF('Yab. Dil. Öğr. Gör. Sonuç'!C67="","",IF(ISERR(FIND(" ",'Yab. Dil. Öğr. Gör. Sonuç'!C67))=TRUE,LEFT('Yab. Dil. Öğr. Gör. Sonuç'!C67,2)&REPT("*",3),LEFT('Yab. Dil. Öğr. Gör. Sonuç'!C67,2)&REPT("*",3)&" "&MID('Yab. Dil. Öğr. Gör. Sonuç'!C67,FIND(" ",'Yab. Dil. Öğr. Gör. Sonuç'!C67)+1,2)&REPT("*",3))) ->  | D67: =IF('Yab. Dil. Öğr. Gör. Sonuç'!D67="","",IF(ISERR(FIND(" ",'Yab. Dil. Öğr. Gör. Sonuç'!D67))=TRUE,LEFT('Yab. Dil. Öğr. Gör. Sonuç'!D67,2)&REPT("*",3),LEFT('Yab. Dil. Öğr. Gör. Sonuç'!D67,2)&REPT("*",3)&" "&MID('Yab. Dil. Öğr. Gör. Sonuç'!D67,FIND(" ",'Yab. Dil. Öğr. Gör. Sonuç'!D67)+1,2)&REPT("*",3))) ->  | E67: =IF('Yab. Dil. Öğr. Gör. Sonuç'!E67="","",'Yab. Dil. Öğr. Gör. Sonuç'!E67) ->  | F67: =IF('Yab. Dil. Öğr. Gör. Sonuç'!F67="","",'Yab. Dil. Öğr. Gör. Sonuç'!F67) ->  | G67: =IF('Yab. Dil. Öğr. Gör. Sonuç'!G67="","",'Yab. Dil. Öğr. Gör. Sonuç'!G67) ->  | H67: =IF('Yab. Dil. Öğr. Gör. Sonuç'!H67="","",'Yab. Dil. Öğr. Gör. Sonuç'!H67) ->  | I67: =IF('Yab. Dil. Öğr. Gör. Sonuç'!I67="","",'Yab. Dil. Öğr. Gör. Sonuç'!I67) ->  | J67: =IF('Yab. Dil. Öğr. Gör. Sonuç'!J67="","",'Yab. Dil. Öğr. Gör. Sonuç'!J67) ->  | K67: =IF('Yab. Dil. Öğr. Gör. Sonuç'!K67="","",'Yab. Dil. Öğr. Gör. Sonuç'!K67) ->  | L67: =IF('Yab. Dil. Öğr. Gör. Sonuç'!L67="","",'Yab. Dil. Öğr. Gör. Sonuç'!L67) ->  | M67: =IF('Yab. Dil. Öğr. Gör. Sonuç'!M67="","",'Yab. Dil. Öğr. Gör. Sonuç'!M67) ->  | N67: =IF('Yab. Dil. Öğr. Gör. Sonuç'!N67="","",'Yab. Dil. Öğr. Gör. Sonuç'!N67) -> 
A68: =IF('Yab. Dil. Öğr. Gör. Sonuç'!A68="","",'Yab. Dil. Öğr. Gör. Sonuç'!A68) ->  | B68: =IF('Yab. Dil. Öğr. Gör. Sonuç'!B68="","",LEFT('Yab. Dil. Öğr. Gör. Sonuç'!B68,3)&REPT("*",4)&RIGHT('Yab. Dil. Öğr. Gör. Sonuç'!B68,2)) ->  | C68: =IF('Yab. Dil. Öğr. Gör. Sonuç'!C68="","",IF(ISERR(FIND(" ",'Yab. Dil. Öğr. Gör. Sonuç'!C68))=TRUE,LEFT('Yab. Dil. Öğr. Gör. Sonuç'!C68,2)&REPT("*",3),LEFT('Yab. Dil. Öğr. Gör. Sonuç'!C68,2)&REPT("*",3)&" "&MID('Yab. Dil. Öğr. Gör. Sonuç'!C68,FIND(" ",'Yab. Dil. Öğr. Gör. Sonuç'!C68)+1,2)&REPT("*",3))) ->  | D68: =IF('Yab. Dil. Öğr. Gör. Sonuç'!D68="","",IF(ISERR(FIND(" ",'Yab. Dil. Öğr. Gör. Sonuç'!D68))=TRUE,LEFT('Yab. Dil. Öğr. Gör. Sonuç'!D68,2)&REPT("*",3),LEFT('Yab. Dil. Öğr. Gör. Sonuç'!D68,2)&REPT("*",3)&" "&MID('Yab. Dil. Öğr. Gör. Sonuç'!D68,FIND(" ",'Yab. Dil. Öğr. Gör. Sonuç'!D68)+1,2)&REPT("*",3))) ->  | E68: =IF('Yab. Dil. Öğr. Gör. Sonuç'!E68="","",'Yab. Dil. Öğr. Gör. Sonuç'!E68) ->  | F68: =IF('Yab. Dil. Öğr. Gör. Sonuç'!F68="","",'Yab. Dil. Öğr. Gör. Sonuç'!F68) ->  | G68: =IF('Yab. Dil. Öğr. Gör. Sonuç'!G68="","",'Yab. Dil. Öğr. Gör. Sonuç'!G68) ->  | H68: =IF('Yab. Dil. Öğr. Gör. Sonuç'!H68="","",'Yab. Dil. Öğr. Gör. Sonuç'!H68) ->  | I68: =IF('Yab. Dil. Öğr. Gör. Sonuç'!I68="","",'Yab. Dil. Öğr. Gör. Sonuç'!I68) ->  | J68: =IF('Yab. Dil. Öğr. Gör. Sonuç'!J68="","",'Yab. Dil. Öğr. Gör. Sonuç'!J68) ->  | K68: =IF('Yab. Dil. Öğr. Gör. Sonuç'!K68="","",'Yab. Dil. Öğr. Gör. Sonuç'!K68) ->  | L68: =IF('Yab. Dil. Öğr. Gör. Sonuç'!L68="","",'Yab. Dil. Öğr. Gör. Sonuç'!L68) ->  | M68: =IF('Yab. Dil. Öğr. Gör. Sonuç'!M68="","",'Yab. Dil. Öğr. Gör. Sonuç'!M68) ->  | N68: =IF('Yab. Dil. Öğr. Gör. Sonuç'!N68="","",'Yab. Dil. Öğr. Gör. Sonuç'!N68) -> 
A69: =IF('Yab. Dil. Öğr. Gör. Sonuç'!A69="","",'Yab. Dil. Öğr. Gör. Sonuç'!A69) ->  | B69: =IF('Yab. Dil. Öğr. Gör. Sonuç'!B69="","",LEFT('Yab. Dil. Öğr. Gör. Sonuç'!B69,3)&REPT("*",4)&RIGHT('Yab. Dil. Öğr. Gör. Sonuç'!B69,2)) ->  | C69: =IF('Yab. Dil. Öğr. Gör. Sonuç'!C69="","",IF(ISERR(FIND(" ",'Yab. Dil. Öğr. Gör. Sonuç'!C69))=TRUE,LEFT('Yab. Dil. Öğr. Gör. Sonuç'!C69,2)&REPT("*",3),LEFT('Yab. Dil. Öğr. Gör. Sonuç'!C69,2)&REPT("*",3)&" "&MID('Yab. Dil. Öğr. Gör. Sonuç'!C69,FIND(" ",'Yab. Dil. Öğr. Gör. Sonuç'!C69)+1,2)&REPT("*",3))) ->  | D69: =IF('Yab. Dil. Öğr. Gör. Sonuç'!D69="","",IF(ISERR(FIND(" ",'Yab. Dil. Öğr. Gör. Sonuç'!D69))=TRUE,LEFT('Yab. Dil. Öğr. Gör. Sonuç'!D69,2)&REPT("*",3),LEFT('Yab. Dil. Öğr. Gör. Sonuç'!D69,2)&REPT("*",3)&" "&MID('Yab. Dil. Öğr. Gör. Sonuç'!D69,FIND(" ",'Yab. Dil. Öğr. Gör. Sonuç'!D69)+1,2)&REPT("*",3))) ->  | E69: =IF('Yab. Dil. Öğr. Gör. Sonuç'!E69="","",'Yab. Dil. Öğr. Gör. Sonuç'!E69) ->  | F69: =IF('Yab. Dil. Öğr. Gör. Sonuç'!F69="","",'Yab. Dil. Öğr. Gör. Sonuç'!F69) ->  | G69: =IF('Yab. Dil. Öğr. Gör. Sonuç'!G69="","",'Yab. Dil. Öğr. Gör. Sonuç'!G69) ->  | H69: =IF('Yab. Dil. Öğr. Gör. Sonuç'!H69="","",'Yab. Dil. Öğr. Gör. Sonuç'!H69) ->  | I69: =IF('Yab. Dil. Öğr. Gör. Sonuç'!I69="","",'Yab. Dil. Öğr. Gör. Sonuç'!I69) ->  | J69: =IF('Yab. Dil. Öğr. Gör. Sonuç'!J69="","",'Yab. Dil. Öğr. Gör. Sonuç'!J69) ->  | K69: =IF('Yab. Dil. Öğr. Gör. Sonuç'!K69="","",'Yab. Dil. Öğr. Gör. Sonuç'!K69) ->  | L69: =IF('Yab. Dil. Öğr. Gör. Sonuç'!L69="","",'Yab. Dil. Öğr. Gör. Sonuç'!L69) ->  | M69: =IF('Yab. Dil. Öğr. Gör. Sonuç'!M69="","",'Yab. Dil. Öğr. Gör. Sonuç'!M69) ->  | N69: =IF('Yab. Dil. Öğr. Gör. Sonuç'!N69="","",'Yab. Dil. Öğr. Gör. Sonuç'!N69) -> 
A70: =IF('Yab. Dil. Öğr. Gör. Sonuç'!A70="","",'Yab. Dil. Öğr. Gör. Sonuç'!A70) ->  | B70: =IF('Yab. Dil. Öğr. Gör. Sonuç'!B70="","",LEFT('Yab. Dil. Öğr. Gör. Sonuç'!B70,3)&REPT("*",4)&RIGHT('Yab. Dil. Öğr. Gör. Sonuç'!B70,2)) ->  | C70: =IF('Yab. Dil. Öğr. Gör. Sonuç'!C70="","",IF(ISERR(FIND(" ",'Yab. Dil. Öğr. Gör. Sonuç'!C70))=TRUE,LEFT('Yab. Dil. Öğr. Gör. Sonuç'!C70,2)&REPT("*",3),LEFT('Yab. Dil. Öğr. Gör. Sonuç'!C70,2)&REPT("*",3)&" "&MID('Yab. Dil. Öğr. Gör. Sonuç'!C70,FIND(" ",'Yab. Dil. Öğr. Gör. Sonuç'!C70)+1,2)&REPT("*",3))) ->  | D70: =IF('Yab. Dil. Öğr. Gör. Sonuç'!D70="","",IF(ISERR(FIND(" ",'Yab. Dil. Öğr. Gör. Sonuç'!D70))=TRUE,LEFT('Yab. Dil. Öğr. Gör. Sonuç'!D70,2)&REPT("*",3),LEFT('Yab. Dil. Öğr. Gör. Sonuç'!D70,2)&REPT("*",3)&" "&MID('Yab. Dil. Öğr. Gör. Sonuç'!D70,FIND(" ",'Yab. Dil. Öğr. Gör. Sonuç'!D70)+1,2)&REPT("*",3))) ->  | E70: =IF('Yab. Dil. Öğr. Gör. Sonuç'!E70="","",'Yab. Dil. Öğr. Gör. Sonuç'!E70) ->  | F70: =IF('Yab. Dil. Öğr. Gör. Sonuç'!F70="","",'Yab. Dil. Öğr. Gör. Sonuç'!F70) ->  | G70: =IF('Yab. Dil. Öğr. Gör. Sonuç'!G70="","",'Yab. Dil. Öğr. Gör. Sonuç'!G70) ->  | H70: =IF('Yab. Dil. Öğr. Gör. Sonuç'!H70="","",'Yab. Dil. Öğr. Gör. Sonuç'!H70) ->  | I70: =IF('Yab. Dil. Öğr. Gör. Sonuç'!I70="","",'Yab. Dil. Öğr. Gör. Sonuç'!I70) ->  | J70: =IF('Yab. Dil. Öğr. Gör. Sonuç'!J70="","",'Yab. Dil. Öğr. Gör. Sonuç'!J70) ->  | K70: =IF('Yab. Dil. Öğr. Gör. Sonuç'!K70="","",'Yab. Dil. Öğr. Gör. Sonuç'!K70) ->  | L70: =IF('Yab. Dil. Öğr. Gör. Sonuç'!L70="","",'Yab. Dil. Öğr. Gör. Sonuç'!L70) ->  | M70: =IF('Yab. Dil. Öğr. Gör. Sonuç'!M70="","",'Yab. Dil. Öğr. Gör. Sonuç'!M70) ->  | N70: =IF('Yab. Dil. Öğr. Gör. Sonuç'!N70="","",'Yab. Dil. Öğr. Gör. Sonuç'!N70) -> 

Sheet Ulus.İlişkiler.Sonuç
A1: T.C.
A2: BAYBURT ÜNİVERSİTESİ
A3: GİRİŞ SINAVI SONUÇ TUTANAĞI
A4: Üniversitemize bağlı birimlere, 2547 sayılı Kanunun ilgili maddeleri ve 09.11.2018 tarih ve 30590 sayılı Resmi Gazetede yayımlanan "Öğretim Üyesi Dışındaki Öğretim Elemanı Kadrolarına Naklen veya Açıktan Yapılacak Atamalarda Uygulanacak Merkezi Sınav ile Giriş Sınavlarına İlişkin Usul ve Esaslar Hakkında Yönetmelik” 11. ve 12. maddeleri hükümleri uyarınca yapılan Giriş Sınavında başarılı olan adayların isimleri aşağıda belirtilmiştir.
A5: İlan No: | G5: Birimi: | J5: Rektörlük
A6: İlan Tarihi: | C6: …/.../.... | G6: Bölümü: | J6: Uluslararası İlişkiler Ofisi
A7: Kadro Unvanı: | C7: Öğretim Görevlisi (Uluslararası İlişkiler Birimi - Uygulamalı Birim) | G7: Alanı:
A8: Kadro Adedi: | C8: 1 | G8: Sınav Tarihi: | J8: …/.../.... | L8: Sonuç Tarihi: | N8: …/.../....
A9: İlan Özel Şartı:
A10: Sıra No | B10: Başvuranın | E10: ALES | G10: Yabancı Dil | K10: Giriş Sınavı | M10: (A+B+C+D) Değerlendirme Notu | N10: Sonuç
B11: T.C. Kimlik No | C11: Adı | D11: Soyadı | E11: Puanı | F11: (A) Puanın %30' u | G11: Puanı | H11: (B) Puanın %30' u | I11: 100' lük Sistem | J11: (C) Notun %10' u | K11: Giriş Sınav Notu | L11: (D) Notunun %30' u
A12: 1 | B12: 11111111111 | C12: Örnek | D12: Örnek | E12: 82.51392 | F12: =E12*0.3 -> 24.754176 | G12: 90 | H12: =G12*0.3 -> 27 | I12: 76.66 | J12: =I12*0.1 -> 7.666 | K12: 95 | L12: =K12*0.3 -> 28.5 | M12: =F12+H12+J12+L12 -> 87.920176 | N12: BAŞARILI (ASIL)
A13: 2 | B13: 11111111111 | C13: Örnek Örnek | D13: Örnek | E13: 85.03048 | F13: =E13*0.3 -> 25.509144 | G13: 88 | H13: =G13*0.3 -> 26.4 | I13: 76.66 | J13: =I13*0.1 -> 7.666 | K13: 63 | L13: =K13*0.3 -> 18.9 | M13: =F13+H13+J13+L13 -> 78.475144 | N13: BAŞARILI (YEDEK)
A14: 3 | B14: 11111111111 | C14: Örnek | D14: Örnek Örnek | E14: 84.43135 | F14: =E14*0.3 -> 25.329405 | G14: 89 | H14: =G14*0.3 -> 26.7 | I14: 83.66 | J14: =I14*0.1 -> 8.366 | K14: 45 | L14: =K14*0.3 -> 13.5 | M14: =F14+H14+J14+L14 -> 73.895405 | N14: YÖNETMELİK GEREĞİ ELENDİ*
A15: 4 | B15: 11111111111 | C15: Örnek Örnek | D15: Örnek Örnek | E15: 72 | F15: =E15*0.3 -> 21.6 | G15: 85 | H15: =G15*0.3 -> 25.5 | I15: 76.66 | J15: =I15*0.1 -> 7.666 | K15: 35 | L15: =K15*0.3 -> 10.5 | M15: =F15+H15+J15+L15 -> 65.266 | N15: BAŞARISIZ**
A16: 5 | B16: 11111111111 | C16: Örnek | D16: Örnek | E16: 84.43135 | F16: =E16*0.3 -> 25.329405 | G16: 87 | H16: =G16*0.3 -> 26.1 | I16: 83.66 | J16: =I16*0.1 -> 8.366 | K16: Sınava Girmedi | L16: - | M16: - | N16: SINAVA GİRMEDİ

Sheet Ulus.İlişkiler.Sonuç Rapor
A1: T.C.
A2: BAYBURT ÜNİVERSİTESİ
A3: GİRİŞ SINAVI SONUÇ TUTANAĞI
A4: Üniversitemize bağlı birimlere, 2547 sayılı Kanunun ilgili maddeleri ve 09.11.2018 tarih ve 30590 sayılı Resmi Gazetede yayımlanan "Öğretim Üyesi Dışındaki Öğretim Elemanı Kadrolarına Naklen veya Açıktan Yapılacak Atamalarda Uygulanacak Merkezi Sınav ile Giriş Sınavlarına İlişkin Usul ve Esaslar Hakkında Yönetmelik” 11. ve 12. maddeleri hükümleri uyarınca yapılan Giriş Sınavında başarılı olan adayların isimleri aşağıda belirtilmiştir.
A5: İlan No: | C5: =IF(Ulus.İlişkiler.Sonuç!C5="","",Ulus.İlişkiler.Sonuç!C5) ->  | G5: Birimi: | J5: =IF(Ulus.İlişkiler.Sonuç!J5="","",Ulus.İlişkiler.Sonuç!J5) -> Rektörlük
A6: İlan Tarihi: | C6: =IF(Ulus.İlişkiler.Sonuç!C6="","",Ulus.İlişkiler.Sonuç!C6) -> …/.../.... | G6: Bölümü: | J6: =IF(Ulus.İlişkiler.Sonuç!J6="","",Ulus.İlişkiler.Sonuç!J6) -> Uluslararası İlişkiler Ofisi
A7: Kadro Unvanı: | C7: =IF(Ulus.İlişkiler.Sonuç!C7="","",Ulus.İlişkiler.Sonuç!C7) -> Öğretim Görevlisi (Uluslararası İlişkiler Birimi - Uygulamalı Birim) | G7: Alanı: | J7: =IF(Ulus.İlişkiler.Sonuç!J7="","",Ulus.İlişkiler.Sonuç!J7) -> 
A8: Kadro Adedi: | C8: =IF(Ulus.İlişkiler.Sonuç!C8="","",Ulus.İlişkiler.Sonuç!C8) -> 1 | G8: Sınav Tarihi: | J8: =IF(Ulus.İlişkiler.Sonuç!J8="","",Ulus.İlişkiler.Sonuç!J8) -> …/.../.... | L8: Sonuç Tarihi: | N8: =IF(Ulus.İlişkiler.Sonuç!N8="","",Ulus.İlişkiler.Sonuç!N8) -> …/.../....
A9: İlan Özel Şartı: | C9: =IF(Ulus.İlişkiler.Sonuç!C9="","",Ulus.İlişkiler.Sonuç!C9) -> 
A10: Sıra No | B10: Başvuranın | E10: ALES | G10: Yabancı Dil | K10: Giriş Sınavı | M10: (A+B+C+D) Değerlendirme Notu | N10: Sonuç
B11: T.C. Kimlik No | C11: Adı | D11: Soyadı | E11: Puanı | F11: (A) Puanın %30' u | G11: Puanı | H11: (B) Puanın %30' u | I11: 100' lük Sistem | J11: (C) Notun %10' u | K11: Giriş Sınav Notu | L11: (D) Notunun %30' u
A12: =IF(Ulus.İlişkiler.Sonuç!A12="","",Ulus.İlişkiler.Sonuç!A12) -> 1 | B12: =IF(Ulus.İlişkiler.Sonuç!B12="","",LEFT(Ulus.İlişkiler.Sonuç!B12,3)&REPT("*",4)&RIGHT(Ulus.İlişkiler.Sonuç!B12,2)) -> 111****11 | C12: =IF(Ulus.İlişkiler.Sonuç!C12="","",IF(ISERR(FIND(" ",Ulus.İlişkiler.Sonuç!C12))=TRUE,LEFT(Ulus.İlişkiler.Sonuç!C12,2)&REPT("*",3),LEFT(Ulus.İlişkiler.Sonuç!C12,2)&REPT("*",3)&" "&MID(Ulus.İlişkiler.Sonuç!C12,FIND(" ",Ulus.İlişkiler.Sonuç!C12)+1,2)&REPT("*",3))) -> Ör*** | D12: =IF(Ulus.İlişkiler.Sonuç!D12="","",IF(ISERR(FIND(" ",Ulus.İlişkiler.Sonuç!D12))=TRUE,LEFT(Ulus.İlişkiler.Sonuç!D12,2)&REPT("*",3),LEFT(Ulus.İlişkiler.Sonuç!D12,2)&REPT("*",3)&" "&MID(Ulus.İlişkiler.Sonuç!D12,FIND(" ",Ulus.İlişkiler.Sonuç!D12)+1,2)&REPT("*",3))) -> Ör*** | E12: =IF(Ulus.İlişkiler.Sonuç!E12="","",Ulus.İlişkiler.Sonuç!E12) -> 82.51392 | F12: =IF(Ulus.İlişkiler.Sonuç!F12="","",Ulus.İlişkiler.Sonuç!F12) -> 24.754176 | G12: =IF(Ulus.İlişkiler.Sonuç!G12="","",Ulus.İlişkiler.Sonuç!G12) -> 90 | H12: =IF(Ulus.İlişkiler.Sonuç!H12="","",Ulus.İlişkiler.Sonuç!H12) -> 27 | I12: =IF(Ulus.İlişkiler.Sonuç!I12="","",Ulus.İlişkiler.Sonuç!I12) -> 76.66 | J12: =IF(Ulus.İlişkiler.Sonuç!J12="","",Ulus.İlişkiler.Sonuç!J12) -> 7.666 | K12: =IF(Ulus.İlişkiler.Sonuç!K12="","",Ulus.İlişkiler.Sonuç!K12) -> 95 | L12: =IF(Ulus.İlişkiler.Sonuç!L12="","",Ulus.İlişkiler.Sonuç!L12) -> 28.5 | M12: =IF(Ulus.İlişkiler.Sonuç!M12="","",Ulus.İlişkiler.Sonuç!M12) -> 87.920176 | N12: =IF(Ulus.İlişkiler.Sonuç!N12="","",Ulus.İlişkiler.Sonuç!N12) -> BAŞARILI (ASIL)
A13: =IF(Ulus.İlişkiler.Sonuç!A13="","",Ulus.İlişkiler.Sonuç!A13) -> 2 | B13: =IF(Ulus.İlişkiler.Sonuç!B13="","",LEFT(Ulus.İlişkiler.Sonuç!B13,3)&REPT("*",4)&RIGHT(Ulus.İlişkiler.Sonuç!B13,2)) -> 111****11 | C13: =IF(Ulus.İlişkiler.Sonuç!C13="","",IF(ISERR(FIND(" ",Ulus.İlişkiler.Sonuç!C13))=TRUE,LEFT(Ulus.İlişkiler.Sonuç!C13,2)&REPT("*",3),LEFT(Ulus.İlişkiler.Sonuç!C13,2)&REPT("*",3)&" "&MID(Ulus.İlişkiler.Sonuç!C13,FIND(" ",Ulus.İlişkiler.Sonuç!C13)+1,2)&REPT("*",3))) -> Ör*** Ör*** | D13: =IF(Ulus.İlişkiler.Sonuç!D13="","",IF(ISERR(FIND(" ",Ulus.İlişkiler.Sonuç!D13))=TRUE,LEFT(Ulus.İlişkiler.Sonuç!D13,2)&REPT("*",3),LEFT(Ulus.İlişkiler.Sonuç!D13,2)&REPT("*",3)&" "&MID(Ulus.İlişkiler.Sonuç!D13,FIND(" ",Ulus.İlişkiler.Sonuç!D13)+1,2)&REPT("*",3))) -> Ör*** | E13: =IF(Ulus.İlişkiler.Sonuç!E13="","",Ulus.İlişkiler.Sonuç!E13) -> 85.03048 | F13: =IF(Ulus.İlişkiler.Sonuç!F13="","",Ulus.İlişkiler.Sonuç!F13) -> 25.509144 | G13: =IF(Ulus.İlişkiler.Sonuç!G13="","",Ulus.İlişkiler.Sonuç!G13) -> 88 | H13: =IF(Ulus.İlişkiler.Sonuç!H13="","",Ulus.İlişkiler.Sonuç!H13) -> 26.4 | I13: =IF(Ulus.İlişkiler.Sonuç!I13="","",Ulus.İlişkiler.Sonuç!I13) -> 76.66 | J13: =IF(Ulus.İlişkiler.Sonuç!J13="","",Ulus.İlişkiler.Sonuç!J13) -> 7.666 | K13: =IF(Ulus.İlişkiler.Sonuç!K13="","",Ulus.İlişkiler.Sonuç!K13) -> 63 | L13: =IF(Ulus.İlişkiler.Sonuç!L13="","",Ulus.İlişkiler.Sonuç!L13) -> 18.9 | M13: =IF(Ulus.İlişkiler.Sonuç!M13="","",Ulus.İlişkiler.Sonuç!M13) -> 78.475144 | N13: =IF(Ulus.İlişkiler.Sonuç!N13="","",Ulus.İlişkiler.Sonuç!N13) -> BAŞARILI (YEDEK)
A14: =IF(Ulus.İlişkiler.Sonuç!A14="","",Ulus.İlişkiler.Sonuç!A14) -> 3 | B14: =IF(Ulus.İlişkiler.Sonuç!B14="","",LEFT(Ulus.İlişkiler.Sonuç!B14,3)&REPT("*",4)&RIGHT(Ulus.İlişkiler.Sonuç!B14,2)) -> 111****11 | C14: =IF(Ulus.İlişkiler.Sonuç!C14="","",IF(ISERR(FIND(" ",Ulus.İlişkiler.Sonuç!C14))=TRUE,LEFT(Ulus.İlişkiler.Sonuç!C14,2)&REPT("*",3),LEFT(Ulus.İlişkiler.Sonuç!C14,2)&REPT("*",3)&" "&MID(Ulus.İlişkiler.Sonuç!C14,FIND(" ",Ulus.İlişkiler.Sonuç!C14)+1,2)&REPT("*",3))) -> Ör*** | D14: =IF(Ulus.İlişkiler.Sonuç!D14="","",IF(ISERR(FIND(" ",Ulus.İlişkiler.Sonuç!D14))=TRUE,LEFT(Ulus.İlişkiler.Sonuç!D14,2)&REPT("*",3),LEFT(Ulus.İlişkiler.Sonuç!D14,2)&REPT("*",3)&" "&MID(Ulus.İlişkiler.Sonuç!D14,FIND(" ",Ulus.İlişkiler.Sonuç!D14)+1,2)&REPT("*",3))) -> Ör*** Ör*** | E14: =IF(Ulus.İlişkiler.Sonuç!E14="","",Ulus.İlişkiler.Sonuç!E14) -> 84.43135 | F14: =IF(Ulus.İlişkiler.Sonuç!F14="","",Ulus.İlişkiler.Sonuç!F14) -> 25.329405 | G14: =IF(Ulus.İlişkiler.Sonuç!G14="","",Ulus.İlişkiler.Sonuç!G14) -> 89 | H14: =IF(Ulus.İlişkiler.Sonuç!H14="","",Ulus.İlişkiler.Sonuç!H14) -> 26.7 | I14: =IF(Ulus.İlişkiler.Sonuç!I14="","",Ulus.İlişkiler.Sonuç!I14) -> 83.66 | J14: =IF(Ulus.İlişkiler.Sonuç!J14="","",Ulus.İlişkiler.Sonuç!J14) -> 8.366 | K14: =IF(Ulus.İlişkiler.Sonuç!K14="","",Ulus.İlişkiler.Sonuç!K14) -> 45 | L14: =IF(Ulus.İlişkiler.Sonuç!L14="","",Ulus.İlişkiler.Sonuç!L14) -> 13.5 | M14: =IF(Ulus.İlişkiler.Sonuç!M14="","",Ulus.İlişkiler.Sonuç!M14) -> 73.895405 | N14: =IF(Ulus.İlişkiler.Sonuç!N14="","",Ulus.İlişkiler.Sonuç!N14) -> YÖNETMELİK GEREĞİ ELENDİ*
A15: =IF(Ulus.İlişkiler.Sonuç!A15="","",Ulus.İlişkiler.Sonuç!A15) -> 4 | B15: =IF(Ulus.İlişkiler.Sonuç!B15="","",LEFT(Ulus.İlişkiler.Sonuç!B15,3)&REPT("*",4)&RIGHT(Ulus.İlişkiler.Sonuç!B15,2)) -> 111****11 | C15: =IF(Ulus.İlişkiler.Sonuç!C15="","",IF(ISERR(FIND(" ",Ulus.İlişkiler.Sonuç!C15))=TRUE,LEFT(Ulus.İlişkiler.Sonuç!C15,2)&REPT("*",3),LEFT(Ulus.İlişkiler.Sonuç!C15,2)&REPT("*",3)&" "&MID(Ulus.İlişkiler.Sonuç!C15,FIND(" ",Ulus.İlişkiler.Sonuç!C15)+1,2)&REPT("*",3))) -> Ör*** Ör*** | D15: =IF(Ulus.İlişkiler.Sonuç!D15="","",IF(ISERR(FIND(" ",Ulus.İlişkiler.Sonuç!D15))=TRUE,LEFT(Ulus.İlişkiler.Sonuç!D15,2)&REPT("*",3),LEFT(Ulus.İlişkiler.Sonuç!D15,2)&REPT("*",3)&" "&MID(Ulus.İlişkiler.Sonuç!D15,FIND(" ",Ulus.İlişkiler.Sonuç!D15)+1,2)&REPT("*",3))) -> Ör*** Ör*** | E15: =IF(Ulus.İlişkiler.Sonuç!E15="","",Ulus.İlişkiler.Sonuç!E15) -> 72 | F15: =IF(Ulus.İlişkiler.Sonuç!F15="","",Ulus.İlişkiler.Sonuç!F15) -> 21.6 | G15: =IF(Ulus.İlişkiler.Sonuç!G15="","",Ulus.İlişkiler.Sonuç!G15) -> 85 | H15: =IF(Ulus.İlişkiler.Sonuç!H15="","",Ulus.İlişkiler.Sonuç!H15) -> 25.5 | I15: =IF(Ulus.İlişkiler.Sonuç!I15="","",Ulus.İlişkiler.Sonuç!I15) -> 76.66 | J15: =IF(Ulus.İlişkiler.Sonuç!J15="","",Ulus.İlişkiler.Sonuç!J15) -> 7.666 | K15: =IF(Ulus.İlişkiler.Sonuç!K15="","",Ulus.İlişkiler.Sonuç!K15) -> 35 | L15: =IF(Ulus.İlişkiler.Sonuç!L15="","",Ulus.İlişkiler.Sonuç!L15) -> 10.5 | M15: =IF(Ulus.İlişkiler.Sonuç!M15="","",Ulus.İlişkiler.Sonuç!M15) -> 65.266 | N15: =IF(Ulus.İlişkiler.Sonuç!N15="","",Ulus.İlişkiler.Sonuç!N15) -> BAŞARISIZ**
A16: =IF(Ulus.İlişkiler.Sonuç!A16="","",Ulus.İlişkiler.Sonuç!A16) -> 5 | B16: =IF(Ulus.İlişkiler.Sonuç!B16="","",LEFT(Ulus.İlişkiler.Sonuç!B16,3)&REPT("*",4)&RIGHT(Ulus.İlişkiler.Sonuç!B16,2)) -> 111****11 | C16: =IF(Ulus.İlişkiler.Sonuç!C16="","",IF(ISERR(FIND(" ",Ulus.İlişkiler.Sonuç!C16))=TRUE,LEFT(Ulus.İlişkiler.Sonuç!C16,2)&REPT("*",3),LEFT(Ulus.İlişkiler.Sonuç!C16,2)&REPT("*",3)&" "&MID(Ulus.İlişkiler.Sonuç!C16,FIND(" ",Ulus.İlişkiler.Sonuç!C16)+1,2)&REPT("*",3))) -> Ör*** | D16: =IF(Ulus.İlişkiler.Sonuç!D16="","",IF(ISERR(FIND(" ",Ulus.İlişkiler.Sonuç!D16))=TRUE,LEFT(Ulus.İlişkiler.Sonuç!D16,2)&REPT("*",3),LEFT(Ulus.İlişkiler.Sonuç!D16,2)&REPT("*",3)&" "&MID(Ulus.İlişkiler.Sonuç!D16,FIND(" ",Ulus.İlişkiler.Sonuç!D16)+1,2)&REPT("*",3))) -> Ör*** | E16: =IF(Ulus.İlişkiler.Sonuç!E16="","",Ulus.İlişkiler.Sonuç!E16) -> 84.43135 | F16: =IF(Ulus.İlişkiler.Sonuç!F16="","",Ulus.İlişkiler.Sonuç!F16) -> 25.329405 | G16: =IF(Ulus.İlişkiler.Sonuç!G16="","",Ulus.İlişkiler.Sonuç!G16) -> 87 | H16: =IF(Ulus.İlişkiler.Sonuç!H16="","",Ulus.İlişkiler.Sonuç!H16) -> 26.1 | I16: =IF(Ulus.İlişkiler.Sonuç!I16="","",Ulus.İlişkiler.Sonuç!I16) -> 83.66 | J16: =IF(Ulus.İlişkiler.Sonuç!J16="","",Ulus.İlişkiler.Sonuç!J16) -> 8.366 | K16: =IF(Ulus.İlişkiler.Sonuç!K16="","",Ulus.İlişkiler.Sonuç!K16) -> Sınava Girmedi | L16: =IF(Ulus.İlişkiler.Sonuç!L16="","",Ulus.İlişkiler.Sonuç!L16) -> - | M16: =IF(Ulus.İlişkiler.Sonuç!M16="","",Ulus.İlişkiler.Sonuç!M16) -> - | N16: =IF(Ulus.İlişkiler.Sonuç!N16="","",Ulus.İlişkiler.Sonuç!N16) -> SINAVA GİRMEDİ
A17: =IF(Ulus.İlişkiler.Sonuç!A17="","",Ulus.İlişkiler.Sonuç!A17) ->  | B17: =IF(Ulus.İlişkiler.Sonuç!B17="","",LEFT(Ulus.İlişkiler.Sonuç!B17,3)&REPT("*",4)&RIGHT(Ulus.İlişkiler.Sonuç!B17,2)) ->  | C17: =IF(Ulus.İlişkiler.Sonuç!C17="","",IF(ISERR(FIND(" ",Ulus.İlişkiler.Sonuç!C17))=TRUE,LEFT(Ulus.İlişkiler.Sonuç!C17,2)&REPT("*",3),LEFT(Ulus.İlişkiler.Sonuç!C17,2)&REPT("*",3)&" "&MID(Ulus.İlişkiler.Sonuç!C17,FIND(" ",Ulus.İlişkiler.Sonuç!C17)+1,2)&REPT("*",3))) ->  | D17: =IF(Ulus.İlişkiler.Sonuç!D17="","",IF(ISERR(FIND(" ",Ulus.İlişkiler.Sonuç!D17))=TRUE,LEFT(Ulus.İlişkiler.Sonuç!D17,2)&REPT("*",3),LEFT(Ulus.İlişkiler.Sonuç!D17,2)&REPT("*",3)&" "&MID(Ulus.İlişkiler.Sonuç!D17,FIND(" ",Ulus.İlişkiler.Sonuç!D17)+1,2)&REPT("*",3))) ->  | E17: =IF(Ulus.İlişkiler.Sonuç!E17="","",Ulus.İlişkiler.Sonuç!E17) ->  | F17: =IF(Ulus.İlişkiler.Sonuç!F17="","",Ulus.İlişkiler.Sonuç!F17) ->  | G17: =IF(Ulus.İlişkiler.Sonuç!G17="","",Ulus.İlişkiler.Sonuç!G17) ->  | H17: =IF(Ulus.İlişkiler.Sonuç!H17="","",Ulus.İlişkiler.Sonuç!H17) ->  | I17: =IF(Ulus.İlişkiler.Sonuç!I17="","",Ulus.İlişkiler.Sonuç!I17) ->  | J17: =IF(Ulus.İlişkiler.Sonuç!J17="","",Ulus.İlişkiler.Sonuç!J17) ->  | K17: =IF(Ulus.İlişkiler.Sonuç!K17="","",Ulus.İlişkiler.Sonuç!K17) ->  | L17: =IF(Ulus.İlişkiler.Sonuç!L17="","",Ulus.İlişkiler.Sonuç!L17) ->  | M17: =IF(Ulus.İlişkiler.Sonuç!M17="","",Ulus.İlişkiler.Sonuç!M17) ->  | N17: =IF(Ulus.İlişkiler.Sonuç!N17="","",Ulus.İlişkiler.Sonuç!N17) -> 
A18: =IF(Ulus.İlişkiler.Sonuç!A18="","",Ulus.İlişkiler.Sonuç!A18) ->  | B18: =IF(Ulus.İlişkiler.Sonuç!B18="","",LEFT(Ulus.İlişkiler.Sonuç!B18,3)&REPT("*",4)&RIGHT(Ulus.İlişkiler.Sonuç!B18,2)) ->  | C18: =IF(Ulus.İlişkiler.Sonuç!C18="","",IF(ISERR(FIND(" ",Ulus.İlişkiler.Sonuç!C18))=TRUE,LEFT(Ulus.İlişkiler.Sonuç!C18,2)&REPT("*",3),LEFT(Ulus.İlişkiler.Sonuç!C18,2)&REPT("*",3)&" "&MID(Ulus.İlişkiler.Sonuç!C18,FIND(" ",Ulus.İlişkiler.Sonuç!C18)+1,2)&REPT("*",3))) ->  | D18: =IF(Ulus.İlişkiler.Sonuç!D18="","",IF(ISERR(FIND(" ",Ulus.İlişkiler.Sonuç!D18))=TRUE,LEFT(Ulus.İlişkiler.Sonuç!D18,2)&REPT("*",3),LEFT(Ulus.İlişkiler.Sonuç!D18,2)&REPT("*",3)&" "&MID(Ulus.İlişkiler.Sonuç!D18,FIND(" ",Ulus.İlişkiler.Sonuç!D18)+1,2)&REPT("*",3))) ->  | E18: =IF(Ulus.İlişkiler.Sonuç!E18="","",Ulus.İlişkiler.Sonuç!E18) ->  | F18: =IF(Ulus.İlişkiler.Sonuç!F18="","",Ulus.İlişkiler.Sonuç!F18) ->  | G18: =IF(Ulus.İlişkiler.Sonuç!G18="","",Ulus.İlişkiler.Sonuç!G18) ->  | H18: =IF(Ulus.İlişkiler.Sonuç!H18="","",Ulus.İlişkiler.Sonuç!H18) ->  | I18: =IF(Ulus.İlişkiler.Sonuç!I18="","",Ulus.İlişkiler.Sonuç!I18) ->  | J18: =IF(Ulus.İlişkiler.Sonuç!J18="","",Ulus.İlişkiler.Sonuç!J18) ->  | K18: =IF(Ulus.İlişkiler.Sonuç!K18="","",Ulus.İlişkiler.Sonuç!K18) ->  | L18: =IF(Ulus.İlişkiler.Sonuç!L18="","",Ulus.İlişkiler.Sonuç!L18) ->  | M18: =IF(Ulus.İlişkiler.Sonuç!M18="","",Ulus.İlişkiler.Sonuç!M18) ->  | N18: =IF(Ulus.İlişkiler.Sonuç!N18="","",Ulus.İlişkiler.Sonuç!N18) -> 
A19: =IF(Ulus.İlişkiler.Sonuç!A19="","",Ulus.İlişkiler.Sonuç!A19) ->  | B19: =IF(Ulus.İlişkiler.Sonuç!B19="","",LEFT(Ulus.İlişkiler.Sonuç!B19,3)&REPT("*",4)&RIGHT(Ulus.İlişkiler.Sonuç!B19,2)) ->  | C19: =IF(Ulus.İlişkiler.Sonuç!C19="","",IF(ISERR(FIND(" ",Ulus.İlişkiler.Sonuç!C19))=TRUE,LEFT(Ulus.İlişkiler.Sonuç!C19,2)&REPT("*",3),LEFT(Ulus.İlişkiler.Sonuç!C19,2)&REPT("*",3)&" "&MID(Ulus.İlişkiler.Sonuç!C19,FIND(" ",Ulus.İlişkiler.Sonuç!C19)+1,2)&REPT("*",3))) ->  | D19: =IF(Ulus.İlişkiler.Sonuç!D19="","",IF(ISERR(FIND(" ",Ulus.İlişkiler.Sonuç!D19))=TRUE,LEFT(Ulus.İlişkiler.Sonuç!D19,2)&REPT("*",3),LEFT(Ulus.İlişkiler.Sonuç!D19,2)&REPT("*",3)&" "&MID(Ulus.İlişkiler.Sonuç!D19,FIND(" ",Ulus.İlişkiler.Sonuç!D19)+1,2)&REPT("*",3))) ->  | E19: =IF(Ulus.İlişkiler.Sonuç!E19="","",Ulus.İlişkiler.Sonuç!E19) ->  | F19: =IF(Ulus.İlişkiler.Sonuç!F19="","",Ulus.İlişkiler.Sonuç!F19) ->  | G19: =IF(Ulus.İlişkiler.Sonuç!G19="","",Ulus.İlişkiler.Sonuç!G19) ->  | H19: =IF(Ulus.İlişkiler.Sonuç!H19="","",Ulus.İlişkiler.Sonuç!H19) ->  | I19: =IF(Ulus.İlişkiler.Sonuç!I19="","",Ulus.İlişkiler.Sonuç!I19) ->  | J19: =IF(Ulus.İlişkiler.Sonuç!J19="","",Ulus.İlişkiler.Sonuç!J19) ->  | K19: =IF(Ulus.İlişkiler.Sonuç!K19="","",Ulus.İlişkiler.Sonuç!K19) ->  | L19: =IF(Ulus.İlişkiler.Sonuç!L19="","",Ulus.İlişkiler.Sonuç!L19) ->  | M19: =IF(Ulus.İlişkiler.Sonuç!M19="","",Ulus.İlişkiler.Sonuç!M19) ->  | N19: =IF(Ulus.İlişkiler.Sonuç!N19="","",Ulus.İlişkiler.Sonuç!N19) -> 
A20: =IF(Ulus.İlişkiler.Sonuç!A20="","",Ulus.İlişkiler.Sonuç!A20) ->  | B20: =IF(Ulus.İlişkiler.Sonuç!B20="","",LEFT(Ulus.İlişkiler.Sonuç!B20,3)&REPT("*",4)&RIGHT(Ulus.İlişkiler.Sonuç!B20,2)) ->  | C20: =IF(Ulus.İlişkiler.Sonuç!C20="","",IF(ISERR(FIND(" ",Ulus.İlişkiler.Sonuç!C20))=TRUE,LEFT(Ulus.İlişkiler.Sonuç!C20,2)&REPT("*",3),LEFT(Ulus.İlişkiler.Sonuç!C20,2)&REPT("*",3)&" "&MID(Ulus.İlişkiler.Sonuç!C20,FIND(" ",Ulus.İlişkiler.Sonuç!C20)+1,2)&REPT("*",3))) ->  | D20: =IF(Ulus.İlişkiler.Sonuç!D20="","",IF(ISERR(FIND(" ",Ulus.İlişkiler.Sonuç!D20))=TRUE,LEFT(Ulus.İlişkiler.Sonuç!D20,2)&REPT("*",3),LEFT(Ulus.İlişkiler.Sonuç!D20,2)&REPT("*",3)&" "&MID(Ulus.İlişkiler.Sonuç!D20,FIND(" ",Ulus.İlişkiler.Sonuç!D20)+1,2)&REPT("*",3))) ->  | E20: =IF(Ulus.İlişkiler.Sonuç!E20="","",Ulus.İlişkiler.Sonuç!E20) ->  | F20: =IF(Ulus.İlişkiler.Sonuç!F20="","",Ulus.İlişkiler.Sonuç!F20) ->  | G20: =IF(Ulus.İlişkiler.Sonuç!G20="","",Ulus.İlişkiler.Sonuç!G20) ->  | H20: =IF(Ulus.İlişkiler.Sonuç!H20="","",Ulus.İlişkiler.Sonuç!H20) ->  | I20: =IF(Ulus.İlişkiler.Sonuç!I20="","",Ulus.İlişkiler.Sonuç!I20) ->  | J20: =IF(Ulus.İlişkiler.Sonuç!J20="","",Ulus.İlişkiler.Sonuç!J20) ->  | K20: =IF(Ulus.İlişkiler.Sonuç!K20="","",Ulus.İlişkiler.Sonuç!K20) ->  | L20: =IF(Ulus.İlişkiler.Sonuç!L20="","",Ulus.İlişkiler.Sonuç!L20) ->  | M20: =IF(Ulus.İlişkiler.Sonuç!M20="","",Ulus.İlişkiler.Sonuç!M20) ->  | N20: =IF(Ulus.İlişkiler.Sonuç!N20="","",Ulus.İlişkiler.Sonuç!N20) -> 
A21: =IF(Ulus.İlişkiler.Sonuç!A21="","",Ulus.İlişkiler.Sonuç!A21) ->  | B21: =IF(Ulus.İlişkiler.Sonuç!B21="","",LEFT(Ulus.İlişkiler.Sonuç!B21,3)&REPT("*",4)&RIGHT(Ulus.İlişkiler.Sonuç!B21,2)) ->  | C21: =IF(Ulus.İlişkiler.Sonuç!C21="","",IF(ISERR(FIND(" ",Ulus.İlişkiler.Sonuç!C21))=TRUE,LEFT(Ulus.İlişkiler.Sonuç!C21,2)&REPT("*",3),LEFT(Ulus.İlişkiler.Sonuç!C21,2)&REPT("*",3)&" "&MID(Ulus.İlişkiler.Sonuç!C21,FIND(" ",Ulus.İlişkiler.Sonuç!C21)+1,2)&REPT("*",3))) ->  | D21: =IF(Ulus.İlişkiler.Sonuç!D21="","",IF(ISERR(FIND(" ",Ulus.İlişkiler.Sonuç!D21))=TRUE,LEFT(Ulus.İlişkiler.Sonuç!D21,2)&REPT("*",3),LEFT(Ulus.İlişkiler.Sonuç!D21,2)&REPT("*",3)&" "&MID(Ulus.İlişkiler.Sonuç!D21,FIND(" ",Ulus.İlişkiler.Sonuç!D21)+1,2)&REPT("*",3))) ->  | E21: =IF(Ulus.İlişkiler.Sonuç!E21="","",Ulus.İlişkiler.Sonuç!E21) ->  | F21: =IF(Ulus.İlişkiler.Sonuç!F21="","",Ulus.İlişkiler.Sonuç!F21) ->  | G21: =IF(Ulus.İlişkiler.Sonuç!G21="","",Ulus.İlişkiler.Sonuç!G21) ->  | H21: =IF(Ulus.İlişkiler.Sonuç!H21="","",Ulus.İlişkiler.Sonuç!H21) ->  | I21: =IF(Ulus.İlişkiler.Sonuç!I21="","",Ulus.İlişkiler.Sonuç!I21) ->  | J21: =IF(Ulus.İlişkiler.Sonuç!J21="","",Ulus.İlişkiler.Sonuç!J21) ->  | K21: =IF(Ulus.İlişkiler.Sonuç!K21="","",Ulus.İlişkiler.Sonuç!K21) ->  | L21: =IF(Ulus.İlişkiler.Sonuç!L21="","",Ulus.İlişkiler.Sonuç!L21) ->  | M21: =IF(Ulus.İlişkiler.Sonuç!M21="","",Ulus.İlişkiler.Sonuç!M21) ->  | N21: =IF(Ulus.İlişkiler.Sonuç!N21="","",Ulus.İlişkiler.Sonuç!N21) -> 
A22: =IF(Ulus.İlişkiler.Sonuç!A22="","",Ulus.İlişkiler.Sonuç!A22) ->  | B22: =IF(Ulus.İlişkiler.Sonuç!B22="","",LEFT(Ulus.İlişkiler.Sonuç!B22,3)&REPT("*",4)&RIGHT(Ulus.İlişkiler.Sonuç!B22,2)) ->  | C22: =IF(Ulus.İlişkiler.Sonuç!C22="","",IF(ISERR(FIND(" ",Ulus.İlişkiler.Sonuç!C22))=TRUE,LEFT(Ulus.İlişkiler.Sonuç!C22,2)&REPT("*",3),LEFT(Ulus.İlişkiler.Sonuç!C22,2)&REPT("*",3)&" "&MID(Ulus.İlişkiler.Sonuç!C22,FIND(" ",Ulus.İlişkiler.Sonuç!C22)+1,2)&REPT("*",3))) ->  | D22: =IF(Ulus.İlişkiler.Sonuç!D22="","",IF(ISERR(FIND(" ",Ulus.İlişkiler.Sonuç!D22))=TRUE,LEFT(Ulus.İlişkiler.Sonuç!D22,2)&REPT("*",3),LEFT(Ulus.İlişkiler.Sonuç!D22,2)&REPT("*",3)&" "&MID(Ulus.İlişkiler.Sonuç!D22,FIND(" ",Ulus.İlişkiler.Sonuç!D22)+1,2)&REPT("*",3))) ->  | E22: =IF(Ulus.İlişkiler.Sonuç!E22="","",Ulus.İlişkiler.Sonuç!E22) ->  | F22: =IF(Ulus.İlişkiler.Sonuç!F22="","",Ulus.İlişkiler.Sonuç!F22) ->  | G22: =IF(Ulus.İlişkiler.Sonuç!G22="","",Ulus.İlişkiler.Sonuç!G22) ->  | H22: =IF(Ulus.İlişkiler.Sonuç!H22="","",Ulus.İlişkiler.Sonuç!H22) ->  | I22: =IF(Ulus.İlişkiler.Sonuç!I22="","",Ulus.İlişkiler.Sonuç!I22) ->  | J22: =IF(Ulus.İlişkiler.Sonuç!J22="","",Ulus.İlişkiler.Sonuç!J22) ->  | K22: =IF(Ulus.İlişkiler.Sonuç!K22="","",Ulus.İlişkiler.Sonuç!K22) ->  | L22: =IF(Ulus.İlişkiler.Sonuç!L22="","",Ulus.İlişkiler.Sonuç!L22) ->  | M22: =IF(Ulus.İlişkiler.Sonuç!M22="","",Ulus.İlişkiler.Sonuç!M22) ->  | N22: =IF(Ulus.İlişkiler.Sonuç!N22="","",Ulus.İlişkiler.Sonuç!N22) -> 
A23: =IF(Ulus.İlişkiler.Sonuç!A23="","",Ulus.İlişkiler.Sonuç!A23) ->  | B23: =IF(Ulus.İlişkiler.Sonuç!B23="","",LEFT(Ulus.İlişkiler.Sonuç!B23,3)&REPT("*",4)&RIGHT(Ulus.İlişkiler.Sonuç!B23,2)) ->  | C23: =IF(Ulus.İlişkiler.Sonuç!C23="","",IF(ISERR(FIND(" ",Ulus.İlişkiler.Sonuç!C23))=TRUE,LEFT(Ulus.İlişkiler.Sonuç!C23,2)&REPT("*",3),LEFT(Ulus.İlişkiler.Sonuç!C23,2)&REPT("*",3)&" "&MID(Ulus.İlişkiler.Sonuç!C23,FIND(" ",Ulus.İlişkiler.Sonuç!C23)+1,2)&REPT("*",3))) ->  | D23: =IF(Ulus.İlişkiler.Sonuç!D23="","",IF(ISERR(FIND(" ",Ulus.İlişkiler.Sonuç!D23))=TRUE,LEFT(Ulus.İlişkiler.Sonuç!D23,2)&REPT("*",3),LEFT(Ulus.İlişkiler.Sonuç!D23,2)&REPT("*",3)&" "&MID(Ulus.İlişkiler.Sonuç!D23,FIND(" ",Ulus.İlişkiler.Sonuç!D23)+1,2)&REPT("*",3))) ->  | E23: =IF(Ulus.İlişkiler.Sonuç!E23="","",Ulus.İlişkiler.Sonuç!E23) ->  | F23: =IF(Ulus.İlişkiler.Sonuç!F23="","",Ulus.İlişkiler.Sonuç!F23) ->  | G23: =IF(Ulus.İlişkiler.Sonuç!G23="","",Ulus.İlişkiler.Sonuç!G23) ->  | H23: =IF(Ulus.İlişkiler.Sonuç!H23="","",Ulus.İlişkiler.Sonuç!H23) ->  | I23: =IF(Ulus.İlişkiler.Sonuç!I23="","",Ulus.İlişkiler.Sonuç!I23) ->  | J23: =IF(Ulus.İlişkiler.Sonuç!J23="","",Ulus.İlişkiler.Sonuç!J23) ->  | K23: =IF(Ulus.İlişkiler.Sonuç!K23="","",Ulus.İlişkiler.Sonuç!K23) ->  | L23: =IF(Ulus.İlişkiler.Sonuç!L23="","",Ulus.İlişkiler.Sonuç!L23) ->  | M23: =IF(Ulus.İlişkiler.Sonuç!M23="","",Ulus.İlişkiler.Sonuç!M23) ->  | N23: =IF(Ulus.İlişkiler.Sonuç!N23="","",Ulus.İlişkiler.Sonuç!N23) -> 
A24: =IF(Ulus.İlişkiler.Sonuç!A24="","",Ulus.İlişkiler.Sonuç!A24) ->  | B24: =IF(Ulus.İlişkiler.Sonuç!B24="","",LEFT(Ulus.İlişkiler.Sonuç!B24,3)&REPT("*",4)&RIGHT(Ulus.İlişkiler.Sonuç!B24,2)) ->  | C24: =IF(Ulus.İlişkiler.Sonuç!C24="","",IF(ISERR(FIND(" ",Ulus.İlişkiler.Sonuç!C24))=TRUE,LEFT(Ulus.İlişkiler.Sonuç!C24,2)&REPT("*",3),LEFT(Ulus.İlişkiler.Sonuç!C24,2)&REPT("*",3)&" "&MID(Ulus.İlişkiler.Sonuç!C24,FIND(" ",Ulus.İlişkiler.Sonuç!C24)+1,2)&REPT("*",3))) ->  | D24: =IF(Ulus.İlişkiler.Sonuç!D24="","",IF(ISERR(FIND(" ",Ulus.İlişkiler.Sonuç!D24))=TRUE,LEFT(Ulus.İlişkiler.Sonuç!D24,2)&REPT("*",3),LEFT(Ulus.İlişkiler.Sonuç!D24,2)&REPT("*",3)&" "&MID(Ulus.İlişkiler.Sonuç!D24,FIND(" ",Ulus.İlişkiler.Sonuç!D24)+1,2)&REPT("*",3))) ->  | E24: =IF(Ulus.İlişkiler.Sonuç!E24="","",Ulus.İlişkiler.Sonuç!E24) ->  | F24: =IF(Ulus.İlişkiler.Sonuç!F24="","",Ulus.İlişkiler.Sonuç!F24) ->  | G24: =IF(Ulus.İlişkiler.Sonuç!G24="","",Ulus.İlişkiler.Sonuç!G24) ->  | H24: =IF(Ulus.İlişkiler.Sonuç!H24="","",Ulus.İlişkiler.Sonuç!H24) ->  | I24: =IF(Ulus.İlişkiler.Sonuç!I24="","",Ulus.İlişkiler.Sonuç!I24) ->  | J24: =IF(Ulus.İlişkiler.Sonuç!J24="","",Ulus.İlişkiler.Sonuç!J24) ->  | K24: =IF(Ulus.İlişkiler.Sonuç!K24="","",Ulus.İlişkiler.Sonuç!K24) ->  | L24: =IF(Ulus.İlişkiler.Sonuç!L24="","",Ulus.İlişkiler.Sonuç!L24) ->  | M24: =IF(Ulus.İlişkiler.Sonuç!M24="","",Ulus.İlişkiler.Sonuç!M24) ->  | N24: =IF(Ulus.İlişkiler.Sonuç!N24="","",Ulus.İlişkiler.Sonuç!N24) -> 
A25: =IF(Ulus.İlişkiler.Sonuç!A25="","",Ulus.İlişkiler.Sonuç!A25) ->  | B25: =IF(Ulus.İlişkiler.Sonuç!B25="","",LEFT(Ulus.İlişkiler.Sonuç!B25,3)&REPT("*",4)&RIGHT(Ulus.İlişkiler.Sonuç!B25,2)) ->  | C25: =IF(Ulus.İlişkiler.Sonuç!C25="","",IF(ISERR(FIND(" ",Ulus.İlişkiler.Sonuç!C25))=TRUE,LEFT(Ulus.İlişkiler.Sonuç!C25,2)&REPT("*",3),LEFT(Ulus.İlişkiler.Sonuç!C25,2)&REPT("*",3)&" "&MID(Ulus.İlişkiler.Sonuç!C25,FIND(" ",Ulus.İlişkiler.Sonuç!C25)+1,2)&REPT("*",3))) ->  | D25: =IF(Ulus.İlişkiler.Sonuç!D25="","",IF(ISERR(FIND(" ",Ulus.İlişkiler.Sonuç!D25))=TRUE,LEFT(Ulus.İlişkiler.Sonuç!D25,2)&REPT("*",3),LEFT(Ulus.İlişkiler.Sonuç!D25,2)&REPT("*",3)&" "&MID(Ulus.İlişkiler.Sonuç!D25,FIND(" ",Ulus.İlişkiler.Sonuç!D25)+1,2)&REPT("*",3))) ->  | E25: =IF(Ulus.İlişkiler.Sonuç!E25="","",Ulus.İlişkiler.Sonuç!E25) ->  | F25: =IF(Ulus.İlişkiler.Sonuç!F25="","",Ulus.İlişkiler.Sonuç!F25) ->  | G25: =IF(Ulus.İlişkiler.Sonuç!G25="","",Ulus.İlişkiler.Sonuç!G25) ->  | H25: =IF(Ulus.İlişkiler.Sonuç!H25="","",Ulus.İlişkiler.Sonuç!H25) ->  | I25: =IF(Ulus.İlişkiler.Sonuç!I25="","",Ulus.İlişkiler.Sonuç!I25) ->  | J25: =IF(Ulus.İlişkiler.Sonuç!J25="","",Ulus.İlişkiler.Sonuç!J25) ->  | K25: =IF(Ulus.İlişkiler.Sonuç!K25="","",Ulus.İlişkiler.Sonuç!K25) ->  | L25: =IF(Ulus.İlişkiler.Sonuç!L25="","",Ulus.İlişkiler.Sonuç!L25) ->  | M25: =IF(Ulus.İlişkiler.Sonuç!M25="","",Ulus.İlişkiler.Sonuç!M25) ->  | N25: =IF(Ulus.İlişkiler.Sonuç!N25="","",Ulus.İlişkiler.Sonuç!N25) -> 
A26: =IF(Ulus.İlişkiler.Sonuç!A26="","",Ulus.İlişkiler.Sonuç!A26) ->  | B26: =IF(Ulus.İlişkiler.Sonuç!B26="","",LEFT(Ulus.İlişkiler.Sonuç!B26,3)&REPT("*",4)&RIGHT(Ulus.İlişkiler.Sonuç!B26,2)) ->  | C26: =IF(Ulus.İlişkiler.Sonuç!C26="","",IF(ISERR(FIND(" ",Ulus.İlişkiler.Sonuç!C26))=TRUE,LEFT(Ulus.İlişkiler.Sonuç!C26,2)&REPT("*",3),LEFT(Ulus.İlişkiler.Sonuç!C26,2)&REPT("*",3)&" "&MID(Ulus.İlişkiler.Sonuç!C26,FIND(" ",Ulus.İlişkiler.Sonuç!C26)+1,2)&REPT("*",3))) ->  | D26: =IF(Ulus.İlişkiler.Sonuç!D26="","",IF(ISERR(FIND(" ",Ulus.İlişkiler.Sonuç!D26))=TRUE,LEFT(Ulus.İlişkiler.Sonuç!D26,2)&REPT("*",3),LEFT(Ulus.İlişkiler.Sonuç!D26,2)&REPT("*",3)&" "&MID(Ulus.İlişkiler.Sonuç!D26,FIND(" ",Ulus.İlişkiler.Sonuç!D26)+1,2)&REPT("*",3))) ->  | E26: =IF(Ulus.İlişkiler.Sonuç!E26="","",Ulus.İlişkiler.Sonuç!E26) ->  | F26: =IF(Ulus.İlişkiler.Sonuç!F26="","",Ulus.İlişkiler.Sonuç!F26) ->  | G26: =IF(Ulus.İlişkiler.Sonuç!G26="","",Ulus.İlişkiler.Sonuç!G26) ->  | H26: =IF(Ulus.İlişkiler.Sonuç!H26="","",Ulus.İlişkiler.Sonuç!H26) ->  | I26: =IF(Ulus.İlişkiler.Sonuç!I26="","",Ulus.İlişkiler.Sonuç!I26) ->  | J26: =IF(Ulus.İlişkiler.Sonuç!J26="","",Ulus.İlişkiler.Sonuç!J26) ->  | K26: =IF(Ulus.İlişkiler.Sonuç!K26="","",Ulus.İlişkiler.Sonuç!K26) ->  | L26: =IF(Ulus.İlişkiler.Sonuç!L26="","",Ulus.İlişkiler.Sonuç!L26) ->  | M26: =IF(Ulus.İlişkiler.Sonuç!M26="","",Ulus.İlişkiler.Sonuç!M26) ->  | N26: =IF(Ulus.İlişkiler.Sonuç!N26="","",Ulus.İlişkiler.Sonuç!N26) -> 
A27: =IF(Ulus.İlişkiler.Sonuç!A27="","",Ulus.İlişkiler.Sonuç!A27) ->  | B27: =IF(Ulus.İlişkiler.Sonuç!B27="","",LEFT(Ulus.İlişkiler.Sonuç!B27,3)&REPT("*",4)&RIGHT(Ulus.İlişkiler.Sonuç!B27,2)) ->  | C27: =IF(Ulus.İlişkiler.Sonuç!C27="","",IF(ISERR(FIND(" ",Ulus.İlişkiler.Sonuç!C27))=TRUE,LEFT(Ulus.İlişkiler.Sonuç!C27,2)&REPT("*",3),LEFT(Ulus.İlişkiler.Sonuç!C27,2)&REPT("*",3)&" "&MID(Ulus.İlişkiler.Sonuç!C27,FIND(" ",Ulus.İlişkiler.Sonuç!C27)+1,2)&REPT("*",3))) ->  | D27: =IF(Ulus.İlişkiler.Sonuç!D27="","",IF(ISERR(FIND(" ",Ulus.İlişkiler.Sonuç!D27))=TRUE,LEFT(Ulus.İlişkiler.Sonuç!D27,2)&REPT("*",3),LEFT(Ulus.İlişkiler.Sonuç!D27,2)&REPT("*",3)&" "&MID(Ulus.İlişkiler.Sonuç!D27,FIND(" ",Ulus.İlişkiler.Sonuç!D27)+1,2)&REPT("*",3))) ->  | E27: =IF(Ulus.İlişkiler.Sonuç!E27="","",Ulus.İlişkiler.Sonuç!E27) ->  | F27: =IF(Ulus.İlişkiler.Sonuç!F27="","",Ulus.İlişkiler.Sonuç!F27) ->  | G27: =IF(Ulus.İlişkiler.Sonuç!G27="","",Ulus.İlişkiler.Sonuç!G27) ->  | H27: =IF(Ulus.İlişkiler.Sonuç!H27="","",Ulus.İlişkiler.Sonuç!H27) ->  | I27: =IF(Ulus.İlişkiler.Sonuç!I27="","",Ulus.İlişkiler.Sonuç!I27) ->  | J27: =IF(Ulus.İlişkiler.Sonuç!J27="","",Ulus.İlişkiler.Sonuç!J27) ->  | K27: =IF(Ulus.İlişkiler.Sonuç!K27="","",Ulus.İlişkiler.Sonuç!K27) ->  | L27: =IF(Ulus.İlişkiler.Sonuç!L27="","",Ulus.İlişkiler.Sonuç!L27) ->  | M27: =IF(Ulus.İlişkiler.Sonuç!M27="","",Ulus.İlişkiler.Sonuç!M27) ->  | N27: =IF(Ulus.İlişkiler.Sonuç!N27="","",Ulus.İlişkiler.Sonuç!N27) -> 
A28: =IF(Ulus.İlişkiler.Sonuç!A28="","",Ulus.İlişkiler.Sonuç!A28) ->  | B28: =IF(Ulus.İlişkiler.Sonuç!B28="","",LEFT(Ulus.İlişkiler.Sonuç!B28,3)&REPT("*",4)&RIGHT(Ulus.İlişkiler.Sonuç!B28,2)) ->  | C28: =IF(Ulus.İlişkiler.Sonuç!C28="","",IF(ISERR(FIND(" ",Ulus.İlişkiler.Sonuç!C28))=TRUE,LEFT(Ulus.İlişkiler.Sonuç!C28,2)&REPT("*",3),LEFT(Ulus.İlişkiler.Sonuç!C28,2)&REPT("*",3)&" "&MID(Ulus.İlişkiler.Sonuç!C28,FIND(" ",Ulus.İlişkiler.Sonuç!C28)+1,2)&REPT("*",3))) ->  | D28: =IF(Ulus.İlişkiler.Sonuç!D28="","",IF(ISERR(FIND(" ",Ulus.İlişkiler.Sonuç!D28))=TRUE,LEFT(Ulus.İlişkiler.Sonuç!D28,2)&REPT("*",3),LEFT(Ulus.İlişkiler.Sonuç!D28,2)&REPT("*",3)&" "&MID(Ulus.İlişkiler.Sonuç!D28,FIND(" ",Ulus.İlişkiler.Sonuç!D28)+1,2)&REPT("*",3))) ->  | E28: =IF(Ulus.İlişkiler.Sonuç!E28="","",Ulus.İlişkiler.Sonuç!E28) ->  | F28: =IF(Ulus.İlişkiler.Sonuç!F28="","",Ulus.İlişkiler.Sonuç!F28) ->  | G28: =IF(Ulus.İlişkiler.Sonuç!G28="","",Ulus.İlişkiler.Sonuç!G28) ->  | H28: =IF(Ulus.İlişkiler.Sonuç!H28="","",Ulus.İlişkiler.Sonuç!H28) ->  | I28: =IF(Ulus.İlişkiler.Sonuç!I28="","",Ulus.İlişkiler.Sonuç!I28) ->  | J28: =IF(Ulus.İlişkiler.Sonuç!J28="","",Ulus.İlişkiler.Sonuç!J28) ->  | K28: =IF(Ulus.İlişkiler.Sonuç!K28="","",Ulus.İlişkiler.Sonuç!K28) ->  | L28: =IF(Ulus.İlişkiler.Sonuç!L28="","",Ulus.İlişkiler.Sonuç!L28) ->  | M28: =IF(Ulus.İlişkiler.Sonuç!M28="","",Ulus.İlişkiler.Sonuç!M28) ->  | N28: =IF(Ulus.İlişkiler.Sonuç!N28="","",Ulus.İlişkiler.Sonuç!N28) -> 
A29: =IF(Ulus.İlişkiler.Sonuç!A29="","",Ulus.İlişkiler.Sonuç!A29) ->  | B29: =IF(Ulus.İlişkiler.Sonuç!B29="","",LEFT(Ulus.İlişkiler.Sonuç!B29,3)&REPT("*",4)&RIGHT(Ulus.İlişkiler.Sonuç!B29,2)) ->  | C29: =IF(Ulus.İlişkiler.Sonuç!C29="","",IF(ISERR(FIND(" ",Ulus.İlişkiler.Sonuç!C29))=TRUE,LEFT(Ulus.İlişkiler.Sonuç!C29,2)&REPT("*",3),LEFT(Ulus.İlişkiler.Sonuç!C29,2)&REPT("*",3)&" "&MID(Ulus.İlişkiler.Sonuç!C29,FIND(" ",Ulus.İlişkiler.Sonuç!C29)+1,2)&REPT("*",3))) ->  | D29: =IF(Ulus.İlişkiler.Sonuç!D29="","",IF(ISERR(FIND(" ",Ulus.İlişkiler.Sonuç!D29))=TRUE,LEFT(Ulus.İlişkiler.Sonuç!D29,2)&REPT("*",3),LEFT(Ulus.İlişkiler.Sonuç!D29,2)&REPT("*",3)&" "&MID(Ulus.İlişkiler.Sonuç!D29,FIND(" ",Ulus.İlişkiler.Sonuç!D29)+1,2)&REPT("*",3))) ->  | E29: =IF(Ulus.İlişkiler.Sonuç!E29="","",Ulus.İlişkiler.Sonuç!E29) ->  | F29: =IF(Ulus.İlişkiler.Sonuç!F29="","",Ulus.İlişkiler.Sonuç!F29) ->  | G29: =IF(Ulus.İlişkiler.Sonuç!G29="","",Ulus.İlişkiler.Sonuç!G29) ->  | H29: =IF(Ulus.İlişkiler.Sonuç!H29="","",Ulus.İlişkiler.Sonuç!H29) ->  | I29: =IF(Ulus.İlişkiler.Sonuç!I29="","",Ulus.İlişkiler.Sonuç!I29) ->  | J29: =IF(Ulus.İlişkiler.Sonuç!J29="","",Ulus.İlişkiler.Sonuç!J29) ->  | K29: =IF(Ulus.İlişkiler.Sonuç!K29="","",Ulus.İlişkiler.Sonuç!K29) ->  | L29: =IF(Ulus.İlişkiler.Sonuç!L29="","",Ulus.İlişkiler.Sonuç!L29) ->  | M29: =IF(Ulus.İlişkiler.Sonuç!M29="","",Ulus.İlişkiler.Sonuç!M29) ->  | N29: =IF(Ulus.İlişkiler.Sonuç!N29="","",Ulus.İlişkiler.Sonuç!N29) -> 
A30: =IF(Ulus.İlişkiler.Sonuç!A30="","",Ulus.İlişkiler.Sonuç!A30) ->  | B30: =IF(Ulus.İlişkiler.Sonuç!B30="","",LEFT(Ulus.İlişkiler.Sonuç!B30,3)&REPT("*",4)&RIGHT(Ulus.İlişkiler.Sonuç!B30,2)) ->  | C30: =IF(Ulus.İlişkiler.Sonuç!C30="","",IF(ISERR(FIND(" ",Ulus.İlişkiler.Sonuç!C30))=TRUE,LEFT(Ulus.İlişkiler.Sonuç!C30,2)&REPT("*",3),LEFT(Ulus.İlişkiler.Sonuç!C30,2)&REPT("*",3)&" "&MID(Ulus.İlişkiler.Sonuç!C30,FIND(" ",Ulus.İlişkiler.Sonuç!C30)+1,2)&REPT("*",3))) ->  | D30: =IF(Ulus.İlişkiler.Sonuç!D30="","",IF(ISERR(FIND(" ",Ulus.İlişkiler.Sonuç!D30))=TRUE,LEFT(Ulus.İlişkiler.Sonuç!D30,2)&REPT("*",3),LEFT(Ulus.İlişkiler.Sonuç!D30,2)&REPT("*",3)&" "&MID(Ulus.İlişkiler.Sonuç!D30,FIND(" ",Ulus.İlişkiler.Sonuç!D30)+1,2)&REPT("*",3))) ->  | E30: =IF(Ulus.İlişkiler.Sonuç!E30="","",Ulus.İlişkiler.Sonuç!E30) ->  | F30: =IF(Ulus.İlişkiler.Sonuç!F30="","",Ulus.İlişkiler.Sonuç!F30) ->  | G30: =IF(Ulus.İlişkiler.Sonuç!G30="","",Ulus.İlişkiler.Sonuç!G30) ->  | H30: =IF(Ulus.İlişkiler.Sonuç!H30="","",Ulus.İlişkiler.Sonuç!H30) ->  | I30: =IF(Ulus.İlişkiler.Sonuç!I30="","",Ulus.İlişkiler.Sonuç!I30) ->  | J30: =IF(Ulus.İlişkiler.Sonuç!J30="","",Ulus.İlişkiler.Sonuç!J30) ->  | K30: =IF(Ulus.İlişkiler.Sonuç!K30="","",Ulus.İlişkiler.Sonuç!K30) ->  | L30: =IF(Ulus.İlişkiler.Sonuç!L30="","",Ulus.İlişkiler.Sonuç!L30) ->  | M30: =IF(Ulus.İlişkiler.Sonuç!M30="","",Ulus.İlişkiler.Sonuç!M30) ->  | N30: =IF(Ulus.İlişkiler.Sonuç!N30="","",Ulus.İlişkiler.Sonuç!N30) -> 
A31: =IF(Ulus.İlişkiler.Sonuç!A31="","",Ulus.İlişkiler.Sonuç!A31) ->  | B31: =IF(Ulus.İlişkiler.Sonuç!B31="","",LEFT(Ulus.İlişkiler.Sonuç!B31,3)&REPT("*",4)&RIGHT(Ulus.İlişkiler.Sonuç!B31,2)) ->  | C31: =IF(Ulus.İlişkiler.Sonuç!C31="","",IF(ISERR(FIND(" ",Ulus.İlişkiler.Sonuç!C31))=TRUE,LEFT(Ulus.İlişkiler.Sonuç!C31,2)&REPT("*",3),LEFT(Ulus.İlişkiler.Sonuç!C31,2)&REPT("*",3)&" "&MID(Ulus.İlişkiler.Sonuç!C31,FIND(" ",Ulus.İlişkiler.Sonuç!C31)+1,2)&REPT("*",3))) ->  | D31: =IF(Ulus.İlişkiler.Sonuç!D31="","",IF(ISERR(FIND(" ",Ulus.İlişkiler.Sonuç!D31))=TRUE,LEFT(Ulus.İlişkiler.Sonuç!D31,2)&REPT("*",3),LEFT(Ulus.İlişkiler.Sonuç!D31,2)&REPT("*",3)&" "&MID(Ulus.İlişkiler.Sonuç!D31,FIND(" ",Ulus.İlişkiler.Sonuç!D31)+1,2)&REPT("*",3))) ->  | E31: =IF(Ulus.İlişkiler.Sonuç!E31="","",Ulus.İlişkiler.Sonuç!E31) ->  | F31: =IF(Ulus.İlişkiler.Sonuç!F31="","",Ulus.İlişkiler.Sonuç!F31) ->  | G31: =IF(Ulus.İlişkiler.Sonuç!G31="","",Ulus.İlişkiler.Sonuç!G31) ->  | H31: =IF(Ulus.İlişkiler.Sonuç!H31="","",Ulus.İlişkiler.Sonuç!H31) ->  | I31: =IF(Ulus.İlişkiler.Sonuç!I31="","",Ulus.İlişkiler.Sonuç!I31) ->  | J31: =IF(Ulus.İlişkiler.Sonuç!J31="","",Ulus.İlişkiler.Sonuç!J31) ->  | K31: =IF(Ulus.İlişkiler.Sonuç!K31="","",Ulus.İlişkiler.Sonuç!K31) ->  | L31: =IF(Ulus.İlişkiler.Sonuç!L31="","",Ulus.İlişkiler.Sonuç!L31) ->  | M31: =IF(Ulus.İlişkiler.Sonuç!M31="","",Ulus.İlişkiler.Sonuç!M31) ->  | N31: =IF(Ulus.İlişkiler.Sonuç!N31="","",Ulus.İlişkiler.Sonuç!N31) -> 
A32: =IF(Ulus.İlişkiler.Sonuç!A32="","",Ulus.İlişkiler.Sonuç!A32) ->  | B32: =IF(Ulus.İlişkiler.Sonuç!B32="","",LEFT(Ulus.İlişkiler.Sonuç!B32,3)&REPT("*",4)&RIGHT(Ulus.İlişkiler.Sonuç!B32,2)) ->  | C32: =IF(Ulus.İlişkiler.Sonuç!C32="","",IF(ISERR(FIND(" ",Ulus.İlişkiler.Sonuç!C32))=TRUE,LEFT(Ulus.İlişkiler.Sonuç!C32,2)&REPT("*",3),LEFT(Ulus.İlişkiler.Sonuç!C32,2)&REPT("*",3)&" "&MID(Ulus.İlişkiler.Sonuç!C32,FIND(" ",Ulus.İlişkiler.Sonuç!C32)+1,2)&REPT("*",3))) ->  | D32: =IF(Ulus.İlişkiler.Sonuç!D32="","",IF(ISERR(FIND(" ",Ulus.İlişkiler.Sonuç!D32))=TRUE,LEFT(Ulus.İlişkiler.Sonuç!D32,2)&REPT("*",3),LEFT(Ulus.İlişkiler.Sonuç!D32,2)&REPT("*",3)&" "&MID(Ulus.İlişkiler.Sonuç!D32,FIND(" ",Ulus.İlişkiler.Sonuç!D32)+1,2)&REPT("*",3))) ->  | E32: =IF(Ulus.İlişkiler.Sonuç!E32="","",Ulus.İlişkiler.Sonuç!E32) ->  | F32: =IF(Ulus.İlişkiler.Sonuç!F32="","",Ulus.İlişkiler.Sonuç!F32) ->  | G32: =IF(Ulus.İlişkiler.Sonuç!G32="","",Ulus.İlişkiler.Sonuç!G32) ->  | H32: =IF(Ulus.İlişkiler.Sonuç!H32="","",Ulus.İlişkiler.Sonuç!H32) ->  | I32: =IF(Ulus.İlişkiler.Sonuç!I32="","",Ulus.İlişkiler.Sonuç!I32) ->  | J32: =IF(Ulus.İlişkiler.Sonuç!J32="","",Ulus.İlişkiler.Sonuç!J32) ->  | K32: =IF(Ulus.İlişkiler.Sonuç!K32="","",Ulus.İlişkiler.Sonuç!K32) ->  | L32: =IF(Ulus.İlişkiler.Sonuç!L32="","",Ulus.İlişkiler.Sonuç!L32) ->  | M32: =IF(Ulus.İlişkiler.Sonuç!M32="","",Ulus.İlişkiler.Sonuç!M32) ->  | N32: =IF(Ulus.İlişkiler.Sonuç!N32="","",Ulus.İlişkiler.Sonuç!N32) -> 
A33: =IF(Ulus.İlişkiler.Sonuç!A33="","",Ulus.İlişkiler.Sonuç!A33) ->  | B33: =IF(Ulus.İlişkiler.Sonuç!B33="","",LEFT(Ulus.İlişkiler.Sonuç!B33,3)&REPT("*",4)&RIGHT(Ulus.İlişkiler.Sonuç!B33,2)) ->  | C33: =IF(Ulus.İlişkiler.Sonuç!C33="","",IF(ISERR(FIND(" ",Ulus.İlişkiler.Sonuç!C33))=TRUE,LEFT(Ulus.İlişkiler.Sonuç!C33,2)&REPT("*",3),LEFT(Ulus.İlişkiler.Sonuç!C33,2)&REPT("*",3)&" "&MID(Ulus.İlişkiler.Sonuç!C33,FIND(" ",Ulus.İlişkiler.Sonuç!C33)+1,2)&REPT("*",3))) ->  | D33: =IF(Ulus.İlişkiler.Sonuç!D33="","",IF(ISERR(FIND(" ",Ulus.İlişkiler.Sonuç!D33))=TRUE,LEFT(Ulus.İlişkiler.Sonuç!D33,2)&REPT("*",3),LEFT(Ulus.İlişkiler.Sonuç!D33,2)&REPT("*",3)&" "&MID(Ulus.İlişkiler.Sonuç!D33,FIND(" ",Ulus.İlişkiler.Sonuç!D33)+1,2)&REPT("*",3))) ->  | E33: =IF(Ulus.İlişkiler.Sonuç!E33="","",Ulus.İlişkiler.Sonuç!E33) ->  | F33: =IF(Ulus.İlişkiler.Sonuç!F33="","",Ulus.İlişkiler.Sonuç!F33) ->  | G33: =IF(Ulus.İlişkiler.Sonuç!G33="","",Ulus.İlişkiler.Sonuç!G33) ->  | H33: =IF(Ulus.İlişkiler.Sonuç!H33="","",Ulus.İlişkiler.Sonuç!H33) ->  | I33: =IF(Ulus.İlişkiler.Sonuç!I33="","",Ulus.İlişkiler.Sonuç!I33) ->  | J33: =IF(Ulus.İlişkiler.Sonuç!J33="","",Ulus.İlişkiler.Sonuç!J33) ->  | K33: =IF(Ulus.İlişkiler.Sonuç!K33="","",Ulus.İlişkiler.Sonuç!K33) ->  | L33: =IF(Ulus.İlişkiler.Sonuç!L33="","",Ulus.İlişkiler.Sonuç!L33) ->  | M33: =IF(Ulus.İlişkiler.Sonuç!M33="","",Ulus.İlişkiler.Sonuç!M33) ->  | N33: =IF(Ulus.İlişkiler.Sonuç!N33="","",Ulus.İlişkiler.Sonuç!N33) -> 
A34: =IF(Ulus.İlişkiler.Sonuç!A34="","",Ulus.İlişkiler.Sonuç!A34) ->  | B34: =IF(Ulus.İlişkiler.Sonuç!B34="","",LEFT(Ulus.İlişkiler.Sonuç!B34,3)&REPT("*",4)&RIGHT(Ulus.İlişkiler.Sonuç!B34,2)) ->  | C34: =IF(Ulus.İlişkiler.Sonuç!C34="","",IF(ISERR(FIND(" ",Ulus.İlişkiler.Sonuç!C34))=TRUE,LEFT(Ulus.İlişkiler.Sonuç!C34,2)&REPT("*",3),LEFT(Ulus.İlişkiler.Sonuç!C34,2)&REPT("*",3)&" "&MID(Ulus.İlişkiler.Sonuç!C34,FIND(" ",Ulus.İlişkiler.Sonuç!C34)+1,2)&REPT("*",3))) ->  | D34: =IF(Ulus.İlişkiler.Sonuç!D34="","",IF(ISERR(FIND(" ",Ulus.İlişkiler.Sonuç!D34))=TRUE,LEFT(Ulus.İlişkiler.Sonuç!D34,2)&REPT("*",3),LEFT(Ulus.İlişkiler.Sonuç!D34,2)&REPT("*",3)&" "&MID(Ulus.İlişkiler.Sonuç!D34,FIND(" ",Ulus.İlişkiler.Sonuç!D34)+1,2)&REPT("*",3))) ->  | E34: =IF(Ulus.İlişkiler.Sonuç!E34="","",Ulus.İlişkiler.Sonuç!E34) ->  | F34: =IF(Ulus.İlişkiler.Sonuç!F34="","",Ulus.İlişkiler.Sonuç!F34) ->  | G34: =IF(Ulus.İlişkiler.Sonuç!G34="","",Ulus.İlişkiler.Sonuç!G34) ->  | H34: =IF(Ulus.İlişkiler.Sonuç!H34="","",Ulus.İlişkiler.Sonuç!H34) ->  | I34: =IF(Ulus.İlişkiler.Sonuç!I34="","",Ulus.İlişkiler.Sonuç!I34) ->  | J34: =IF(Ulus.İlişkiler.Sonuç!J34="","",Ulus.İlişkiler.Sonuç!J34) ->  | K34: =IF(Ulus.İlişkiler.Sonuç!K34="","",Ulus.İlişkiler.Sonuç!K34) ->  | L34: =IF(Ulus.İlişkiler.Sonuç!L34="","",Ulus.İlişkiler.Sonuç!L34) ->  | M34: =IF(Ulus.İlişkiler.Sonuç!M34="","",Ulus.İlişkiler.Sonuç!M34) ->  | N34: =IF(Ulus.İlişkiler.Sonuç!N34="","",Ulus.İlişkiler.Sonuç!N34) -> 
A35: =IF(Ulus.İlişkiler.Sonuç!A35="","",Ulus.İlişkiler.Sonuç!A35) ->  | B35: =IF(Ulus.İlişkiler.Sonuç!B35="","",LEFT(Ulus.İlişkiler.Sonuç!B35,3)&REPT("*",4)&RIGHT(Ulus.İlişkiler.Sonuç!B35,2)) ->  | C35: =IF(Ulus.İlişkiler.Sonuç!C35="","",IF(ISERR(FIND(" ",Ulus.İlişkiler.Sonuç!C35))=TRUE,LEFT(Ulus.İlişkiler.Sonuç!C35,2)&REPT("*",3),LEFT(Ulus.İlişkiler.Sonuç!C35,2)&REPT("*",3)&" "&MID(Ulus.İlişkiler.Sonuç!C35,FIND(" ",Ulus.İlişkiler.Sonuç!C35)+1,2)&REPT("*",3))) ->  | D35: =IF(Ulus.İlişkiler.Sonuç!D35="","",IF(ISERR(FIND(" ",Ulus.İlişkiler.Sonuç!D35))=TRUE,LEFT(Ulus.İlişkiler.Sonuç!D35,2)&REPT("*",3),LEFT(Ulus.İlişkiler.Sonuç!D35,2)&REPT("*",3)&" "&MID(Ulus.İlişkiler.Sonuç!D35,FIND(" ",Ulus.İlişkiler.Sonuç!D35)+1,2)&REPT("*",3))) ->  | E35: =IF(Ulus.İlişkiler.Sonuç!E35="","",Ulus.İlişkiler.Sonuç!E35) ->  | F35: =IF(Ulus.İlişkiler.Sonuç!F35="","",Ulus.İlişkiler.Sonuç!F35) ->  | G35: =IF(Ulus.İlişkiler.Sonuç!G35="","",Ulus.İlişkiler.Sonuç!G35) ->  | H35: =IF(Ulus.İlişkiler.Sonuç!H35="","",Ulus.İlişkiler.Sonuç!H35) ->  | I35: =IF(Ulus.İlişkiler.Sonuç!I35="","",Ulus.İlişkiler.Sonuç!I35) ->  | J35: =IF(Ulus.İlişkiler.Sonuç!J35="","",Ulus.İlişkiler.Sonuç!J35) ->  | K35: =IF(Ulus.İlişkiler.Sonuç!K35="","",Ulus.İlişkiler.Sonuç!K35) ->  | L35: =IF(Ulus.İlişkiler.Sonuç!L35="","",Ulus.İlişkiler.Sonuç!L35) ->  | M35: =IF(Ulus.İlişkiler.Sonuç!M35="","",Ulus.İlişkiler.Sonuç!M35) ->  | N35: =IF(Ulus.İlişkiler.Sonuç!N35="","",Ulus.İlişkiler.Sonuç!N35) -> 
A36: =IF(Ulus.İlişkiler.Sonuç!A36="","",Ulus.İlişkiler.Sonuç!A36) ->  | B36: =IF(Ulus.İlişkiler.Sonuç!B36="","",LEFT(Ulus.İlişkiler.Sonuç!B36,3)&REPT("*",4)&RIGHT(Ulus.İlişkiler.Sonuç!B36,2)) ->  | C36: =IF(Ulus.İlişkiler.Sonuç!C36="","",IF(ISERR(FIND(" ",Ulus.İlişkiler.Sonuç!C36))=TRUE,LEFT(Ulus.İlişkiler.Sonuç!C36,2)&REPT("*",3),LEFT(Ulus.İlişkiler.Sonuç!C36,2)&REPT("*",3)&" "&MID(Ulus.İlişkiler.Sonuç!C36,FIND(" ",Ulus.İlişkiler.Sonuç!C36)+1,2)&REPT("*",3))) ->  | D36: =IF(Ulus.İlişkiler.Sonuç!D36="","",IF(ISERR(FIND(" ",Ulus.İlişkiler.Sonuç!D36))=TRUE,LEFT(Ulus.İlişkiler.Sonuç!D36,2)&REPT("*",3),LEFT(Ulus.İlişkiler.Sonuç!D36,2)&REPT("*",3)&" "&MID(Ulus.İlişkiler.Sonuç!D36,FIND(" ",Ulus.İlişkiler.Sonuç!D36)+1,2)&REPT("*",3))) ->  | E36: =IF(Ulus.İlişkiler.Sonuç!E36="","",Ulus.İlişkiler.Sonuç!E36) ->  | F36: =IF(Ulus.İlişkiler.Sonuç!F36="","",Ulus.İlişkiler.Sonuç!F36) ->  | G36: =IF(Ulus.İlişkiler.Sonuç!G36="","",Ulus.İlişkiler.Sonuç!G36) ->  | H36: =IF(Ulus.İlişkiler.Sonuç!H36="","",Ulus.İlişkiler.Sonuç!H36) ->  | I36: =IF(Ulus.İlişkiler.Sonuç!I36="","",Ulus.İlişkiler.Sonuç!I36) ->  | J36: =IF(Ulus.İlişkiler.Sonuç!J36="","",Ulus.İlişkiler.Sonuç!J36) ->  | K36: =IF(Ulus.İlişkiler.Sonuç!K36="","",Ulus.İlişkiler.Sonuç!K36) ->  | L36: =IF(Ulus.İlişkiler.Sonuç!L36="","",Ulus.İlişkiler.Sonuç!L36) ->  | M36: =IF(Ulus.İlişkiler.Sonuç!M36="","",Ulus.İlişkiler.Sonuç!M36) ->  | N36: =IF(Ulus.İlişkiler.Sonuç!N36="","",Ulus.İlişkiler.Sonuç!N36) -> 
A37: =IF(Ulus.İlişkiler.Sonuç!A37="","",Ulus.İlişkiler.Sonuç!A37) ->  | B37: =IF(Ulus.İlişkiler.Sonuç!B37="","",LEFT(Ulus.İlişkiler.Sonuç!B37,3)&REPT("*",4)&RIGHT(Ulus.İlişkiler.Sonuç!B37,2)) ->  | C37: =IF(Ulus.İlişkiler.Sonuç!C37="","",IF(ISERR(FIND(" ",Ulus.İlişkiler.Sonuç!C37))=TRUE,LEFT(Ulus.İlişkiler.Sonuç!C37,2)&REPT("*",3),LEFT(Ulus.İlişkiler.Sonuç!C37,2)&REPT("*",3)&" "&MID(Ulus.İlişkiler.Sonuç!C37,FIND(" ",Ulus.İlişkiler.Sonuç!C37)+1,2)&REPT("*",3))) ->  | D37: =IF(Ulus.İlişkiler.Sonuç!D37="","",IF(ISERR(FIND(" ",Ulus.İlişkiler.Sonuç!D37))=TRUE,LEFT(Ulus.İlişkiler.Sonuç!D37,2)&REPT("*",3),LEFT(Ulus.İlişkiler.Sonuç!D37,2)&REPT("*",3)&" "&MID(Ulus.İlişkiler.Sonuç!D37,FIND(" ",Ulus.İlişkiler.Sonuç!D37)+1,2)&REPT("*",3))) ->  | E37: =IF(Ulus.İlişkiler.Sonuç!E37="","",Ulus.İlişkiler.Sonuç!E37) ->  | F37: =IF(Ulus.İlişkiler.Sonuç!F37="","",Ulus.İlişkiler.Sonuç!F37) ->  | G37: =IF(Ulus.İlişkiler.Sonuç!G37="","",Ulus.İlişkiler.Sonuç!G37) ->  | H37: =IF(Ulus.İlişkiler.Sonuç!H37="","",Ulus.İlişkiler.Sonuç!H37) ->  | I37: =IF(Ulus.İlişkiler.Sonuç!I37="","",Ulus.İlişkiler.Sonuç!I37) ->  | J37: =IF(Ulus.İlişkiler.Sonuç!J37="","",Ulus.İlişkiler.Sonuç!J37) ->  | K37: =IF(Ulus.İlişkiler.Sonuç!K37="","",Ulus.İlişkiler.Sonuç!K37) ->  | L37: =IF(Ulus.İlişkiler.Sonuç!L37="","",Ulus.İlişkiler.Sonuç!L37) ->  | M37: =IF(Ulus.İlişkiler.Sonuç!M37="","",Ulus.İlişkiler.Sonuç!M37) ->  | N37: =IF(Ulus.İlişkiler.Sonuç!N37="","",Ulus.İlişkiler.Sonuç!N37) -> 
A38: =IF(Ulus.İlişkiler.Sonuç!A38="","",Ulus.İlişkiler.Sonuç!A38) ->  | B38: =IF(Ulus.İlişkiler.Sonuç!B38="","",LEFT(Ulus.İlişkiler.Sonuç!B38,3)&REPT("*",4)&RIGHT(Ulus.İlişkiler.Sonuç!B38,2)) ->  | C38: =IF(Ulus.İlişkiler.Sonuç!C38="","",IF(ISERR(FIND(" ",Ulus.İlişkiler.Sonuç!C38))=TRUE,LEFT(Ulus.İlişkiler.Sonuç!C38,2)&REPT("*",3),LEFT(Ulus.İlişkiler.Sonuç!C38,2)&REPT("*",3)&" "&MID(Ulus.İlişkiler.Sonuç!C38,FIND(" ",Ulus.İlişkiler.Sonuç!C38)+1,2)&REPT("*",3))) ->  | D38: =IF(Ulus.İlişkiler.Sonuç!D38="","",IF(ISERR(FIND(" ",Ulus.İlişkiler.Sonuç!D38))=TRUE,LEFT(Ulus.İlişkiler.Sonuç!D38,2)&REPT("*",3),LEFT(Ulus.İlişkiler.Sonuç!D38,2)&REPT("*",3)&" "&MID(Ulus.İlişkiler.Sonuç!D38,FIND(" ",Ulus.İlişkiler.Sonuç!D38)+1,2)&REPT("*",3))) ->  | E38: =IF(Ulus.İlişkiler.Sonuç!E38="","",Ulus.İlişkiler.Sonuç!E38) ->  | F38: =IF(Ulus.İlişkiler.Sonuç!F38="","",Ulus.İlişkiler.Sonuç!F38) ->  | G38: =IF(Ulus.İlişkiler.Sonuç!G38="","",Ulus.İlişkiler.Sonuç!G38) ->  | H38: =IF(Ulus.İlişkiler.Sonuç!H38="","",Ulus.İlişkiler.Sonuç!H38) ->  | I38: =IF(Ulus.İlişkiler.Sonuç!I38="","",Ulus.İlişkiler.Sonuç!I38) ->  | J38: =IF(Ulus.İlişkiler.Sonuç!J38="","",Ulus.İlişkiler.Sonuç!J38) ->  | K38: =IF(Ulus.İlişkiler.Sonuç!K38="","",Ulus.İlişkiler.Sonuç!K38) ->  | L38: =IF(Ulus.İlişkiler.Sonuç!L38="","",Ulus.İlişkiler.Sonuç!L38) ->  | M38: =IF(Ulus.İlişkiler.Sonuç!M38="","",Ulus.İlişkiler.Sonuç!M38) ->  | N38: =IF(Ulus.İlişkiler.Sonuç!N38="","",Ulus.İlişkiler.Sonuç!N38) -> 
A39: =IF(Ulus.İlişkiler.Sonuç!A39="","",Ulus.İlişkiler.Sonuç!A39) ->  | B39: =IF(Ulus.İlişkiler.Sonuç!B39="","",LEFT(Ulus.İlişkiler.Sonuç!B39,3)&REPT("*",4)&RIGHT(Ulus.İlişkiler.Sonuç!B39,2)) ->  | C39: =IF(Ulus.İlişkiler.Sonuç!C39="","",IF(ISERR(FIND(" ",Ulus.İlişkiler.Sonuç!C39))=TRUE,LEFT(Ulus.İlişkiler.Sonuç!C39,2)&REPT("*",3),LEFT(Ulus.İlişkiler.Sonuç!C39,2)&REPT("*",3)&" "&MID(Ulus.İlişkiler.Sonuç!C39,FIND(" ",Ulus.İlişkiler.Sonuç!C39)+1,2)&REPT("*",3))) ->  | D39: =IF(Ulus.İlişkiler.Sonuç!D39="","",IF(ISERR(FIND(" ",Ulus.İlişkiler.Sonuç!D39))=TRUE,LEFT(Ulus.İlişkiler.Sonuç!D39,2)&REPT("*",3),LEFT(Ulus.İlişkiler.Sonuç!D39,2)&REPT("*",3)&" "&MID(Ulus.İlişkiler.Sonuç!D39,FIND(" ",Ulus.İlişkiler.Sonuç!D39)+1,2)&REPT("*",3))) ->  | E39: =IF(Ulus.İlişkiler.Sonuç!E39="","",Ulus.İlişkiler.Sonuç!E39) ->  | F39: =IF(Ulus.İlişkiler.Sonuç!F39="","",Ulus.İlişkiler.Sonuç!F39) ->  | G39: =IF(Ulus.İlişkiler.Sonuç!G39="","",Ulus.İlişkiler.Sonuç!G39) ->  | H39: =IF(Ulus.İlişkiler.Sonuç!H39="","",Ulus.İlişkiler.Sonuç!H39) ->  | I39: =IF(Ulus.İlişkiler.Sonuç!I39="","",Ulus.İlişkiler.Sonuç!I39) ->  | J39: =IF(Ulus.İlişkiler.Sonuç!J39="","",Ulus.İlişkiler.Sonuç!J39) ->  | K39: =IF(Ulus.İlişkiler.Sonuç!K39="","",Ulus.İlişkiler.Sonuç!K39) ->  | L39: =IF(Ulus.İlişkiler.Sonuç!L39="","",Ulus.İlişkiler.Sonuç!L39) ->  | M39: =IF(Ulus.İlişkiler.Sonuç!M39="","",Ulus.İlişkiler.Sonuç!M39) ->  | N39: =IF(Ulus.İlişkiler.Sonuç!N39="","",Ulus.İlişkiler.Sonuç!N39) -> 
A40: =IF(Ulus.İlişkiler.Sonuç!A40="","",Ulus.İlişkiler.Sonuç!A40) ->  | B40: =IF(Ulus.İlişkiler.Sonuç!B40="","",LEFT(Ulus.İlişkiler.Sonuç!B40,3)&REPT("*",4)&RIGHT(Ulus.İlişkiler.Sonuç!B40,2)) ->  | C40: =IF(Ulus.İlişkiler.Sonuç!C40="","",IF(ISERR(FIND(" ",Ulus.İlişkiler.Sonuç!C40))=TRUE,LEFT(Ulus.İlişkiler.Sonuç!C40,2)&REPT("*",3),LEFT(Ulus.İlişkiler.Sonuç!C40,2)&REPT("*",3)&" "&MID(Ulus.İlişkiler.Sonuç!C40,FIND(" ",Ulus.İlişkiler.Sonuç!C40)+1,2)&REPT("*",3))) ->  | D40: =IF(Ulus.İlişkiler.Sonuç!D40="","",IF(ISERR(FIND(" ",Ulus.İlişkiler.Sonuç!D40))=TRUE,LEFT(Ulus.İlişkiler.Sonuç!D40,2)&REPT("*",3),LEFT(Ulus.İlişkiler.Sonuç!D40,2)&REPT("*",3)&" "&MID(Ulus.İlişkiler.Sonuç!D40,FIND(" ",Ulus.İlişkiler.Sonuç!D40)+1,2)&REPT("*",3))) ->  | E40: =IF(Ulus.İlişkiler.Sonuç!E40="","",Ulus.İlişkiler.Sonuç!E40) ->  | F40: =IF(Ulus.İlişkiler.Sonuç!F40="","",Ulus.İlişkiler.Sonuç!F40) ->  | G40: =IF(Ulus.İlişkiler.Sonuç!G40="","",Ulus.İlişkiler.Sonuç!G40) ->  | H40: =IF(Ulus.İlişkiler.Sonuç!H40="","",Ulus.İlişkiler.Sonuç!H40) ->  | I40: =IF(Ulus.İlişkiler.Sonuç!I40="","",Ulus.İlişkiler.Sonuç!I40) ->  | J40: =IF(Ulus.İlişkiler.Sonuç!J40="","",Ulus.İlişkiler.Sonuç!J40) ->  | K40: =IF(Ulus.İlişkiler.Sonuç!K40="","",Ulus.İlişkiler.Sonuç!K40) ->  | L40: =IF(Ulus.İlişkiler.Sonuç!L40="","",Ulus.İlişkiler.Sonuç!L40) ->  | M40: =IF(Ulus.İlişkiler.Sonuç!M40="","",Ulus.İlişkiler.Sonuç!M40) ->  | N40: =IF(Ulus.İlişkiler.Sonuç!N40="","",Ulus.İlişkiler.Sonuç!N40) -> 
A41: =IF(Ulus.İlişkiler.Sonuç!A41="","",Ulus.İlişkiler.Sonuç!A41) ->  | B41: =IF(Ulus.İlişkiler.Sonuç!B41="","",LEFT(Ulus.İlişkiler.Sonuç!B41,3)&REPT("*",4)&RIGHT(Ulus.İlişkiler.Sonuç!B41,2)) ->  | C41: =IF(Ulus.İlişkiler.Sonuç!C41="","",IF(ISERR(FIND(" ",Ulus.İlişkiler.Sonuç!C41))=TRUE,LEFT(Ulus.İlişkiler.Sonuç!C41,2)&REPT("*",3),LEFT(Ulus.İlişkiler.Sonuç!C41,2)&REPT("*",3)&" "&MID(Ulus.İlişkiler.Sonuç!C41,FIND(" ",Ulus.İlişkiler.Sonuç!C41)+1,2)&REPT("*",3))) ->  | D41: =IF(Ulus.İlişkiler.Sonuç!D41="","",IF(ISERR(FIND(" ",Ulus.İlişkiler.Sonuç!D41))=TRUE,LEFT(Ulus.İlişkiler.Sonuç!D41,2)&REPT("*",3),LEFT(Ulus.İlişkiler.Sonuç!D41,2)&REPT("*",3)&" "&MID(Ulus.İlişkiler.Sonuç!D41,FIND(" ",Ulus.İlişkiler.Sonuç!D41)+1,2)&REPT("*",3))) ->  | E41: =IF(Ulus.İlişkiler.Sonuç!E41="","",Ulus.İlişkiler.Sonuç!E41) ->  | F41: =IF(Ulus.İlişkiler.Sonuç!F41="","",Ulus.İlişkiler.Sonuç!F41) ->  | G41: =IF(Ulus.İlişkiler.Sonuç!G41="","",Ulus.İlişkiler.Sonuç!G41) ->  | H41: =IF(Ulus.İlişkiler.Sonuç!H41="","",Ulus.İlişkiler.Sonuç!H41) ->  | I41: =IF(Ulus.İlişkiler.Sonuç!I41="","",Ulus.İlişkiler.Sonuç!I41) ->  | J41: =IF(Ulus.İlişkiler.Sonuç!J41="","",Ulus.İlişkiler.Sonuç!J41) ->  | K41: =IF(Ulus.İlişkiler.Sonuç!K41="","",Ulus.İlişkiler.Sonuç!K41) ->  | L41: =IF(Ulus.İlişkiler.Sonuç!L41="","",Ulus.İlişkiler.Sonuç!L41) ->  | M41: =IF(Ulus.İlişkiler.Sonuç!M41="","",Ulus.İlişkiler.Sonuç!M41) ->  | N41: =IF(Ulus.İlişkiler.Sonuç!N41="","",Ulus.İlişkiler.Sonuç!N41) -> 
A42: =IF(Ulus.İlişkiler.Sonuç!A42="","",Ulus.İlişkiler.Sonuç!A42) ->  | B42: =IF(Ulus.İlişkiler.Sonuç!B42="","",LEFT(Ulus.İlişkiler.Sonuç!B42,3)&REPT("*",4)&RIGHT(Ulus.İlişkiler.Sonuç!B42,2)) ->  | C42: =IF(Ulus.İlişkiler.Sonuç!C42="","",IF(ISERR(FIND(" ",Ulus.İlişkiler.Sonuç!C42))=TRUE,LEFT(Ulus.İlişkiler.Sonuç!C42,2)&REPT("*",3),LEFT(Ulus.İlişkiler.Sonuç!C42,2)&REPT("*",3)&" "&MID(Ulus.İlişkiler.Sonuç!C42,FIND(" ",Ulus.İlişkiler.Sonuç!C42)+1,2)&REPT("*",3))) ->  | D42: =IF(Ulus.İlişkiler.Sonuç!D42="","",IF(ISERR(FIND(" ",Ulus.İlişkiler.Sonuç!D42))=TRUE,LEFT(Ulus.İlişkiler.Sonuç!D42,2)&REPT("*",3),LEFT(Ulus.İlişkiler.Sonuç!D42,2)&REPT("*",3)&" "&MID(Ulus.İlişkiler.Sonuç!D42,FIND(" ",Ulus.İlişkiler.Sonuç!D42)+1,2)&REPT("*",3))) ->  | E42: =IF(Ulus.İlişkiler.Sonuç!E42="","",Ulus.İlişkiler.Sonuç!E42) ->  | F42: =IF(Ulus.İlişkiler.Sonuç!F42="","",Ulus.İlişkiler.Sonuç!F42) ->  | G42: =IF(Ulus.İlişkiler.Sonuç!G42="","",Ulus.İlişkiler.Sonuç!G42) ->  | H42: =IF(Ulus.İlişkiler.Sonuç!H42="","",Ulus.İlişkiler.Sonuç!H42) ->  | I42: =IF(Ulus.İlişkiler.Sonuç!I42="","",Ulus.İlişkiler.Sonuç!I42) ->  | J42: =IF(Ulus.İlişkiler.Sonuç!J42="","",Ulus.İlişkiler.Sonuç!J42) ->  | K42: =IF(Ulus.İlişkiler.Sonuç!K42="","",Ulus.İlişkiler.Sonuç!K42) ->  | L42: =IF(Ulus.İlişkiler.Sonuç!L42="","",Ulus.İlişkiler.Sonuç!L42) ->  | M42: =IF(Ulus.İlişkiler.Sonuç!M42="","",Ulus.İlişkiler.Sonuç!M42) ->  | N42: =IF(Ulus.İlişkiler.Sonuç!N42="","",Ulus.İlişkiler.Sonuç!N42) -> 
A43: =IF(Ulus.İlişkiler.Sonuç!A43="","",Ulus.İlişkiler.Sonuç!A43) ->  | B43: =IF(Ulus.İlişkiler.Sonuç!B43="","",LEFT(Ulus.İlişkiler.Sonuç!B43,3)&REPT("*",4)&RIGHT(Ulus.İlişkiler.Sonuç!B43,2)) ->  | C43: =IF(Ulus.İlişkiler.Sonuç!C43="","",IF(ISERR(FIND(" ",Ulus.İlişkiler.Sonuç!C43))=TRUE,LEFT(Ulus.İlişkiler.Sonuç!C43,2)&REPT("*",3),LEFT(Ulus.İlişkiler.Sonuç!C43,2)&REPT("*",3)&" "&MID(Ulus.İlişkiler.Sonuç!C43,FIND(" ",Ulus.İlişkiler.Sonuç!C43)+1,2)&REPT("*",3))) ->  | D43: =IF(Ulus.İlişkiler.Sonuç!D43="","",IF(ISERR(FIND(" ",Ulus.İlişkiler.Sonuç!D43))=TRUE,LEFT(Ulus.İlişkiler.Sonuç!D43,2)&REPT("*",3),LEFT(Ulus.İlişkiler.Sonuç!D43,2)&REPT("*",3)&" "&MID(Ulus.İlişkiler.Sonuç!D43,FIND(" ",Ulus.İlişkiler.Sonuç!D43)+1,2)&REPT("*",3))) ->  | E43: =IF(Ulus.İlişkiler.Sonuç!E43="","",Ulus.İlişkiler.Sonuç!E43) ->  | F43: =IF(Ulus.İlişkiler.Sonuç!F43="","",Ulus.İlişkiler.Sonuç!F43) ->  | G43: =IF(Ulus.İlişkiler.Sonuç!G43="","",Ulus.İlişkiler.Sonuç!G43) ->  | H43: =IF(Ulus.İlişkiler.Sonuç!H43="","",Ulus.İlişkiler.Sonuç!H43) ->  | I43: =IF(Ulus.İlişkiler.Sonuç!I43="","",Ulus.İlişkiler.Sonuç!I43) ->  | J43: =IF(Ulus.İlişkiler.Sonuç!J43="","",Ulus.İlişkiler.Sonuç!J43) ->  | K43: =IF(Ulus.İlişkiler.Sonuç!K43="","",Ulus.İlişkiler.Sonuç!K43) ->  | L43: =IF(Ulus.İlişkiler.Sonuç!L43="","",Ulus.İlişkiler.Sonuç!L43) ->  | M43: =IF(Ulus.İlişkiler.Sonuç!M43="","",Ulus.İlişkiler.Sonuç!M43) ->  | N43: =IF(Ulus.İlişkiler.Sonuç!N43="","",Ulus.İlişkiler.Sonuç!N43) -> 
A44: =IF(Ulus.İlişkiler.Sonuç!A44="","",Ulus.İlişkiler.Sonuç!A44) ->  | B44: =IF(Ulus.İlişkiler.Sonuç!B44="","",LEFT(Ulus.İlişkiler.Sonuç!B44,3)&REPT("*",4)&RIGHT(Ulus.İlişkiler.Sonuç!B44,2)) ->  | C44: =IF(Ulus.İlişkiler.Sonuç!C44="","",IF(ISERR(FIND(" ",Ulus.İlişkiler.Sonuç!C44))=TRUE,LEFT(Ulus.İlişkiler.Sonuç!C44,2)&REPT("*",3),LEFT(Ulus.İlişkiler.Sonuç!C44,2)&REPT("*",3)&" "&MID(Ulus.İlişkiler.Sonuç!C44,FIND(" ",Ulus.İlişkiler.Sonuç!C44)+1,2)&REPT("*",3))) ->  | D44: =IF(Ulus.İlişkiler.Sonuç!D44="","",IF(ISERR(FIND(" ",Ulus.İlişkiler.Sonuç!D44))=TRUE,LEFT(Ulus.İlişkiler.Sonuç!D44,2)&REPT("*",3),LEFT(Ulus.İlişkiler.Sonuç!D44,2)&REPT("*",3)&" "&MID(Ulus.İlişkiler.Sonuç!D44,FIND(" ",Ulus.İlişkiler.Sonuç!D44)+1,2)&REPT("*",3))) ->  | E44: =IF(Ulus.İlişkiler.Sonuç!E44="","",Ulus.İlişkiler.Sonuç!E44) ->  | F44: =IF(Ulus.İlişkiler.Sonuç!F44="","",Ulus.İlişkiler.Sonuç!F44) ->  | G44: =IF(Ulus.İlişkiler.Sonuç!G44="","",Ulus.İlişkiler.Sonuç!G44) ->  | H44: =IF(Ulus.İlişkiler.Sonuç!H44="","",Ulus.İlişkiler.Sonuç!H44) ->  | I44: =IF(Ulus.İlişkiler.Sonuç!I44="","",Ulus.İlişkiler.Sonuç!I44) ->  | J44: =IF(Ulus.İlişkiler.Sonuç!J44="","",Ulus.İlişkiler.Sonuç!J44) ->  | K44: =IF(Ulus.İlişkiler.Sonuç!K44="","",Ulus.İlişkiler.Sonuç!K44) ->  | L44: =IF(Ulus.İlişkiler.Sonuç!L44="","",Ulus.İlişkiler.Sonuç!L44) ->  | M44: =IF(Ulus.İlişkiler.Sonuç!M44="","",Ulus.İlişkiler.Sonuç!M44) ->  | N44: =IF(Ulus.İlişkiler.Sonuç!N44="","",Ulus.İlişkiler.Sonuç!N44) -> 
A45: =IF(Ulus.İlişkiler.Sonuç!A45="","",Ulus.İlişkiler.Sonuç!A45) ->  | B45: =IF(Ulus.İlişkiler.Sonuç!B45="","",LEFT(Ulus.İlişkiler.Sonuç!B45,3)&REPT("*",4)&RIGHT(Ulus.İlişkiler.Sonuç!B45,2)) ->  | C45: =IF(Ulus.İlişkiler.Sonuç!C45="","",IF(ISERR(FIND(" ",Ulus.İlişkiler.Sonuç!C45))=TRUE,LEFT(Ulus.İlişkiler.Sonuç!C45,2)&REPT("*",3),LEFT(Ulus.İlişkiler.Sonuç!C45,2)&REPT("*",3)&" "&MID(Ulus.İlişkiler.Sonuç!C45,FIND(" ",Ulus.İlişkiler.Sonuç!C45)+1,2)&REPT("*",3))) ->  | D45: =IF(Ulus.İlişkiler.Sonuç!D45="","",IF(ISERR(FIND(" ",Ulus.İlişkiler.Sonuç!D45))=TRUE,LEFT(Ulus.İlişkiler.Sonuç!D45,2)&REPT("*",3),LEFT(Ulus.İlişkiler.Sonuç!D45,2)&REPT("*",3)&" "&MID(Ulus.İlişkiler.Sonuç!D45,FIND(" ",Ulus.İlişkiler.Sonuç!D45)+1,2)&REPT("*",3))) ->  | E45: =IF(Ulus.İlişkiler.Sonuç!E45="","",Ulus.İlişkiler.Sonuç!E45) ->  | F45: =IF(Ulus.İlişkiler.Sonuç!F45="","",Ulus.İlişkiler.Sonuç!F45) ->  | G45: =IF(Ulus.İlişkiler.Sonuç!G45="","",Ulus.İlişkiler.Sonuç!G45) ->  | H45: =IF(Ulus.İlişkiler.Sonuç!H45="","",Ulus.İlişkiler.Sonuç!H45) ->  | I45: =IF(Ulus.İlişkiler.Sonuç!I45="","",Ulus.İlişkiler.Sonuç!I45) ->  | J45: =IF(Ulus.İlişkiler.Sonuç!J45="","",Ulus.İlişkiler.Sonuç!J45) ->  | K45: =IF(Ulus.İlişkiler.Sonuç!K45="","",Ulus.İlişkiler.Sonuç!K45) ->  | L45: =IF(Ulus.İlişkiler.Sonuç!L45="","",Ulus.İlişkiler.Sonuç!L45) ->  | M45: =IF(Ulus.İlişkiler.Sonuç!M45="","",Ulus.İlişkiler.Sonuç!M45) ->  | N45: =IF(Ulus.İlişkiler.Sonuç!N45="","",Ulus.İlişkiler.Sonuç!N45) -> 
A46: =IF(Ulus.İlişkiler.Sonuç!A46="","",Ulus.İlişkiler.Sonuç!A46) ->  | B46: =IF(Ulus.İlişkiler.Sonuç!B46="","",LEFT(Ulus.İlişkiler.Sonuç!B46,3)&REPT("*",4)&RIGHT(Ulus.İlişkiler.Sonuç!B46,2)) ->  | C46: =IF(Ulus.İlişkiler.Sonuç!C46="","",IF(ISERR(FIND(" ",Ulus.İlişkiler.Sonuç!C46))=TRUE,LEFT(Ulus.İlişkiler.Sonuç!C46,2)&REPT("*",3),LEFT(Ulus.İlişkiler.Sonuç!C46,2)&REPT("*",3)&" "&MID(Ulus.İlişkiler.Sonuç!C46,FIND(" ",Ulus.İlişkiler.Sonuç!C46)+1,2)&REPT("*",3))) ->  | D46: =IF(Ulus.İlişkiler.Sonuç!D46="","",IF(ISERR(FIND(" ",Ulus.İlişkiler.Sonuç!D46))=TRUE,LEFT(Ulus.İlişkiler.Sonuç!D46,2)&REPT("*",3),LEFT(Ulus.İlişkiler.Sonuç!D46,2)&REPT("*",3)&" "&MID(Ulus.İlişkiler.Sonuç!D46,FIND(" ",Ulus.İlişkiler.Sonuç!D46)+1,2)&REPT("*",3))) ->  | E46: =IF(Ulus.İlişkiler.Sonuç!E46="","",Ulus.İlişkiler.Sonuç!E46) ->  | F46: =IF(Ulus.İlişkiler.Sonuç!F46="","",Ulus.İlişkiler.Sonuç!F46) ->  | G46: =IF(Ulus.İlişkiler.Sonuç!G46="","",Ulus.İlişkiler.Sonuç!G46) ->  | H46: =IF(Ulus.İlişkiler.Sonuç!H46="","",Ulus.İlişkiler.Sonuç!H46) ->  | I46: =IF(Ulus.İlişkiler.Sonuç!I46="","",Ulus.İlişkiler.Sonuç!I46) ->  | J46: =IF(Ulus.İlişkiler.Sonuç!J46="","",Ulus.İlişkiler.Sonuç!J46) ->  | K46: =IF(Ulus.İlişkiler.Sonuç!K46="","",Ulus.İlişkiler.Sonuç!K46) ->  | L46: =IF(Ulus.İlişkiler.Sonuç!L46="","",Ulus.İlişkiler.Sonuç!L46) ->  | M46: =IF(Ulus.İlişkiler.Sonuç!M46="","",Ulus.İlişkiler.Sonuç!M46) ->  | N46: =IF(Ulus.İlişkiler.Sonuç!N46="","",Ulus.İlişkiler.Sonuç!N46) -> 
A47: =IF(Ulus.İlişkiler.Sonuç!A47="","",Ulus.İlişkiler.Sonuç!A47) ->  | B47: =IF(Ulus.İlişkiler.Sonuç!B47="","",LEFT(Ulus.İlişkiler.Sonuç!B47,3)&REPT("*",4)&RIGHT(Ulus.İlişkiler.Sonuç!B47,2)) ->  | C47: =IF(Ulus.İlişkiler.Sonuç!C47="","",IF(ISERR(FIND(" ",Ulus.İlişkiler.Sonuç!C47))=TRUE,LEFT(Ulus.İlişkiler.Sonuç!C47,2)&REPT("*",3),LEFT(Ulus.İlişkiler.Sonuç!C47,2)&REPT("*",3)&" "&MID(Ulus.İlişkiler.Sonuç!C47,FIND(" ",Ulus.İlişkiler.Sonuç!C47)+1,2)&REPT("*",3))) ->  | D47: =IF(Ulus.İlişkiler.Sonuç!D47="","",IF(ISERR(FIND(" ",Ulus.İlişkiler.Sonuç!D47))=TRUE,LEFT(Ulus.İlişkiler.Sonuç!D47,2)&REPT("*",3),LEFT(Ulus.İlişkiler.Sonuç!D47,2)&REPT("*",3)&" "&MID(Ulus.İlişkiler.Sonuç!D47,FIND(" ",Ulus.İlişkiler.Sonuç!D47)+1,2)&REPT("*",3))) ->  | E47: =IF(Ulus.İlişkiler.Sonuç!E47="","",Ulus.İlişkiler.Sonuç!E47) ->  | F47: =IF(Ulus.İlişkiler.Sonuç!F47="","",Ulus.İlişkiler.Sonuç!F47) ->  | G47: =IF(Ulus.İlişkiler.Sonuç!G47="","",Ulus.İlişkiler.Sonuç!G47) ->  | H47: =IF(Ulus.İlişkiler.Sonuç!H47="","",Ulus.İlişkiler.Sonuç!H47) ->  | I47: =IF(Ulus.İlişkiler.Sonuç!I47="","",Ulus.İlişkiler.Sonuç!I47) ->  | J47: =IF(Ulus.İlişkiler.Sonuç!J47="","",Ulus.İlişkiler.Sonuç!J47) ->  | K47: =IF(Ulus.İlişkiler.Sonuç!K47="","",Ulus.İlişkiler.Sonuç!K47) ->  | L47: =IF(Ulus.İlişkiler.Sonuç!L47="","",Ulus.İlişkiler.Sonuç!L47) ->  | M47: =IF(Ulus.İlişkiler.Sonuç!M47="","",Ulus.İlişkiler.Sonuç!M47) ->  | N47: =IF(Ulus.İlişkiler.Sonuç!N47="","",Ulus.İlişkiler.Sonuç!N47) -> 
